{"text_format":"1","workbook":"xlsx","n_sheets":3,"sheets":["Форма ввода","Лист1","База данных"],"not_rendered":{"charts":0,"images":2,"macros":1,"external_links":0,"defined_names":6,"comments":0,"pivot_tables":0},"unopened":[],"bounds":{"document_bytes":16777216,"sheet_cells":100000,"rows_first":2000,"rows_last":500,"rows_between":2000,"halvings":0,"cell_chars":16384,"cell_head_chars":4096},"cells_cut":0,"cells_raw":0,"read":"whole","date_system":"1900"}

{"sheet":"Форма ввода","index":0,"n_rows":24,"n_cols":25,"rows_kept":24,"cut":false,"hidden":false,"merged":[[0,1,0,4],[4,0,4,1],[6,0,6,1],[10,5,12,5],[15,5,17,5],[8,0,8,1],[10,0,10,1],[12,0,12,1],[11,0,11,3],[9,0,9,2],[14,0,14,2],[15,0,15,1],[17,0,17,1],[16,0,16,3],[7,3,8,3]]}
[null,"Форма ввода данных ремонта"]
[]
[null,"Дата",{"$f":"NOW()","v":"2020-03-05T12:21:16.280"}]
[null,null,null,null,null,null,null,null,null,null,null,null,null,null,null,null,null,null,null,null,null,null,null,null,"Белов Александр Павлович"]
["Клиент:",null,"пим"]
[]
["Чей он:",null,{"$f":"IFERROR(INDEX(Базаданных[Чей клиент],MATCH('Форма ввода'!$C$5,Базаданных[Клиент],0)),\"\")","v":""}]
[null,null,null,"           Заполняется только в том случае если не понятно чей клиент!!!"]
["К кому отнести:"]
["Д     Е     Б     И     Т",null,null,"Комментарий",null,"Должен НАМ"]
["Дали:",null,null,null,null,{"$f":"SUMIFS(Базаданных[ДД],Базаданных[Клиент],C5)-SUMIFS(Базаданных[ГД],Базаданных[Клиент],C5)","v":0}]
[]
["Гашение:"]
[]
["К    Р    Е    Д    И    Т",null,null,"Комментарий",null,"Должны МЫ"]
["Взяли:",null,null,null,null,{"$f":"SUMIFS(Базаданных[КВ],Базаданных[Клиент],C5)-SUMIFS(Базаданных[ГК],Базаданных[Клиент],C5)","v":0}]
[]
["Гашение:"]
[]
[]
[]
[]
[null,"Дата","Время","День","День Прописью","Месяц","Год","Дебит дали","Комментарий \"Дебит дали\"","Дебит загосили","Комментарий \"Дебит загосили\"","Кредит взяли","Комментарий \"Кредит взяли\"","Кредит загасили","Комментарий \"Кредит загасили\"","Чей он","Клиент"]
[null,{"$f":"C3","v":"2020-03-05T12:21:16.280"},{"$f":"C3","v":43895.514771759263},{"$f":"DAY(B24)","v":5},{"$f":"TEXT(B24,\"ДДДД\")","v":"четверг"},{"$f":"TEXT(B24,\"ММММ\")","v":"Март"},{"$f":"TEXT(B24,\"ГГГГ\")","v":"2020"},{"$f":"IF(C11<0,\"-\",C11)","v":0},{"$f":"IF(D11=0,\"-\",D11)","v":"-"},{"$f":"C13","v":0},{"$f":"IF(D13=0,\"-\",D13)","v":"-"},{"$f":"C16","v":0},{"$f":"IF(D16=0,\"-\",D16)","v":"-"},{"$f":"C18","v":0},{"$f":"IF(D18=0,\"-\",D18)","v":"-"},{"$f":"IF(C9>\"\",C9,C7)","v":""},{"$f":"IF(C5=0,\"\",C5)","v":"пим"}]

{"sheet":"Лист1","index":1,"n_rows":0,"n_cols":0,"rows_kept":0,"cut":false,"hidden":true,"merged":[]}

{"sheet":"База данных","index":2,"n_rows":378,"n_cols":24,"rows_kept":378,"cut":false,"hidden":false,"merged":[]}
["Дата","Время","День","День Прописью","Месяц","Год","ДД","Комментарий \"Дебит дали\"","ГД","Комментарий \"Дебит загосили\"","КВ","Комментарий \"Кредит взяли\"","ГК","Комментарий \"Кредит загасили\"","Чей клиент","Клиент","Статус","Индекс","Фильтр","Статус2","Индекс3","Фильтр4","Разница ДД/ГД","Разница КД/ГК"]
["2019-04-01","10:00:00",1,"понедельник","Апрель","2019",110000,null,null,null,null,null,null,null,"Пименов Алексей","Нерсес П-96 (Савеловский)",{"$f":"NOT(ISERROR(SEARCH('Форма ввода'!$C$5,Базаданных[[#This Row],[Клиент]])))","v":false},{"$f":"IF(Базаданных[[#This Row],[Статус]],COUNTIF($Q$2:Базаданных[[#This Row],[Статус]],TRUE),\"\")","v":""},{"$f":"IFERROR(INDEX(Базаданных[Клиент],MATCH(ROWS($R$2:Базаданных[[#This Row],[Индекс]]),Базаданных[Индекс],0)),\"\")","v":"Пименов Алексей (АлексСтор)"},{"$f":"NOT(ISERROR(SEARCH('Форма ввода'!$C$9,Базаданных[[#This Row],[Чей клиент]])))","v":true},{"$f":"IF(Базаданных[[#This Row],[Статус2]],COUNTIF($T$2:Базаданных[[#This Row],[Статус2]],TRUE),\"\")","v":1},{"$f":"IFERROR(INDEX(Базаданных[Чей клиент],MATCH(ROWS($U$2:Базаданных[[#This Row],[Индекс3]]),Базаданных[Индекс3],0)),\"\")","v":"Пименов Алексей"},{"$f":"Базаданных[[#This Row],[ДД]]-Базаданных[[#This Row],[ГД]]","v":110000},{"$f":"Базаданных[[#This Row],[КВ]]-Базаданных[[#This Row],[ГК]]","v":0}]
["2019-04-01",43570.828220370371,1,"понедельник","Апрель","2019",0,"-",0,"-",400,"-",0,"-","Гречихина Юля","ИП Майорова",{"$f":"NOT(ISERROR(SEARCH('Форма ввода'!$C$5,Базаданных[[#This Row],[Клиент]])))","v":false},{"$f":"IF(Базаданных[[#This Row],[Статус]],COUNTIF($Q$2:Базаданных[[#This Row],[Статус]],TRUE),\"\")","v":""},{"$f":"IFERROR(INDEX(Базаданных[Клиент],MATCH(ROWS($R$2:Базаданных[[#This Row],[Индекс]]),Базаданных[Индекс],0)),\"\")","v":"Пименов Алексей (АлексСтор)"},{"$f":"NOT(ISERROR(SEARCH('Форма ввода'!$C$9,Базаданных[[#This Row],[Чей клиент]])))","v":true},{"$f":"IF(Базаданных[[#This Row],[Статус2]],COUNTIF($T$2:Базаданных[[#This Row],[Статус2]],TRUE),\"\")","v":2},{"$f":"IFERROR(INDEX(Базаданных[Чей клиент],MATCH(ROWS($U$2:Базаданных[[#This Row],[Индекс3]]),Базаданных[Индекс3],0)),\"\")","v":"Гречихина Юля"},{"$f":"Базаданных[[#This Row],[ДД]]-Базаданных[[#This Row],[ГД]]","v":0},{"$f":"Базаданных[[#This Row],[КВ]]-Базаданных[[#This Row],[ГК]]","v":400}]
["2019-04-01",43566.83271516204,1,"понедельник","Апрель","2019",55000,"-",0,"-",0,"-",0,"-","Пименов Алексей","Саша Криле",{"$f":"NOT(ISERROR(SEARCH('Форма ввода'!$C$5,Базаданных[[#This Row],[Клиент]])))","v":false},{"$f":"IF(Базаданных[[#This Row],[Статус]],COUNTIF($Q$2:Базаданных[[#This Row],[Статус]],TRUE),\"\")","v":""},{"$f":"IFERROR(INDEX(Базаданных[Клиент],MATCH(ROWS($R$2:Базаданных[[#This Row],[Индекс]]),Базаданных[Индекс],0)),\"\")","v":"Пименов Алексей (АлексСтор)"},{"$f":"NOT(ISERROR(SEARCH('Форма ввода'!$C$9,Базаданных[[#This Row],[Чей клиент]])))","v":true},{"$f":"IF(Базаданных[[#This Row],[Статус2]],COUNTIF($T$2:Базаданных[[#This Row],[Статус2]],TRUE),\"\")","v":3},{"$f":"IFERROR(INDEX(Базаданных[Чей клиент],MATCH(ROWS($U$2:Базаданных[[#This Row],[Индекс3]]),Базаданных[Индекс3],0)),\"\")","v":"Пименов Алексей"},{"$f":"Базаданных[[#This Row],[ДД]]-Базаданных[[#This Row],[ГД]]","v":55000},{"$f":"Базаданных[[#This Row],[КВ]]-Базаданных[[#This Row],[ГК]]","v":0}]
["2019-04-01",43566.833922337966,1,"понедельник","Апрель","2019",75650,"-",0,"-",0,"-",0,"-","Пименов Алексей","Влад П-87",{"$f":"NOT(ISERROR(SEARCH('Форма ввода'!$C$5,Базаданных[[#This Row],[Клиент]])))","v":false},{"$f":"IF(Базаданных[[#This Row],[Статус]],COUNTIF($Q$2:Базаданных[[#This Row],[Статус]],TRUE),\"\")","v":""},{"$f":"IFERROR(INDEX(Базаданных[Клиент],MATCH(ROWS($R$2:Базаданных[[#This Row],[Индекс]]),Базаданных[Индекс],0)),\"\")","v":""},{"$f":"NOT(ISERROR(SEARCH('Форма ввода'!$C$9,Базаданных[[#This Row],[Чей клиент]])))","v":true},{"$f":"IF(Базаданных[[#This Row],[Статус2]],COUNTIF($T$2:Базаданных[[#This Row],[Статус2]],TRUE),\"\")","v":4},{"$f":"IFERROR(INDEX(Базаданных[Чей клиент],MATCH(ROWS($U$2:Базаданных[[#This Row],[Индекс3]]),Базаданных[Индекс3],0)),\"\")","v":"Пименов Алексей"},{"$f":"Базаданных[[#This Row],[ДД]]-Базаданных[[#This Row],[ГД]]","v":75650},{"$f":"Базаданных[[#This Row],[КВ]]-Базаданных[[#This Row],[ГК]]","v":0}]
["2019-04-01",43566.834338310182,1,"понедельник","Апрель","2019",331000,"-",0,"-",0,"-",0,"-","Пименов Алексей","Армения",{"$f":"NOT(ISERROR(SEARCH('Форма ввода'!$C$5,Базаданных[[#This Row],[Клиент]])))","v":false},{"$f":"IF(Базаданных[[#This Row],[Статус]],COUNTIF($Q$2:Базаданных[[#This Row],[Статус]],TRUE),\"\")","v":""},{"$f":"IFERROR(INDEX(Базаданных[Клиент],MATCH(ROWS($R$2:Базаданных[[#This Row],[Индекс]]),Базаданных[Индекс],0)),\"\")","v":""},{"$f":"NOT(ISERROR(SEARCH('Форма ввода'!$C$9,Базаданных[[#This Row],[Чей клиент]])))","v":true},{"$f":"IF(Базаданных[[#This Row],[Статус2]],COUNTIF($T$2:Базаданных[[#This Row],[Статус2]],TRUE),\"\")","v":5},{"$f":"IFERROR(INDEX(Базаданных[Чей клиент],MATCH(ROWS($U$2:Базаданных[[#This Row],[Индекс3]]),Базаданных[Индекс3],0)),\"\")","v":"Пименов Алексей"},{"$f":"Базаданных[[#This Row],[ДД]]-Базаданных[[#This Row],[ГД]]","v":331000},{"$f":"Базаданных[[#This Row],[КВ]]-Базаданных[[#This Row],[ГК]]","v":0}]
["2019-04-01",43567.775615162034,1,"понедельник","Апрель","2019",18000,"-",0,"-",0,"-",0,"-","Пименов Алексей","Дмитрий (Вокзалы)",{"$f":"NOT(ISERROR(SEARCH('Форма ввода'!$C$5,Базаданных[[#This Row],[Клиент]])))","v":false},{"$f":"IF(Базаданных[[#This Row],[Статус]],COUNTIF($Q$2:Базаданных[[#This Row],[Статус]],TRUE),\"\")","v":""},{"$f":"IFERROR(INDEX(Базаданных[Клиент],MATCH(ROWS($R$2:Базаданных[[#This Row],[Индекс]]),Базаданных[Индекс],0)),\"\")","v":""},{"$f":"NOT(ISERROR(SEARCH('Форма ввода'!$C$9,Базаданных[[#This Row],[Чей клиент]])))","v":true},{"$f":"IF(Базаданных[[#This Row],[Статус2]],COUNTIF($T$2:Базаданных[[#This Row],[Статус2]],TRUE),\"\")","v":6},{"$f":"IFERROR(INDEX(Базаданных[Чей клиент],MATCH(ROWS($U$2:Базаданных[[#This Row],[Индекс3]]),Базаданных[Индекс3],0)),\"\")","v":"Пименов Алексей"},{"$f":"Базаданных[[#This Row],[ДД]]-Базаданных[[#This Row],[ГД]]","v":18000},{"$f":"Базаданных[[#This Row],[КВ]]-Базаданных[[#This Row],[ГК]]","v":0}]
["2019-04-01",43567.776317013886,1,"понедельник","Апрель","2019",364648,"-",0,"-",0,"-",0,"-","Пименов Алексей","Дебит Митино",{"$f":"NOT(ISERROR(SEARCH('Форма ввода'!$C$5,Базаданных[[#This Row],[Клиент]])))","v":false},{"$f":"IF(Базаданных[[#This Row],[Статус]],COUNTIF($Q$2:Базаданных[[#This Row],[Статус]],TRUE),\"\")","v":""},{"$f":"IFERROR(INDEX(Базаданных[Клиент],MATCH(ROWS($R$2:Базаданных[[#This Row],[Индекс]]),Базаданных[Индекс],0)),\"\")","v":""},{"$f":"NOT(ISERROR(SEARCH('Форма ввода'!$C$9,Базаданных[[#This Row],[Чей клиент]])))","v":true},{"$f":"IF(Базаданных[[#This Row],[Статус2]],COUNTIF($T$2:Базаданных[[#This Row],[Статус2]],TRUE),\"\")","v":7},{"$f":"IFERROR(INDEX(Базаданных[Чей клиент],MATCH(ROWS($U$2:Базаданных[[#This Row],[Индекс3]]),Базаданных[Индекс3],0)),\"\")","v":"Пименов Алексей"},{"$f":"Базаданных[[#This Row],[ДД]]-Базаданных[[#This Row],[ГД]]","v":364648},{"$f":"Базаданных[[#This Row],[КВ]]-Базаданных[[#This Row],[ГК]]","v":0}]
["2019-04-01",43567.776613310183,1,"понедельник","Апрель","2019",5000,"-",0,"-",0,"-",0,"-","Пименов Алексей","Брат Сергея",{"$f":"NOT(ISERROR(SEARCH('Форма ввода'!$C$5,Базаданных[[#This Row],[Клиент]])))","v":false},{"$f":"IF(Базаданных[[#This Row],[Статус]],COUNTIF($Q$2:Базаданных[[#This Row],[Статус]],TRUE),\"\")","v":""},{"$f":"IFERROR(INDEX(Базаданных[Клиент],MATCH(ROWS($R$2:Базаданных[[#This Row],[Индекс]]),Базаданных[Индекс],0)),\"\")","v":""},{"$f":"NOT(ISERROR(SEARCH('Форма ввода'!$C$9,Базаданных[[#This Row],[Чей клиент]])))","v":true},{"$f":"IF(Базаданных[[#This Row],[Статус2]],COUNTIF($T$2:Базаданных[[#This Row],[Статус2]],TRUE),\"\")","v":8},{"$f":"IFERROR(INDEX(Базаданных[Чей клиент],MATCH(ROWS($U$2:Базаданных[[#This Row],[Индекс3]]),Базаданных[Индекс3],0)),\"\")","v":"Пименов Алексей"},{"$f":"Базаданных[[#This Row],[ДД]]-Базаданных[[#This Row],[ГД]]","v":5000},{"$f":"Базаданных[[#This Row],[КВ]]-Базаданных[[#This Row],[ГК]]","v":0}]
["2019-04-01",43567.776920833334,1,"понедельник","Апрель","2019",311370,"-",0,"-",0,"-",0,"-","Пименов Алексей","Эдик (От Сергея)",{"$f":"NOT(ISERROR(SEARCH('Форма ввода'!$C$5,Базаданных[[#This Row],[Клиент]])))","v":false},{"$f":"IF(Базаданных[[#This Row],[Статус]],COUNTIF($Q$2:Базаданных[[#This Row],[Статус]],TRUE),\"\")","v":""},{"$f":"IFERROR(INDEX(Базаданных[Клиент],MATCH(ROWS($R$2:Базаданных[[#This Row],[Индекс]]),Базаданных[Индекс],0)),\"\")","v":""},{"$f":"NOT(ISERROR(SEARCH('Форма ввода'!$C$9,Базаданных[[#This Row],[Чей клиент]])))","v":true},{"$f":"IF(Базаданных[[#This Row],[Статус2]],COUNTIF($T$2:Базаданных[[#This Row],[Статус2]],TRUE),\"\")","v":9},{"$f":"IFERROR(INDEX(Базаданных[Чей клиент],MATCH(ROWS($U$2:Базаданных[[#This Row],[Индекс3]]),Базаданных[Индекс3],0)),\"\")","v":"Пименов Алексей"},{"$f":"Базаданных[[#This Row],[ДД]]-Базаданных[[#This Row],[ГД]]","v":311370},{"$f":"Базаданных[[#This Row],[КВ]]-Базаданных[[#This Row],[ГК]]","v":0}]
["2019-04-01",43567.777210879627,1,"понедельник","Апрель","2019",3878,"-",0,"-",0,"-",0,"-","Пименов Алексей","Виталий Киров",{"$f":"NOT(ISERROR(SEARCH('Форма ввода'!$C$5,Базаданных[[#This Row],[Клиент]])))","v":false},{"$f":"IF(Базаданных[[#This Row],[Статус]],COUNTIF($Q$2:Базаданных[[#This Row],[Статус]],TRUE),\"\")","v":""},{"$f":"IFERROR(INDEX(Базаданных[Клиент],MATCH(ROWS($R$2:Базаданных[[#This Row],[Индекс]]),Базаданных[Индекс],0)),\"\")","v":""},{"$f":"NOT(ISERROR(SEARCH('Форма ввода'!$C$9,Базаданных[[#This Row],[Чей клиент]])))","v":true},{"$f":"IF(Базаданных[[#This Row],[Статус2]],COUNTIF($T$2:Базаданных[[#This Row],[Статус2]],TRUE),\"\")","v":10},{"$f":"IFERROR(INDEX(Базаданных[Чей клиент],MATCH(ROWS($U$2:Базаданных[[#This Row],[Индекс3]]),Базаданных[Индекс3],0)),\"\")","v":"Пименов Алексей"},{"$f":"Базаданных[[#This Row],[ДД]]-Базаданных[[#This Row],[ГД]]","v":3878},{"$f":"Базаданных[[#This Row],[КВ]]-Базаданных[[#This Row],[ГК]]","v":0}]
["2019-04-01",43567.777559259259,1,"понедельник","Апрель","2019",300,"-",0,"-",0,"-",0,"-","Пименов Алексей","Мурад (Казахстан)",{"$f":"NOT(ISERROR(SEARCH('Форма ввода'!$C$5,Базаданных[[#This Row],[Клиент]])))","v":false},{"$f":"IF(Базаданных[[#This Row],[Статус]],COUNTIF($Q$2:Базаданных[[#This Row],[Статус]],TRUE),\"\")","v":""},{"$f":"IFERROR(INDEX(Базаданных[Клиент],MATCH(ROWS($R$2:Базаданных[[#This Row],[Индекс]]),Базаданных[Индекс],0)),\"\")","v":""},{"$f":"NOT(ISERROR(SEARCH('Форма ввода'!$C$9,Базаданных[[#This Row],[Чей клиент]])))","v":true},{"$f":"IF(Базаданных[[#This Row],[Статус2]],COUNTIF($T$2:Базаданных[[#This Row],[Статус2]],TRUE),\"\")","v":11},{"$f":"IFERROR(INDEX(Базаданных[Чей клиент],MATCH(ROWS($U$2:Базаданных[[#This Row],[Индекс3]]),Базаданных[Индекс3],0)),\"\")","v":"Пименов Алексей"},{"$f":"Базаданных[[#This Row],[ДД]]-Базаданных[[#This Row],[ГД]]","v":300},{"$f":"Базаданных[[#This Row],[КВ]]-Базаданных[[#This Row],[ГК]]","v":0}]
["2019-04-01",43567.777834143519,1,"понедельник","Апрель","2019",10732,"-",0,"-",0,"-",0,"-","Пименов Алексей","Алексей Бердников \"Титан\" (Киров)",{"$f":"NOT(ISERROR(SEARCH('Форма ввода'!$C$5,Базаданных[[#This Row],[Клиент]])))","v":false},{"$f":"IF(Базаданных[[#This Row],[Статус]],COUNTIF($Q$2:Базаданных[[#This Row],[Статус]],TRUE),\"\")","v":""},{"$f":"IFERROR(INDEX(Базаданных[Клиент],MATCH(ROWS($R$2:Базаданных[[#This Row],[Индекс]]),Базаданных[Индекс],0)),\"\")","v":""},{"$f":"NOT(ISERROR(SEARCH('Форма ввода'!$C$9,Базаданных[[#This Row],[Чей клиент]])))","v":true},{"$f":"IF(Базаданных[[#This Row],[Статус2]],COUNTIF($T$2:Базаданных[[#This Row],[Статус2]],TRUE),\"\")","v":12},{"$f":"IFERROR(INDEX(Базаданных[Чей клиент],MATCH(ROWS($U$2:Базаданных[[#This Row],[Индекс3]]),Базаданных[Индекс3],0)),\"\")","v":"Пименов Алексей"},{"$f":"Базаданных[[#This Row],[ДД]]-Базаданных[[#This Row],[ГД]]","v":10732},{"$f":"Базаданных[[#This Row],[КВ]]-Базаданных[[#This Row],[ГК]]","v":0}]
["2019-04-01",43567.778109953702,1,"понедельник","Апрель","2019",475,"-",0,"-",0,"-",0,"-","Пименов Алексей","Олег Гетманец (Ростов)",{"$f":"NOT(ISERROR(SEARCH('Форма ввода'!$C$5,Базаданных[[#This Row],[Клиент]])))","v":false},{"$f":"IF(Базаданных[[#This Row],[Статус]],COUNTIF($Q$2:Базаданных[[#This Row],[Статус]],TRUE),\"\")","v":""},{"$f":"IFERROR(INDEX(Базаданных[Клиент],MATCH(ROWS($R$2:Базаданных[[#This Row],[Индекс]]),Базаданных[Индекс],0)),\"\")","v":""},{"$f":"NOT(ISERROR(SEARCH('Форма ввода'!$C$9,Базаданных[[#This Row],[Чей клиент]])))","v":true},{"$f":"IF(Базаданных[[#This Row],[Статус2]],COUNTIF($T$2:Базаданных[[#This Row],[Статус2]],TRUE),\"\")","v":13},{"$f":"IFERROR(INDEX(Базаданных[Чей клиент],MATCH(ROWS($U$2:Базаданных[[#This Row],[Индекс3]]),Базаданных[Индекс3],0)),\"\")","v":"Пименов Алексей"},{"$f":"Базаданных[[#This Row],[ДД]]-Базаданных[[#This Row],[ГД]]","v":475},{"$f":"Базаданных[[#This Row],[КВ]]-Базаданных[[#This Row],[ГК]]","v":0}]
["2019-04-01",43567.778473842591,1,"понедельник","Апрель","2019",64620,"-",0,"-",0,"-",0,"-","Пименов Алексей","Пименов Алексей (АлексСтор)",{"$f":"NOT(ISERROR(SEARCH('Форма ввода'!$C$5,Базаданных[[#This Row],[Клиент]])))","v":true},{"$f":"IF(Базаданных[[#This Row],[Статус]],COUNTIF($Q$2:Базаданных[[#This Row],[Статус]],TRUE),\"\")","v":1},{"$f":"IFERROR(INDEX(Базаданных[Клиент],MATCH(ROWS($R$2:Базаданных[[#This Row],[Индекс]]),Базаданных[Индекс],0)),\"\")","v":""},{"$f":"NOT(ISERROR(SEARCH('Форма ввода'!$C$9,Базаданных[[#This Row],[Чей клиент]])))","v":true},{"$f":"IF(Базаданных[[#This Row],[Статус2]],COUNTIF($T$2:Базаданных[[#This Row],[Статус2]],TRUE),\"\")","v":14},{"$f":"IFERROR(INDEX(Базаданных[Чей клиент],MATCH(ROWS($U$2:Базаданных[[#This Row],[Индекс3]]),Базаданных[Индекс3],0)),\"\")","v":"Пименов Алексей"},{"$f":"Базаданных[[#This Row],[ДД]]-Базаданных[[#This Row],[ГД]]","v":64620},{"$f":"Базаданных[[#This Row],[КВ]]-Базаданных[[#This Row],[ГК]]","v":0}]
["2019-04-01",43567.778741203707,1,"понедельник","Апрель","2019",5370,"-",0,"-",0,"-",0,"-","Пименов Алексей","Матросова Венера",{"$f":"NOT(ISERROR(SEARCH('Форма ввода'!$C$5,Базаданных[[#This Row],[Клиент]])))","v":false},{"$f":"IF(Базаданных[[#This Row],[Статус]],COUNTIF($Q$2:Базаданных[[#This Row],[Статус]],TRUE),\"\")","v":""},{"$f":"IFERROR(INDEX(Базаданных[Клиент],MATCH(ROWS($R$2:Базаданных[[#This Row],[Индекс]]),Базаданных[Индекс],0)),\"\")","v":""},{"$f":"NOT(ISERROR(SEARCH('Форма ввода'!$C$9,Базаданных[[#This Row],[Чей клиент]])))","v":true},{"$f":"IF(Базаданных[[#This Row],[Статус2]],COUNTIF($T$2:Базаданных[[#This Row],[Статус2]],TRUE),\"\")","v":15},{"$f":"IFERROR(INDEX(Базаданных[Чей клиент],MATCH(ROWS($U$2:Базаданных[[#This Row],[Индекс3]]),Базаданных[Индекс3],0)),\"\")","v":"Пименов Алексей"},{"$f":"Базаданных[[#This Row],[ДД]]-Базаданных[[#This Row],[ГД]]","v":5370},{"$f":"Базаданных[[#This Row],[КВ]]-Базаданных[[#This Row],[ГК]]","v":0}]
["2019-04-01",43567.779061921297,1,"понедельник","Апрель","2019",1500,"-",0,"-",0,"-",0,"-","Пименов Алексей","Альфатек ООО (Комтехнолоджи Самара)",{"$f":"NOT(ISERROR(SEARCH('Форма ввода'!$C$5,Базаданных[[#This Row],[Клиент]])))","v":false},{"$f":"IF(Базаданных[[#This Row],[Статус]],COUNTIF($Q$2:Базаданных[[#This Row],[Статус]],TRUE),\"\")","v":""},{"$f":"IFERROR(INDEX(Базаданных[Клиент],MATCH(ROWS($R$2:Базаданных[[#This Row],[Индекс]]),Базаданных[Индекс],0)),\"\")","v":""},{"$f":"NOT(ISERROR(SEARCH('Форма ввода'!$C$9,Базаданных[[#This Row],[Чей клиент]])))","v":true},{"$f":"IF(Базаданных[[#This Row],[Статус2]],COUNTIF($T$2:Базаданных[[#This Row],[Статус2]],TRUE),\"\")","v":16},{"$f":"IFERROR(INDEX(Базаданных[Чей клиент],MATCH(ROWS($U$2:Базаданных[[#This Row],[Индекс3]]),Базаданных[Индекс3],0)),\"\")","v":"Пименов Алексей"},{"$f":"Базаданных[[#This Row],[ДД]]-Базаданных[[#This Row],[ГД]]","v":1500},{"$f":"Базаданных[[#This Row],[КВ]]-Базаданных[[#This Row],[ГК]]","v":0}]
["2019-04-01",43567.779373958336,1,"понедельник","Апрель","2019",200,"-",0,"-",0,"-",0,"-","Пименов Алексей","КМТ Сервис (Клин)",{"$f":"NOT(ISERROR(SEARCH('Форма ввода'!$C$5,Базаданных[[#This Row],[Клиент]])))","v":false},{"$f":"IF(Базаданных[[#This Row],[Статус]],COUNTIF($Q$2:Базаданных[[#This Row],[Статус]],TRUE),\"\")","v":""},{"$f":"IFERROR(INDEX(Базаданных[Клиент],MATCH(ROWS($R$2:Базаданных[[#This Row],[Индекс]]),Базаданных[Индекс],0)),\"\")","v":""},{"$f":"NOT(ISERROR(SEARCH('Форма ввода'!$C$9,Базаданных[[#This Row],[Чей клиент]])))","v":true},{"$f":"IF(Базаданных[[#This Row],[Статус2]],COUNTIF($T$2:Базаданных[[#This Row],[Статус2]],TRUE),\"\")","v":17},{"$f":"IFERROR(INDEX(Базаданных[Чей клиент],MATCH(ROWS($U$2:Базаданных[[#This Row],[Индекс3]]),Базаданных[Индекс3],0)),\"\")","v":"Пименов Алексей"},{"$f":"Базаданных[[#This Row],[ДД]]-Базаданных[[#This Row],[ГД]]","v":200},{"$f":"Базаданных[[#This Row],[КВ]]-Базаданных[[#This Row],[ГК]]","v":0}]
["2019-04-01",43567.779649884258,1,"понедельник","Апрель","2019",130,"-",0,"-",0,"-",0,"-","Пименов Алексей","Самвел (Нижний Новгнород)",{"$f":"NOT(ISERROR(SEARCH('Форма ввода'!$C$5,Базаданных[[#This Row],[Клиент]])))","v":false},{"$f":"IF(Базаданных[[#This Row],[Статус]],COUNTIF($Q$2:Базаданных[[#This Row],[Статус]],TRUE),\"\")","v":""},{"$f":"IFERROR(INDEX(Базаданных[Клиент],MATCH(ROWS($R$2:Базаданных[[#This Row],[Индекс]]),Базаданных[Индекс],0)),\"\")","v":""},{"$f":"NOT(ISERROR(SEARCH('Форма ввода'!$C$9,Базаданных[[#This Row],[Чей клиент]])))","v":true},{"$f":"IF(Базаданных[[#This Row],[Статус2]],COUNTIF($T$2:Базаданных[[#This Row],[Статус2]],TRUE),\"\")","v":18},{"$f":"IFERROR(INDEX(Базаданных[Чей клиент],MATCH(ROWS($U$2:Базаданных[[#This Row],[Индекс3]]),Базаданных[Индекс3],0)),\"\")","v":"Пименов Алексей"},{"$f":"Базаданных[[#This Row],[ДД]]-Базаданных[[#This Row],[ГД]]","v":130},{"$f":"Базаданных[[#This Row],[КВ]]-Базаданных[[#This Row],[ГК]]","v":0}]
["2019-04-01",43567.779920138892,1,"понедельник","Апрель","2019",24230,"-",0,"-",0,"-",0,"-","Пименов Алексей","Скупка Розовая Жуковский",{"$f":"NOT(ISERROR(SEARCH('Форма ввода'!$C$5,Базаданных[[#This Row],[Клиент]])))","v":false},{"$f":"IF(Базаданных[[#This Row],[Статус]],COUNTIF($Q$2:Базаданных[[#This Row],[Статус]],TRUE),\"\")","v":""},{"$f":"IFERROR(INDEX(Базаданных[Клиент],MATCH(ROWS($R$2:Базаданных[[#This Row],[Индекс]]),Базаданных[Индекс],0)),\"\")","v":""},{"$f":"NOT(ISERROR(SEARCH('Форма ввода'!$C$9,Базаданных[[#This Row],[Чей клиент]])))","v":true},{"$f":"IF(Базаданных[[#This Row],[Статус2]],COUNTIF($T$2:Базаданных[[#This Row],[Статус2]],TRUE),\"\")","v":19},{"$f":"IFERROR(INDEX(Базаданных[Чей клиент],MATCH(ROWS($U$2:Базаданных[[#This Row],[Индекс3]]),Базаданных[Индекс3],0)),\"\")","v":"Пименов Алексей"},{"$f":"Базаданных[[#This Row],[ДД]]-Базаданных[[#This Row],[ГД]]","v":24230},{"$f":"Базаданных[[#This Row],[КВ]]-Базаданных[[#This Row],[ГК]]","v":0}]
["2019-04-01",43567.78395138889,1,"понедельник","Апрель","2019",100,"-",0,"-",0,"-",0,"-","Пименов Алексей","Дмитрий (Комиссионка Наро-Фоминск)",{"$f":"NOT(ISERROR(SEARCH('Форма ввода'!$C$5,Базаданных[[#This Row],[Клиент]])))","v":false},{"$f":"IF(Базаданных[[#This Row],[Статус]],COUNTIF($Q$2:Базаданных[[#This Row],[Статус]],TRUE),\"\")","v":""},{"$f":"IFERROR(INDEX(Базаданных[Клиент],MATCH(ROWS($R$2:Базаданных[[#This Row],[Индекс]]),Базаданных[Индекс],0)),\"\")","v":""},{"$f":"NOT(ISERROR(SEARCH('Форма ввода'!$C$9,Базаданных[[#This Row],[Чей клиент]])))","v":true},{"$f":"IF(Базаданных[[#This Row],[Статус2]],COUNTIF($T$2:Базаданных[[#This Row],[Статус2]],TRUE),\"\")","v":20},{"$f":"IFERROR(INDEX(Базаданных[Чей клиент],MATCH(ROWS($U$2:Базаданных[[#This Row],[Индекс3]]),Базаданных[Индекс3],0)),\"\")","v":"Пименов Алексей"},{"$f":"Базаданных[[#This Row],[ДД]]-Базаданных[[#This Row],[ГД]]","v":100},{"$f":"Базаданных[[#This Row],[КВ]]-Базаданных[[#This Row],[ГК]]","v":0}]
["2019-04-01",43567.784342361112,1,"понедельник","Апрель","2019",360,"-",0,"-",0,"-",0,"-","Пименов Алексей","Александр (Сызрань)",{"$f":"NOT(ISERROR(SEARCH('Форма ввода'!$C$5,Базаданных[[#This Row],[Клиент]])))","v":false},{"$f":"IF(Базаданных[[#This Row],[Статус]],COUNTIF($Q$2:Базаданных[[#This Row],[Статус]],TRUE),\"\")","v":""},{"$f":"IFERROR(INDEX(Базаданных[Клиент],MATCH(ROWS($R$2:Базаданных[[#This Row],[Индекс]]),Базаданных[Индекс],0)),\"\")","v":""},{"$f":"NOT(ISERROR(SEARCH('Форма ввода'!$C$9,Базаданных[[#This Row],[Чей клиент]])))","v":true},{"$f":"IF(Базаданных[[#This Row],[Статус2]],COUNTIF($T$2:Базаданных[[#This Row],[Статус2]],TRUE),\"\")","v":21},{"$f":"IFERROR(INDEX(Базаданных[Чей клиент],MATCH(ROWS($U$2:Базаданных[[#This Row],[Индекс3]]),Базаданных[Индекс3],0)),\"\")","v":"Пименов Алексей"},{"$f":"Базаданных[[#This Row],[ДД]]-Базаданных[[#This Row],[ГД]]","v":360},{"$f":"Базаданных[[#This Row],[КВ]]-Базаданных[[#This Row],[ГК]]","v":0}]
["2019-04-01",43567.784625347223,1,"понедельник","Апрель","2019",80,"-",0,"-",0,"-",0,"-","Пименов Алексей","Максим Калининград",{"$f":"NOT(ISERROR(SEARCH('Форма ввода'!$C$5,Базаданных[[#This Row],[Клиент]])))","v":false},{"$f":"IF(Базаданных[[#This Row],[Статус]],COUNTIF($Q$2:Базаданных[[#This Row],[Статус]],TRUE),\"\")","v":""},{"$f":"IFERROR(INDEX(Базаданных[Клиент],MATCH(ROWS($R$2:Базаданных[[#This Row],[Индекс]]),Базаданных[Индекс],0)),\"\")","v":""},{"$f":"NOT(ISERROR(SEARCH('Форма ввода'!$C$9,Базаданных[[#This Row],[Чей клиент]])))","v":true},{"$f":"IF(Базаданных[[#This Row],[Статус2]],COUNTIF($T$2:Базаданных[[#This Row],[Статус2]],TRUE),\"\")","v":22},{"$f":"IFERROR(INDEX(Базаданных[Чей клиент],MATCH(ROWS($U$2:Базаданных[[#This Row],[Индекс3]]),Базаданных[Индекс3],0)),\"\")","v":"Пименов Алексей"},{"$f":"Базаданных[[#This Row],[ДД]]-Базаданных[[#This Row],[ГД]]","v":80},{"$f":"Базаданных[[#This Row],[КВ]]-Базаданных[[#This Row],[ГК]]","v":0}]
["2019-04-01",43567.785165624999,1,"понедельник","Апрель","2019",230,"-",0,"-",0,"-",0,"-","Пименов Алексей","Антон Кимры",{"$f":"NOT(ISERROR(SEARCH('Форма ввода'!$C$5,Базаданных[[#This Row],[Клиент]])))","v":false},{"$f":"IF(Базаданных[[#This Row],[Статус]],COUNTIF($Q$2:Базаданных[[#This Row],[Статус]],TRUE),\"\")","v":""},{"$f":"IFERROR(INDEX(Базаданных[Клиент],MATCH(ROWS($R$2:Базаданных[[#This Row],[Индекс]]),Базаданных[Индекс],0)),\"\")","v":""},{"$f":"NOT(ISERROR(SEARCH('Форма ввода'!$C$9,Базаданных[[#This Row],[Чей клиент]])))","v":true},{"$f":"IF(Базаданных[[#This Row],[Статус2]],COUNTIF($T$2:Базаданных[[#This Row],[Статус2]],TRUE),\"\")","v":23},{"$f":"IFERROR(INDEX(Базаданных[Чей клиент],MATCH(ROWS($U$2:Базаданных[[#This Row],[Индекс3]]),Базаданных[Индекс3],0)),\"\")","v":"Пименов Алексей"},{"$f":"Базаданных[[#This Row],[ДД]]-Базаданных[[#This Row],[ГД]]","v":230},{"$f":"Базаданных[[#This Row],[КВ]]-Базаданных[[#This Row],[ГК]]","v":0}]
["2019-04-01",43567.785563310186,1,"понедельник","Апрель","2019",1180,"-",0,"-",0,"-",0,"-","Пименов Алексей","Игорь (Люблино)",{"$f":"NOT(ISERROR(SEARCH('Форма ввода'!$C$5,Базаданных[[#This Row],[Клиент]])))","v":false},{"$f":"IF(Базаданных[[#This Row],[Статус]],COUNTIF($Q$2:Базаданных[[#This Row],[Статус]],TRUE),\"\")","v":""},{"$f":"IFERROR(INDEX(Базаданных[Клиент],MATCH(ROWS($R$2:Базаданных[[#This Row],[Индекс]]),Базаданных[Индекс],0)),\"\")","v":""},{"$f":"NOT(ISERROR(SEARCH('Форма ввода'!$C$9,Базаданных[[#This Row],[Чей клиент]])))","v":true},{"$f":"IF(Базаданных[[#This Row],[Статус2]],COUNTIF($T$2:Базаданных[[#This Row],[Статус2]],TRUE),\"\")","v":24},{"$f":"IFERROR(INDEX(Базаданных[Чей клиент],MATCH(ROWS($U$2:Базаданных[[#This Row],[Индекс3]]),Базаданных[Индекс3],0)),\"\")","v":"Пименов Алексей"},{"$f":"Базаданных[[#This Row],[ДД]]-Базаданных[[#This Row],[ГД]]","v":1180},{"$f":"Базаданных[[#This Row],[КВ]]-Базаданных[[#This Row],[ГК]]","v":0}]
["2019-04-01",43567.785818865741,1,"понедельник","Апрель","2019",3220,"-",0,"-",0,"-",0,"-","Пименов Алексей","Сергей (Тольятти) Победа",{"$f":"NOT(ISERROR(SEARCH('Форма ввода'!$C$5,Базаданных[[#This Row],[Клиент]])))","v":false},{"$f":"IF(Базаданных[[#This Row],[Статус]],COUNTIF($Q$2:Базаданных[[#This Row],[Статус]],TRUE),\"\")","v":""},{"$f":"IFERROR(INDEX(Базаданных[Клиент],MATCH(ROWS($R$2:Базаданных[[#This Row],[Индекс]]),Базаданных[Индекс],0)),\"\")","v":""},{"$f":"NOT(ISERROR(SEARCH('Форма ввода'!$C$9,Базаданных[[#This Row],[Чей клиент]])))","v":true},{"$f":"IF(Базаданных[[#This Row],[Статус2]],COUNTIF($T$2:Базаданных[[#This Row],[Статус2]],TRUE),\"\")","v":25},{"$f":"IFERROR(INDEX(Базаданных[Чей клиент],MATCH(ROWS($U$2:Базаданных[[#This Row],[Индекс3]]),Базаданных[Индекс3],0)),\"\")","v":"Пименов Алексей"},{"$f":"Базаданных[[#This Row],[ДД]]-Базаданных[[#This Row],[ГД]]","v":3220},{"$f":"Базаданных[[#This Row],[КВ]]-Базаданных[[#This Row],[ГК]]","v":0}]
["2019-04-01",43567.786153125002,1,"понедельник","Апрель","2019",6650,"-",0,"-",0,"-",0,"-","Пименов Алексей","Алик (Горбушка)",{"$f":"NOT(ISERROR(SEARCH('Форма ввода'!$C$5,Базаданных[[#This Row],[Клиент]])))","v":false},{"$f":"IF(Базаданных[[#This Row],[Статус]],COUNTIF($Q$2:Базаданных[[#This Row],[Статус]],TRUE),\"\")","v":""},{"$f":"IFERROR(INDEX(Базаданных[Клиент],MATCH(ROWS($R$2:Базаданных[[#This Row],[Индекс]]),Базаданных[Индекс],0)),\"\")","v":""},{"$f":"NOT(ISERROR(SEARCH('Форма ввода'!$C$9,Базаданных[[#This Row],[Чей клиент]])))","v":true},{"$f":"IF(Базаданных[[#This Row],[Статус2]],COUNTIF($T$2:Базаданных[[#This Row],[Статус2]],TRUE),\"\")","v":26},{"$f":"IFERROR(INDEX(Базаданных[Чей клиент],MATCH(ROWS($U$2:Базаданных[[#This Row],[Индекс3]]),Базаданных[Индекс3],0)),\"\")","v":"Пименов Алексей"},{"$f":"Базаданных[[#This Row],[ДД]]-Базаданных[[#This Row],[ГД]]","v":6650},{"$f":"Базаданных[[#This Row],[КВ]]-Базаданных[[#This Row],[ГК]]","v":0}]
["2019-04-01",43567.786460069445,1,"понедельник","Апрель","2019",530,"-",0,"-",0,"-",0,"-","Пименов Алексей","Звонок Нижний Новгород",{"$f":"NOT(ISERROR(SEARCH('Форма ввода'!$C$5,Базаданных[[#This Row],[Клиент]])))","v":false},{"$f":"IF(Базаданных[[#This Row],[Статус]],COUNTIF($Q$2:Базаданных[[#This Row],[Статус]],TRUE),\"\")","v":""},{"$f":"IFERROR(INDEX(Базаданных[Клиент],MATCH(ROWS($R$2:Базаданных[[#This Row],[Индекс]]),Базаданных[Индекс],0)),\"\")","v":""},{"$f":"NOT(ISERROR(SEARCH('Форма ввода'!$C$9,Базаданных[[#This Row],[Чей клиент]])))","v":true},{"$f":"IF(Базаданных[[#This Row],[Статус2]],COUNTIF($T$2:Базаданных[[#This Row],[Статус2]],TRUE),\"\")","v":27},{"$f":"IFERROR(INDEX(Базаданных[Чей клиент],MATCH(ROWS($U$2:Базаданных[[#This Row],[Индекс3]]),Базаданных[Индекс3],0)),\"\")","v":"Пименов Алексей"},{"$f":"Базаданных[[#This Row],[ДД]]-Базаданных[[#This Row],[ГД]]","v":530},{"$f":"Базаданных[[#This Row],[КВ]]-Базаданных[[#This Row],[ГК]]","v":0}]
["2019-04-01",43567.786796990738,1,"понедельник","Апрель","2019",50,"-",0,"-",0,"-",0,"-","Пименов Алексей","Николаев Алексей Юрьевич",{"$f":"NOT(ISERROR(SEARCH('Форма ввода'!$C$5,Базаданных[[#This Row],[Клиент]])))","v":false},{"$f":"IF(Базаданных[[#This Row],[Статус]],COUNTIF($Q$2:Базаданных[[#This Row],[Статус]],TRUE),\"\")","v":""},{"$f":"IFERROR(INDEX(Базаданных[Клиент],MATCH(ROWS($R$2:Базаданных[[#This Row],[Индекс]]),Базаданных[Индекс],0)),\"\")","v":""},{"$f":"NOT(ISERROR(SEARCH('Форма ввода'!$C$9,Базаданных[[#This Row],[Чей клиент]])))","v":true},{"$f":"IF(Базаданных[[#This Row],[Статус2]],COUNTIF($T$2:Базаданных[[#This Row],[Статус2]],TRUE),\"\")","v":28},{"$f":"IFERROR(INDEX(Базаданных[Чей клиент],MATCH(ROWS($U$2:Базаданных[[#This Row],[Индекс3]]),Базаданных[Индекс3],0)),\"\")","v":"Пименов Алексей"},{"$f":"Базаданных[[#This Row],[ДД]]-Базаданных[[#This Row],[ГД]]","v":50},{"$f":"Базаданных[[#This Row],[КВ]]-Базаданных[[#This Row],[ГК]]","v":0}]
["2019-04-01",43567.787270601853,1,"понедельник","Апрель","2019",9000,"-",0,"-",0,"-",0,"-","Пименов Алексей","Роман Митино (430-роутеры)",{"$f":"NOT(ISERROR(SEARCH('Форма ввода'!$C$5,Базаданных[[#This Row],[Клиент]])))","v":false},{"$f":"IF(Базаданных[[#This Row],[Статус]],COUNTIF($Q$2:Базаданных[[#This Row],[Статус]],TRUE),\"\")","v":""},{"$f":"IFERROR(INDEX(Базаданных[Клиент],MATCH(ROWS($R$2:Базаданных[[#This Row],[Индекс]]),Базаданных[Индекс],0)),\"\")","v":""},{"$f":"NOT(ISERROR(SEARCH('Форма ввода'!$C$9,Базаданных[[#This Row],[Чей клиент]])))","v":true},{"$f":"IF(Базаданных[[#This Row],[Статус2]],COUNTIF($T$2:Базаданных[[#This Row],[Статус2]],TRUE),\"\")","v":29},{"$f":"IFERROR(INDEX(Базаданных[Чей клиент],MATCH(ROWS($U$2:Базаданных[[#This Row],[Индекс3]]),Базаданных[Индекс3],0)),\"\")","v":"Пименов Алексей"},{"$f":"Базаданных[[#This Row],[ДД]]-Базаданных[[#This Row],[ГД]]","v":9000},{"$f":"Базаданных[[#This Row],[КВ]]-Базаданных[[#This Row],[ГК]]","v":0}]
["2019-04-01",43567.78768587963,1,"понедельник","Апрель","2019",100900,"-",0,"-",0,"-",0,"-","Пименов Алексей","Игорь Костяк (Киров Вятка)",{"$f":"NOT(ISERROR(SEARCH('Форма ввода'!$C$5,Базаданных[[#This Row],[Клиент]])))","v":false},{"$f":"IF(Базаданных[[#This Row],[Статус]],COUNTIF($Q$2:Базаданных[[#This Row],[Статус]],TRUE),\"\")","v":""},{"$f":"IFERROR(INDEX(Базаданных[Клиент],MATCH(ROWS($R$2:Базаданных[[#This Row],[Индекс]]),Базаданных[Индекс],0)),\"\")","v":""},{"$f":"NOT(ISERROR(SEARCH('Форма ввода'!$C$9,Базаданных[[#This Row],[Чей клиент]])))","v":true},{"$f":"IF(Базаданных[[#This Row],[Статус2]],COUNTIF($T$2:Базаданных[[#This Row],[Статус2]],TRUE),\"\")","v":30},{"$f":"IFERROR(INDEX(Базаданных[Чей клиент],MATCH(ROWS($U$2:Базаданных[[#This Row],[Индекс3]]),Базаданных[Индекс3],0)),\"\")","v":"Пименов Алексей"},{"$f":"Базаданных[[#This Row],[ДД]]-Базаданных[[#This Row],[ГД]]","v":100900},{"$f":"Базаданных[[#This Row],[КВ]]-Базаданных[[#This Row],[ГК]]","v":0}]
["2019-04-01",43567.798119328705,1,"понедельник","Апрель","2019",1700,"-",0,"-",0,"-",0,"-","Пименов Алексей","Михаил Рязань",{"$f":"NOT(ISERROR(SEARCH('Форма ввода'!$C$5,Базаданных[[#This Row],[Клиент]])))","v":false},{"$f":"IF(Базаданных[[#This Row],[Статус]],COUNTIF($Q$2:Базаданных[[#This Row],[Статус]],TRUE),\"\")","v":""},{"$f":"IFERROR(INDEX(Базаданных[Клиент],MATCH(ROWS($R$2:Базаданных[[#This Row],[Индекс]]),Базаданных[Индекс],0)),\"\")","v":""},{"$f":"NOT(ISERROR(SEARCH('Форма ввода'!$C$9,Базаданных[[#This Row],[Чей клиент]])))","v":true},{"$f":"IF(Базаданных[[#This Row],[Статус2]],COUNTIF($T$2:Базаданных[[#This Row],[Статус2]],TRUE),\"\")","v":31},{"$f":"IFERROR(INDEX(Базаданных[Чей клиент],MATCH(ROWS($U$2:Базаданных[[#This Row],[Индекс3]]),Базаданных[Индекс3],0)),\"\")","v":"Пименов Алексей"},{"$f":"Базаданных[[#This Row],[ДД]]-Базаданных[[#This Row],[ГД]]","v":1700},{"$f":"Базаданных[[#This Row],[КВ]]-Базаданных[[#This Row],[ГК]]","v":0}]
["2019-04-01",43567.79842673611,1,"понедельник","Апрель","2019",670,"-",0,"-",0,"-",0,"-","Пименов Алексей","Дмитрий Arm Device",{"$f":"NOT(ISERROR(SEARCH('Форма ввода'!$C$5,Базаданных[[#This Row],[Клиент]])))","v":false},{"$f":"IF(Базаданных[[#This Row],[Статус]],COUNTIF($Q$2:Базаданных[[#This Row],[Статус]],TRUE),\"\")","v":""},{"$f":"IFERROR(INDEX(Базаданных[Клиент],MATCH(ROWS($R$2:Базаданных[[#This Row],[Индекс]]),Базаданных[Индекс],0)),\"\")","v":""},{"$f":"NOT(ISERROR(SEARCH('Форма ввода'!$C$9,Базаданных[[#This Row],[Чей клиент]])))","v":true},{"$f":"IF(Базаданных[[#This Row],[Статус2]],COUNTIF($T$2:Базаданных[[#This Row],[Статус2]],TRUE),\"\")","v":32},{"$f":"IFERROR(INDEX(Базаданных[Чей клиент],MATCH(ROWS($U$2:Базаданных[[#This Row],[Индекс3]]),Базаданных[Индекс3],0)),\"\")","v":"Пименов Алексей"},{"$f":"Базаданных[[#This Row],[ДД]]-Базаданных[[#This Row],[ГД]]","v":670},{"$f":"Базаданных[[#This Row],[КВ]]-Базаданных[[#This Row],[ГК]]","v":0}]
["2019-04-01",43567.798735532408,1,"понедельник","Апрель","2019",6450,"-",0,"-",0,"-",0,"-","Пименов Алексей","Евгения Александровна Ильина",{"$f":"NOT(ISERROR(SEARCH('Форма ввода'!$C$5,Базаданных[[#This Row],[Клиент]])))","v":false},{"$f":"IF(Базаданных[[#This Row],[Статус]],COUNTIF($Q$2:Базаданных[[#This Row],[Статус]],TRUE),\"\")","v":""},{"$f":"IFERROR(INDEX(Базаданных[Клиент],MATCH(ROWS($R$2:Базаданных[[#This Row],[Индекс]]),Базаданных[Индекс],0)),\"\")","v":""},{"$f":"NOT(ISERROR(SEARCH('Форма ввода'!$C$9,Базаданных[[#This Row],[Чей клиент]])))","v":true},{"$f":"IF(Базаданных[[#This Row],[Статус2]],COUNTIF($T$2:Базаданных[[#This Row],[Статус2]],TRUE),\"\")","v":33},{"$f":"IFERROR(INDEX(Базаданных[Чей клиент],MATCH(ROWS($U$2:Базаданных[[#This Row],[Индекс3]]),Базаданных[Индекс3],0)),\"\")","v":"Пименов Алексей"},{"$f":"Базаданных[[#This Row],[ДД]]-Базаданных[[#This Row],[ГД]]","v":6450},{"$f":"Базаданных[[#This Row],[КВ]]-Базаданных[[#This Row],[ГК]]","v":0}]
["2019-04-01",43567.799052546296,1,"понедельник","Апрель","2019",58010,"-",0,"-",0,"-",0,"-","Нерсесов Давид","Нерсесов Давид ( AlexStore)",{"$f":"NOT(ISERROR(SEARCH('Форма ввода'!$C$5,Базаданных[[#This Row],[Клиент]])))","v":false},{"$f":"IF(Базаданных[[#This Row],[Статус]],COUNTIF($Q$2:Базаданных[[#This Row],[Статус]],TRUE),\"\")","v":""},{"$f":"IFERROR(INDEX(Базаданных[Клиент],MATCH(ROWS($R$2:Базаданных[[#This Row],[Индекс]]),Базаданных[Индекс],0)),\"\")","v":""},{"$f":"NOT(ISERROR(SEARCH('Форма ввода'!$C$9,Базаданных[[#This Row],[Чей клиент]])))","v":true},{"$f":"IF(Базаданных[[#This Row],[Статус2]],COUNTIF($T$2:Базаданных[[#This Row],[Статус2]],TRUE),\"\")","v":34},{"$f":"IFERROR(INDEX(Базаданных[Чей клиент],MATCH(ROWS($U$2:Базаданных[[#This Row],[Индекс3]]),Базаданных[Индекс3],0)),\"\")","v":"Нерсесов Давид"},{"$f":"Базаданных[[#This Row],[ДД]]-Базаданных[[#This Row],[ГД]]","v":58010},{"$f":"Базаданных[[#This Row],[КВ]]-Базаданных[[#This Row],[ГК]]","v":0}]
["2019-04-01",43567.799310300928,1,"понедельник","Апрель","2019",350,"-",0,"-",0,"-",0,"-","Нерсесов Давид","Скупка Радик Москва",{"$f":"NOT(ISERROR(SEARCH('Форма ввода'!$C$5,Базаданных[[#This Row],[Клиент]])))","v":false},{"$f":"IF(Базаданных[[#This Row],[Статус]],COUNTIF($Q$2:Базаданных[[#This Row],[Статус]],TRUE),\"\")","v":""},{"$f":"IFERROR(INDEX(Базаданных[Клиент],MATCH(ROWS($R$2:Базаданных[[#This Row],[Индекс]]),Базаданных[Индекс],0)),\"\")","v":""},{"$f":"NOT(ISERROR(SEARCH('Форма ввода'!$C$9,Базаданных[[#This Row],[Чей клиент]])))","v":true},{"$f":"IF(Базаданных[[#This Row],[Статус2]],COUNTIF($T$2:Базаданных[[#This Row],[Статус2]],TRUE),\"\")","v":35},{"$f":"IFERROR(INDEX(Базаданных[Чей клиент],MATCH(ROWS($U$2:Базаданных[[#This Row],[Индекс3]]),Базаданных[Индекс3],0)),\"\")","v":"Нерсесов Давид"},{"$f":"Базаданных[[#This Row],[ДД]]-Базаданных[[#This Row],[ГД]]","v":350},{"$f":"Базаданных[[#This Row],[КВ]]-Базаданных[[#This Row],[ГК]]","v":0}]
["2019-04-01",43567.800732175929,1,"понедельник","Апрель","2019",20780,"-",0,"-",0,"-",0,"-","Нерсесов Давид","Скупка Радик Москва",{"$f":"NOT(ISERROR(SEARCH('Форма ввода'!$C$5,Базаданных[[#This Row],[Клиент]])))","v":false},{"$f":"IF(Базаданных[[#This Row],[Статус]],COUNTIF($Q$2:Базаданных[[#This Row],[Статус]],TRUE),\"\")","v":""},{"$f":"IFERROR(INDEX(Базаданных[Клиент],MATCH(ROWS($R$2:Базаданных[[#This Row],[Индекс]]),Базаданных[Индекс],0)),\"\")","v":""},{"$f":"NOT(ISERROR(SEARCH('Форма ввода'!$C$9,Базаданных[[#This Row],[Чей клиент]])))","v":true},{"$f":"IF(Базаданных[[#This Row],[Статус2]],COUNTIF($T$2:Базаданных[[#This Row],[Статус2]],TRUE),\"\")","v":36},{"$f":"IFERROR(INDEX(Базаданных[Чей клиент],MATCH(ROWS($U$2:Базаданных[[#This Row],[Индекс3]]),Базаданных[Индекс3],0)),\"\")","v":"Нерсесов Давид"},{"$f":"Базаданных[[#This Row],[ДД]]-Базаданных[[#This Row],[ГД]]","v":20780},{"$f":"Базаданных[[#This Row],[КВ]]-Базаданных[[#This Row],[ГК]]","v":0}]
["2019-04-01",43567.801001851854,1,"понедельник","Апрель","2019",120,"-",0,"-",0,"-",0,"-","Нерсесов Давид","Роман (Л-64 Савеловский)",{"$f":"NOT(ISERROR(SEARCH('Форма ввода'!$C$5,Базаданных[[#This Row],[Клиент]])))","v":false},{"$f":"IF(Базаданных[[#This Row],[Статус]],COUNTIF($Q$2:Базаданных[[#This Row],[Статус]],TRUE),\"\")","v":""},{"$f":"IFERROR(INDEX(Базаданных[Клиент],MATCH(ROWS($R$2:Базаданных[[#This Row],[Индекс]]),Базаданных[Индекс],0)),\"\")","v":""},{"$f":"NOT(ISERROR(SEARCH('Форма ввода'!$C$9,Базаданных[[#This Row],[Чей клиент]])))","v":true},{"$f":"IF(Базаданных[[#This Row],[Статус2]],COUNTIF($T$2:Базаданных[[#This Row],[Статус2]],TRUE),\"\")","v":37},{"$f":"IFERROR(INDEX(Базаданных[Чей клиент],MATCH(ROWS($U$2:Базаданных[[#This Row],[Индекс3]]),Базаданных[Индекс3],0)),\"\")","v":"Нерсесов Давид"},{"$f":"Базаданных[[#This Row],[ДД]]-Базаданных[[#This Row],[ГД]]","v":120},{"$f":"Базаданных[[#This Row],[КВ]]-Базаданных[[#This Row],[ГК]]","v":0}]
["2019-04-01",43567.801329629627,1,"понедельник","Апрель","2019",2365,"-",0,"-",0,"-",0,"-","Нерсесов Давид","Кирил (Савок  П67-П77) ",{"$f":"NOT(ISERROR(SEARCH('Форма ввода'!$C$5,Базаданных[[#This Row],[Клиент]])))","v":false},{"$f":"IF(Базаданных[[#This Row],[Статус]],COUNTIF($Q$2:Базаданных[[#This Row],[Статус]],TRUE),\"\")","v":""},{"$f":"IFERROR(INDEX(Базаданных[Клиент],MATCH(ROWS($R$2:Базаданных[[#This Row],[Индекс]]),Базаданных[Индекс],0)),\"\")","v":""},{"$f":"NOT(ISERROR(SEARCH('Форма ввода'!$C$9,Базаданных[[#This Row],[Чей клиент]])))","v":true},{"$f":"IF(Базаданных[[#This Row],[Статус2]],COUNTIF($T$2:Базаданных[[#This Row],[Статус2]],TRUE),\"\")","v":38},{"$f":"IFERROR(INDEX(Базаданных[Чей клиент],MATCH(ROWS($U$2:Базаданных[[#This Row],[Индекс3]]),Базаданных[Индекс3],0)),\"\")","v":"Нерсесов Давид"},{"$f":"Базаданных[[#This Row],[ДД]]-Базаданных[[#This Row],[ГД]]","v":2365},{"$f":"Базаданных[[#This Row],[КВ]]-Базаданных[[#This Row],[ГК]]","v":0}]
["2019-04-01",43567.801586574074,1,"понедельник","Апрель","2019",32750,"-",0,"-",0,"-",0,"-","Нерсесов Давид","Денис (Теплый стан)",{"$f":"NOT(ISERROR(SEARCH('Форма ввода'!$C$5,Базаданных[[#This Row],[Клиент]])))","v":false},{"$f":"IF(Базаданных[[#This Row],[Статус]],COUNTIF($Q$2:Базаданных[[#This Row],[Статус]],TRUE),\"\")","v":""},{"$f":"IFERROR(INDEX(Базаданных[Клиент],MATCH(ROWS($R$2:Базаданных[[#This Row],[Индекс]]),Базаданных[Индекс],0)),\"\")","v":""},{"$f":"NOT(ISERROR(SEARCH('Форма ввода'!$C$9,Базаданных[[#This Row],[Чей клиент]])))","v":true},{"$f":"IF(Базаданных[[#This Row],[Статус2]],COUNTIF($T$2:Базаданных[[#This Row],[Статус2]],TRUE),\"\")","v":39},{"$f":"IFERROR(INDEX(Базаданных[Чей клиент],MATCH(ROWS($U$2:Базаданных[[#This Row],[Индекс3]]),Базаданных[Индекс3],0)),\"\")","v":"Нерсесов Давид"},{"$f":"Базаданных[[#This Row],[ДД]]-Базаданных[[#This Row],[ГД]]","v":32750},{"$f":"Базаданных[[#This Row],[КВ]]-Базаданных[[#This Row],[ГК]]","v":0}]
["2019-04-01",43567.801976157411,1,"понедельник","Апрель","2019",5400,"-",0,"-",0,"-",0,"-","Нерсесов Давид","Нуридин",{"$f":"NOT(ISERROR(SEARCH('Форма ввода'!$C$5,Базаданных[[#This Row],[Клиент]])))","v":false},{"$f":"IF(Базаданных[[#This Row],[Статус]],COUNTIF($Q$2:Базаданных[[#This Row],[Статус]],TRUE),\"\")","v":""},{"$f":"IFERROR(INDEX(Базаданных[Клиент],MATCH(ROWS($R$2:Базаданных[[#This Row],[Индекс]]),Базаданных[Индекс],0)),\"\")","v":""},{"$f":"NOT(ISERROR(SEARCH('Форма ввода'!$C$9,Базаданных[[#This Row],[Чей клиент]])))","v":true},{"$f":"IF(Базаданных[[#This Row],[Статус2]],COUNTIF($T$2:Базаданных[[#This Row],[Статус2]],TRUE),\"\")","v":40},{"$f":"IFERROR(INDEX(Базаданных[Чей клиент],MATCH(ROWS($U$2:Базаданных[[#This Row],[Индекс3]]),Базаданных[Индекс3],0)),\"\")","v":"Нерсесов Давид"},{"$f":"Базаданных[[#This Row],[ДД]]-Базаданных[[#This Row],[ГД]]","v":5400},{"$f":"Базаданных[[#This Row],[КВ]]-Базаданных[[#This Row],[ГК]]","v":0}]
["2019-04-01",43568.740889583336,1,"понедельник","Апрель","2019",4720,"-",0,"-",0,"-",0,"-","Нерсесов Давид","Надир (К84 Царицино)",{"$f":"NOT(ISERROR(SEARCH('Форма ввода'!$C$5,Базаданных[[#This Row],[Клиент]])))","v":false},{"$f":"IF(Базаданных[[#This Row],[Статус]],COUNTIF($Q$2:Базаданных[[#This Row],[Статус]],TRUE),\"\")","v":""},{"$f":"IFERROR(INDEX(Базаданных[Клиент],MATCH(ROWS($R$2:Базаданных[[#This Row],[Индекс]]),Базаданных[Индекс],0)),\"\")","v":""},{"$f":"NOT(ISERROR(SEARCH('Форма ввода'!$C$9,Базаданных[[#This Row],[Чей клиент]])))","v":true},{"$f":"IF(Базаданных[[#This Row],[Статус2]],COUNTIF($T$2:Базаданных[[#This Row],[Статус2]],TRUE),\"\")","v":41},{"$f":"IFERROR(INDEX(Базаданных[Чей клиент],MATCH(ROWS($U$2:Базаданных[[#This Row],[Индекс3]]),Базаданных[Индекс3],0)),\"\")","v":"Нерсесов Давид"},{"$f":"Базаданных[[#This Row],[ДД]]-Базаданных[[#This Row],[ГД]]","v":4720},{"$f":"Базаданных[[#This Row],[КВ]]-Базаданных[[#This Row],[ГК]]","v":0}]
["2019-04-01",43568.741216550923,1,"понедельник","Апрель","2019",50100,"-",0,"-",0,"-",0,"-","Хачатрян Араик","Хачатрян Араик (АлексСтор)",{"$f":"NOT(ISERROR(SEARCH('Форма ввода'!$C$5,Базаданных[[#This Row],[Клиент]])))","v":false},{"$f":"IF(Базаданных[[#This Row],[Статус]],COUNTIF($Q$2:Базаданных[[#This Row],[Статус]],TRUE),\"\")","v":""},{"$f":"IFERROR(INDEX(Базаданных[Клиент],MATCH(ROWS($R$2:Базаданных[[#This Row],[Индекс]]),Базаданных[Индекс],0)),\"\")","v":""},{"$f":"NOT(ISERROR(SEARCH('Форма ввода'!$C$9,Базаданных[[#This Row],[Чей клиент]])))","v":true},{"$f":"IF(Базаданных[[#This Row],[Статус2]],COUNTIF($T$2:Базаданных[[#This Row],[Статус2]],TRUE),\"\")","v":42},{"$f":"IFERROR(INDEX(Базаданных[Чей клиент],MATCH(ROWS($U$2:Базаданных[[#This Row],[Индекс3]]),Базаданных[Индекс3],0)),\"\")","v":"Хачатрян Араик"},{"$f":"Базаданных[[#This Row],[ДД]]-Базаданных[[#This Row],[ГД]]","v":50100},{"$f":"Базаданных[[#This Row],[КВ]]-Базаданных[[#This Row],[ГК]]","v":0}]
["2019-04-01",43568.742017129633,1,"понедельник","Апрель","2019",27850,"-",0,"-",0,"-",0,"-","Филин Сергей","Аслан (Т-23, 18 Савок)",{"$f":"NOT(ISERROR(SEARCH('Форма ввода'!$C$5,Базаданных[[#This Row],[Клиент]])))","v":false},{"$f":"IF(Базаданных[[#This Row],[Статус]],COUNTIF($Q$2:Базаданных[[#This Row],[Статус]],TRUE),\"\")","v":""},{"$f":"IFERROR(INDEX(Базаданных[Клиент],MATCH(ROWS($R$2:Базаданных[[#This Row],[Индекс]]),Базаданных[Индекс],0)),\"\")","v":""},{"$f":"NOT(ISERROR(SEARCH('Форма ввода'!$C$9,Базаданных[[#This Row],[Чей клиент]])))","v":true},{"$f":"IF(Базаданных[[#This Row],[Статус2]],COUNTIF($T$2:Базаданных[[#This Row],[Статус2]],TRUE),\"\")","v":43},{"$f":"IFERROR(INDEX(Базаданных[Чей клиент],MATCH(ROWS($U$2:Базаданных[[#This Row],[Индекс3]]),Базаданных[Индекс3],0)),\"\")","v":"Филин Сергей"},{"$f":"Базаданных[[#This Row],[ДД]]-Базаданных[[#This Row],[ГД]]","v":27850},{"$f":"Базаданных[[#This Row],[КВ]]-Базаданных[[#This Row],[ГК]]","v":0}]
["2019-04-01",43568.742856597222,1,"понедельник","Апрель","2019",34400,"-",0,"-",0,"-",0,"-","Пименов Алексей","Вачэ (АлексСтор)",{"$f":"NOT(ISERROR(SEARCH('Форма ввода'!$C$5,Базаданных[[#This Row],[Клиент]])))","v":false},{"$f":"IF(Базаданных[[#This Row],[Статус]],COUNTIF($Q$2:Базаданных[[#This Row],[Статус]],TRUE),\"\")","v":""},{"$f":"IFERROR(INDEX(Базаданных[Клиент],MATCH(ROWS($R$2:Базаданных[[#This Row],[Индекс]]),Базаданных[Индекс],0)),\"\")","v":""},{"$f":"NOT(ISERROR(SEARCH('Форма ввода'!$C$9,Базаданных[[#This Row],[Чей клиент]])))","v":true},{"$f":"IF(Базаданных[[#This Row],[Статус2]],COUNTIF($T$2:Базаданных[[#This Row],[Статус2]],TRUE),\"\")","v":44},{"$f":"IFERROR(INDEX(Базаданных[Чей клиент],MATCH(ROWS($U$2:Базаданных[[#This Row],[Индекс3]]),Базаданных[Индекс3],0)),\"\")","v":"Пименов Алексей"},{"$f":"Базаданных[[#This Row],[ДД]]-Базаданных[[#This Row],[ГД]]","v":34400},{"$f":"Базаданных[[#This Row],[КВ]]-Базаданных[[#This Row],[ГК]]","v":0}]
["2019-04-01",43568.743928240743,1,"понедельник","Апрель","2019",550,"-",0,"-",0,"-",0,"-","Гречихина Юля","Илья (Коммисионка Домодедово)",{"$f":"NOT(ISERROR(SEARCH('Форма ввода'!$C$5,Базаданных[[#This Row],[Клиент]])))","v":false},{"$f":"IF(Базаданных[[#This Row],[Статус]],COUNTIF($Q$2:Базаданных[[#This Row],[Статус]],TRUE),\"\")","v":""},{"$f":"IFERROR(INDEX(Базаданных[Клиент],MATCH(ROWS($R$2:Базаданных[[#This Row],[Индекс]]),Базаданных[Индекс],0)),\"\")","v":""},{"$f":"NOT(ISERROR(SEARCH('Форма ввода'!$C$9,Базаданных[[#This Row],[Чей клиент]])))","v":true},{"$f":"IF(Базаданных[[#This Row],[Статус2]],COUNTIF($T$2:Базаданных[[#This Row],[Статус2]],TRUE),\"\")","v":45},{"$f":"IFERROR(INDEX(Базаданных[Чей клиент],MATCH(ROWS($U$2:Базаданных[[#This Row],[Индекс3]]),Базаданных[Индекс3],0)),\"\")","v":"Гречихина Юля"},{"$f":"Базаданных[[#This Row],[ДД]]-Базаданных[[#This Row],[ГД]]","v":550},{"$f":"Базаданных[[#This Row],[КВ]]-Базаданных[[#This Row],[ГК]]","v":0}]
["2019-04-01",43568.744171874998,1,"понедельник","Апрель","2019",120,"-",0,"-",0,"-",0,"-","Гречихина Юля","Комиссионка Щербинка",{"$f":"NOT(ISERROR(SEARCH('Форма ввода'!$C$5,Базаданных[[#This Row],[Клиент]])))","v":false},{"$f":"IF(Базаданных[[#This Row],[Статус]],COUNTIF($Q$2:Базаданных[[#This Row],[Статус]],TRUE),\"\")","v":""},{"$f":"IFERROR(INDEX(Базаданных[Клиент],MATCH(ROWS($R$2:Базаданных[[#This Row],[Индекс]]),Базаданных[Индекс],0)),\"\")","v":""},{"$f":"NOT(ISERROR(SEARCH('Форма ввода'!$C$9,Базаданных[[#This Row],[Чей клиент]])))","v":true},{"$f":"IF(Базаданных[[#This Row],[Статус2]],COUNTIF($T$2:Базаданных[[#This Row],[Статус2]],TRUE),\"\")","v":46},{"$f":"IFERROR(INDEX(Базаданных[Чей клиент],MATCH(ROWS($U$2:Базаданных[[#This Row],[Индекс3]]),Базаданных[Индекс3],0)),\"\")","v":"Гречихина Юля"},{"$f":"Базаданных[[#This Row],[ДД]]-Базаданных[[#This Row],[ГД]]","v":120},{"$f":"Базаданных[[#This Row],[КВ]]-Базаданных[[#This Row],[ГК]]","v":0}]
["2019-04-01",43568.744872916664,1,"понедельник","Апрель","2019",2800,"-",0,"-",0,"-",0,"-","Гречихина Юля","Тигран Рязань и МО",{"$f":"NOT(ISERROR(SEARCH('Форма ввода'!$C$5,Базаданных[[#This Row],[Клиент]])))","v":false},{"$f":"IF(Базаданных[[#This Row],[Статус]],COUNTIF($Q$2:Базаданных[[#This Row],[Статус]],TRUE),\"\")","v":""},{"$f":"IFERROR(INDEX(Базаданных[Клиент],MATCH(ROWS($R$2:Базаданных[[#This Row],[Индекс]]),Базаданных[Индекс],0)),\"\")","v":""},{"$f":"NOT(ISERROR(SEARCH('Форма ввода'!$C$9,Базаданных[[#This Row],[Чей клиент]])))","v":true},{"$f":"IF(Базаданных[[#This Row],[Статус2]],COUNTIF($T$2:Базаданных[[#This Row],[Статус2]],TRUE),\"\")","v":47},{"$f":"IFERROR(INDEX(Базаданных[Чей клиент],MATCH(ROWS($U$2:Базаданных[[#This Row],[Индекс3]]),Базаданных[Индекс3],0)),\"\")","v":"Гречихина Юля"},{"$f":"Базаданных[[#This Row],[ДД]]-Базаданных[[#This Row],[ГД]]","v":2800},{"$f":"Базаданных[[#This Row],[КВ]]-Базаданных[[#This Row],[ГК]]","v":0}]
["2019-04-01",43568.745191898146,1,"понедельник","Апрель","2019",3510,"-",0,"-",0,"-",0,"-","Гречихина Юля","Александр (Черемушки 2B-15)",{"$f":"NOT(ISERROR(SEARCH('Форма ввода'!$C$5,Базаданных[[#This Row],[Клиент]])))","v":false},{"$f":"IF(Базаданных[[#This Row],[Статус]],COUNTIF($Q$2:Базаданных[[#This Row],[Статус]],TRUE),\"\")","v":""},{"$f":"IFERROR(INDEX(Базаданных[Клиент],MATCH(ROWS($R$2:Базаданных[[#This Row],[Индекс]]),Базаданных[Индекс],0)),\"\")","v":""},{"$f":"NOT(ISERROR(SEARCH('Форма ввода'!$C$9,Базаданных[[#This Row],[Чей клиент]])))","v":true},{"$f":"IF(Базаданных[[#This Row],[Статус2]],COUNTIF($T$2:Базаданных[[#This Row],[Статус2]],TRUE),\"\")","v":48},{"$f":"IFERROR(INDEX(Базаданных[Чей клиент],MATCH(ROWS($U$2:Базаданных[[#This Row],[Индекс3]]),Базаданных[Индекс3],0)),\"\")","v":"Гречихина Юля"},{"$f":"Базаданных[[#This Row],[ДД]]-Базаданных[[#This Row],[ГД]]","v":3510},{"$f":"Базаданных[[#This Row],[КВ]]-Базаданных[[#This Row],[ГК]]","v":0}]
["2019-04-01",43568.745558333336,1,"понедельник","Апрель","2019",11040,"-",0,"-",0,"-",0,"-","Гречихина Юля","Вадим (Скупка Егорьевск)",{"$f":"NOT(ISERROR(SEARCH('Форма ввода'!$C$5,Базаданных[[#This Row],[Клиент]])))","v":false},{"$f":"IF(Базаданных[[#This Row],[Статус]],COUNTIF($Q$2:Базаданных[[#This Row],[Статус]],TRUE),\"\")","v":""},{"$f":"IFERROR(INDEX(Базаданных[Клиент],MATCH(ROWS($R$2:Базаданных[[#This Row],[Индекс]]),Базаданных[Индекс],0)),\"\")","v":""},{"$f":"NOT(ISERROR(SEARCH('Форма ввода'!$C$9,Базаданных[[#This Row],[Чей клиент]])))","v":true},{"$f":"IF(Базаданных[[#This Row],[Статус2]],COUNTIF($T$2:Базаданных[[#This Row],[Статус2]],TRUE),\"\")","v":49},{"$f":"IFERROR(INDEX(Базаданных[Чей клиент],MATCH(ROWS($U$2:Базаданных[[#This Row],[Индекс3]]),Базаданных[Индекс3],0)),\"\")","v":"Гречихина Юля"},{"$f":"Базаданных[[#This Row],[ДД]]-Базаданных[[#This Row],[ГД]]","v":11040},{"$f":"Базаданных[[#This Row],[КВ]]-Базаданных[[#This Row],[ГК]]","v":0}]
["2019-04-01",43568.745847222221,1,"понедельник","Апрель","2019",3400,"-",0,"-",0,"-",0,"-","Гречихина Юля","Гречихина Юля (AlexStore)",{"$f":"NOT(ISERROR(SEARCH('Форма ввода'!$C$5,Базаданных[[#This Row],[Клиент]])))","v":false},{"$f":"IF(Базаданных[[#This Row],[Статус]],COUNTIF($Q$2:Базаданных[[#This Row],[Статус]],TRUE),\"\")","v":""},{"$f":"IFERROR(INDEX(Базаданных[Клиент],MATCH(ROWS($R$2:Базаданных[[#This Row],[Индекс]]),Базаданных[Индекс],0)),\"\")","v":""},{"$f":"NOT(ISERROR(SEARCH('Форма ввода'!$C$9,Базаданных[[#This Row],[Чей клиент]])))","v":true},{"$f":"IF(Базаданных[[#This Row],[Статус2]],COUNTIF($T$2:Базаданных[[#This Row],[Статус2]],TRUE),\"\")","v":50},{"$f":"IFERROR(INDEX(Базаданных[Чей клиент],MATCH(ROWS($U$2:Базаданных[[#This Row],[Индекс3]]),Базаданных[Индекс3],0)),\"\")","v":"Гречихина Юля"},{"$f":"Базаданных[[#This Row],[ДД]]-Базаданных[[#This Row],[ГД]]","v":3400},{"$f":"Базаданных[[#This Row],[КВ]]-Базаданных[[#This Row],[ГК]]","v":0}]
["2019-04-01",43568.746081365738,1,"понедельник","Апрель","2019",1900,"-",0,"-",0,"-",0,"-","Гречихина Юля","Паша (Комиссионка Бутово)",{"$f":"NOT(ISERROR(SEARCH('Форма ввода'!$C$5,Базаданных[[#This Row],[Клиент]])))","v":false},{"$f":"IF(Базаданных[[#This Row],[Статус]],COUNTIF($Q$2:Базаданных[[#This Row],[Статус]],TRUE),\"\")","v":""},{"$f":"IFERROR(INDEX(Базаданных[Клиент],MATCH(ROWS($R$2:Базаданных[[#This Row],[Индекс]]),Базаданных[Индекс],0)),\"\")","v":""},{"$f":"NOT(ISERROR(SEARCH('Форма ввода'!$C$9,Базаданных[[#This Row],[Чей клиент]])))","v":true},{"$f":"IF(Базаданных[[#This Row],[Статус2]],COUNTIF($T$2:Базаданных[[#This Row],[Статус2]],TRUE),\"\")","v":51},{"$f":"IFERROR(INDEX(Базаданных[Чей клиент],MATCH(ROWS($U$2:Базаданных[[#This Row],[Индекс3]]),Базаданных[Индекс3],0)),\"\")","v":"Гречихина Юля"},{"$f":"Базаданных[[#This Row],[ДД]]-Базаданных[[#This Row],[ГД]]","v":1900},{"$f":"Базаданных[[#This Row],[КВ]]-Базаданных[[#This Row],[ГК]]","v":0}]
["2019-04-01",43568.746383564816,1,"понедельник","Апрель","2019",790,"-",0,"-",0,"-",0,"-","Гречихина Юля","Скупка Розовая (Коломна)",{"$f":"NOT(ISERROR(SEARCH('Форма ввода'!$C$5,Базаданных[[#This Row],[Клиент]])))","v":false},{"$f":"IF(Базаданных[[#This Row],[Статус]],COUNTIF($Q$2:Базаданных[[#This Row],[Статус]],TRUE),\"\")","v":""},{"$f":"IFERROR(INDEX(Базаданных[Клиент],MATCH(ROWS($R$2:Базаданных[[#This Row],[Индекс]]),Базаданных[Индекс],0)),\"\")","v":""},{"$f":"NOT(ISERROR(SEARCH('Форма ввода'!$C$9,Базаданных[[#This Row],[Чей клиент]])))","v":true},{"$f":"IF(Базаданных[[#This Row],[Статус2]],COUNTIF($T$2:Базаданных[[#This Row],[Статус2]],TRUE),\"\")","v":52},{"$f":"IFERROR(INDEX(Базаданных[Чей клиент],MATCH(ROWS($U$2:Базаданных[[#This Row],[Индекс3]]),Базаданных[Индекс3],0)),\"\")","v":"Гречихина Юля"},{"$f":"Базаданных[[#This Row],[ДД]]-Базаданных[[#This Row],[ГД]]","v":790},{"$f":"Базаданных[[#This Row],[КВ]]-Базаданных[[#This Row],[ГК]]","v":0}]
["2019-04-01",43568.746806712959,1,"понедельник","Апрель","2019",4900,"-",0,"-",0,"-",0,"-","Гречихина Юля","Комиссионка (Серпухов)",{"$f":"NOT(ISERROR(SEARCH('Форма ввода'!$C$5,Базаданных[[#This Row],[Клиент]])))","v":false},{"$f":"IF(Базаданных[[#This Row],[Статус]],COUNTIF($Q$2:Базаданных[[#This Row],[Статус]],TRUE),\"\")","v":""},{"$f":"IFERROR(INDEX(Базаданных[Клиент],MATCH(ROWS($R$2:Базаданных[[#This Row],[Индекс]]),Базаданных[Индекс],0)),\"\")","v":""},{"$f":"NOT(ISERROR(SEARCH('Форма ввода'!$C$9,Базаданных[[#This Row],[Чей клиент]])))","v":true},{"$f":"IF(Базаданных[[#This Row],[Статус2]],COUNTIF($T$2:Базаданных[[#This Row],[Статус2]],TRUE),\"\")","v":53},{"$f":"IFERROR(INDEX(Базаданных[Чей клиент],MATCH(ROWS($U$2:Базаданных[[#This Row],[Индекс3]]),Базаданных[Индекс3],0)),\"\")","v":"Гречихина Юля"},{"$f":"Базаданных[[#This Row],[ДД]]-Базаданных[[#This Row],[ГД]]","v":4900},{"$f":"Базаданных[[#This Row],[КВ]]-Базаданных[[#This Row],[ГК]]","v":0}]
["2019-04-01",43568.747244444443,1,"понедельник","Апрель","2019",650,"-",0,"-",0,"-",0,"-","Гречихина Юля","Скупка  №1 (Пушкино)",{"$f":"NOT(ISERROR(SEARCH('Форма ввода'!$C$5,Базаданных[[#This Row],[Клиент]])))","v":false},{"$f":"IF(Базаданных[[#This Row],[Статус]],COUNTIF($Q$2:Базаданных[[#This Row],[Статус]],TRUE),\"\")","v":""},{"$f":"IFERROR(INDEX(Базаданных[Клиент],MATCH(ROWS($R$2:Базаданных[[#This Row],[Индекс]]),Базаданных[Индекс],0)),\"\")","v":""},{"$f":"NOT(ISERROR(SEARCH('Форма ввода'!$C$9,Базаданных[[#This Row],[Чей клиент]])))","v":true},{"$f":"IF(Базаданных[[#This Row],[Статус2]],COUNTIF($T$2:Базаданных[[#This Row],[Статус2]],TRUE),\"\")","v":54},{"$f":"IFERROR(INDEX(Базаданных[Чей клиент],MATCH(ROWS($U$2:Базаданных[[#This Row],[Индекс3]]),Базаданных[Индекс3],0)),\"\")","v":"Гречихина Юля"},{"$f":"Базаданных[[#This Row],[ДД]]-Базаданных[[#This Row],[ГД]]","v":650},{"$f":"Базаданных[[#This Row],[КВ]]-Базаданных[[#This Row],[ГК]]","v":0}]
["2019-04-01",43568.747577893519,1,"понедельник","Апрель","2019",9000,"-",0,"-",0,"-",0,"-","Пименов Алексей","Частное лицо",{"$f":"NOT(ISERROR(SEARCH('Форма ввода'!$C$5,Базаданных[[#This Row],[Клиент]])))","v":false},{"$f":"IF(Базаданных[[#This Row],[Статус]],COUNTIF($Q$2:Базаданных[[#This Row],[Статус]],TRUE),\"\")","v":""},{"$f":"IFERROR(INDEX(Базаданных[Клиент],MATCH(ROWS($R$2:Базаданных[[#This Row],[Индекс]]),Базаданных[Индекс],0)),\"\")","v":""},{"$f":"NOT(ISERROR(SEARCH('Форма ввода'!$C$9,Базаданных[[#This Row],[Чей клиент]])))","v":true},{"$f":"IF(Базаданных[[#This Row],[Статус2]],COUNTIF($T$2:Базаданных[[#This Row],[Статус2]],TRUE),\"\")","v":55},{"$f":"IFERROR(INDEX(Базаданных[Чей клиент],MATCH(ROWS($U$2:Базаданных[[#This Row],[Индекс3]]),Базаданных[Индекс3],0)),\"\")","v":"Пименов Алексей"},{"$f":"Базаданных[[#This Row],[ДД]]-Базаданных[[#This Row],[ГД]]","v":9000},{"$f":"Базаданных[[#This Row],[КВ]]-Базаданных[[#This Row],[ГК]]","v":0}]
["2019-04-01",43568.75163796296,1,"понедельник","Апрель","2019",0,"-",0,"-",3300,"-",0,"-","Пименов Алексей","Борис (Теплый стан)",{"$f":"NOT(ISERROR(SEARCH('Форма ввода'!$C$5,Базаданных[[#This Row],[Клиент]])))","v":false},{"$f":"IF(Базаданных[[#This Row],[Статус]],COUNTIF($Q$2:Базаданных[[#This Row],[Статус]],TRUE),\"\")","v":""},{"$f":"IFERROR(INDEX(Базаданных[Клиент],MATCH(ROWS($R$2:Базаданных[[#This Row],[Индекс]]),Базаданных[Индекс],0)),\"\")","v":""},{"$f":"NOT(ISERROR(SEARCH('Форма ввода'!$C$9,Базаданных[[#This Row],[Чей клиент]])))","v":true},{"$f":"IF(Базаданных[[#This Row],[Статус2]],COUNTIF($T$2:Базаданных[[#This Row],[Статус2]],TRUE),\"\")","v":56},{"$f":"IFERROR(INDEX(Базаданных[Чей клиент],MATCH(ROWS($U$2:Базаданных[[#This Row],[Индекс3]]),Базаданных[Индекс3],0)),\"\")","v":"Пименов Алексей"},{"$f":"Базаданных[[#This Row],[ДД]]-Базаданных[[#This Row],[ГД]]","v":0},{"$f":"Базаданных[[#This Row],[КВ]]-Базаданных[[#This Row],[ГК]]","v":3300}]
["2019-04-01",43568.751885069447,1,"понедельник","Апрель","2019",0,"-",0,"-",280,"-",0,"-","Пименов Алексей","Шамиль (Грозный)",{"$f":"NOT(ISERROR(SEARCH('Форма ввода'!$C$5,Базаданных[[#This Row],[Клиент]])))","v":false},{"$f":"IF(Базаданных[[#This Row],[Статус]],COUNTIF($Q$2:Базаданных[[#This Row],[Статус]],TRUE),\"\")","v":""},{"$f":"IFERROR(INDEX(Базаданных[Клиент],MATCH(ROWS($R$2:Базаданных[[#This Row],[Индекс]]),Базаданных[Индекс],0)),\"\")","v":""},{"$f":"NOT(ISERROR(SEARCH('Форма ввода'!$C$9,Базаданных[[#This Row],[Чей клиент]])))","v":true},{"$f":"IF(Базаданных[[#This Row],[Статус2]],COUNTIF($T$2:Базаданных[[#This Row],[Статус2]],TRUE),\"\")","v":57},{"$f":"IFERROR(INDEX(Базаданных[Чей клиент],MATCH(ROWS($U$2:Базаданных[[#This Row],[Индекс3]]),Базаданных[Индекс3],0)),\"\")","v":"Пименов Алексей"},{"$f":"Базаданных[[#This Row],[ДД]]-Базаданных[[#This Row],[ГД]]","v":0},{"$f":"Базаданных[[#This Row],[КВ]]-Базаданных[[#This Row],[ГК]]","v":280}]
["2019-04-01",43568.752117476855,1,"понедельник","Апрель","2019",0,"-",0,"-",14120,"-",0,"-","Пименов Алексей","Рустам Дагестан",{"$f":"NOT(ISERROR(SEARCH('Форма ввода'!$C$5,Базаданных[[#This Row],[Клиент]])))","v":false},{"$f":"IF(Базаданных[[#This Row],[Статус]],COUNTIF($Q$2:Базаданных[[#This Row],[Статус]],TRUE),\"\")","v":""},{"$f":"IFERROR(INDEX(Базаданных[Клиент],MATCH(ROWS($R$2:Базаданных[[#This Row],[Индекс]]),Базаданных[Индекс],0)),\"\")","v":""},{"$f":"NOT(ISERROR(SEARCH('Форма ввода'!$C$9,Базаданных[[#This Row],[Чей клиент]])))","v":true},{"$f":"IF(Базаданных[[#This Row],[Статус2]],COUNTIF($T$2:Базаданных[[#This Row],[Статус2]],TRUE),\"\")","v":58},{"$f":"IFERROR(INDEX(Базаданных[Чей клиент],MATCH(ROWS($U$2:Базаданных[[#This Row],[Индекс3]]),Базаданных[Индекс3],0)),\"\")","v":"Пименов Алексей"},{"$f":"Базаданных[[#This Row],[ДД]]-Базаданных[[#This Row],[ГД]]","v":0},{"$f":"Базаданных[[#This Row],[КВ]]-Базаданных[[#This Row],[ГК]]","v":14120}]
["2019-04-01",43568.752335069446,1,"понедельник","Апрель","2019",0,"-",0,"-",300,"-",0,"-","Гречихина Юля","Скупка Розовая (Мытищи)",{"$f":"NOT(ISERROR(SEARCH('Форма ввода'!$C$5,Базаданных[[#This Row],[Клиент]])))","v":false},{"$f":"IF(Базаданных[[#This Row],[Статус]],COUNTIF($Q$2:Базаданных[[#This Row],[Статус]],TRUE),\"\")","v":""},{"$f":"IFERROR(INDEX(Базаданных[Клиент],MATCH(ROWS($R$2:Базаданных[[#This Row],[Индекс]]),Базаданных[Индекс],0)),\"\")","v":""},{"$f":"NOT(ISERROR(SEARCH('Форма ввода'!$C$9,Базаданных[[#This Row],[Чей клиент]])))","v":true},{"$f":"IF(Базаданных[[#This Row],[Статус2]],COUNTIF($T$2:Базаданных[[#This Row],[Статус2]],TRUE),\"\")","v":59},{"$f":"IFERROR(INDEX(Базаданных[Чей клиент],MATCH(ROWS($U$2:Базаданных[[#This Row],[Индекс3]]),Базаданных[Индекс3],0)),\"\")","v":"Гречихина Юля"},{"$f":"Базаданных[[#This Row],[ДД]]-Базаданных[[#This Row],[ГД]]","v":0},{"$f":"Базаданных[[#This Row],[КВ]]-Базаданных[[#This Row],[ГК]]","v":300}]
["2019-04-01",43568.757269791669,1,"понедельник","Апрель","2019",0,"-",0,"-",500,"-",0,"-","Хачатрян Араик","Вадим (Митино 213, 406)",{"$f":"NOT(ISERROR(SEARCH('Форма ввода'!$C$5,Базаданных[[#This Row],[Клиент]])))","v":false},{"$f":"IF(Базаданных[[#This Row],[Статус]],COUNTIF($Q$2:Базаданных[[#This Row],[Статус]],TRUE),\"\")","v":""},{"$f":"IFERROR(INDEX(Базаданных[Клиент],MATCH(ROWS($R$2:Базаданных[[#This Row],[Индекс]]),Базаданных[Индекс],0)),\"\")","v":""},{"$f":"NOT(ISERROR(SEARCH('Форма ввода'!$C$9,Базаданных[[#This Row],[Чей клиент]])))","v":true},{"$f":"IF(Базаданных[[#This Row],[Статус2]],COUNTIF($T$2:Базаданных[[#This Row],[Статус2]],TRUE),\"\")","v":60},{"$f":"IFERROR(INDEX(Базаданных[Чей клиент],MATCH(ROWS($U$2:Базаданных[[#This Row],[Индекс3]]),Базаданных[Индекс3],0)),\"\")","v":"Хачатрян Араик"},{"$f":"Базаданных[[#This Row],[ДД]]-Базаданных[[#This Row],[ГД]]","v":0},{"$f":"Базаданных[[#This Row],[КВ]]-Базаданных[[#This Row],[ГК]]","v":500}]
["2019-04-01",43568.757591550922,1,"понедельник","Апрель","2019",0,"-",0,"-",1880,"-",0,"-","Гречихина Юля","Эпрем (Новые Черемушки)",{"$f":"NOT(ISERROR(SEARCH('Форма ввода'!$C$5,Базаданных[[#This Row],[Клиент]])))","v":false},{"$f":"IF(Базаданных[[#This Row],[Статус]],COUNTIF($Q$2:Базаданных[[#This Row],[Статус]],TRUE),\"\")","v":""},{"$f":"IFERROR(INDEX(Базаданных[Клиент],MATCH(ROWS($R$2:Базаданных[[#This Row],[Индекс]]),Базаданных[Индекс],0)),\"\")","v":""},{"$f":"NOT(ISERROR(SEARCH('Форма ввода'!$C$9,Базаданных[[#This Row],[Чей клиент]])))","v":true},{"$f":"IF(Базаданных[[#This Row],[Статус2]],COUNTIF($T$2:Базаданных[[#This Row],[Статус2]],TRUE),\"\")","v":61},{"$f":"IFERROR(INDEX(Базаданных[Чей клиент],MATCH(ROWS($U$2:Базаданных[[#This Row],[Индекс3]]),Базаданных[Индекс3],0)),\"\")","v":"Гречихина Юля"},{"$f":"Базаданных[[#This Row],[ДД]]-Базаданных[[#This Row],[ГД]]","v":0},{"$f":"Базаданных[[#This Row],[КВ]]-Базаданных[[#This Row],[ГК]]","v":1880}]
["2019-04-01",43568.758271412036,1,"понедельник","Апрель","2019",0,"-",0,"-",36704,"-",0,"-","Пименов Алексей","Эдик (От Сергея)",{"$f":"NOT(ISERROR(SEARCH('Форма ввода'!$C$5,Базаданных[[#This Row],[Клиент]])))","v":false},{"$f":"IF(Базаданных[[#This Row],[Статус]],COUNTIF($Q$2:Базаданных[[#This Row],[Статус]],TRUE),\"\")","v":""},{"$f":"IFERROR(INDEX(Базаданных[Клиент],MATCH(ROWS($R$2:Базаданных[[#This Row],[Индекс]]),Базаданных[Индекс],0)),\"\")","v":""},{"$f":"NOT(ISERROR(SEARCH('Форма ввода'!$C$9,Базаданных[[#This Row],[Чей клиент]])))","v":true},{"$f":"IF(Базаданных[[#This Row],[Статус2]],COUNTIF($T$2:Базаданных[[#This Row],[Статус2]],TRUE),\"\")","v":62},{"$f":"IFERROR(INDEX(Базаданных[Чей клиент],MATCH(ROWS($U$2:Базаданных[[#This Row],[Индекс3]]),Базаданных[Индекс3],0)),\"\")","v":"Пименов Алексей"},{"$f":"Базаданных[[#This Row],[ДД]]-Базаданных[[#This Row],[ГД]]","v":0},{"$f":"Базаданных[[#This Row],[КВ]]-Базаданных[[#This Row],[ГК]]","v":36704}]
["2019-04-01",43568.758616550927,1,"понедельник","Апрель","2019",0,"-",0,"-",21100,"-",0,"-","Пименов Алексей","Родион (Иваново)",{"$f":"NOT(ISERROR(SEARCH('Форма ввода'!$C$5,Базаданных[[#This Row],[Клиент]])))","v":false},{"$f":"IF(Базаданных[[#This Row],[Статус]],COUNTIF($Q$2:Базаданных[[#This Row],[Статус]],TRUE),\"\")","v":""},{"$f":"IFERROR(INDEX(Базаданных[Клиент],MATCH(ROWS($R$2:Базаданных[[#This Row],[Индекс]]),Базаданных[Индекс],0)),\"\")","v":""},{"$f":"NOT(ISERROR(SEARCH('Форма ввода'!$C$9,Базаданных[[#This Row],[Чей клиент]])))","v":true},{"$f":"IF(Базаданных[[#This Row],[Статус2]],COUNTIF($T$2:Базаданных[[#This Row],[Статус2]],TRUE),\"\")","v":63},{"$f":"IFERROR(INDEX(Базаданных[Чей клиент],MATCH(ROWS($U$2:Базаданных[[#This Row],[Индекс3]]),Базаданных[Индекс3],0)),\"\")","v":"Пименов Алексей"},{"$f":"Базаданных[[#This Row],[ДД]]-Базаданных[[#This Row],[ГД]]","v":0},{"$f":"Базаданных[[#This Row],[КВ]]-Базаданных[[#This Row],[ГК]]","v":21100}]
["2019-04-01",43568.758934375001,1,"понедельник","Апрель","2019",0,"-",0,"-",580,"-",0,"-","Пименов Алексей","Арсен Шанхоев (Ингушетия)",{"$f":"NOT(ISERROR(SEARCH('Форма ввода'!$C$5,Базаданных[[#This Row],[Клиент]])))","v":false},{"$f":"IF(Базаданных[[#This Row],[Статус]],COUNTIF($Q$2:Базаданных[[#This Row],[Статус]],TRUE),\"\")","v":""},{"$f":"IFERROR(INDEX(Базаданных[Клиент],MATCH(ROWS($R$2:Базаданных[[#This Row],[Индекс]]),Базаданных[Индекс],0)),\"\")","v":""},{"$f":"NOT(ISERROR(SEARCH('Форма ввода'!$C$9,Базаданных[[#This Row],[Чей клиент]])))","v":true},{"$f":"IF(Базаданных[[#This Row],[Статус2]],COUNTIF($T$2:Базаданных[[#This Row],[Статус2]],TRUE),\"\")","v":64},{"$f":"IFERROR(INDEX(Базаданных[Чей клиент],MATCH(ROWS($U$2:Базаданных[[#This Row],[Индекс3]]),Базаданных[Индекс3],0)),\"\")","v":"Пименов Алексей"},{"$f":"Базаданных[[#This Row],[ДД]]-Базаданных[[#This Row],[ГД]]","v":0},{"$f":"Базаданных[[#This Row],[КВ]]-Базаданных[[#This Row],[ГК]]","v":580}]
["2019-04-01",43568.759113888889,1,"понедельник","Апрель","2019",0,"-",0,"-",4100,"-",0,"-","Пименов Алексей","Хорохорин Сергей (Кирсанов ТО)",{"$f":"NOT(ISERROR(SEARCH('Форма ввода'!$C$5,Базаданных[[#This Row],[Клиент]])))","v":false},{"$f":"IF(Базаданных[[#This Row],[Статус]],COUNTIF($Q$2:Базаданных[[#This Row],[Статус]],TRUE),\"\")","v":""},{"$f":"IFERROR(INDEX(Базаданных[Клиент],MATCH(ROWS($R$2:Базаданных[[#This Row],[Индекс]]),Базаданных[Индекс],0)),\"\")","v":""},{"$f":"NOT(ISERROR(SEARCH('Форма ввода'!$C$9,Базаданных[[#This Row],[Чей клиент]])))","v":true},{"$f":"IF(Базаданных[[#This Row],[Статус2]],COUNTIF($T$2:Базаданных[[#This Row],[Статус2]],TRUE),\"\")","v":65},{"$f":"IFERROR(INDEX(Базаданных[Чей клиент],MATCH(ROWS($U$2:Базаданных[[#This Row],[Индекс3]]),Базаданных[Индекс3],0)),\"\")","v":"Пименов Алексей"},{"$f":"Базаданных[[#This Row],[ДД]]-Базаданных[[#This Row],[ГД]]","v":0},{"$f":"Базаданных[[#This Row],[КВ]]-Базаданных[[#This Row],[ГК]]","v":4100}]
["2019-04-01",43568.759831365744,1,"понедельник","Апрель","2019",0,"-",0,"-",2800,"-",0,"-","Пименов Алексей","Иван (Пятигорск)",{"$f":"NOT(ISERROR(SEARCH('Форма ввода'!$C$5,Базаданных[[#This Row],[Клиент]])))","v":false},{"$f":"IF(Базаданных[[#This Row],[Статус]],COUNTIF($Q$2:Базаданных[[#This Row],[Статус]],TRUE),\"\")","v":""},{"$f":"IFERROR(INDEX(Базаданных[Клиент],MATCH(ROWS($R$2:Базаданных[[#This Row],[Индекс]]),Базаданных[Индекс],0)),\"\")","v":""},{"$f":"NOT(ISERROR(SEARCH('Форма ввода'!$C$9,Базаданных[[#This Row],[Чей клиент]])))","v":true},{"$f":"IF(Базаданных[[#This Row],[Статус2]],COUNTIF($T$2:Базаданных[[#This Row],[Статус2]],TRUE),\"\")","v":66},{"$f":"IFERROR(INDEX(Базаданных[Чей клиент],MATCH(ROWS($U$2:Базаданных[[#This Row],[Индекс3]]),Базаданных[Индекс3],0)),\"\")","v":"Пименов Алексей"},{"$f":"Базаданных[[#This Row],[ДД]]-Базаданных[[#This Row],[ГД]]","v":0},{"$f":"Базаданных[[#This Row],[КВ]]-Базаданных[[#This Row],[ГК]]","v":2800}]
["2019-04-01",43568.766795023148,1,"понедельник","Апрель","2019",0,"-",0,"-",370,"-",0,"-","Гречихина Юля","Станислав (Скупка Пушкина) главная",{"$f":"NOT(ISERROR(SEARCH('Форма ввода'!$C$5,Базаданных[[#This Row],[Клиент]])))","v":false},{"$f":"IF(Базаданных[[#This Row],[Статус]],COUNTIF($Q$2:Базаданных[[#This Row],[Статус]],TRUE),\"\")","v":""},{"$f":"IFERROR(INDEX(Базаданных[Клиент],MATCH(ROWS($R$2:Базаданных[[#This Row],[Индекс]]),Базаданных[Индекс],0)),\"\")","v":""},{"$f":"NOT(ISERROR(SEARCH('Форма ввода'!$C$9,Базаданных[[#This Row],[Чей клиент]])))","v":true},{"$f":"IF(Базаданных[[#This Row],[Статус2]],COUNTIF($T$2:Базаданных[[#This Row],[Статус2]],TRUE),\"\")","v":67},{"$f":"IFERROR(INDEX(Базаданных[Чей клиент],MATCH(ROWS($U$2:Базаданных[[#This Row],[Индекс3]]),Базаданных[Индекс3],0)),\"\")","v":"Гречихина Юля"},{"$f":"Базаданных[[#This Row],[ДД]]-Базаданных[[#This Row],[ГД]]","v":0},{"$f":"Базаданных[[#This Row],[КВ]]-Базаданных[[#This Row],[ГК]]","v":370}]
["2019-04-01",43568.767780787035,1,"понедельник","Апрель","2019",0,"-",0,"-",840,"-",0,"-","Пименов Алексей","Эрик Каренович (Армения)",{"$f":"NOT(ISERROR(SEARCH('Форма ввода'!$C$5,Базаданных[[#This Row],[Клиент]])))","v":false},{"$f":"IF(Базаданных[[#This Row],[Статус]],COUNTIF($Q$2:Базаданных[[#This Row],[Статус]],TRUE),\"\")","v":""},{"$f":"IFERROR(INDEX(Базаданных[Клиент],MATCH(ROWS($R$2:Базаданных[[#This Row],[Индекс]]),Базаданных[Индекс],0)),\"\")","v":""},{"$f":"NOT(ISERROR(SEARCH('Форма ввода'!$C$9,Базаданных[[#This Row],[Чей клиент]])))","v":true},{"$f":"IF(Базаданных[[#This Row],[Статус2]],COUNTIF($T$2:Базаданных[[#This Row],[Статус2]],TRUE),\"\")","v":68},{"$f":"IFERROR(INDEX(Базаданных[Чей клиент],MATCH(ROWS($U$2:Базаданных[[#This Row],[Индекс3]]),Базаданных[Индекс3],0)),\"\")","v":"Пименов Алексей"},{"$f":"Базаданных[[#This Row],[ДД]]-Базаданных[[#This Row],[ГД]]","v":0},{"$f":"Базаданных[[#This Row],[КВ]]-Базаданных[[#This Row],[ГК]]","v":840}]
["2019-04-01",43568.767950694448,1,"понедельник","Апрель","2019",0,"-",0,"-",9600,"-",0,"-","Пименов Алексей","Пименов Алексей (АлексСтор)",{"$f":"NOT(ISERROR(SEARCH('Форма ввода'!$C$5,Базаданных[[#This Row],[Клиент]])))","v":true},{"$f":"IF(Базаданных[[#This Row],[Статус]],COUNTIF($Q$2:Базаданных[[#This Row],[Статус]],TRUE),\"\")","v":2},{"$f":"IFERROR(INDEX(Базаданных[Клиент],MATCH(ROWS($R$2:Базаданных[[#This Row],[Индекс]]),Базаданных[Индекс],0)),\"\")","v":""},{"$f":"NOT(ISERROR(SEARCH('Форма ввода'!$C$9,Базаданных[[#This Row],[Чей клиент]])))","v":true},{"$f":"IF(Базаданных[[#This Row],[Статус2]],COUNTIF($T$2:Базаданных[[#This Row],[Статус2]],TRUE),\"\")","v":69},{"$f":"IFERROR(INDEX(Базаданных[Чей клиент],MATCH(ROWS($U$2:Базаданных[[#This Row],[Индекс3]]),Базаданных[Индекс3],0)),\"\")","v":"Пименов Алексей"},{"$f":"Базаданных[[#This Row],[ДД]]-Базаданных[[#This Row],[ГД]]","v":0},{"$f":"Базаданных[[#This Row],[КВ]]-Базаданных[[#This Row],[ГК]]","v":9600}]
["2019-04-01",43568.768143634261,1,"понедельник","Апрель","2019",0,"-",0,"-",150,"-",0,"-","Гречихина Юля","Олеся (Подольск Скупка)",{"$f":"NOT(ISERROR(SEARCH('Форма ввода'!$C$5,Базаданных[[#This Row],[Клиент]])))","v":false},{"$f":"IF(Базаданных[[#This Row],[Статус]],COUNTIF($Q$2:Базаданных[[#This Row],[Статус]],TRUE),\"\")","v":""},{"$f":"IFERROR(INDEX(Базаданных[Клиент],MATCH(ROWS($R$2:Базаданных[[#This Row],[Индекс]]),Базаданных[Индекс],0)),\"\")","v":""},{"$f":"NOT(ISERROR(SEARCH('Форма ввода'!$C$9,Базаданных[[#This Row],[Чей клиент]])))","v":true},{"$f":"IF(Базаданных[[#This Row],[Статус2]],COUNTIF($T$2:Базаданных[[#This Row],[Статус2]],TRUE),\"\")","v":70},{"$f":"IFERROR(INDEX(Базаданных[Чей клиент],MATCH(ROWS($U$2:Базаданных[[#This Row],[Индекс3]]),Базаданных[Индекс3],0)),\"\")","v":"Гречихина Юля"},{"$f":"Базаданных[[#This Row],[ДД]]-Базаданных[[#This Row],[ГД]]","v":0},{"$f":"Базаданных[[#This Row],[КВ]]-Базаданных[[#This Row],[ГК]]","v":150}]
["2019-04-01",43568.768370486112,1,"понедельник","Апрель","2019",0,"-",0,"-",230,"-",0,"-","Пименов Алексей","Андрей (Коммисионка Королев)",{"$f":"NOT(ISERROR(SEARCH('Форма ввода'!$C$5,Базаданных[[#This Row],[Клиент]])))","v":false},{"$f":"IF(Базаданных[[#This Row],[Статус]],COUNTIF($Q$2:Базаданных[[#This Row],[Статус]],TRUE),\"\")","v":""},{"$f":"IFERROR(INDEX(Базаданных[Клиент],MATCH(ROWS($R$2:Базаданных[[#This Row],[Индекс]]),Базаданных[Индекс],0)),\"\")","v":""},{"$f":"NOT(ISERROR(SEARCH('Форма ввода'!$C$9,Базаданных[[#This Row],[Чей клиент]])))","v":true},{"$f":"IF(Базаданных[[#This Row],[Статус2]],COUNTIF($T$2:Базаданных[[#This Row],[Статус2]],TRUE),\"\")","v":71},{"$f":"IFERROR(INDEX(Базаданных[Чей клиент],MATCH(ROWS($U$2:Базаданных[[#This Row],[Индекс3]]),Базаданных[Индекс3],0)),\"\")","v":"Пименов Алексей"},{"$f":"Базаданных[[#This Row],[ДД]]-Базаданных[[#This Row],[ГД]]","v":0},{"$f":"Базаданных[[#This Row],[КВ]]-Базаданных[[#This Row],[ГК]]","v":230}]
["2019-04-01",43568.769219444446,1,"понедельник","Апрель","2019",0,"-",0,"-",49720,"-",0,"-","Нерсесов Давид","Нерсесов Давид ( AlexStore)",{"$f":"NOT(ISERROR(SEARCH('Форма ввода'!$C$5,Базаданных[[#This Row],[Клиент]])))","v":false},{"$f":"IF(Базаданных[[#This Row],[Статус]],COUNTIF($Q$2:Базаданных[[#This Row],[Статус]],TRUE),\"\")","v":""},{"$f":"IFERROR(INDEX(Базаданных[Клиент],MATCH(ROWS($R$2:Базаданных[[#This Row],[Индекс]]),Базаданных[Индекс],0)),\"\")","v":""},{"$f":"NOT(ISERROR(SEARCH('Форма ввода'!$C$9,Базаданных[[#This Row],[Чей клиент]])))","v":true},{"$f":"IF(Базаданных[[#This Row],[Статус2]],COUNTIF($T$2:Базаданных[[#This Row],[Статус2]],TRUE),\"\")","v":72},{"$f":"IFERROR(INDEX(Базаданных[Чей клиент],MATCH(ROWS($U$2:Базаданных[[#This Row],[Индекс3]]),Базаданных[Индекс3],0)),\"\")","v":"Нерсесов Давид"},{"$f":"Базаданных[[#This Row],[ДД]]-Базаданных[[#This Row],[ГД]]","v":0},{"$f":"Базаданных[[#This Row],[КВ]]-Базаданных[[#This Row],[ГК]]","v":49720}]
["2019-04-01",43568.769436805553,1,"понедельник","Апрель","2019",0,"-",0,"-",670,"-",0,"-","Пименов Алексей","Павел (Скупка Балашиха)",{"$f":"NOT(ISERROR(SEARCH('Форма ввода'!$C$5,Базаданных[[#This Row],[Клиент]])))","v":false},{"$f":"IF(Базаданных[[#This Row],[Статус]],COUNTIF($Q$2:Базаданных[[#This Row],[Статус]],TRUE),\"\")","v":""},{"$f":"IFERROR(INDEX(Базаданных[Клиент],MATCH(ROWS($R$2:Базаданных[[#This Row],[Индекс]]),Базаданных[Индекс],0)),\"\")","v":""},{"$f":"NOT(ISERROR(SEARCH('Форма ввода'!$C$9,Базаданных[[#This Row],[Чей клиент]])))","v":true},{"$f":"IF(Базаданных[[#This Row],[Статус2]],COUNTIF($T$2:Базаданных[[#This Row],[Статус2]],TRUE),\"\")","v":73},{"$f":"IFERROR(INDEX(Базаданных[Чей клиент],MATCH(ROWS($U$2:Базаданных[[#This Row],[Индекс3]]),Базаданных[Индекс3],0)),\"\")","v":"Пименов Алексей"},{"$f":"Базаданных[[#This Row],[ДД]]-Базаданных[[#This Row],[ГД]]","v":0},{"$f":"Базаданных[[#This Row],[КВ]]-Базаданных[[#This Row],[ГК]]","v":670}]
["2019-04-01",43568.769865162038,1,"понедельник","Апрель","2019",0,"-",0,"-",6770,"-",0,"-","Нерсесов Давид","Александр (Пермь)",{"$f":"NOT(ISERROR(SEARCH('Форма ввода'!$C$5,Базаданных[[#This Row],[Клиент]])))","v":false},{"$f":"IF(Базаданных[[#This Row],[Статус]],COUNTIF($Q$2:Базаданных[[#This Row],[Статус]],TRUE),\"\")","v":""},{"$f":"IFERROR(INDEX(Базаданных[Клиент],MATCH(ROWS($R$2:Базаданных[[#This Row],[Индекс]]),Базаданных[Индекс],0)),\"\")","v":""},{"$f":"NOT(ISERROR(SEARCH('Форма ввода'!$C$9,Базаданных[[#This Row],[Чей клиент]])))","v":true},{"$f":"IF(Базаданных[[#This Row],[Статус2]],COUNTIF($T$2:Базаданных[[#This Row],[Статус2]],TRUE),\"\")","v":74},{"$f":"IFERROR(INDEX(Базаданных[Чей клиент],MATCH(ROWS($U$2:Базаданных[[#This Row],[Индекс3]]),Базаданных[Индекс3],0)),\"\")","v":"Нерсесов Давид"},{"$f":"Базаданных[[#This Row],[ДД]]-Базаданных[[#This Row],[ГД]]","v":0},{"$f":"Базаданных[[#This Row],[КВ]]-Базаданных[[#This Row],[ГК]]","v":6770}]
["2019-04-01",43568.77007071759,1,"понедельник","Апрель","2019",0,"-",0,"-",7065,"-",0,"-","Пименов Алексей","Андрей Тархов",{"$f":"NOT(ISERROR(SEARCH('Форма ввода'!$C$5,Базаданных[[#This Row],[Клиент]])))","v":false},{"$f":"IF(Базаданных[[#This Row],[Статус]],COUNTIF($Q$2:Базаданных[[#This Row],[Статус]],TRUE),\"\")","v":""},{"$f":"IFERROR(INDEX(Базаданных[Клиент],MATCH(ROWS($R$2:Базаданных[[#This Row],[Индекс]]),Базаданных[Индекс],0)),\"\")","v":""},{"$f":"NOT(ISERROR(SEARCH('Форма ввода'!$C$9,Базаданных[[#This Row],[Чей клиент]])))","v":true},{"$f":"IF(Базаданных[[#This Row],[Статус2]],COUNTIF($T$2:Базаданных[[#This Row],[Статус2]],TRUE),\"\")","v":75},{"$f":"IFERROR(INDEX(Базаданных[Чей клиент],MATCH(ROWS($U$2:Базаданных[[#This Row],[Индекс3]]),Базаданных[Индекс3],0)),\"\")","v":"Пименов Алексей"},{"$f":"Базаданных[[#This Row],[ДД]]-Базаданных[[#This Row],[ГД]]","v":0},{"$f":"Базаданных[[#This Row],[КВ]]-Базаданных[[#This Row],[ГК]]","v":7065}]
["2019-04-01",43568.770257060183,1,"понедельник","Апрель","2019",0,"-",0,"-",12720,"-",0,"-","Пименов Алексей","КМТ Сервис (Клин)",{"$f":"NOT(ISERROR(SEARCH('Форма ввода'!$C$5,Базаданных[[#This Row],[Клиент]])))","v":false},{"$f":"IF(Базаданных[[#This Row],[Статус]],COUNTIF($Q$2:Базаданных[[#This Row],[Статус]],TRUE),\"\")","v":""},{"$f":"IFERROR(INDEX(Базаданных[Клиент],MATCH(ROWS($R$2:Базаданных[[#This Row],[Индекс]]),Базаданных[Индекс],0)),\"\")","v":""},{"$f":"NOT(ISERROR(SEARCH('Форма ввода'!$C$9,Базаданных[[#This Row],[Чей клиент]])))","v":true},{"$f":"IF(Базаданных[[#This Row],[Статус2]],COUNTIF($T$2:Базаданных[[#This Row],[Статус2]],TRUE),\"\")","v":76},{"$f":"IFERROR(INDEX(Базаданных[Чей клиент],MATCH(ROWS($U$2:Базаданных[[#This Row],[Индекс3]]),Базаданных[Индекс3],0)),\"\")","v":"Пименов Алексей"},{"$f":"Базаданных[[#This Row],[ДД]]-Базаданных[[#This Row],[ГД]]","v":0},{"$f":"Базаданных[[#This Row],[КВ]]-Базаданных[[#This Row],[ГК]]","v":12720}]
["2019-04-01",43568.770462615743,1,"понедельник","Апрель","2019",0,"-",0,"-",100,"-",0,"-","Пименов Алексей","Сергей (Центр Скупки)",{"$f":"NOT(ISERROR(SEARCH('Форма ввода'!$C$5,Базаданных[[#This Row],[Клиент]])))","v":false},{"$f":"IF(Базаданных[[#This Row],[Статус]],COUNTIF($Q$2:Базаданных[[#This Row],[Статус]],TRUE),\"\")","v":""},{"$f":"IFERROR(INDEX(Базаданных[Клиент],MATCH(ROWS($R$2:Базаданных[[#This Row],[Индекс]]),Базаданных[Индекс],0)),\"\")","v":""},{"$f":"NOT(ISERROR(SEARCH('Форма ввода'!$C$9,Базаданных[[#This Row],[Чей клиент]])))","v":true},{"$f":"IF(Базаданных[[#This Row],[Статус2]],COUNTIF($T$2:Базаданных[[#This Row],[Статус2]],TRUE),\"\")","v":77},{"$f":"IFERROR(INDEX(Базаданных[Чей клиент],MATCH(ROWS($U$2:Базаданных[[#This Row],[Индекс3]]),Базаданных[Индекс3],0)),\"\")","v":"Пименов Алексей"},{"$f":"Базаданных[[#This Row],[ДД]]-Базаданных[[#This Row],[ГД]]","v":0},{"$f":"Базаданных[[#This Row],[КВ]]-Базаданных[[#This Row],[ГК]]","v":100}]
["2019-04-01",43568.770599537034,1,"понедельник","Апрель","2019",0,"-",0,"-",51500,"-",0,"-","Пименов Алексей","Максим Калининград",{"$f":"NOT(ISERROR(SEARCH('Форма ввода'!$C$5,Базаданных[[#This Row],[Клиент]])))","v":false},{"$f":"IF(Базаданных[[#This Row],[Статус]],COUNTIF($Q$2:Базаданных[[#This Row],[Статус]],TRUE),\"\")","v":""},{"$f":"IFERROR(INDEX(Базаданных[Клиент],MATCH(ROWS($R$2:Базаданных[[#This Row],[Индекс]]),Базаданных[Индекс],0)),\"\")","v":""},{"$f":"NOT(ISERROR(SEARCH('Форма ввода'!$C$9,Базаданных[[#This Row],[Чей клиент]])))","v":true},{"$f":"IF(Базаданных[[#This Row],[Статус2]],COUNTIF($T$2:Базаданных[[#This Row],[Статус2]],TRUE),\"\")","v":78},{"$f":"IFERROR(INDEX(Базаданных[Чей клиент],MATCH(ROWS($U$2:Базаданных[[#This Row],[Индекс3]]),Базаданных[Индекс3],0)),\"\")","v":"Пименов Алексей"},{"$f":"Базаданных[[#This Row],[ДД]]-Базаданных[[#This Row],[ГД]]","v":0},{"$f":"Базаданных[[#This Row],[КВ]]-Базаданных[[#This Row],[ГК]]","v":51500}]
["2019-04-01",43568.770843055558,1,"понедельник","Апрель","2019",0,"-",0,"-",12190,"-",0,"-","Пименов Алексей","АЛЬФА ООО",{"$f":"NOT(ISERROR(SEARCH('Форма ввода'!$C$5,Базаданных[[#This Row],[Клиент]])))","v":false},{"$f":"IF(Базаданных[[#This Row],[Статус]],COUNTIF($Q$2:Базаданных[[#This Row],[Статус]],TRUE),\"\")","v":""},{"$f":"IFERROR(INDEX(Базаданных[Клиент],MATCH(ROWS($R$2:Базаданных[[#This Row],[Индекс]]),Базаданных[Индекс],0)),\"\")","v":""},{"$f":"NOT(ISERROR(SEARCH('Форма ввода'!$C$9,Базаданных[[#This Row],[Чей клиент]])))","v":true},{"$f":"IF(Базаданных[[#This Row],[Статус2]],COUNTIF($T$2:Базаданных[[#This Row],[Статус2]],TRUE),\"\")","v":79},{"$f":"IFERROR(INDEX(Базаданных[Чей клиент],MATCH(ROWS($U$2:Базаданных[[#This Row],[Индекс3]]),Базаданных[Индекс3],0)),\"\")","v":"Пименов Алексей"},{"$f":"Базаданных[[#This Row],[ДД]]-Базаданных[[#This Row],[ГД]]","v":0},{"$f":"Базаданных[[#This Row],[КВ]]-Базаданных[[#This Row],[ГК]]","v":12190}]
["2019-04-01",43568.770969212965,1,"понедельник","Апрель","2019",0,"-",0,"-",29400,"-",0,"-","Пименов Алексей","Александр (Сызрань)",{"$f":"NOT(ISERROR(SEARCH('Форма ввода'!$C$5,Базаданных[[#This Row],[Клиент]])))","v":false},{"$f":"IF(Базаданных[[#This Row],[Статус]],COUNTIF($Q$2:Базаданных[[#This Row],[Статус]],TRUE),\"\")","v":""},{"$f":"IFERROR(INDEX(Базаданных[Клиент],MATCH(ROWS($R$2:Базаданных[[#This Row],[Индекс]]),Базаданных[Индекс],0)),\"\")","v":""},{"$f":"NOT(ISERROR(SEARCH('Форма ввода'!$C$9,Базаданных[[#This Row],[Чей клиент]])))","v":true},{"$f":"IF(Базаданных[[#This Row],[Статус2]],COUNTIF($T$2:Базаданных[[#This Row],[Статус2]],TRUE),\"\")","v":80},{"$f":"IFERROR(INDEX(Базаданных[Чей клиент],MATCH(ROWS($U$2:Базаданных[[#This Row],[Индекс3]]),Базаданных[Индекс3],0)),\"\")","v":"Пименов Алексей"},{"$f":"Базаданных[[#This Row],[ДД]]-Базаданных[[#This Row],[ГД]]","v":0},{"$f":"Базаданных[[#This Row],[КВ]]-Базаданных[[#This Row],[ГК]]","v":29400}]
["2019-04-01",43568.771244444448,1,"понедельник","Апрель","2019",0,"-",0,"-",69720,"-",0,"-","Пименов Алексей","Титан (Киров)",{"$f":"NOT(ISERROR(SEARCH('Форма ввода'!$C$5,Базаданных[[#This Row],[Клиент]])))","v":false},{"$f":"IF(Базаданных[[#This Row],[Статус]],COUNTIF($Q$2:Базаданных[[#This Row],[Статус]],TRUE),\"\")","v":""},{"$f":"IFERROR(INDEX(Базаданных[Клиент],MATCH(ROWS($R$2:Базаданных[[#This Row],[Индекс]]),Базаданных[Индекс],0)),\"\")","v":""},{"$f":"NOT(ISERROR(SEARCH('Форма ввода'!$C$9,Базаданных[[#This Row],[Чей клиент]])))","v":true},{"$f":"IF(Базаданных[[#This Row],[Статус2]],COUNTIF($T$2:Базаданных[[#This Row],[Статус2]],TRUE),\"\")","v":81},{"$f":"IFERROR(INDEX(Базаданных[Чей клиент],MATCH(ROWS($U$2:Базаданных[[#This Row],[Индекс3]]),Базаданных[Индекс3],0)),\"\")","v":"Пименов Алексей"},{"$f":"Базаданных[[#This Row],[ДД]]-Базаданных[[#This Row],[ГД]]","v":0},{"$f":"Базаданных[[#This Row],[КВ]]-Базаданных[[#This Row],[ГК]]","v":69720}]
["2019-04-01",43568.771500000003,1,"понедельник","Апрель","2019",0,"-",0,"-",1900,"-",0,"-","Гречихина Юля","Розовая Скупка (Главная Москва)",{"$f":"NOT(ISERROR(SEARCH('Форма ввода'!$C$5,Базаданных[[#This Row],[Клиент]])))","v":false},{"$f":"IF(Базаданных[[#This Row],[Статус]],COUNTIF($Q$2:Базаданных[[#This Row],[Статус]],TRUE),\"\")","v":""},{"$f":"IFERROR(INDEX(Базаданных[Клиент],MATCH(ROWS($R$2:Базаданных[[#This Row],[Индекс]]),Базаданных[Индекс],0)),\"\")","v":""},{"$f":"NOT(ISERROR(SEARCH('Форма ввода'!$C$9,Базаданных[[#This Row],[Чей клиент]])))","v":true},{"$f":"IF(Базаданных[[#This Row],[Статус2]],COUNTIF($T$2:Базаданных[[#This Row],[Статус2]],TRUE),\"\")","v":82},{"$f":"IFERROR(INDEX(Базаданных[Чей клиент],MATCH(ROWS($U$2:Базаданных[[#This Row],[Индекс3]]),Базаданных[Индекс3],0)),\"\")","v":"Гречихина Юля"},{"$f":"Базаданных[[#This Row],[ДД]]-Базаданных[[#This Row],[ГД]]","v":0},{"$f":"Базаданных[[#This Row],[КВ]]-Базаданных[[#This Row],[ГК]]","v":1900}]
["2019-04-01",43568.771704398147,1,"понедельник","Апрель","2019",0,"-",0,"-",1090,"-",0,"-","Пименов Алексей","ИП Сизов",{"$f":"NOT(ISERROR(SEARCH('Форма ввода'!$C$5,Базаданных[[#This Row],[Клиент]])))","v":false},{"$f":"IF(Базаданных[[#This Row],[Статус]],COUNTIF($Q$2:Базаданных[[#This Row],[Статус]],TRUE),\"\")","v":""},{"$f":"IFERROR(INDEX(Базаданных[Клиент],MATCH(ROWS($R$2:Базаданных[[#This Row],[Индекс]]),Базаданных[Индекс],0)),\"\")","v":""},{"$f":"NOT(ISERROR(SEARCH('Форма ввода'!$C$9,Базаданных[[#This Row],[Чей клиент]])))","v":true},{"$f":"IF(Базаданных[[#This Row],[Статус2]],COUNTIF($T$2:Базаданных[[#This Row],[Статус2]],TRUE),\"\")","v":83},{"$f":"IFERROR(INDEX(Базаданных[Чей клиент],MATCH(ROWS($U$2:Базаданных[[#This Row],[Индекс3]]),Базаданных[Индекс3],0)),\"\")","v":"Пименов Алексей"},{"$f":"Базаданных[[#This Row],[ДД]]-Базаданных[[#This Row],[ГД]]","v":0},{"$f":"Базаданных[[#This Row],[КВ]]-Базаданных[[#This Row],[ГК]]","v":1090}]
["2019-04-01",43568.771909374998,1,"понедельник","Апрель","2019",0,"-",0,"-",955,"-",0,"-","Пименов Алексей","Дмитрий (Ломбардный дом)",{"$f":"NOT(ISERROR(SEARCH('Форма ввода'!$C$5,Базаданных[[#This Row],[Клиент]])))","v":false},{"$f":"IF(Базаданных[[#This Row],[Статус]],COUNTIF($Q$2:Базаданных[[#This Row],[Статус]],TRUE),\"\")","v":""},{"$f":"IFERROR(INDEX(Базаданных[Клиент],MATCH(ROWS($R$2:Базаданных[[#This Row],[Индекс]]),Базаданных[Индекс],0)),\"\")","v":""},{"$f":"NOT(ISERROR(SEARCH('Форма ввода'!$C$9,Базаданных[[#This Row],[Чей клиент]])))","v":true},{"$f":"IF(Базаданных[[#This Row],[Статус2]],COUNTIF($T$2:Базаданных[[#This Row],[Статус2]],TRUE),\"\")","v":84},{"$f":"IFERROR(INDEX(Базаданных[Чей клиент],MATCH(ROWS($U$2:Базаданных[[#This Row],[Индекс3]]),Базаданных[Индекс3],0)),\"\")","v":"Пименов Алексей"},{"$f":"Базаданных[[#This Row],[ДД]]-Базаданных[[#This Row],[ГД]]","v":0},{"$f":"Базаданных[[#This Row],[КВ]]-Базаданных[[#This Row],[ГК]]","v":955}]
["2019-04-01",43568.772376851855,1,"понедельник","Апрель","2019",0,"-",0,"-",4975,"-",0,"-","Пименов Алексей","Матросова Венера",{"$f":"NOT(ISERROR(SEARCH('Форма ввода'!$C$5,Базаданных[[#This Row],[Клиент]])))","v":false},{"$f":"IF(Базаданных[[#This Row],[Статус]],COUNTIF($Q$2:Базаданных[[#This Row],[Статус]],TRUE),\"\")","v":""},{"$f":"IFERROR(INDEX(Базаданных[Клиент],MATCH(ROWS($R$2:Базаданных[[#This Row],[Индекс]]),Базаданных[Индекс],0)),\"\")","v":""},{"$f":"NOT(ISERROR(SEARCH('Форма ввода'!$C$9,Базаданных[[#This Row],[Чей клиент]])))","v":true},{"$f":"IF(Базаданных[[#This Row],[Статус2]],COUNTIF($T$2:Базаданных[[#This Row],[Статус2]],TRUE),\"\")","v":85},{"$f":"IFERROR(INDEX(Базаданных[Чей клиент],MATCH(ROWS($U$2:Базаданных[[#This Row],[Индекс3]]),Базаданных[Индекс3],0)),\"\")","v":"Пименов Алексей"},{"$f":"Базаданных[[#This Row],[ДД]]-Базаданных[[#This Row],[ГД]]","v":0},{"$f":"Базаданных[[#This Row],[КВ]]-Базаданных[[#This Row],[ГК]]","v":4975}]
["2019-04-01",43568.772682523151,1,"понедельник","Апрель","2019",0,"-",0,"-",650,"-",0,"-","Пименов Алексей","Николаев Алексей Юрьевич",{"$f":"NOT(ISERROR(SEARCH('Форма ввода'!$C$5,Базаданных[[#This Row],[Клиент]])))","v":false},{"$f":"IF(Базаданных[[#This Row],[Статус]],COUNTIF($Q$2:Базаданных[[#This Row],[Статус]],TRUE),\"\")","v":""},{"$f":"IFERROR(INDEX(Базаданных[Клиент],MATCH(ROWS($R$2:Базаданных[[#This Row],[Индекс]]),Базаданных[Индекс],0)),\"\")","v":""},{"$f":"NOT(ISERROR(SEARCH('Форма ввода'!$C$9,Базаданных[[#This Row],[Чей клиент]])))","v":true},{"$f":"IF(Базаданных[[#This Row],[Статус2]],COUNTIF($T$2:Базаданных[[#This Row],[Статус2]],TRUE),\"\")","v":86},{"$f":"IFERROR(INDEX(Базаданных[Чей клиент],MATCH(ROWS($U$2:Базаданных[[#This Row],[Индекс3]]),Базаданных[Индекс3],0)),\"\")","v":"Пименов Алексей"},{"$f":"Базаданных[[#This Row],[ДД]]-Базаданных[[#This Row],[ГД]]","v":0},{"$f":"Базаданных[[#This Row],[КВ]]-Базаданных[[#This Row],[ГК]]","v":650}]
["2019-04-01",43568.772926736114,1,"понедельник","Апрель","2019",0,"-",0,"-",2500,"-",0,"-","Пименов Алексей","Победа (Рязань)",{"$f":"NOT(ISERROR(SEARCH('Форма ввода'!$C$5,Базаданных[[#This Row],[Клиент]])))","v":false},{"$f":"IF(Базаданных[[#This Row],[Статус]],COUNTIF($Q$2:Базаданных[[#This Row],[Статус]],TRUE),\"\")","v":""},{"$f":"IFERROR(INDEX(Базаданных[Клиент],MATCH(ROWS($R$2:Базаданных[[#This Row],[Индекс]]),Базаданных[Индекс],0)),\"\")","v":""},{"$f":"NOT(ISERROR(SEARCH('Форма ввода'!$C$9,Базаданных[[#This Row],[Чей клиент]])))","v":true},{"$f":"IF(Базаданных[[#This Row],[Статус2]],COUNTIF($T$2:Базаданных[[#This Row],[Статус2]],TRUE),\"\")","v":87},{"$f":"IFERROR(INDEX(Базаданных[Чей клиент],MATCH(ROWS($U$2:Базаданных[[#This Row],[Индекс3]]),Базаданных[Индекс3],0)),\"\")","v":"Пименов Алексей"},{"$f":"Базаданных[[#This Row],[ДД]]-Базаданных[[#This Row],[ГД]]","v":0},{"$f":"Базаданных[[#This Row],[КВ]]-Базаданных[[#This Row],[ГК]]","v":2500}]
["2019-04-01",43568.773145949075,1,"понедельник","Апрель","2019",0,"-",0,"-",1200,"-",0,"-","Нерсесов Давид","Василий T-95 (Савеловский)",{"$f":"NOT(ISERROR(SEARCH('Форма ввода'!$C$5,Базаданных[[#This Row],[Клиент]])))","v":false},{"$f":"IF(Базаданных[[#This Row],[Статус]],COUNTIF($Q$2:Базаданных[[#This Row],[Статус]],TRUE),\"\")","v":""},{"$f":"IFERROR(INDEX(Базаданных[Клиент],MATCH(ROWS($R$2:Базаданных[[#This Row],[Индекс]]),Базаданных[Индекс],0)),\"\")","v":""},{"$f":"NOT(ISERROR(SEARCH('Форма ввода'!$C$9,Базаданных[[#This Row],[Чей клиент]])))","v":true},{"$f":"IF(Базаданных[[#This Row],[Статус2]],COUNTIF($T$2:Базаданных[[#This Row],[Статус2]],TRUE),\"\")","v":88},{"$f":"IFERROR(INDEX(Базаданных[Чей клиент],MATCH(ROWS($U$2:Базаданных[[#This Row],[Индекс3]]),Базаданных[Индекс3],0)),\"\")","v":"Нерсесов Давид"},{"$f":"Базаданных[[#This Row],[ДД]]-Базаданных[[#This Row],[ГД]]","v":0},{"$f":"Базаданных[[#This Row],[КВ]]-Базаданных[[#This Row],[ГК]]","v":1200}]
["2019-04-01",43568.773465046295,1,"понедельник","Апрель","2019",0,"-",0,"-",11395,"-",0,"-","Нерсесов Давид","Скупка Алтуфьево Андрей",{"$f":"NOT(ISERROR(SEARCH('Форма ввода'!$C$5,Базаданных[[#This Row],[Клиент]])))","v":false},{"$f":"IF(Базаданных[[#This Row],[Статус]],COUNTIF($Q$2:Базаданных[[#This Row],[Статус]],TRUE),\"\")","v":""},{"$f":"IFERROR(INDEX(Базаданных[Клиент],MATCH(ROWS($R$2:Базаданных[[#This Row],[Индекс]]),Базаданных[Индекс],0)),\"\")","v":""},{"$f":"NOT(ISERROR(SEARCH('Форма ввода'!$C$9,Базаданных[[#This Row],[Чей клиент]])))","v":true},{"$f":"IF(Базаданных[[#This Row],[Статус2]],COUNTIF($T$2:Базаданных[[#This Row],[Статус2]],TRUE),\"\")","v":89},{"$f":"IFERROR(INDEX(Базаданных[Чей клиент],MATCH(ROWS($U$2:Базаданных[[#This Row],[Индекс3]]),Базаданных[Индекс3],0)),\"\")","v":"Нерсесов Давид"},{"$f":"Базаданных[[#This Row],[ДД]]-Базаданных[[#This Row],[ГД]]","v":0},{"$f":"Базаданных[[#This Row],[КВ]]-Базаданных[[#This Row],[ГК]]","v":11395}]
["2019-04-01",43568.773665277775,1,"понедельник","Апрель","2019",0,"-",0,"-",500,"-",0,"-","Пименов Алексей","Александр (П-93 Савок)",{"$f":"NOT(ISERROR(SEARCH('Форма ввода'!$C$5,Базаданных[[#This Row],[Клиент]])))","v":false},{"$f":"IF(Базаданных[[#This Row],[Статус]],COUNTIF($Q$2:Базаданных[[#This Row],[Статус]],TRUE),\"\")","v":""},{"$f":"IFERROR(INDEX(Базаданных[Клиент],MATCH(ROWS($R$2:Базаданных[[#This Row],[Индекс]]),Базаданных[Индекс],0)),\"\")","v":""},{"$f":"NOT(ISERROR(SEARCH('Форма ввода'!$C$9,Базаданных[[#This Row],[Чей клиент]])))","v":true},{"$f":"IF(Базаданных[[#This Row],[Статус2]],COUNTIF($T$2:Базаданных[[#This Row],[Статус2]],TRUE),\"\")","v":90},{"$f":"IFERROR(INDEX(Базаданных[Чей клиент],MATCH(ROWS($U$2:Базаданных[[#This Row],[Индекс3]]),Базаданных[Индекс3],0)),\"\")","v":"Пименов Алексей"},{"$f":"Базаданных[[#This Row],[ДД]]-Базаданных[[#This Row],[ГД]]","v":0},{"$f":"Базаданных[[#This Row],[КВ]]-Базаданных[[#This Row],[ГК]]","v":500}]
["2019-04-01",43568.774110763887,1,"понедельник","Апрель","2019",0,"-",0,"-",950,"-",0,"-","Пименов Алексей","Егор (QWE)",{"$f":"NOT(ISERROR(SEARCH('Форма ввода'!$C$5,Базаданных[[#This Row],[Клиент]])))","v":false},{"$f":"IF(Базаданных[[#This Row],[Статус]],COUNTIF($Q$2:Базаданных[[#This Row],[Статус]],TRUE),\"\")","v":""},{"$f":"IFERROR(INDEX(Базаданных[Клиент],MATCH(ROWS($R$2:Базаданных[[#This Row],[Индекс]]),Базаданных[Индекс],0)),\"\")","v":""},{"$f":"NOT(ISERROR(SEARCH('Форма ввода'!$C$9,Базаданных[[#This Row],[Чей клиент]])))","v":true},{"$f":"IF(Базаданных[[#This Row],[Статус2]],COUNTIF($T$2:Базаданных[[#This Row],[Статус2]],TRUE),\"\")","v":91},{"$f":"IFERROR(INDEX(Базаданных[Чей клиент],MATCH(ROWS($U$2:Базаданных[[#This Row],[Индекс3]]),Базаданных[Индекс3],0)),\"\")","v":"Пименов Алексей"},{"$f":"Базаданных[[#This Row],[ДД]]-Базаданных[[#This Row],[ГД]]","v":0},{"$f":"Базаданных[[#This Row],[КВ]]-Базаданных[[#This Row],[ГК]]","v":950}]
["2019-04-01",43568.774293287039,1,"понедельник","Апрель","2019",0,"-",0,"-",66730,"-",0,"-","Пименов Алексей","Виталий Киров",{"$f":"NOT(ISERROR(SEARCH('Форма ввода'!$C$5,Базаданных[[#This Row],[Клиент]])))","v":false},{"$f":"IF(Базаданных[[#This Row],[Статус]],COUNTIF($Q$2:Базаданных[[#This Row],[Статус]],TRUE),\"\")","v":""},{"$f":"IFERROR(INDEX(Базаданных[Клиент],MATCH(ROWS($R$2:Базаданных[[#This Row],[Индекс]]),Базаданных[Индекс],0)),\"\")","v":""},{"$f":"NOT(ISERROR(SEARCH('Форма ввода'!$C$9,Базаданных[[#This Row],[Чей клиент]])))","v":true},{"$f":"IF(Базаданных[[#This Row],[Статус2]],COUNTIF($T$2:Базаданных[[#This Row],[Статус2]],TRUE),\"\")","v":92},{"$f":"IFERROR(INDEX(Базаданных[Чей клиент],MATCH(ROWS($U$2:Базаданных[[#This Row],[Индекс3]]),Базаданных[Индекс3],0)),\"\")","v":"Пименов Алексей"},{"$f":"Базаданных[[#This Row],[ДД]]-Базаданных[[#This Row],[ГД]]","v":0},{"$f":"Базаданных[[#This Row],[КВ]]-Базаданных[[#This Row],[ГК]]","v":66730}]
["2019-04-01",43568.774569791669,1,"понедельник","Апрель","2019",0,"-",0,"-",420,"-",0,"-","Пименов Алексей","Частное лицо",{"$f":"NOT(ISERROR(SEARCH('Форма ввода'!$C$5,Базаданных[[#This Row],[Клиент]])))","v":false},{"$f":"IF(Базаданных[[#This Row],[Статус]],COUNTIF($Q$2:Базаданных[[#This Row],[Статус]],TRUE),\"\")","v":""},{"$f":"IFERROR(INDEX(Базаданных[Клиент],MATCH(ROWS($R$2:Базаданных[[#This Row],[Индекс]]),Базаданных[Индекс],0)),\"\")","v":""},{"$f":"NOT(ISERROR(SEARCH('Форма ввода'!$C$9,Базаданных[[#This Row],[Чей клиент]])))","v":true},{"$f":"IF(Базаданных[[#This Row],[Статус2]],COUNTIF($T$2:Базаданных[[#This Row],[Статус2]],TRUE),\"\")","v":93},{"$f":"IFERROR(INDEX(Базаданных[Чей клиент],MATCH(ROWS($U$2:Базаданных[[#This Row],[Индекс3]]),Базаданных[Индекс3],0)),\"\")","v":"Пименов Алексей"},{"$f":"Базаданных[[#This Row],[ДД]]-Базаданных[[#This Row],[ГД]]","v":0},{"$f":"Базаданных[[#This Row],[КВ]]-Базаданных[[#This Row],[ГК]]","v":420}]
["2019-04-01",43568.774831365743,1,"понедельник","Апрель","2019",0,"-",0,"-",300,"-",0,"-","Пименов Алексей","Михаил Рязань",{"$f":"NOT(ISERROR(SEARCH('Форма ввода'!$C$5,Базаданных[[#This Row],[Клиент]])))","v":false},{"$f":"IF(Базаданных[[#This Row],[Статус]],COUNTIF($Q$2:Базаданных[[#This Row],[Статус]],TRUE),\"\")","v":""},{"$f":"IFERROR(INDEX(Базаданных[Клиент],MATCH(ROWS($R$2:Базаданных[[#This Row],[Индекс]]),Базаданных[Индекс],0)),\"\")","v":""},{"$f":"NOT(ISERROR(SEARCH('Форма ввода'!$C$9,Базаданных[[#This Row],[Чей клиент]])))","v":true},{"$f":"IF(Базаданных[[#This Row],[Статус2]],COUNTIF($T$2:Базаданных[[#This Row],[Статус2]],TRUE),\"\")","v":94},{"$f":"IFERROR(INDEX(Базаданных[Чей клиент],MATCH(ROWS($U$2:Базаданных[[#This Row],[Индекс3]]),Базаданных[Индекс3],0)),\"\")","v":"Пименов Алексей"},{"$f":"Базаданных[[#This Row],[ДД]]-Базаданных[[#This Row],[ГД]]","v":0},{"$f":"Базаданных[[#This Row],[КВ]]-Базаданных[[#This Row],[ГК]]","v":300}]
["2019-04-01",43568.775321527777,1,"понедельник","Апрель","2019",0,"-",0,"-",3300,"-",0,"-","Гречихина Юля","Андрей (Горбушка 109)",{"$f":"NOT(ISERROR(SEARCH('Форма ввода'!$C$5,Базаданных[[#This Row],[Клиент]])))","v":false},{"$f":"IF(Базаданных[[#This Row],[Статус]],COUNTIF($Q$2:Базаданных[[#This Row],[Статус]],TRUE),\"\")","v":""},{"$f":"IFERROR(INDEX(Базаданных[Клиент],MATCH(ROWS($R$2:Базаданных[[#This Row],[Индекс]]),Базаданных[Индекс],0)),\"\")","v":""},{"$f":"NOT(ISERROR(SEARCH('Форма ввода'!$C$9,Базаданных[[#This Row],[Чей клиент]])))","v":true},{"$f":"IF(Базаданных[[#This Row],[Статус2]],COUNTIF($T$2:Базаданных[[#This Row],[Статус2]],TRUE),\"\")","v":95},{"$f":"IFERROR(INDEX(Базаданных[Чей клиент],MATCH(ROWS($U$2:Базаданных[[#This Row],[Индекс3]]),Базаданных[Индекс3],0)),\"\")","v":"Гречихина Юля"},{"$f":"Базаданных[[#This Row],[ДД]]-Базаданных[[#This Row],[ГД]]","v":0},{"$f":"Базаданных[[#This Row],[КВ]]-Базаданных[[#This Row],[ГК]]","v":3300}]
["2019-04-01",43568.775693402778,1,"понедельник","Апрель","2019",0,"-",0,"-",13300,"-",0,"-","Гречихина Юля","Эльнар Пермь",{"$f":"NOT(ISERROR(SEARCH('Форма ввода'!$C$5,Базаданных[[#This Row],[Клиент]])))","v":false},{"$f":"IF(Базаданных[[#This Row],[Статус]],COUNTIF($Q$2:Базаданных[[#This Row],[Статус]],TRUE),\"\")","v":""},{"$f":"IFERROR(INDEX(Базаданных[Клиент],MATCH(ROWS($R$2:Базаданных[[#This Row],[Индекс]]),Базаданных[Индекс],0)),\"\")","v":""},{"$f":"NOT(ISERROR(SEARCH('Форма ввода'!$C$9,Базаданных[[#This Row],[Чей клиент]])))","v":true},{"$f":"IF(Базаданных[[#This Row],[Статус2]],COUNTIF($T$2:Базаданных[[#This Row],[Статус2]],TRUE),\"\")","v":96},{"$f":"IFERROR(INDEX(Базаданных[Чей клиент],MATCH(ROWS($U$2:Базаданных[[#This Row],[Индекс3]]),Базаданных[Индекс3],0)),\"\")","v":"Гречихина Юля"},{"$f":"Базаданных[[#This Row],[ДД]]-Базаданных[[#This Row],[ГД]]","v":0},{"$f":"Базаданных[[#This Row],[КВ]]-Базаданных[[#This Row],[ГК]]","v":13300}]
["2019-04-01",43568.775881944443,1,"понедельник","Апрель","2019",0,"-",0,"-",69940,"-",0,"-","Нерсесов Давид","Надир (К84 Царицино)",{"$f":"NOT(ISERROR(SEARCH('Форма ввода'!$C$5,Базаданных[[#This Row],[Клиент]])))","v":false},{"$f":"IF(Базаданных[[#This Row],[Статус]],COUNTIF($Q$2:Базаданных[[#This Row],[Статус]],TRUE),\"\")","v":""},{"$f":"IFERROR(INDEX(Базаданных[Клиент],MATCH(ROWS($R$2:Базаданных[[#This Row],[Индекс]]),Базаданных[Индекс],0)),\"\")","v":""},{"$f":"NOT(ISERROR(SEARCH('Форма ввода'!$C$9,Базаданных[[#This Row],[Чей клиент]])))","v":true},{"$f":"IF(Базаданных[[#This Row],[Статус2]],COUNTIF($T$2:Базаданных[[#This Row],[Статус2]],TRUE),\"\")","v":97},{"$f":"IFERROR(INDEX(Базаданных[Чей клиент],MATCH(ROWS($U$2:Базаданных[[#This Row],[Индекс3]]),Базаданных[Индекс3],0)),\"\")","v":"Нерсесов Давид"},{"$f":"Базаданных[[#This Row],[ДД]]-Базаданных[[#This Row],[ГД]]","v":0},{"$f":"Базаданных[[#This Row],[КВ]]-Базаданных[[#This Row],[ГК]]","v":69940}]
["2019-04-01",43568.776170486111,1,"понедельник","Апрель","2019",0,"-",0,"-",6620,"-",0,"-","Пименов Алексей","Светлана Тверь",{"$f":"NOT(ISERROR(SEARCH('Форма ввода'!$C$5,Базаданных[[#This Row],[Клиент]])))","v":false},{"$f":"IF(Базаданных[[#This Row],[Статус]],COUNTIF($Q$2:Базаданных[[#This Row],[Статус]],TRUE),\"\")","v":""},{"$f":"IFERROR(INDEX(Базаданных[Клиент],MATCH(ROWS($R$2:Базаданных[[#This Row],[Индекс]]),Базаданных[Индекс],0)),\"\")","v":""},{"$f":"NOT(ISERROR(SEARCH('Форма ввода'!$C$9,Базаданных[[#This Row],[Чей клиент]])))","v":true},{"$f":"IF(Базаданных[[#This Row],[Статус2]],COUNTIF($T$2:Базаданных[[#This Row],[Статус2]],TRUE),\"\")","v":98},{"$f":"IFERROR(INDEX(Базаданных[Чей клиент],MATCH(ROWS($U$2:Базаданных[[#This Row],[Индекс3]]),Базаданных[Индекс3],0)),\"\")","v":"Пименов Алексей"},{"$f":"Базаданных[[#This Row],[ДД]]-Базаданных[[#This Row],[ГД]]","v":0},{"$f":"Базаданных[[#This Row],[КВ]]-Базаданных[[#This Row],[ГК]]","v":6620}]
["2019-04-02T18:39:23",43568.777354050922,2,"Вторник","Апрель","2019",4800,"-",0,"-",0,"-",0,"-","Пименов Алексей","ИП Кунин Алексей Михайлович",{"$f":"NOT(ISERROR(SEARCH('Форма ввода'!$C$5,Базаданных[[#This Row],[Клиент]])))","v":false},{"$f":"IF(Базаданных[[#This Row],[Статус]],COUNTIF($Q$2:Базаданных[[#This Row],[Статус]],TRUE),\"\")","v":""},{"$f":"IFERROR(INDEX(Базаданных[Клиент],MATCH(ROWS($R$2:Базаданных[[#This Row],[Индекс]]),Базаданных[Индекс],0)),\"\")","v":""},{"$f":"NOT(ISERROR(SEARCH('Форма ввода'!$C$9,Базаданных[[#This Row],[Чей клиент]])))","v":true},{"$f":"IF(Базаданных[[#This Row],[Статус2]],COUNTIF($T$2:Базаданных[[#This Row],[Статус2]],TRUE),\"\")","v":99},{"$f":"IFERROR(INDEX(Базаданных[Чей клиент],MATCH(ROWS($U$2:Базаданных[[#This Row],[Индекс3]]),Базаданных[Индекс3],0)),\"\")","v":"Пименов Алексей"},{"$f":"Базаданных[[#This Row],[ДД]]-Базаданных[[#This Row],[ГД]]","v":4800},{"$f":"Базаданных[[#This Row],[КВ]]-Базаданных[[#This Row],[ГК]]","v":0}]
["2019-04-02T18:39:23",43568.777573842592,2,"Вторник","Апрель","2019",22100,"-",0,"-",0,"-",0,"-","Гречихина Юля","Александр (Черемушки 2B-15)",{"$f":"NOT(ISERROR(SEARCH('Форма ввода'!$C$5,Базаданных[[#This Row],[Клиент]])))","v":false},{"$f":"IF(Базаданных[[#This Row],[Статус]],COUNTIF($Q$2:Базаданных[[#This Row],[Статус]],TRUE),\"\")","v":""},{"$f":"IFERROR(INDEX(Базаданных[Клиент],MATCH(ROWS($R$2:Базаданных[[#This Row],[Индекс]]),Базаданных[Индекс],0)),\"\")","v":""},{"$f":"NOT(ISERROR(SEARCH('Форма ввода'!$C$9,Базаданных[[#This Row],[Чей клиент]])))","v":true},{"$f":"IF(Базаданных[[#This Row],[Статус2]],COUNTIF($T$2:Базаданных[[#This Row],[Статус2]],TRUE),\"\")","v":100},{"$f":"IFERROR(INDEX(Базаданных[Чей клиент],MATCH(ROWS($U$2:Базаданных[[#This Row],[Индекс3]]),Базаданных[Индекс3],0)),\"\")","v":"Гречихина Юля"},{"$f":"Базаданных[[#This Row],[ДД]]-Базаданных[[#This Row],[ГД]]","v":22100},{"$f":"Базаданных[[#This Row],[КВ]]-Базаданных[[#This Row],[ГК]]","v":0}]
["2019-04-02T18:39:23",43568.777711805553,2,"Вторник","Апрель","2019",6800,"-",0,"-",0,"-",0,"-","Гречихина Юля","Паша (Комиссионка Бутово)",{"$f":"NOT(ISERROR(SEARCH('Форма ввода'!$C$5,Базаданных[[#This Row],[Клиент]])))","v":false},{"$f":"IF(Базаданных[[#This Row],[Статус]],COUNTIF($Q$2:Базаданных[[#This Row],[Статус]],TRUE),\"\")","v":""},{"$f":"IFERROR(INDEX(Базаданных[Клиент],MATCH(ROWS($R$2:Базаданных[[#This Row],[Индекс]]),Базаданных[Индекс],0)),\"\")","v":""},{"$f":"NOT(ISERROR(SEARCH('Форма ввода'!$C$9,Базаданных[[#This Row],[Чей клиент]])))","v":true},{"$f":"IF(Базаданных[[#This Row],[Статус2]],COUNTIF($T$2:Базаданных[[#This Row],[Статус2]],TRUE),\"\")","v":101},{"$f":"IFERROR(INDEX(Базаданных[Чей клиент],MATCH(ROWS($U$2:Базаданных[[#This Row],[Индекс3]]),Базаданных[Индекс3],0)),\"\")","v":"Гречихина Юля"},{"$f":"Базаданных[[#This Row],[ДД]]-Базаданных[[#This Row],[ГД]]","v":6800},{"$f":"Базаданных[[#This Row],[КВ]]-Базаданных[[#This Row],[ГК]]","v":0}]
["2019-04-02T18:39:23",43568.777909490738,2,"Вторник","Апрель","2019",0,"-",0,"-",0,"-",14600,"-","Нерсесов Давид","Нерсесов Давид ( AlexStore)",{"$f":"NOT(ISERROR(SEARCH('Форма ввода'!$C$5,Базаданных[[#This Row],[Клиент]])))","v":false},{"$f":"IF(Базаданных[[#This Row],[Статус]],COUNTIF($Q$2:Базаданных[[#This Row],[Статус]],TRUE),\"\")","v":""},{"$f":"IFERROR(INDEX(Базаданных[Клиент],MATCH(ROWS($R$2:Базаданных[[#This Row],[Индекс]]),Базаданных[Индекс],0)),\"\")","v":""},{"$f":"NOT(ISERROR(SEARCH('Форма ввода'!$C$9,Базаданных[[#This Row],[Чей клиент]])))","v":true},{"$f":"IF(Базаданных[[#This Row],[Статус2]],COUNTIF($T$2:Базаданных[[#This Row],[Статус2]],TRUE),\"\")","v":102},{"$f":"IFERROR(INDEX(Базаданных[Чей клиент],MATCH(ROWS($U$2:Базаданных[[#This Row],[Индекс3]]),Базаданных[Индекс3],0)),\"\")","v":"Нерсесов Давид"},{"$f":"Базаданных[[#This Row],[ДД]]-Базаданных[[#This Row],[ГД]]","v":0},{"$f":"Базаданных[[#This Row],[КВ]]-Базаданных[[#This Row],[ГК]]","v":-14600}]
["2019-04-02T18:39:23",43568.778236574071,2,"Вторник","Апрель","2019",0,"-",0,"-",0,"-",13300,"-","Гречихина Юля","Эльнар Пермь",{"$f":"NOT(ISERROR(SEARCH('Форма ввода'!$C$5,Базаданных[[#This Row],[Клиент]])))","v":false},{"$f":"IF(Базаданных[[#This Row],[Статус]],COUNTIF($Q$2:Базаданных[[#This Row],[Статус]],TRUE),\"\")","v":""},{"$f":"IFERROR(INDEX(Базаданных[Клиент],MATCH(ROWS($R$2:Базаданных[[#This Row],[Индекс]]),Базаданных[Индекс],0)),\"\")","v":""},{"$f":"NOT(ISERROR(SEARCH('Форма ввода'!$C$9,Базаданных[[#This Row],[Чей клиент]])))","v":true},{"$f":"IF(Базаданных[[#This Row],[Статус2]],COUNTIF($T$2:Базаданных[[#This Row],[Статус2]],TRUE),\"\")","v":103},{"$f":"IFERROR(INDEX(Базаданных[Чей клиент],MATCH(ROWS($U$2:Базаданных[[#This Row],[Индекс3]]),Базаданных[Индекс3],0)),\"\")","v":"Гречихина Юля"},{"$f":"Базаданных[[#This Row],[ДД]]-Базаданных[[#This Row],[ГД]]","v":0},{"$f":"Базаданных[[#This Row],[КВ]]-Базаданных[[#This Row],[ГК]]","v":-13300}]
["2019-04-02T18:39:23",43568.778427662037,2,"Вторник","Апрель","2019",0,"-",0,"-",6410,"-",0,"-","Пименов Алексей","Александр (Сызрань)",{"$f":"NOT(ISERROR(SEARCH('Форма ввода'!$C$5,Базаданных[[#This Row],[Клиент]])))","v":false},{"$f":"IF(Базаданных[[#This Row],[Статус]],COUNTIF($Q$2:Базаданных[[#This Row],[Статус]],TRUE),\"\")","v":""},{"$f":"IFERROR(INDEX(Базаданных[Клиент],MATCH(ROWS($R$2:Базаданных[[#This Row],[Индекс]]),Базаданных[Индекс],0)),\"\")","v":""},{"$f":"NOT(ISERROR(SEARCH('Форма ввода'!$C$9,Базаданных[[#This Row],[Чей клиент]])))","v":true},{"$f":"IF(Базаданных[[#This Row],[Статус2]],COUNTIF($T$2:Базаданных[[#This Row],[Статус2]],TRUE),\"\")","v":104},{"$f":"IFERROR(INDEX(Базаданных[Чей клиент],MATCH(ROWS($U$2:Базаданных[[#This Row],[Индекс3]]),Базаданных[Индекс3],0)),\"\")","v":"Пименов Алексей"},{"$f":"Базаданных[[#This Row],[ДД]]-Базаданных[[#This Row],[ГД]]","v":0},{"$f":"Базаданных[[#This Row],[КВ]]-Базаданных[[#This Row],[ГК]]","v":6410}]
["2019-04-03T18:57:11",43568.789707638891,3,"Среда","Апрель","2019",690,"-",0,"-",0,"-",0,"-","Пименов Алексей","Александр (Сызрань)",{"$f":"NOT(ISERROR(SEARCH('Форма ввода'!$C$5,Базаданных[[#This Row],[Клиент]])))","v":false},{"$f":"IF(Базаданных[[#This Row],[Статус]],COUNTIF($Q$2:Базаданных[[#This Row],[Статус]],TRUE),\"\")","v":""},{"$f":"IFERROR(INDEX(Базаданных[Клиент],MATCH(ROWS($R$2:Базаданных[[#This Row],[Индекс]]),Базаданных[Индекс],0)),\"\")","v":""},{"$f":"NOT(ISERROR(SEARCH('Форма ввода'!$C$9,Базаданных[[#This Row],[Чей клиент]])))","v":true},{"$f":"IF(Базаданных[[#This Row],[Статус2]],COUNTIF($T$2:Базаданных[[#This Row],[Статус2]],TRUE),\"\")","v":105},{"$f":"IFERROR(INDEX(Базаданных[Чей клиент],MATCH(ROWS($U$2:Базаданных[[#This Row],[Индекс3]]),Базаданных[Индекс3],0)),\"\")","v":"Пименов Алексей"},{"$f":"Базаданных[[#This Row],[ДД]]-Базаданных[[#This Row],[ГД]]","v":690},{"$f":"Базаданных[[#This Row],[КВ]]-Базаданных[[#This Row],[ГК]]","v":0}]
["2019-04-03T18:57:11",43568.789883912039,3,"Среда","Апрель","2019",0,"-",99900,"-",0,"-",0,"-","Пименов Алексей","Игорь Костяк (Киров Вятка)",{"$f":"NOT(ISERROR(SEARCH('Форма ввода'!$C$5,Базаданных[[#This Row],[Клиент]])))","v":false},{"$f":"IF(Базаданных[[#This Row],[Статус]],COUNTIF($Q$2:Базаданных[[#This Row],[Статус]],TRUE),\"\")","v":""},{"$f":"IFERROR(INDEX(Базаданных[Клиент],MATCH(ROWS($R$2:Базаданных[[#This Row],[Индекс]]),Базаданных[Индекс],0)),\"\")","v":""},{"$f":"NOT(ISERROR(SEARCH('Форма ввода'!$C$9,Базаданных[[#This Row],[Чей клиент]])))","v":true},{"$f":"IF(Базаданных[[#This Row],[Статус2]],COUNTIF($T$2:Базаданных[[#This Row],[Статус2]],TRUE),\"\")","v":106},{"$f":"IFERROR(INDEX(Базаданных[Чей клиент],MATCH(ROWS($U$2:Базаданных[[#This Row],[Индекс3]]),Базаданных[Индекс3],0)),\"\")","v":"Пименов Алексей"},{"$f":"Базаданных[[#This Row],[ДД]]-Базаданных[[#This Row],[ГД]]","v":-99900},{"$f":"Базаданных[[#This Row],[КВ]]-Базаданных[[#This Row],[ГК]]","v":0}]
["2019-04-03T18:57:11",43568.79022534722,3,"Среда","Апрель","2019",20280,"-",0,"-",0,"-",0,"-","Пименов Алексей","Шанхоев Аюп (Назрань)",{"$f":"NOT(ISERROR(SEARCH('Форма ввода'!$C$5,Базаданных[[#This Row],[Клиент]])))","v":false},{"$f":"IF(Базаданных[[#This Row],[Статус]],COUNTIF($Q$2:Базаданных[[#This Row],[Статус]],TRUE),\"\")","v":""},{"$f":"IFERROR(INDEX(Базаданных[Клиент],MATCH(ROWS($R$2:Базаданных[[#This Row],[Индекс]]),Базаданных[Индекс],0)),\"\")","v":""},{"$f":"NOT(ISERROR(SEARCH('Форма ввода'!$C$9,Базаданных[[#This Row],[Чей клиент]])))","v":true},{"$f":"IF(Базаданных[[#This Row],[Статус2]],COUNTIF($T$2:Базаданных[[#This Row],[Статус2]],TRUE),\"\")","v":107},{"$f":"IFERROR(INDEX(Базаданных[Чей клиент],MATCH(ROWS($U$2:Базаданных[[#This Row],[Индекс3]]),Базаданных[Индекс3],0)),\"\")","v":"Пименов Алексей"},{"$f":"Базаданных[[#This Row],[ДД]]-Базаданных[[#This Row],[ГД]]","v":20280},{"$f":"Базаданных[[#This Row],[КВ]]-Базаданных[[#This Row],[ГК]]","v":0}]
["2019-04-03T18:57:11",43568.790425347222,3,"Среда","Апрель","2019",400,"-",0,"-",0,"-",0,"-","Пименов Алексей","Алексей (Нижний тагил)",{"$f":"NOT(ISERROR(SEARCH('Форма ввода'!$C$5,Базаданных[[#This Row],[Клиент]])))","v":false},{"$f":"IF(Базаданных[[#This Row],[Статус]],COUNTIF($Q$2:Базаданных[[#This Row],[Статус]],TRUE),\"\")","v":""},{"$f":"IFERROR(INDEX(Базаданных[Клиент],MATCH(ROWS($R$2:Базаданных[[#This Row],[Индекс]]),Базаданных[Индекс],0)),\"\")","v":""},{"$f":"NOT(ISERROR(SEARCH('Форма ввода'!$C$9,Базаданных[[#This Row],[Чей клиент]])))","v":true},{"$f":"IF(Базаданных[[#This Row],[Статус2]],COUNTIF($T$2:Базаданных[[#This Row],[Статус2]],TRUE),\"\")","v":108},{"$f":"IFERROR(INDEX(Базаданных[Чей клиент],MATCH(ROWS($U$2:Базаданных[[#This Row],[Индекс3]]),Базаданных[Индекс3],0)),\"\")","v":"Пименов Алексей"},{"$f":"Базаданных[[#This Row],[ДД]]-Базаданных[[#This Row],[ГД]]","v":400},{"$f":"Базаданных[[#This Row],[КВ]]-Базаданных[[#This Row],[ГК]]","v":0}]
["2019-04-03T18:57:11",43568.790688310182,3,"Среда","Апрель","2019",17000,"-",0,"-",0,"-",0,"-","Нерсесов Давид","Александр Скупка (Нагатинская)",{"$f":"NOT(ISERROR(SEARCH('Форма ввода'!$C$5,Базаданных[[#This Row],[Клиент]])))","v":false},{"$f":"IF(Базаданных[[#This Row],[Статус]],COUNTIF($Q$2:Базаданных[[#This Row],[Статус]],TRUE),\"\")","v":""},{"$f":"IFERROR(INDEX(Базаданных[Клиент],MATCH(ROWS($R$2:Базаданных[[#This Row],[Индекс]]),Базаданных[Индекс],0)),\"\")","v":""},{"$f":"NOT(ISERROR(SEARCH('Форма ввода'!$C$9,Базаданных[[#This Row],[Чей клиент]])))","v":true},{"$f":"IF(Базаданных[[#This Row],[Статус2]],COUNTIF($T$2:Базаданных[[#This Row],[Статус2]],TRUE),\"\")","v":109},{"$f":"IFERROR(INDEX(Базаданных[Чей клиент],MATCH(ROWS($U$2:Базаданных[[#This Row],[Индекс3]]),Базаданных[Индекс3],0)),\"\")","v":"Нерсесов Давид"},{"$f":"Базаданных[[#This Row],[ДД]]-Базаданных[[#This Row],[ГД]]","v":17000},{"$f":"Базаданных[[#This Row],[КВ]]-Базаданных[[#This Row],[ГК]]","v":0}]
["2019-04-03T18:57:11",43568.790937268517,3,"Среда","Апрель","2019",18700,"-",0,"-",0,"-",0,"-","Гречихина Юля","Александр (Одинцово рынок)",{"$f":"NOT(ISERROR(SEARCH('Форма ввода'!$C$5,Базаданных[[#This Row],[Клиент]])))","v":false},{"$f":"IF(Базаданных[[#This Row],[Статус]],COUNTIF($Q$2:Базаданных[[#This Row],[Статус]],TRUE),\"\")","v":""},{"$f":"IFERROR(INDEX(Базаданных[Клиент],MATCH(ROWS($R$2:Базаданных[[#This Row],[Индекс]]),Базаданных[Индекс],0)),\"\")","v":""},{"$f":"NOT(ISERROR(SEARCH('Форма ввода'!$C$9,Базаданных[[#This Row],[Чей клиент]])))","v":true},{"$f":"IF(Базаданных[[#This Row],[Статус2]],COUNTIF($T$2:Базаданных[[#This Row],[Статус2]],TRUE),\"\")","v":110},{"$f":"IFERROR(INDEX(Базаданных[Чей клиент],MATCH(ROWS($U$2:Базаданных[[#This Row],[Индекс3]]),Базаданных[Индекс3],0)),\"\")","v":"Гречихина Юля"},{"$f":"Базаданных[[#This Row],[ДД]]-Базаданных[[#This Row],[ГД]]","v":18700},{"$f":"Базаданных[[#This Row],[КВ]]-Базаданных[[#This Row],[ГК]]","v":0}]
["2019-04-03T18:57:11",43568.79112962963,3,"Среда","Апрель","2019",0,"-",0,"-",0,"-",32500,"-","Нерсесов Давид","Нерсесов Давид ( AlexStore)",{"$f":"NOT(ISERROR(SEARCH('Форма ввода'!$C$5,Базаданных[[#This Row],[Клиент]])))","v":false},{"$f":"IF(Базаданных[[#This Row],[Статус]],COUNTIF($Q$2:Базаданных[[#This Row],[Статус]],TRUE),\"\")","v":""},{"$f":"IFERROR(INDEX(Базаданных[Клиент],MATCH(ROWS($R$2:Базаданных[[#This Row],[Индекс]]),Базаданных[Индекс],0)),\"\")","v":""},{"$f":"NOT(ISERROR(SEARCH('Форма ввода'!$C$9,Базаданных[[#This Row],[Чей клиент]])))","v":true},{"$f":"IF(Базаданных[[#This Row],[Статус2]],COUNTIF($T$2:Базаданных[[#This Row],[Статус2]],TRUE),\"\")","v":111},{"$f":"IFERROR(INDEX(Базаданных[Чей клиент],MATCH(ROWS($U$2:Базаданных[[#This Row],[Индекс3]]),Базаданных[Индекс3],0)),\"\")","v":"Нерсесов Давид"},{"$f":"Базаданных[[#This Row],[ДД]]-Базаданных[[#This Row],[ГД]]","v":0},{"$f":"Базаданных[[#This Row],[КВ]]-Базаданных[[#This Row],[ГК]]","v":-32500}]
["2019-04-03T18:57:11",43568.791332523149,3,"Среда","Апрель","2019",0,"-",0,"-",17000,"-",0,"-","Нерсесов Давид","Василий T-95 (Савеловский)",{"$f":"NOT(ISERROR(SEARCH('Форма ввода'!$C$5,Базаданных[[#This Row],[Клиент]])))","v":false},{"$f":"IF(Базаданных[[#This Row],[Статус]],COUNTIF($Q$2:Базаданных[[#This Row],[Статус]],TRUE),\"\")","v":""},{"$f":"IFERROR(INDEX(Базаданных[Клиент],MATCH(ROWS($R$2:Базаданных[[#This Row],[Индекс]]),Базаданных[Индекс],0)),\"\")","v":""},{"$f":"NOT(ISERROR(SEARCH('Форма ввода'!$C$9,Базаданных[[#This Row],[Чей клиент]])))","v":true},{"$f":"IF(Базаданных[[#This Row],[Статус2]],COUNTIF($T$2:Базаданных[[#This Row],[Статус2]],TRUE),\"\")","v":112},{"$f":"IFERROR(INDEX(Базаданных[Чей клиент],MATCH(ROWS($U$2:Базаданных[[#This Row],[Индекс3]]),Базаданных[Индекс3],0)),\"\")","v":"Нерсесов Давид"},{"$f":"Базаданных[[#This Row],[ДД]]-Базаданных[[#This Row],[ГД]]","v":0},{"$f":"Базаданных[[#This Row],[КВ]]-Базаданных[[#This Row],[ГК]]","v":17000}]
["2019-04-03T18:57:11",43568.791476388891,3,"Среда","Апрель","2019",0,"-",0,"-",0,"-",9200,"-","Нерсесов Давид","Скупка Алтуфьево Андрей",{"$f":"NOT(ISERROR(SEARCH('Форма ввода'!$C$5,Базаданных[[#This Row],[Клиент]])))","v":false},{"$f":"IF(Базаданных[[#This Row],[Статус]],COUNTIF($Q$2:Базаданных[[#This Row],[Статус]],TRUE),\"\")","v":""},{"$f":"IFERROR(INDEX(Базаданных[Клиент],MATCH(ROWS($R$2:Базаданных[[#This Row],[Индекс]]),Базаданных[Индекс],0)),\"\")","v":""},{"$f":"NOT(ISERROR(SEARCH('Форма ввода'!$C$9,Базаданных[[#This Row],[Чей клиент]])))","v":true},{"$f":"IF(Базаданных[[#This Row],[Статус2]],COUNTIF($T$2:Базаданных[[#This Row],[Статус2]],TRUE),\"\")","v":113},{"$f":"IFERROR(INDEX(Базаданных[Чей клиент],MATCH(ROWS($U$2:Базаданных[[#This Row],[Индекс3]]),Базаданных[Индекс3],0)),\"\")","v":"Нерсесов Давид"},{"$f":"Базаданных[[#This Row],[ДД]]-Базаданных[[#This Row],[ГД]]","v":0},{"$f":"Базаданных[[#This Row],[КВ]]-Базаданных[[#This Row],[ГК]]","v":-9200}]
["2019-04-03T18:57:11",43568.791648032406,3,"Среда","Апрель","2019",0,"-",0,"-",0,"-",6410,"-","Пименов Алексей","Александр (Сызрань)",{"$f":"NOT(ISERROR(SEARCH('Форма ввода'!$C$5,Базаданных[[#This Row],[Клиент]])))","v":false},{"$f":"IF(Базаданных[[#This Row],[Статус]],COUNTIF($Q$2:Базаданных[[#This Row],[Статус]],TRUE),\"\")","v":""},{"$f":"IFERROR(INDEX(Базаданных[Клиент],MATCH(ROWS($R$2:Базаданных[[#This Row],[Индекс]]),Базаданных[Индекс],0)),\"\")","v":""},{"$f":"NOT(ISERROR(SEARCH('Форма ввода'!$C$9,Базаданных[[#This Row],[Чей клиент]])))","v":true},{"$f":"IF(Базаданных[[#This Row],[Статус2]],COUNTIF($T$2:Базаданных[[#This Row],[Статус2]],TRUE),\"\")","v":114},{"$f":"IFERROR(INDEX(Базаданных[Чей клиент],MATCH(ROWS($U$2:Базаданных[[#This Row],[Индекс3]]),Базаданных[Индекс3],0)),\"\")","v":"Пименов Алексей"},{"$f":"Базаданных[[#This Row],[ДД]]-Базаданных[[#This Row],[ГД]]","v":0},{"$f":"Базаданных[[#This Row],[КВ]]-Базаданных[[#This Row],[ГК]]","v":-6410}]
["2019-04-04T19:02:46",43568.793589120367,4,"Четверг","Апрель","2019",0,"-",20280,"-",0,"-",0,"-","Пименов Алексей","Шанхоев Аюп (Назрань)",{"$f":"NOT(ISERROR(SEARCH('Форма ввода'!$C$5,Базаданных[[#This Row],[Клиент]])))","v":false},{"$f":"IF(Базаданных[[#This Row],[Статус]],COUNTIF($Q$2:Базаданных[[#This Row],[Статус]],TRUE),\"\")","v":""},{"$f":"IFERROR(INDEX(Базаданных[Клиент],MATCH(ROWS($R$2:Базаданных[[#This Row],[Индекс]]),Базаданных[Индекс],0)),\"\")","v":""},{"$f":"NOT(ISERROR(SEARCH('Форма ввода'!$C$9,Базаданных[[#This Row],[Чей клиент]])))","v":true},{"$f":"IF(Базаданных[[#This Row],[Статус2]],COUNTIF($T$2:Базаданных[[#This Row],[Статус2]],TRUE),\"\")","v":115},{"$f":"IFERROR(INDEX(Базаданных[Чей клиент],MATCH(ROWS($U$2:Базаданных[[#This Row],[Индекс3]]),Базаданных[Индекс3],0)),\"\")","v":"Пименов Алексей"},{"$f":"Базаданных[[#This Row],[ДД]]-Базаданных[[#This Row],[ГД]]","v":-20280},{"$f":"Базаданных[[#This Row],[КВ]]-Базаданных[[#This Row],[ГК]]","v":0}]
["2019-04-04T19:02:46",43568.793799652776,4,"Четверг","Апрель","2019",18930,"-",0,"-",0,"-",0,"-","Нерсесов Давид","Надир (К84 Царицино)",{"$f":"NOT(ISERROR(SEARCH('Форма ввода'!$C$5,Базаданных[[#This Row],[Клиент]])))","v":false},{"$f":"IF(Базаданных[[#This Row],[Статус]],COUNTIF($Q$2:Базаданных[[#This Row],[Статус]],TRUE),\"\")","v":""},{"$f":"IFERROR(INDEX(Базаданных[Клиент],MATCH(ROWS($R$2:Базаданных[[#This Row],[Индекс]]),Базаданных[Индекс],0)),\"\")","v":""},{"$f":"NOT(ISERROR(SEARCH('Форма ввода'!$C$9,Базаданных[[#This Row],[Чей клиент]])))","v":true},{"$f":"IF(Базаданных[[#This Row],[Статус2]],COUNTIF($T$2:Базаданных[[#This Row],[Статус2]],TRUE),\"\")","v":116},{"$f":"IFERROR(INDEX(Базаданных[Чей клиент],MATCH(ROWS($U$2:Базаданных[[#This Row],[Индекс3]]),Базаданных[Индекс3],0)),\"\")","v":"Нерсесов Давид"},{"$f":"Базаданных[[#This Row],[ДД]]-Базаданных[[#This Row],[ГД]]","v":18930},{"$f":"Базаданных[[#This Row],[КВ]]-Базаданных[[#This Row],[ГК]]","v":0}]
["2019-04-04T19:02:46",43568.794835532404,4,"Четверг","Апрель","2019",131300,"-",0,"-",0,"-",0,"-","Нерсесов Давид","Мухамед (Теплый стан)",{"$f":"NOT(ISERROR(SEARCH('Форма ввода'!$C$5,Базаданных[[#This Row],[Клиент]])))","v":false},{"$f":"IF(Базаданных[[#This Row],[Статус]],COUNTIF($Q$2:Базаданных[[#This Row],[Статус]],TRUE),\"\")","v":""},{"$f":"IFERROR(INDEX(Базаданных[Клиент],MATCH(ROWS($R$2:Базаданных[[#This Row],[Индекс]]),Базаданных[Индекс],0)),\"\")","v":""},{"$f":"NOT(ISERROR(SEARCH('Форма ввода'!$C$9,Базаданных[[#This Row],[Чей клиент]])))","v":true},{"$f":"IF(Базаданных[[#This Row],[Статус2]],COUNTIF($T$2:Базаданных[[#This Row],[Статус2]],TRUE),\"\")","v":117},{"$f":"IFERROR(INDEX(Базаданных[Чей клиент],MATCH(ROWS($U$2:Базаданных[[#This Row],[Индекс3]]),Базаданных[Индекс3],0)),\"\")","v":"Нерсесов Давид"},{"$f":"Базаданных[[#This Row],[ДД]]-Базаданных[[#This Row],[ГД]]","v":131300},{"$f":"Базаданных[[#This Row],[КВ]]-Базаданных[[#This Row],[ГК]]","v":0}]
["2019-04-04T19:02:46",43568.797085532409,4,"Четверг","Апрель","2019",0,"-",22100,"-",0,"-",0,"-","Гречихина Юля","Александр (Черемушки 2B-15)",{"$f":"NOT(ISERROR(SEARCH('Форма ввода'!$C$5,Базаданных[[#This Row],[Клиент]])))","v":false},{"$f":"IF(Базаданных[[#This Row],[Статус]],COUNTIF($Q$2:Базаданных[[#This Row],[Статус]],TRUE),\"\")","v":""},{"$f":"IFERROR(INDEX(Базаданных[Клиент],MATCH(ROWS($R$2:Базаданных[[#This Row],[Индекс]]),Базаданных[Индекс],0)),\"\")","v":""},{"$f":"NOT(ISERROR(SEARCH('Форма ввода'!$C$9,Базаданных[[#This Row],[Чей клиент]])))","v":true},{"$f":"IF(Базаданных[[#This Row],[Статус2]],COUNTIF($T$2:Базаданных[[#This Row],[Статус2]],TRUE),\"\")","v":118},{"$f":"IFERROR(INDEX(Базаданных[Чей клиент],MATCH(ROWS($U$2:Базаданных[[#This Row],[Индекс3]]),Базаданных[Индекс3],0)),\"\")","v":"Гречихина Юля"},{"$f":"Базаданных[[#This Row],[ДД]]-Базаданных[[#This Row],[ГД]]","v":-22100},{"$f":"Базаданных[[#This Row],[КВ]]-Базаданных[[#This Row],[ГК]]","v":0}]
["2019-04-04T19:02:46",43568.79730648148,4,"Четверг","Апрель","2019",0,"-",18700,"-",0,"-",0,"-","Гречихина Юля","Александр (Одинцово рынок)",{"$f":"NOT(ISERROR(SEARCH('Форма ввода'!$C$5,Базаданных[[#This Row],[Клиент]])))","v":false},{"$f":"IF(Базаданных[[#This Row],[Статус]],COUNTIF($Q$2:Базаданных[[#This Row],[Статус]],TRUE),\"\")","v":""},{"$f":"IFERROR(INDEX(Базаданных[Клиент],MATCH(ROWS($R$2:Базаданных[[#This Row],[Индекс]]),Базаданных[Индекс],0)),\"\")","v":""},{"$f":"NOT(ISERROR(SEARCH('Форма ввода'!$C$9,Базаданных[[#This Row],[Чей клиент]])))","v":true},{"$f":"IF(Базаданных[[#This Row],[Статус2]],COUNTIF($T$2:Базаданных[[#This Row],[Статус2]],TRUE),\"\")","v":119},{"$f":"IFERROR(INDEX(Базаданных[Чей клиент],MATCH(ROWS($U$2:Базаданных[[#This Row],[Индекс3]]),Базаданных[Индекс3],0)),\"\")","v":"Гречихина Юля"},{"$f":"Базаданных[[#This Row],[ДД]]-Базаданных[[#This Row],[ГД]]","v":-18700},{"$f":"Базаданных[[#This Row],[КВ]]-Базаданных[[#This Row],[ГК]]","v":0}]
["2019-04-04T19:02:46",43568.797516203704,4,"Четверг","Апрель","2019",0,"-",0,"-",207700,"-",0,"-","Нерсесов Давид","Нерсесов Давид ( AlexStore)",{"$f":"NOT(ISERROR(SEARCH('Форма ввода'!$C$5,Базаданных[[#This Row],[Клиент]])))","v":false},{"$f":"IF(Базаданных[[#This Row],[Статус]],COUNTIF($Q$2:Базаданных[[#This Row],[Статус]],TRUE),\"\")","v":""},{"$f":"IFERROR(INDEX(Базаданных[Клиент],MATCH(ROWS($R$2:Базаданных[[#This Row],[Индекс]]),Базаданных[Индекс],0)),\"\")","v":""},{"$f":"NOT(ISERROR(SEARCH('Форма ввода'!$C$9,Базаданных[[#This Row],[Чей клиент]])))","v":true},{"$f":"IF(Базаданных[[#This Row],[Статус2]],COUNTIF($T$2:Базаданных[[#This Row],[Статус2]],TRUE),\"\")","v":120},{"$f":"IFERROR(INDEX(Базаданных[Чей клиент],MATCH(ROWS($U$2:Базаданных[[#This Row],[Индекс3]]),Базаданных[Индекс3],0)),\"\")","v":"Нерсесов Давид"},{"$f":"Базаданных[[#This Row],[ДД]]-Базаданных[[#This Row],[ГД]]","v":0},{"$f":"Базаданных[[#This Row],[КВ]]-Базаданных[[#This Row],[ГК]]","v":207700}]
["2019-04-04T19:02:46",43568.797978240742,4,"Четверг","Апрель","2019",0,"-",0,"-",46500,"-",0,"-","Гречихина Юля","Геворг ",{"$f":"NOT(ISERROR(SEARCH('Форма ввода'!$C$5,Базаданных[[#This Row],[Клиент]])))","v":false},{"$f":"IF(Базаданных[[#This Row],[Статус]],COUNTIF($Q$2:Базаданных[[#This Row],[Статус]],TRUE),\"\")","v":""},{"$f":"IFERROR(INDEX(Базаданных[Клиент],MATCH(ROWS($R$2:Базаданных[[#This Row],[Индекс]]),Базаданных[Индекс],0)),\"\")","v":""},{"$f":"NOT(ISERROR(SEARCH('Форма ввода'!$C$9,Базаданных[[#This Row],[Чей клиент]])))","v":true},{"$f":"IF(Базаданных[[#This Row],[Статус2]],COUNTIF($T$2:Базаданных[[#This Row],[Статус2]],TRUE),\"\")","v":121},{"$f":"IFERROR(INDEX(Базаданных[Чей клиент],MATCH(ROWS($U$2:Базаданных[[#This Row],[Индекс3]]),Базаданных[Индекс3],0)),\"\")","v":"Гречихина Юля"},{"$f":"Базаданных[[#This Row],[ДД]]-Базаданных[[#This Row],[ГД]]","v":0},{"$f":"Базаданных[[#This Row],[КВ]]-Базаданных[[#This Row],[ГК]]","v":46500}]
["2019-04-04T19:02:46",43568.798443171298,4,"Четверг","Апрель","2019",0,"-",0,"-",46500,"-",0,"-","Пименов Алексей","Булгаков Данил Викторович",{"$f":"NOT(ISERROR(SEARCH('Форма ввода'!$C$5,Базаданных[[#This Row],[Клиент]])))","v":false},{"$f":"IF(Базаданных[[#This Row],[Статус]],COUNTIF($Q$2:Базаданных[[#This Row],[Статус]],TRUE),\"\")","v":""},{"$f":"IFERROR(INDEX(Базаданных[Клиент],MATCH(ROWS($R$2:Базаданных[[#This Row],[Индекс]]),Базаданных[Индекс],0)),\"\")","v":""},{"$f":"NOT(ISERROR(SEARCH('Форма ввода'!$C$9,Базаданных[[#This Row],[Чей клиент]])))","v":true},{"$f":"IF(Базаданных[[#This Row],[Статус2]],COUNTIF($T$2:Базаданных[[#This Row],[Статус2]],TRUE),\"\")","v":122},{"$f":"IFERROR(INDEX(Базаданных[Чей клиент],MATCH(ROWS($U$2:Базаданных[[#This Row],[Индекс3]]),Базаданных[Индекс3],0)),\"\")","v":"Пименов Алексей"},{"$f":"Базаданных[[#This Row],[ДД]]-Базаданных[[#This Row],[ГД]]","v":0},{"$f":"Базаданных[[#This Row],[КВ]]-Базаданных[[#This Row],[ГК]]","v":46500}]
["2019-04-04T19:02:46",43568.798674074074,4,"Четверг","Апрель","2019",0,"-",0,"-",33000,"-",0,"-","Пименов Алексей","Александр Дергач (Бронницы)",{"$f":"NOT(ISERROR(SEARCH('Форма ввода'!$C$5,Базаданных[[#This Row],[Клиент]])))","v":false},{"$f":"IF(Базаданных[[#This Row],[Статус]],COUNTIF($Q$2:Базаданных[[#This Row],[Статус]],TRUE),\"\")","v":""},{"$f":"IFERROR(INDEX(Базаданных[Клиент],MATCH(ROWS($R$2:Базаданных[[#This Row],[Индекс]]),Базаданных[Индекс],0)),\"\")","v":""},{"$f":"NOT(ISERROR(SEARCH('Форма ввода'!$C$9,Базаданных[[#This Row],[Чей клиент]])))","v":true},{"$f":"IF(Базаданных[[#This Row],[Статус2]],COUNTIF($T$2:Базаданных[[#This Row],[Статус2]],TRUE),\"\")","v":123},{"$f":"IFERROR(INDEX(Базаданных[Чей клиент],MATCH(ROWS($U$2:Базаданных[[#This Row],[Индекс3]]),Базаданных[Индекс3],0)),\"\")","v":"Пименов Алексей"},{"$f":"Базаданных[[#This Row],[ДД]]-Базаданных[[#This Row],[ГД]]","v":0},{"$f":"Базаданных[[#This Row],[КВ]]-Базаданных[[#This Row],[ГК]]","v":33000}]
["2019-04-05T19:18:01",43568.804178472223,5,"Пятница","Апрель","2019",3205,"-",0,"-",0,"-",0,"-","Гречихина Юля","Саргисян Николаяй",{"$f":"NOT(ISERROR(SEARCH('Форма ввода'!$C$5,Базаданных[[#This Row],[Клиент]])))","v":false},{"$f":"IF(Базаданных[[#This Row],[Статус]],COUNTIF($Q$2:Базаданных[[#This Row],[Статус]],TRUE),\"\")","v":""},{"$f":"IFERROR(INDEX(Базаданных[Клиент],MATCH(ROWS($R$2:Базаданных[[#This Row],[Индекс]]),Базаданных[Индекс],0)),\"\")","v":""},{"$f":"NOT(ISERROR(SEARCH('Форма ввода'!$C$9,Базаданных[[#This Row],[Чей клиент]])))","v":true},{"$f":"IF(Базаданных[[#This Row],[Статус2]],COUNTIF($T$2:Базаданных[[#This Row],[Статус2]],TRUE),\"\")","v":124},{"$f":"IFERROR(INDEX(Базаданных[Чей клиент],MATCH(ROWS($U$2:Базаданных[[#This Row],[Индекс3]]),Базаданных[Индекс3],0)),\"\")","v":"Гречихина Юля"},{"$f":"Базаданных[[#This Row],[ДД]]-Базаданных[[#This Row],[ГД]]","v":3205},{"$f":"Базаданных[[#This Row],[КВ]]-Базаданных[[#This Row],[ГК]]","v":0}]
["2019-04-05T19:18:01",43568.804379398149,5,"Пятница","Апрель","2019",31000,"-",0,"-",0,"-",0,"-","Нерсесов Давид","Нерсесов Давид ( AlexStore)",{"$f":"NOT(ISERROR(SEARCH('Форма ввода'!$C$5,Базаданных[[#This Row],[Клиент]])))","v":false},{"$f":"IF(Базаданных[[#This Row],[Статус]],COUNTIF($Q$2:Базаданных[[#This Row],[Статус]],TRUE),\"\")","v":""},{"$f":"IFERROR(INDEX(Базаданных[Клиент],MATCH(ROWS($R$2:Базаданных[[#This Row],[Индекс]]),Базаданных[Индекс],0)),\"\")","v":""},{"$f":"NOT(ISERROR(SEARCH('Форма ввода'!$C$9,Базаданных[[#This Row],[Чей клиент]])))","v":true},{"$f":"IF(Базаданных[[#This Row],[Статус2]],COUNTIF($T$2:Базаданных[[#This Row],[Статус2]],TRUE),\"\")","v":125},{"$f":"IFERROR(INDEX(Базаданных[Чей клиент],MATCH(ROWS($U$2:Базаданных[[#This Row],[Индекс3]]),Базаданных[Индекс3],0)),\"\")","v":"Нерсесов Давид"},{"$f":"Базаданных[[#This Row],[ДД]]-Базаданных[[#This Row],[ГД]]","v":31000},{"$f":"Базаданных[[#This Row],[КВ]]-Базаданных[[#This Row],[ГК]]","v":0}]
["2019-04-05T19:18:01",43568.804570138891,5,"Пятница","Апрель","2019",0,"-",18930,"-",0,"-",0,"-","Нерсесов Давид","Надир (К84 Царицино)",{"$f":"NOT(ISERROR(SEARCH('Форма ввода'!$C$5,Базаданных[[#This Row],[Клиент]])))","v":false},{"$f":"IF(Базаданных[[#This Row],[Статус]],COUNTIF($Q$2:Базаданных[[#This Row],[Статус]],TRUE),\"\")","v":""},{"$f":"IFERROR(INDEX(Базаданных[Клиент],MATCH(ROWS($R$2:Базаданных[[#This Row],[Индекс]]),Базаданных[Индекс],0)),\"\")","v":""},{"$f":"NOT(ISERROR(SEARCH('Форма ввода'!$C$9,Базаданных[[#This Row],[Чей клиент]])))","v":true},{"$f":"IF(Базаданных[[#This Row],[Статус2]],COUNTIF($T$2:Базаданных[[#This Row],[Статус2]],TRUE),\"\")","v":126},{"$f":"IFERROR(INDEX(Базаданных[Чей клиент],MATCH(ROWS($U$2:Базаданных[[#This Row],[Индекс3]]),Базаданных[Индекс3],0)),\"\")","v":"Нерсесов Давид"},{"$f":"Базаданных[[#This Row],[ДД]]-Базаданных[[#This Row],[ГД]]","v":-18930},{"$f":"Базаданных[[#This Row],[КВ]]-Базаданных[[#This Row],[ГК]]","v":0}]
["2019-04-05T19:18:01",43568.804729861113,5,"Пятница","Апрель","2019",0,"-",92300,"-",0,"-",0,"-","Нерсесов Давид","Мухамед (Теплый стан)",{"$f":"NOT(ISERROR(SEARCH('Форма ввода'!$C$5,Базаданных[[#This Row],[Клиент]])))","v":false},{"$f":"IF(Базаданных[[#This Row],[Статус]],COUNTIF($Q$2:Базаданных[[#This Row],[Статус]],TRUE),\"\")","v":""},{"$f":"IFERROR(INDEX(Базаданных[Клиент],MATCH(ROWS($R$2:Базаданных[[#This Row],[Индекс]]),Базаданных[Индекс],0)),\"\")","v":""},{"$f":"NOT(ISERROR(SEARCH('Форма ввода'!$C$9,Базаданных[[#This Row],[Чей клиент]])))","v":true},{"$f":"IF(Базаданных[[#This Row],[Статус2]],COUNTIF($T$2:Базаданных[[#This Row],[Статус2]],TRUE),\"\")","v":127},{"$f":"IFERROR(INDEX(Базаданных[Чей клиент],MATCH(ROWS($U$2:Базаданных[[#This Row],[Индекс3]]),Базаданных[Индекс3],0)),\"\")","v":"Нерсесов Давид"},{"$f":"Базаданных[[#This Row],[ДД]]-Базаданных[[#This Row],[ГД]]","v":-92300},{"$f":"Базаданных[[#This Row],[КВ]]-Базаданных[[#This Row],[ГК]]","v":0}]
["2019-04-05T19:18:01",43568.805084953703,5,"Пятница","Апрель","2019",33730,"-",0,"-",0,"-",0,"-","Нерсесов Давид","Карен (МобиПро24)",{"$f":"NOT(ISERROR(SEARCH('Форма ввода'!$C$5,Базаданных[[#This Row],[Клиент]])))","v":false},{"$f":"IF(Базаданных[[#This Row],[Статус]],COUNTIF($Q$2:Базаданных[[#This Row],[Статус]],TRUE),\"\")","v":""},{"$f":"IFERROR(INDEX(Базаданных[Клиент],MATCH(ROWS($R$2:Базаданных[[#This Row],[Индекс]]),Базаданных[Индекс],0)),\"\")","v":""},{"$f":"NOT(ISERROR(SEARCH('Форма ввода'!$C$9,Базаданных[[#This Row],[Чей клиент]])))","v":true},{"$f":"IF(Базаданных[[#This Row],[Статус2]],COUNTIF($T$2:Базаданных[[#This Row],[Статус2]],TRUE),\"\")","v":128},{"$f":"IFERROR(INDEX(Базаданных[Чей клиент],MATCH(ROWS($U$2:Базаданных[[#This Row],[Индекс3]]),Базаданных[Индекс3],0)),\"\")","v":"Нерсесов Давид"},{"$f":"Базаданных[[#This Row],[ДД]]-Базаданных[[#This Row],[ГД]]","v":33730},{"$f":"Базаданных[[#This Row],[КВ]]-Базаданных[[#This Row],[ГК]]","v":0}]
["2019-04-05T19:18:01",43568.805337962964,5,"Пятница","Апрель","2019",7400,"-",0,"-",0,"-",0,"-","Гречихина Юля","Александр (Черемушки 2B-15)",{"$f":"NOT(ISERROR(SEARCH('Форма ввода'!$C$5,Базаданных[[#This Row],[Клиент]])))","v":false},{"$f":"IF(Базаданных[[#This Row],[Статус]],COUNTIF($Q$2:Базаданных[[#This Row],[Статус]],TRUE),\"\")","v":""},{"$f":"IFERROR(INDEX(Базаданных[Клиент],MATCH(ROWS($R$2:Базаданных[[#This Row],[Индекс]]),Базаданных[Индекс],0)),\"\")","v":""},{"$f":"NOT(ISERROR(SEARCH('Форма ввода'!$C$9,Базаданных[[#This Row],[Чей клиент]])))","v":true},{"$f":"IF(Базаданных[[#This Row],[Статус2]],COUNTIF($T$2:Базаданных[[#This Row],[Статус2]],TRUE),\"\")","v":129},{"$f":"IFERROR(INDEX(Базаданных[Чей клиент],MATCH(ROWS($U$2:Базаданных[[#This Row],[Индекс3]]),Базаданных[Индекс3],0)),\"\")","v":"Гречихина Юля"},{"$f":"Базаданных[[#This Row],[ДД]]-Базаданных[[#This Row],[ГД]]","v":7400},{"$f":"Базаданных[[#This Row],[КВ]]-Базаданных[[#This Row],[ГК]]","v":0}]
["2019-04-05T19:18:01",43568.805564351853,5,"Пятница","Апрель","2019",0,"-",0,"-",0,"-",210300,"-","Нерсесов Давид","Нерсесов Давид ( AlexStore)",{"$f":"NOT(ISERROR(SEARCH('Форма ввода'!$C$5,Базаданных[[#This Row],[Клиент]])))","v":false},{"$f":"IF(Базаданных[[#This Row],[Статус]],COUNTIF($Q$2:Базаданных[[#This Row],[Статус]],TRUE),\"\")","v":""},{"$f":"IFERROR(INDEX(Базаданных[Клиент],MATCH(ROWS($R$2:Базаданных[[#This Row],[Индекс]]),Базаданных[Индекс],0)),\"\")","v":""},{"$f":"NOT(ISERROR(SEARCH('Форма ввода'!$C$9,Базаданных[[#This Row],[Чей клиент]])))","v":true},{"$f":"IF(Базаданных[[#This Row],[Статус2]],COUNTIF($T$2:Базаданных[[#This Row],[Статус2]],TRUE),\"\")","v":130},{"$f":"IFERROR(INDEX(Базаданных[Чей клиент],MATCH(ROWS($U$2:Базаданных[[#This Row],[Индекс3]]),Базаданных[Индекс3],0)),\"\")","v":"Нерсесов Давид"},{"$f":"Базаданных[[#This Row],[ДД]]-Базаданных[[#This Row],[ГД]]","v":0},{"$f":"Базаданных[[#This Row],[КВ]]-Базаданных[[#This Row],[ГК]]","v":-210300}]
["2019-04-05T19:18:01",43568.805728472224,5,"Пятница","Апрель","2019",0,"-",0,"-",0,"-",29400,"-","Пименов Алексей","Александр (Сызрань)",{"$f":"NOT(ISERROR(SEARCH('Форма ввода'!$C$5,Базаданных[[#This Row],[Клиент]])))","v":false},{"$f":"IF(Базаданных[[#This Row],[Статус]],COUNTIF($Q$2:Базаданных[[#This Row],[Статус]],TRUE),\"\")","v":""},{"$f":"IFERROR(INDEX(Базаданных[Клиент],MATCH(ROWS($R$2:Базаданных[[#This Row],[Индекс]]),Базаданных[Индекс],0)),\"\")","v":""},{"$f":"NOT(ISERROR(SEARCH('Форма ввода'!$C$9,Базаданных[[#This Row],[Чей клиент]])))","v":true},{"$f":"IF(Базаданных[[#This Row],[Статус2]],COUNTIF($T$2:Базаданных[[#This Row],[Статус2]],TRUE),\"\")","v":131},{"$f":"IFERROR(INDEX(Базаданных[Чей клиент],MATCH(ROWS($U$2:Базаданных[[#This Row],[Индекс3]]),Базаданных[Индекс3],0)),\"\")","v":"Пименов Алексей"},{"$f":"Базаданных[[#This Row],[ДД]]-Базаданных[[#This Row],[ГД]]","v":0},{"$f":"Базаданных[[#This Row],[КВ]]-Базаданных[[#This Row],[ГК]]","v":-29400}]
["2019-04-05T19:18:01",43568.805908796297,5,"Пятница","Апрель","2019",0,"-",0,"-",0,"-",46500,"-","Гречихина Юля","Геворг ",{"$f":"NOT(ISERROR(SEARCH('Форма ввода'!$C$5,Базаданных[[#This Row],[Клиент]])))","v":false},{"$f":"IF(Базаданных[[#This Row],[Статус]],COUNTIF($Q$2:Базаданных[[#This Row],[Статус]],TRUE),\"\")","v":""},{"$f":"IFERROR(INDEX(Базаданных[Клиент],MATCH(ROWS($R$2:Базаданных[[#This Row],[Индекс]]),Базаданных[Индекс],0)),\"\")","v":""},{"$f":"NOT(ISERROR(SEARCH('Форма ввода'!$C$9,Базаданных[[#This Row],[Чей клиент]])))","v":true},{"$f":"IF(Базаданных[[#This Row],[Статус2]],COUNTIF($T$2:Базаданных[[#This Row],[Статус2]],TRUE),\"\")","v":132},{"$f":"IFERROR(INDEX(Базаданных[Чей клиент],MATCH(ROWS($U$2:Базаданных[[#This Row],[Индекс3]]),Базаданных[Индекс3],0)),\"\")","v":"Гречихина Юля"},{"$f":"Базаданных[[#This Row],[ДД]]-Базаданных[[#This Row],[ГД]]","v":0},{"$f":"Базаданных[[#This Row],[КВ]]-Базаданных[[#This Row],[ГК]]","v":-46500}]
["2019-04-05T19:18:01",43568.806048379629,5,"Пятница","Апрель","2019",0,"-",0,"-",0,"-",46500,"-","Пименов Алексей","Булгаков Данил Викторович",{"$f":"NOT(ISERROR(SEARCH('Форма ввода'!$C$5,Базаданных[[#This Row],[Клиент]])))","v":false},{"$f":"IF(Базаданных[[#This Row],[Статус]],COUNTIF($Q$2:Базаданных[[#This Row],[Статус]],TRUE),\"\")","v":""},{"$f":"IFERROR(INDEX(Базаданных[Клиент],MATCH(ROWS($R$2:Базаданных[[#This Row],[Индекс]]),Базаданных[Индекс],0)),\"\")","v":""},{"$f":"NOT(ISERROR(SEARCH('Форма ввода'!$C$9,Базаданных[[#This Row],[Чей клиент]])))","v":true},{"$f":"IF(Базаданных[[#This Row],[Статус2]],COUNTIF($T$2:Базаданных[[#This Row],[Статус2]],TRUE),\"\")","v":133},{"$f":"IFERROR(INDEX(Базаданных[Чей клиент],MATCH(ROWS($U$2:Базаданных[[#This Row],[Индекс3]]),Базаданных[Индекс3],0)),\"\")","v":"Пименов Алексей"},{"$f":"Базаданных[[#This Row],[ДД]]-Базаданных[[#This Row],[ГД]]","v":0},{"$f":"Базаданных[[#This Row],[КВ]]-Базаданных[[#This Row],[ГК]]","v":-46500}]
["2019-04-06T19:25:28",43568.809346180555,6,"суббота","Апрель","2019",0,"-",51005,"-",0,"-",0,"-","Нерсесов Давид","Нерсесов Давид ( AlexStore)",{"$f":"NOT(ISERROR(SEARCH('Форма ввода'!$C$5,Базаданных[[#This Row],[Клиент]])))","v":false},{"$f":"IF(Базаданных[[#This Row],[Статус]],COUNTIF($Q$2:Базаданных[[#This Row],[Статус]],TRUE),\"\")","v":""},{"$f":"IFERROR(INDEX(Базаданных[Клиент],MATCH(ROWS($R$2:Базаданных[[#This Row],[Индекс]]),Базаданных[Индекс],0)),\"\")","v":""},{"$f":"NOT(ISERROR(SEARCH('Форма ввода'!$C$9,Базаданных[[#This Row],[Чей клиент]])))","v":true},{"$f":"IF(Базаданных[[#This Row],[Статус2]],COUNTIF($T$2:Базаданных[[#This Row],[Статус2]],TRUE),\"\")","v":134},{"$f":"IFERROR(INDEX(Базаданных[Чей клиент],MATCH(ROWS($U$2:Базаданных[[#This Row],[Индекс3]]),Базаданных[Индекс3],0)),\"\")","v":"Нерсесов Давид"},{"$f":"Базаданных[[#This Row],[ДД]]-Базаданных[[#This Row],[ГД]]","v":-51005},{"$f":"Базаданных[[#This Row],[КВ]]-Базаданных[[#This Row],[ГК]]","v":0}]
["2019-04-06T19:25:28",43568.810149305558,6,"суббота","Апрель","2019",0,"-",20780,"-",0,"-",0,"-","Нерсесов Давид","Скупка Радик Москва",{"$f":"NOT(ISERROR(SEARCH('Форма ввода'!$C$5,Базаданных[[#This Row],[Клиент]])))","v":false},{"$f":"IF(Базаданных[[#This Row],[Статус]],COUNTIF($Q$2:Базаданных[[#This Row],[Статус]],TRUE),\"\")","v":""},{"$f":"IFERROR(INDEX(Базаданных[Клиент],MATCH(ROWS($R$2:Базаданных[[#This Row],[Индекс]]),Базаданных[Индекс],0)),\"\")","v":""},{"$f":"NOT(ISERROR(SEARCH('Форма ввода'!$C$9,Базаданных[[#This Row],[Чей клиент]])))","v":true},{"$f":"IF(Базаданных[[#This Row],[Статус2]],COUNTIF($T$2:Базаданных[[#This Row],[Статус2]],TRUE),\"\")","v":135},{"$f":"IFERROR(INDEX(Базаданных[Чей клиент],MATCH(ROWS($U$2:Базаданных[[#This Row],[Индекс3]]),Базаданных[Индекс3],0)),\"\")","v":"Нерсесов Давид"},{"$f":"Базаданных[[#This Row],[ДД]]-Базаданных[[#This Row],[ГД]]","v":-20780},{"$f":"Базаданных[[#This Row],[КВ]]-Базаданных[[#This Row],[ГК]]","v":0}]
["2019-04-06T19:25:28",43568.810352430555,6,"суббота","Апрель","2019",0,"-",120,"-",0,"-",0,"-","Нерсесов Давид","Роман (Л-64 Савеловский)",{"$f":"NOT(ISERROR(SEARCH('Форма ввода'!$C$5,Базаданных[[#This Row],[Клиент]])))","v":false},{"$f":"IF(Базаданных[[#This Row],[Статус]],COUNTIF($Q$2:Базаданных[[#This Row],[Статус]],TRUE),\"\")","v":""},{"$f":"IFERROR(INDEX(Базаданных[Клиент],MATCH(ROWS($R$2:Базаданных[[#This Row],[Индекс]]),Базаданных[Индекс],0)),\"\")","v":""},{"$f":"NOT(ISERROR(SEARCH('Форма ввода'!$C$9,Базаданных[[#This Row],[Чей клиент]])))","v":true},{"$f":"IF(Базаданных[[#This Row],[Статус2]],COUNTIF($T$2:Базаданных[[#This Row],[Статус2]],TRUE),\"\")","v":136},{"$f":"IFERROR(INDEX(Базаданных[Чей клиент],MATCH(ROWS($U$2:Базаданных[[#This Row],[Индекс3]]),Базаданных[Индекс3],0)),\"\")","v":"Нерсесов Давид"},{"$f":"Базаданных[[#This Row],[ДД]]-Базаданных[[#This Row],[ГД]]","v":-120},{"$f":"Базаданных[[#This Row],[КВ]]-Базаданных[[#This Row],[ГК]]","v":0}]
["2019-04-06T19:25:28",43568.810517592596,6,"суббота","Апрель","2019",0,"-",2365,"-",0,"-",0,"-","Нерсесов Давид","Кирил (Савок  П67-П77) ",{"$f":"NOT(ISERROR(SEARCH('Форма ввода'!$C$5,Базаданных[[#This Row],[Клиент]])))","v":false},{"$f":"IF(Базаданных[[#This Row],[Статус]],COUNTIF($Q$2:Базаданных[[#This Row],[Статус]],TRUE),\"\")","v":""},{"$f":"IFERROR(INDEX(Базаданных[Клиент],MATCH(ROWS($R$2:Базаданных[[#This Row],[Индекс]]),Базаданных[Индекс],0)),\"\")","v":""},{"$f":"NOT(ISERROR(SEARCH('Форма ввода'!$C$9,Базаданных[[#This Row],[Чей клиент]])))","v":true},{"$f":"IF(Базаданных[[#This Row],[Статус2]],COUNTIF($T$2:Базаданных[[#This Row],[Статус2]],TRUE),\"\")","v":137},{"$f":"IFERROR(INDEX(Базаданных[Чей клиент],MATCH(ROWS($U$2:Базаданных[[#This Row],[Индекс3]]),Базаданных[Индекс3],0)),\"\")","v":"Нерсесов Давид"},{"$f":"Базаданных[[#This Row],[ДД]]-Базаданных[[#This Row],[ГД]]","v":-2365},{"$f":"Базаданных[[#This Row],[КВ]]-Базаданных[[#This Row],[ГК]]","v":0}]
["2019-04-06T19:25:28",43568.817600347225,6,"суббота","Апрель","2019",0,"-",4720,"-",0,"-",0,"-","Нерсесов Давид","Надир (К84 Царицино)",{"$f":"NOT(ISERROR(SEARCH('Форма ввода'!$C$5,Базаданных[[#This Row],[Клиент]])))","v":false},{"$f":"IF(Базаданных[[#This Row],[Статус]],COUNTIF($Q$2:Базаданных[[#This Row],[Статус]],TRUE),\"\")","v":""},{"$f":"IFERROR(INDEX(Базаданных[Клиент],MATCH(ROWS($R$2:Базаданных[[#This Row],[Индекс]]),Базаданных[Индекс],0)),\"\")","v":""},{"$f":"NOT(ISERROR(SEARCH('Форма ввода'!$C$9,Базаданных[[#This Row],[Чей клиент]])))","v":true},{"$f":"IF(Базаданных[[#This Row],[Статус2]],COUNTIF($T$2:Базаданных[[#This Row],[Статус2]],TRUE),\"\")","v":138},{"$f":"IFERROR(INDEX(Базаданных[Чей клиент],MATCH(ROWS($U$2:Базаданных[[#This Row],[Индекс3]]),Базаданных[Индекс3],0)),\"\")","v":"Нерсесов Давид"},{"$f":"Базаданных[[#This Row],[ДД]]-Базаданных[[#This Row],[ГД]]","v":-4720},{"$f":"Базаданных[[#This Row],[КВ]]-Базаданных[[#This Row],[ГК]]","v":0}]
["2019-04-06T19:25:28",43568.817733796299,6,"суббота","Апрель","2019",0,"-",33730,"-",0,"-",0,"-","Нерсесов Давид","Карен (МобиПро24)",{"$f":"NOT(ISERROR(SEARCH('Форма ввода'!$C$5,Базаданных[[#This Row],[Клиент]])))","v":false},{"$f":"IF(Базаданных[[#This Row],[Статус]],COUNTIF($Q$2:Базаданных[[#This Row],[Статус]],TRUE),\"\")","v":""},{"$f":"IFERROR(INDEX(Базаданных[Клиент],MATCH(ROWS($R$2:Базаданных[[#This Row],[Индекс]]),Базаданных[Индекс],0)),\"\")","v":""},{"$f":"NOT(ISERROR(SEARCH('Форма ввода'!$C$9,Базаданных[[#This Row],[Чей клиент]])))","v":true},{"$f":"IF(Базаданных[[#This Row],[Статус2]],COUNTIF($T$2:Базаданных[[#This Row],[Статус2]],TRUE),\"\")","v":139},{"$f":"IFERROR(INDEX(Базаданных[Чей клиент],MATCH(ROWS($U$2:Базаданных[[#This Row],[Индекс3]]),Базаданных[Индекс3],0)),\"\")","v":"Нерсесов Давид"},{"$f":"Базаданных[[#This Row],[ДД]]-Базаданных[[#This Row],[ГД]]","v":-33730},{"$f":"Базаданных[[#This Row],[КВ]]-Базаданных[[#This Row],[ГК]]","v":0}]
["2019-04-06T19:25:28",43568.81794212963,6,"суббота","Апрель","2019",11450,"-",0,"-",0,"-",0,"-","Нерсесов Давид","Акоп П-90 (Савок)",{"$f":"NOT(ISERROR(SEARCH('Форма ввода'!$C$5,Базаданных[[#This Row],[Клиент]])))","v":false},{"$f":"IF(Базаданных[[#This Row],[Статус]],COUNTIF($Q$2:Базаданных[[#This Row],[Статус]],TRUE),\"\")","v":""},{"$f":"IFERROR(INDEX(Базаданных[Клиент],MATCH(ROWS($R$2:Базаданных[[#This Row],[Индекс]]),Базаданных[Индекс],0)),\"\")","v":""},{"$f":"NOT(ISERROR(SEARCH('Форма ввода'!$C$9,Базаданных[[#This Row],[Чей клиент]])))","v":true},{"$f":"IF(Базаданных[[#This Row],[Статус2]],COUNTIF($T$2:Базаданных[[#This Row],[Статус2]],TRUE),\"\")","v":140},{"$f":"IFERROR(INDEX(Базаданных[Чей клиент],MATCH(ROWS($U$2:Базаданных[[#This Row],[Индекс3]]),Базаданных[Индекс3],0)),\"\")","v":"Нерсесов Давид"},{"$f":"Базаданных[[#This Row],[ДД]]-Базаданных[[#This Row],[ГД]]","v":11450},{"$f":"Базаданных[[#This Row],[КВ]]-Базаданных[[#This Row],[ГК]]","v":0}]
["2019-04-06T19:25:28",43568.818176967594,6,"суббота","Апрель","2019",31840,"-",0,"-",0,"-",0,"-","Нерсесов Давид","Султан (Т-89 Савок)",{"$f":"NOT(ISERROR(SEARCH('Форма ввода'!$C$5,Базаданных[[#This Row],[Клиент]])))","v":false},{"$f":"IF(Базаданных[[#This Row],[Статус]],COUNTIF($Q$2:Базаданных[[#This Row],[Статус]],TRUE),\"\")","v":""},{"$f":"IFERROR(INDEX(Базаданных[Клиент],MATCH(ROWS($R$2:Базаданных[[#This Row],[Индекс]]),Базаданных[Индекс],0)),\"\")","v":""},{"$f":"NOT(ISERROR(SEARCH('Форма ввода'!$C$9,Базаданных[[#This Row],[Чей клиент]])))","v":true},{"$f":"IF(Базаданных[[#This Row],[Статус2]],COUNTIF($T$2:Базаданных[[#This Row],[Статус2]],TRUE),\"\")","v":141},{"$f":"IFERROR(INDEX(Базаданных[Чей клиент],MATCH(ROWS($U$2:Базаданных[[#This Row],[Индекс3]]),Базаданных[Индекс3],0)),\"\")","v":"Нерсесов Давид"},{"$f":"Базаданных[[#This Row],[ДД]]-Базаданных[[#This Row],[ГД]]","v":31840},{"$f":"Базаданных[[#This Row],[КВ]]-Базаданных[[#This Row],[ГК]]","v":0}]
["2019-04-07T11:04:36",43570.461524537037,7,"Воскресенье","Апрель","2019",2050,"-",0,"-",0,"-",0,"-","Пименов Алексей","Магомед Махачкала",{"$f":"NOT(ISERROR(SEARCH('Форма ввода'!$C$5,Базаданных[[#This Row],[Клиент]])))","v":false},{"$f":"IF(Базаданных[[#This Row],[Статус]],COUNTIF($Q$2:Базаданных[[#This Row],[Статус]],TRUE),\"\")","v":""},{"$f":"IFERROR(INDEX(Базаданных[Клиент],MATCH(ROWS($R$2:Базаданных[[#This Row],[Индекс]]),Базаданных[Индекс],0)),\"\")","v":""},{"$f":"NOT(ISERROR(SEARCH('Форма ввода'!$C$9,Базаданных[[#This Row],[Чей клиент]])))","v":true},{"$f":"IF(Базаданных[[#This Row],[Статус2]],COUNTIF($T$2:Базаданных[[#This Row],[Статус2]],TRUE),\"\")","v":142},{"$f":"IFERROR(INDEX(Базаданных[Чей клиент],MATCH(ROWS($U$2:Базаданных[[#This Row],[Индекс3]]),Базаданных[Индекс3],0)),\"\")","v":"Пименов Алексей"},{"$f":"Базаданных[[#This Row],[ДД]]-Базаданных[[#This Row],[ГД]]","v":2050},{"$f":"Базаданных[[#This Row],[КВ]]-Базаданных[[#This Row],[ГК]]","v":0}]
["2019-04-07T11:04:36",43570.461780439815,7,"Воскресенье","Апрель","2019",10100,"-",7400,"-",0,"-",0,"-","Гречихина Юля","Александр (Черемушки 2B-15)",{"$f":"NOT(ISERROR(SEARCH('Форма ввода'!$C$5,Базаданных[[#This Row],[Клиент]])))","v":false},{"$f":"IF(Базаданных[[#This Row],[Статус]],COUNTIF($Q$2:Базаданных[[#This Row],[Статус]],TRUE),\"\")","v":""},{"$f":"IFERROR(INDEX(Базаданных[Клиент],MATCH(ROWS($R$2:Базаданных[[#This Row],[Индекс]]),Базаданных[Индекс],0)),\"\")","v":""},{"$f":"NOT(ISERROR(SEARCH('Форма ввода'!$C$9,Базаданных[[#This Row],[Чей клиент]])))","v":true},{"$f":"IF(Базаданных[[#This Row],[Статус2]],COUNTIF($T$2:Базаданных[[#This Row],[Статус2]],TRUE),\"\")","v":143},{"$f":"IFERROR(INDEX(Базаданных[Чей клиент],MATCH(ROWS($U$2:Базаданных[[#This Row],[Индекс3]]),Базаданных[Индекс3],0)),\"\")","v":"Гречихина Юля"},{"$f":"Базаданных[[#This Row],[ДД]]-Базаданных[[#This Row],[ГД]]","v":2700},{"$f":"Базаданных[[#This Row],[КВ]]-Базаданных[[#This Row],[ГК]]","v":0}]
["2019-04-07T11:04:36",43570.461985416667,7,"Воскресенье","Апрель","2019",0,"-",0,"-",190000,"-",0,"-","Пименов Алексей","Эдик (От Сергея)",{"$f":"NOT(ISERROR(SEARCH('Форма ввода'!$C$5,Базаданных[[#This Row],[Клиент]])))","v":false},{"$f":"IF(Базаданных[[#This Row],[Статус]],COUNTIF($Q$2:Базаданных[[#This Row],[Статус]],TRUE),\"\")","v":""},{"$f":"IFERROR(INDEX(Базаданных[Клиент],MATCH(ROWS($R$2:Базаданных[[#This Row],[Индекс]]),Базаданных[Индекс],0)),\"\")","v":""},{"$f":"NOT(ISERROR(SEARCH('Форма ввода'!$C$9,Базаданных[[#This Row],[Чей клиент]])))","v":true},{"$f":"IF(Базаданных[[#This Row],[Статус2]],COUNTIF($T$2:Базаданных[[#This Row],[Статус2]],TRUE),\"\")","v":144},{"$f":"IFERROR(INDEX(Базаданных[Чей клиент],MATCH(ROWS($U$2:Базаданных[[#This Row],[Индекс3]]),Базаданных[Индекс3],0)),\"\")","v":"Пименов Алексей"},{"$f":"Базаданных[[#This Row],[ДД]]-Базаданных[[#This Row],[ГД]]","v":0},{"$f":"Базаданных[[#This Row],[КВ]]-Базаданных[[#This Row],[ГК]]","v":190000}]
["2019-04-07T11:04:36",43570.463674652776,7,"Воскресенье","Апрель","2019",0,"-",0,"-",0,"-",33000,"-","Пименов Алексей","Александр Дергач (Бронницы)",{"$f":"NOT(ISERROR(SEARCH('Форма ввода'!$C$5,Базаданных[[#This Row],[Клиент]])))","v":false},{"$f":"IF(Базаданных[[#This Row],[Статус]],COUNTIF($Q$2:Базаданных[[#This Row],[Статус]],TRUE),\"\")","v":""},{"$f":"IFERROR(INDEX(Базаданных[Клиент],MATCH(ROWS($R$2:Базаданных[[#This Row],[Индекс]]),Базаданных[Индекс],0)),\"\")","v":""},{"$f":"NOT(ISERROR(SEARCH('Форма ввода'!$C$9,Базаданных[[#This Row],[Чей клиент]])))","v":true},{"$f":"IF(Базаданных[[#This Row],[Статус2]],COUNTIF($T$2:Базаданных[[#This Row],[Статус2]],TRUE),\"\")","v":145},{"$f":"IFERROR(INDEX(Базаданных[Чей клиент],MATCH(ROWS($U$2:Базаданных[[#This Row],[Индекс3]]),Базаданных[Индекс3],0)),\"\")","v":"Пименов Алексей"},{"$f":"Базаданных[[#This Row],[ДД]]-Базаданных[[#This Row],[ГД]]","v":0},{"$f":"Базаданных[[#This Row],[КВ]]-Базаданных[[#This Row],[ГК]]","v":-33000}]
["2019-04-08T11:43:49",43570.488767013892,8,"понедельник","Апрель","2019",0,"-",29000,"-",0,"-",0,"-","Нерсесов Давид","Денис (Теплый стан)",{"$f":"NOT(ISERROR(SEARCH('Форма ввода'!$C$5,Базаданных[[#This Row],[Клиент]])))","v":false},{"$f":"IF(Базаданных[[#This Row],[Статус]],COUNTIF($Q$2:Базаданных[[#This Row],[Статус]],TRUE),\"\")","v":""},{"$f":"IFERROR(INDEX(Базаданных[Клиент],MATCH(ROWS($R$2:Базаданных[[#This Row],[Индекс]]),Базаданных[Индекс],0)),\"\")","v":""},{"$f":"NOT(ISERROR(SEARCH('Форма ввода'!$C$9,Базаданных[[#This Row],[Чей клиент]])))","v":true},{"$f":"IF(Базаданных[[#This Row],[Статус2]],COUNTIF($T$2:Базаданных[[#This Row],[Статус2]],TRUE),\"\")","v":146},{"$f":"IFERROR(INDEX(Базаданных[Чей клиент],MATCH(ROWS($U$2:Базаданных[[#This Row],[Индекс3]]),Базаданных[Индекс3],0)),\"\")","v":"Нерсесов Давид"},{"$f":"Базаданных[[#This Row],[ДД]]-Базаданных[[#This Row],[ГД]]","v":-29000},{"$f":"Базаданных[[#This Row],[КВ]]-Базаданных[[#This Row],[ГК]]","v":0}]
["2019-04-08T11:43:49",43570.488939120369,8,"понедельник","Апрель","2019",0,"-",39000,"-",0,"-",0,"-","Нерсесов Давид","Мухамед (Теплый стан)",{"$f":"NOT(ISERROR(SEARCH('Форма ввода'!$C$5,Базаданных[[#This Row],[Клиент]])))","v":false},{"$f":"IF(Базаданных[[#This Row],[Статус]],COUNTIF($Q$2:Базаданных[[#This Row],[Статус]],TRUE),\"\")","v":""},{"$f":"IFERROR(INDEX(Базаданных[Клиент],MATCH(ROWS($R$2:Базаданных[[#This Row],[Индекс]]),Базаданных[Индекс],0)),\"\")","v":""},{"$f":"NOT(ISERROR(SEARCH('Форма ввода'!$C$9,Базаданных[[#This Row],[Чей клиент]])))","v":true},{"$f":"IF(Базаданных[[#This Row],[Статус2]],COUNTIF($T$2:Базаданных[[#This Row],[Статус2]],TRUE),\"\")","v":147},{"$f":"IFERROR(INDEX(Базаданных[Чей клиент],MATCH(ROWS($U$2:Базаданных[[#This Row],[Индекс3]]),Базаданных[Индекс3],0)),\"\")","v":"Нерсесов Давид"},{"$f":"Базаданных[[#This Row],[ДД]]-Базаданных[[#This Row],[ГД]]","v":-39000},{"$f":"Базаданных[[#This Row],[КВ]]-Базаданных[[#This Row],[ГК]]","v":0}]
["2019-04-08T11:43:49",43570.489072453704,8,"понедельник","Апрель","2019",0,"-",11450,"-",0,"-",0,"-","Нерсесов Давид","Акоп П-90 (Савок)",{"$f":"NOT(ISERROR(SEARCH('Форма ввода'!$C$5,Базаданных[[#This Row],[Клиент]])))","v":false},{"$f":"IF(Базаданных[[#This Row],[Статус]],COUNTIF($Q$2:Базаданных[[#This Row],[Статус]],TRUE),\"\")","v":""},{"$f":"IFERROR(INDEX(Базаданных[Клиент],MATCH(ROWS($R$2:Базаданных[[#This Row],[Индекс]]),Базаданных[Индекс],0)),\"\")","v":""},{"$f":"NOT(ISERROR(SEARCH('Форма ввода'!$C$9,Базаданных[[#This Row],[Чей клиент]])))","v":true},{"$f":"IF(Базаданных[[#This Row],[Статус2]],COUNTIF($T$2:Базаданных[[#This Row],[Статус2]],TRUE),\"\")","v":148},{"$f":"IFERROR(INDEX(Базаданных[Чей клиент],MATCH(ROWS($U$2:Базаданных[[#This Row],[Индекс3]]),Базаданных[Индекс3],0)),\"\")","v":"Нерсесов Давид"},{"$f":"Базаданных[[#This Row],[ДД]]-Базаданных[[#This Row],[ГД]]","v":-11450},{"$f":"Базаданных[[#This Row],[КВ]]-Базаданных[[#This Row],[ГК]]","v":0}]
["2019-04-08T11:43:49",43570.489237499998,8,"понедельник","Апрель","2019",0,"-",50100,"-",0,"-",0,"-","Хачатрян Араик","Хачатрян Араик (АлексСтор)",{"$f":"NOT(ISERROR(SEARCH('Форма ввода'!$C$5,Базаданных[[#This Row],[Клиент]])))","v":false},{"$f":"IF(Базаданных[[#This Row],[Статус]],COUNTIF($Q$2:Базаданных[[#This Row],[Статус]],TRUE),\"\")","v":""},{"$f":"IFERROR(INDEX(Базаданных[Клиент],MATCH(ROWS($R$2:Базаданных[[#This Row],[Индекс]]),Базаданных[Индекс],0)),\"\")","v":""},{"$f":"NOT(ISERROR(SEARCH('Форма ввода'!$C$9,Базаданных[[#This Row],[Чей клиент]])))","v":true},{"$f":"IF(Базаданных[[#This Row],[Статус2]],COUNTIF($T$2:Базаданных[[#This Row],[Статус2]],TRUE),\"\")","v":149},{"$f":"IFERROR(INDEX(Базаданных[Чей клиент],MATCH(ROWS($U$2:Базаданных[[#This Row],[Индекс3]]),Базаданных[Индекс3],0)),\"\")","v":"Хачатрян Араик"},{"$f":"Базаданных[[#This Row],[ДД]]-Базаданных[[#This Row],[ГД]]","v":-50100},{"$f":"Базаданных[[#This Row],[КВ]]-Базаданных[[#This Row],[ГК]]","v":0}]
["2019-04-08T11:43:49",43570.489390046299,8,"понедельник","Апрель","2019",0,"-",550,"-",0,"-",0,"-","Гречихина Юля","Илья (Коммисионка Домодедово)",{"$f":"NOT(ISERROR(SEARCH('Форма ввода'!$C$5,Базаданных[[#This Row],[Клиент]])))","v":false},{"$f":"IF(Базаданных[[#This Row],[Статус]],COUNTIF($Q$2:Базаданных[[#This Row],[Статус]],TRUE),\"\")","v":""},{"$f":"IFERROR(INDEX(Базаданных[Клиент],MATCH(ROWS($R$2:Базаданных[[#This Row],[Индекс]]),Базаданных[Индекс],0)),\"\")","v":""},{"$f":"NOT(ISERROR(SEARCH('Форма ввода'!$C$9,Базаданных[[#This Row],[Чей клиент]])))","v":true},{"$f":"IF(Базаданных[[#This Row],[Статус2]],COUNTIF($T$2:Базаданных[[#This Row],[Статус2]],TRUE),\"\")","v":150},{"$f":"IFERROR(INDEX(Базаданных[Чей клиент],MATCH(ROWS($U$2:Базаданных[[#This Row],[Индекс3]]),Базаданных[Индекс3],0)),\"\")","v":"Гречихина Юля"},{"$f":"Базаданных[[#This Row],[ДД]]-Базаданных[[#This Row],[ГД]]","v":-550},{"$f":"Базаданных[[#This Row],[КВ]]-Базаданных[[#This Row],[ГК]]","v":0}]
["2019-04-08T11:43:49",43570.48952372685,8,"понедельник","Апрель","2019",0,"-",120,"-",0,"-",0,"-","Гречихина Юля","Комиссионка Щербинка",{"$f":"NOT(ISERROR(SEARCH('Форма ввода'!$C$5,Базаданных[[#This Row],[Клиент]])))","v":false},{"$f":"IF(Базаданных[[#This Row],[Статус]],COUNTIF($Q$2:Базаданных[[#This Row],[Статус]],TRUE),\"\")","v":""},{"$f":"IFERROR(INDEX(Базаданных[Клиент],MATCH(ROWS($R$2:Базаданных[[#This Row],[Индекс]]),Базаданных[Индекс],0)),\"\")","v":""},{"$f":"NOT(ISERROR(SEARCH('Форма ввода'!$C$9,Базаданных[[#This Row],[Чей клиент]])))","v":true},{"$f":"IF(Базаданных[[#This Row],[Статус2]],COUNTIF($T$2:Базаданных[[#This Row],[Статус2]],TRUE),\"\")","v":151},{"$f":"IFERROR(INDEX(Базаданных[Чей клиент],MATCH(ROWS($U$2:Базаданных[[#This Row],[Индекс3]]),Базаданных[Индекс3],0)),\"\")","v":"Гречихина Юля"},{"$f":"Базаданных[[#This Row],[ДД]]-Базаданных[[#This Row],[ГД]]","v":-120},{"$f":"Базаданных[[#This Row],[КВ]]-Базаданных[[#This Row],[ГК]]","v":0}]
["2019-04-08T11:43:49",43570.489709837966,8,"понедельник","Апрель","2019",0,"-",10100,"-",0,"-",0,"-","Гречихина Юля","Александр (Черемушки 2B-15)",{"$f":"NOT(ISERROR(SEARCH('Форма ввода'!$C$5,Базаданных[[#This Row],[Клиент]])))","v":false},{"$f":"IF(Базаданных[[#This Row],[Статус]],COUNTIF($Q$2:Базаданных[[#This Row],[Статус]],TRUE),\"\")","v":""},{"$f":"IFERROR(INDEX(Базаданных[Клиент],MATCH(ROWS($R$2:Базаданных[[#This Row],[Индекс]]),Базаданных[Индекс],0)),\"\")","v":""},{"$f":"NOT(ISERROR(SEARCH('Форма ввода'!$C$9,Базаданных[[#This Row],[Чей клиент]])))","v":true},{"$f":"IF(Базаданных[[#This Row],[Статус2]],COUNTIF($T$2:Базаданных[[#This Row],[Статус2]],TRUE),\"\")","v":152},{"$f":"IFERROR(INDEX(Базаданных[Чей клиент],MATCH(ROWS($U$2:Базаданных[[#This Row],[Индекс3]]),Базаданных[Индекс3],0)),\"\")","v":"Гречихина Юля"},{"$f":"Базаданных[[#This Row],[ДД]]-Базаданных[[#This Row],[ГД]]","v":-10100},{"$f":"Базаданных[[#This Row],[КВ]]-Базаданных[[#This Row],[ГК]]","v":0}]
["2019-04-08T11:43:49",43570.489819097224,8,"понедельник","Апрель","2019",0,"-",5000,"-",0,"-",0,"-","Гречихина Юля","Вадим (Скупка Егорьевск)",{"$f":"NOT(ISERROR(SEARCH('Форма ввода'!$C$5,Базаданных[[#This Row],[Клиент]])))","v":false},{"$f":"IF(Базаданных[[#This Row],[Статус]],COUNTIF($Q$2:Базаданных[[#This Row],[Статус]],TRUE),\"\")","v":""},{"$f":"IFERROR(INDEX(Базаданных[Клиент],MATCH(ROWS($R$2:Базаданных[[#This Row],[Индекс]]),Базаданных[Индекс],0)),\"\")","v":""},{"$f":"NOT(ISERROR(SEARCH('Форма ввода'!$C$9,Базаданных[[#This Row],[Чей клиент]])))","v":true},{"$f":"IF(Базаданных[[#This Row],[Статус2]],COUNTIF($T$2:Базаданных[[#This Row],[Статус2]],TRUE),\"\")","v":153},{"$f":"IFERROR(INDEX(Базаданных[Чей клиент],MATCH(ROWS($U$2:Базаданных[[#This Row],[Индекс3]]),Базаданных[Индекс3],0)),\"\")","v":"Гречихина Юля"},{"$f":"Базаданных[[#This Row],[ДД]]-Базаданных[[#This Row],[ГД]]","v":-5000},{"$f":"Базаданных[[#This Row],[КВ]]-Базаданных[[#This Row],[ГК]]","v":0}]
["2019-04-08T11:43:49",43570.489955555553,8,"понедельник","Апрель","2019",0,"-",3400,"-",0,"-",0,"-","Гречихина Юля","Гречихина Юля (AlexStore)",{"$f":"NOT(ISERROR(SEARCH('Форма ввода'!$C$5,Базаданных[[#This Row],[Клиент]])))","v":false},{"$f":"IF(Базаданных[[#This Row],[Статус]],COUNTIF($Q$2:Базаданных[[#This Row],[Статус]],TRUE),\"\")","v":""},{"$f":"IFERROR(INDEX(Базаданных[Клиент],MATCH(ROWS($R$2:Базаданных[[#This Row],[Индекс]]),Базаданных[Индекс],0)),\"\")","v":""},{"$f":"NOT(ISERROR(SEARCH('Форма ввода'!$C$9,Базаданных[[#This Row],[Чей клиент]])))","v":true},{"$f":"IF(Базаданных[[#This Row],[Статус2]],COUNTIF($T$2:Базаданных[[#This Row],[Статус2]],TRUE),\"\")","v":154},{"$f":"IFERROR(INDEX(Базаданных[Чей клиент],MATCH(ROWS($U$2:Базаданных[[#This Row],[Индекс3]]),Базаданных[Индекс3],0)),\"\")","v":"Гречихина Юля"},{"$f":"Базаданных[[#This Row],[ДД]]-Базаданных[[#This Row],[ГД]]","v":-3400},{"$f":"Базаданных[[#This Row],[КВ]]-Базаданных[[#This Row],[ГК]]","v":0}]
["2019-04-08T11:43:49",43570.49006585648,8,"понедельник","Апрель","2019",0,"-",6800,"-",0,"-",0,"-","Гречихина Юля","Паша (Комиссионка Бутово)",{"$f":"NOT(ISERROR(SEARCH('Форма ввода'!$C$5,Базаданных[[#This Row],[Клиент]])))","v":false},{"$f":"IF(Базаданных[[#This Row],[Статус]],COUNTIF($Q$2:Базаданных[[#This Row],[Статус]],TRUE),\"\")","v":""},{"$f":"IFERROR(INDEX(Базаданных[Клиент],MATCH(ROWS($R$2:Базаданных[[#This Row],[Индекс]]),Базаданных[Индекс],0)),\"\")","v":""},{"$f":"NOT(ISERROR(SEARCH('Форма ввода'!$C$9,Базаданных[[#This Row],[Чей клиент]])))","v":true},{"$f":"IF(Базаданных[[#This Row],[Статус2]],COUNTIF($T$2:Базаданных[[#This Row],[Статус2]],TRUE),\"\")","v":155},{"$f":"IFERROR(INDEX(Базаданных[Чей клиент],MATCH(ROWS($U$2:Базаданных[[#This Row],[Индекс3]]),Базаданных[Индекс3],0)),\"\")","v":"Гречихина Юля"},{"$f":"Базаданных[[#This Row],[ДД]]-Базаданных[[#This Row],[ГД]]","v":-6800},{"$f":"Базаданных[[#This Row],[КВ]]-Базаданных[[#This Row],[ГК]]","v":0}]
["2019-04-08T11:43:49",43570.490192013887,8,"понедельник","Апрель","2019",0,"-",790,"-",0,"-",0,"-","Гречихина Юля","Скупка Розовая (Коломна)",{"$f":"NOT(ISERROR(SEARCH('Форма ввода'!$C$5,Базаданных[[#This Row],[Клиент]])))","v":false},{"$f":"IF(Базаданных[[#This Row],[Статус]],COUNTIF($Q$2:Базаданных[[#This Row],[Статус]],TRUE),\"\")","v":""},{"$f":"IFERROR(INDEX(Базаданных[Клиент],MATCH(ROWS($R$2:Базаданных[[#This Row],[Индекс]]),Базаданных[Индекс],0)),\"\")","v":""},{"$f":"NOT(ISERROR(SEARCH('Форма ввода'!$C$9,Базаданных[[#This Row],[Чей клиент]])))","v":true},{"$f":"IF(Базаданных[[#This Row],[Статус2]],COUNTIF($T$2:Базаданных[[#This Row],[Статус2]],TRUE),\"\")","v":156},{"$f":"IFERROR(INDEX(Базаданных[Чей клиент],MATCH(ROWS($U$2:Базаданных[[#This Row],[Индекс3]]),Базаданных[Индекс3],0)),\"\")","v":"Гречихина Юля"},{"$f":"Базаданных[[#This Row],[ДД]]-Базаданных[[#This Row],[ГД]]","v":-790},{"$f":"Базаданных[[#This Row],[КВ]]-Базаданных[[#This Row],[ГК]]","v":0}]
["2019-04-08T11:43:49",43570.490349305554,8,"понедельник","Апрель","2019",0,"-",650,"-",0,"-",0,"-","Гречихина Юля","Скупка  №1 (Пушкино)",{"$f":"NOT(ISERROR(SEARCH('Форма ввода'!$C$5,Базаданных[[#This Row],[Клиент]])))","v":false},{"$f":"IF(Базаданных[[#This Row],[Статус]],COUNTIF($Q$2:Базаданных[[#This Row],[Статус]],TRUE),\"\")","v":""},{"$f":"IFERROR(INDEX(Базаданных[Клиент],MATCH(ROWS($R$2:Базаданных[[#This Row],[Индекс]]),Базаданных[Индекс],0)),\"\")","v":""},{"$f":"NOT(ISERROR(SEARCH('Форма ввода'!$C$9,Базаданных[[#This Row],[Чей клиент]])))","v":true},{"$f":"IF(Базаданных[[#This Row],[Статус2]],COUNTIF($T$2:Базаданных[[#This Row],[Статус2]],TRUE),\"\")","v":157},{"$f":"IFERROR(INDEX(Базаданных[Чей клиент],MATCH(ROWS($U$2:Базаданных[[#This Row],[Индекс3]]),Базаданных[Индекс3],0)),\"\")","v":"Гречихина Юля"},{"$f":"Базаданных[[#This Row],[ДД]]-Базаданных[[#This Row],[ГД]]","v":-650},{"$f":"Базаданных[[#This Row],[КВ]]-Базаданных[[#This Row],[ГК]]","v":0}]
["2019-04-08T11:43:49",43570.490349305554,8,"понедельник","Апрель","2019",0,"-",0,"-",21260,"-",0,"-","Пименов Алексей","Александр (Сызрань)",{"$f":"NOT(ISERROR(SEARCH('Форма ввода'!$C$5,Базаданных[[#This Row],[Клиент]])))","v":false},{"$f":"IF(Базаданных[[#This Row],[Статус]],COUNTIF($Q$2:Базаданных[[#This Row],[Статус]],TRUE),\"\")","v":""},{"$f":"IFERROR(INDEX(Базаданных[Клиент],MATCH(ROWS($R$2:Базаданных[[#This Row],[Индекс]]),Базаданных[Индекс],0)),\"\")","v":""},{"$f":"NOT(ISERROR(SEARCH('Форма ввода'!$C$9,Базаданных[[#This Row],[Чей клиент]])))","v":true},{"$f":"IF(Базаданных[[#This Row],[Статус2]],COUNTIF($T$2:Базаданных[[#This Row],[Статус2]],TRUE),\"\")","v":158},{"$f":"IFERROR(INDEX(Базаданных[Чей клиент],MATCH(ROWS($U$2:Базаданных[[#This Row],[Индекс3]]),Базаданных[Индекс3],0)),\"\")","v":"Пименов Алексей"},{"$f":"Базаданных[[#This Row],[ДД]]-Базаданных[[#This Row],[ГД]]","v":0},{"$f":"Базаданных[[#This Row],[КВ]]-Базаданных[[#This Row],[ГК]]","v":21260}]
["2019-04-08T11:43:49",43570.490538888887,8,"понедельник","Апрель","2019",0,"-",9000,"-",0,"-",0,"-","Пименов Алексей","Частное лицо",{"$f":"NOT(ISERROR(SEARCH('Форма ввода'!$C$5,Базаданных[[#This Row],[Клиент]])))","v":false},{"$f":"IF(Базаданных[[#This Row],[Статус]],COUNTIF($Q$2:Базаданных[[#This Row],[Статус]],TRUE),\"\")","v":""},{"$f":"IFERROR(INDEX(Базаданных[Клиент],MATCH(ROWS($R$2:Базаданных[[#This Row],[Индекс]]),Базаданных[Индекс],0)),\"\")","v":""},{"$f":"NOT(ISERROR(SEARCH('Форма ввода'!$C$9,Базаданных[[#This Row],[Чей клиент]])))","v":true},{"$f":"IF(Базаданных[[#This Row],[Статус2]],COUNTIF($T$2:Базаданных[[#This Row],[Статус2]],TRUE),\"\")","v":159},{"$f":"IFERROR(INDEX(Базаданных[Чей клиент],MATCH(ROWS($U$2:Базаданных[[#This Row],[Индекс3]]),Базаданных[Индекс3],0)),\"\")","v":"Пименов Алексей"},{"$f":"Базаданных[[#This Row],[ДД]]-Базаданных[[#This Row],[ГД]]","v":-9000},{"$f":"Базаданных[[#This Row],[КВ]]-Базаданных[[#This Row],[ГК]]","v":0}]
["2019-04-08T11:43:49",43570.490698958332,8,"понедельник","Апрель","2019",0,"-",0,"-",0,"-",190000,"-","Пименов Алексей","Эдик (От Сергея)",{"$f":"NOT(ISERROR(SEARCH('Форма ввода'!$C$5,Базаданных[[#This Row],[Клиент]])))","v":false},{"$f":"IF(Базаданных[[#This Row],[Статус]],COUNTIF($Q$2:Базаданных[[#This Row],[Статус]],TRUE),\"\")","v":""},{"$f":"IFERROR(INDEX(Базаданных[Клиент],MATCH(ROWS($R$2:Базаданных[[#This Row],[Индекс]]),Базаданных[Индекс],0)),\"\")","v":""},{"$f":"NOT(ISERROR(SEARCH('Форма ввода'!$C$9,Базаданных[[#This Row],[Чей клиент]])))","v":true},{"$f":"IF(Базаданных[[#This Row],[Статус2]],COUNTIF($T$2:Базаданных[[#This Row],[Статус2]],TRUE),\"\")","v":160},{"$f":"IFERROR(INDEX(Базаданных[Чей клиент],MATCH(ROWS($U$2:Базаданных[[#This Row],[Индекс3]]),Базаданных[Индекс3],0)),\"\")","v":"Пименов Алексей"},{"$f":"Базаданных[[#This Row],[ДД]]-Базаданных[[#This Row],[ГД]]","v":0},{"$f":"Базаданных[[#This Row],[КВ]]-Базаданных[[#This Row],[ГК]]","v":-190000}]
["2019-04-08T11:43:49",43570.491379861109,8,"понедельник","Апрель","2019",0,"-",0,"-",0,"-",18200,"-","Нерсесов Давид","Василий T-95 (Савеловский)",{"$f":"NOT(ISERROR(SEARCH('Форма ввода'!$C$5,Базаданных[[#This Row],[Клиент]])))","v":false},{"$f":"IF(Базаданных[[#This Row],[Статус]],COUNTIF($Q$2:Базаданных[[#This Row],[Статус]],TRUE),\"\")","v":""},{"$f":"IFERROR(INDEX(Базаданных[Клиент],MATCH(ROWS($R$2:Базаданных[[#This Row],[Индекс]]),Базаданных[Индекс],0)),\"\")","v":""},{"$f":"NOT(ISERROR(SEARCH('Форма ввода'!$C$9,Базаданных[[#This Row],[Чей клиент]])))","v":true},{"$f":"IF(Базаданных[[#This Row],[Статус2]],COUNTIF($T$2:Базаданных[[#This Row],[Статус2]],TRUE),\"\")","v":161},{"$f":"IFERROR(INDEX(Базаданных[Чей клиент],MATCH(ROWS($U$2:Базаданных[[#This Row],[Индекс3]]),Базаданных[Индекс3],0)),\"\")","v":"Нерсесов Давид"},{"$f":"Базаданных[[#This Row],[ДД]]-Базаданных[[#This Row],[ГД]]","v":0},{"$f":"Базаданных[[#This Row],[КВ]]-Базаданных[[#This Row],[ГК]]","v":-18200}]
["2019-04-08T11:43:49",43570.49150358796,8,"понедельник","Апрель","2019",0,"-",0,"-",0,"-",500,"-","Нерсесов Давид","Скупка Алтуфьево Андрей",{"$f":"NOT(ISERROR(SEARCH('Форма ввода'!$C$5,Базаданных[[#This Row],[Клиент]])))","v":false},{"$f":"IF(Базаданных[[#This Row],[Статус]],COUNTIF($Q$2:Базаданных[[#This Row],[Статус]],TRUE),\"\")","v":""},{"$f":"IFERROR(INDEX(Базаданных[Клиент],MATCH(ROWS($R$2:Базаданных[[#This Row],[Индекс]]),Базаданных[Индекс],0)),\"\")","v":""},{"$f":"NOT(ISERROR(SEARCH('Форма ввода'!$C$9,Базаданных[[#This Row],[Чей клиент]])))","v":true},{"$f":"IF(Базаданных[[#This Row],[Статус2]],COUNTIF($T$2:Базаданных[[#This Row],[Статус2]],TRUE),\"\")","v":162},{"$f":"IFERROR(INDEX(Базаданных[Чей клиент],MATCH(ROWS($U$2:Базаданных[[#This Row],[Индекс3]]),Базаданных[Индекс3],0)),\"\")","v":"Нерсесов Давид"},{"$f":"Базаданных[[#This Row],[ДД]]-Базаданных[[#This Row],[ГД]]","v":0},{"$f":"Базаданных[[#This Row],[КВ]]-Базаданных[[#This Row],[ГК]]","v":-500}]
["2019-04-08T11:43:49",43570.491630208337,8,"понедельник","Апрель","2019",0,"-",0,"-",0,"-",69940,"-","Нерсесов Давид","Надир (К84 Царицино)",{"$f":"NOT(ISERROR(SEARCH('Форма ввода'!$C$5,Базаданных[[#This Row],[Клиент]])))","v":false},{"$f":"IF(Базаданных[[#This Row],[Статус]],COUNTIF($Q$2:Базаданных[[#This Row],[Статус]],TRUE),\"\")","v":""},{"$f":"IFERROR(INDEX(Базаданных[Клиент],MATCH(ROWS($R$2:Базаданных[[#This Row],[Индекс]]),Базаданных[Индекс],0)),\"\")","v":""},{"$f":"NOT(ISERROR(SEARCH('Форма ввода'!$C$9,Базаданных[[#This Row],[Чей клиент]])))","v":true},{"$f":"IF(Базаданных[[#This Row],[Статус2]],COUNTIF($T$2:Базаданных[[#This Row],[Статус2]],TRUE),\"\")","v":163},{"$f":"IFERROR(INDEX(Базаданных[Чей клиент],MATCH(ROWS($U$2:Базаданных[[#This Row],[Индекс3]]),Базаданных[Индекс3],0)),\"\")","v":"Нерсесов Давид"},{"$f":"Базаданных[[#This Row],[ДД]]-Базаданных[[#This Row],[ГД]]","v":0},{"$f":"Базаданных[[#This Row],[КВ]]-Базаданных[[#This Row],[ГК]]","v":-69940}]
["2019-04-08T11:43:49",43570.492031365742,8,"понедельник","Апрель","2019",0,"-",0,"-",6920,"-",0,"-","Пименов Алексей","Белов Александр Павлович",{"$f":"NOT(ISERROR(SEARCH('Форма ввода'!$C$5,Базаданных[[#This Row],[Клиент]])))","v":false},{"$f":"IF(Базаданных[[#This Row],[Статус]],COUNTIF($Q$2:Базаданных[[#This Row],[Статус]],TRUE),\"\")","v":""},{"$f":"IFERROR(INDEX(Базаданных[Клиент],MATCH(ROWS($R$2:Базаданных[[#This Row],[Индекс]]),Базаданных[Индекс],0)),\"\")","v":""},{"$f":"NOT(ISERROR(SEARCH('Форма ввода'!$C$9,Базаданных[[#This Row],[Чей клиент]])))","v":true},{"$f":"IF(Базаданных[[#This Row],[Статус2]],COUNTIF($T$2:Базаданных[[#This Row],[Статус2]],TRUE),\"\")","v":164},{"$f":"IFERROR(INDEX(Базаданных[Чей клиент],MATCH(ROWS($U$2:Базаданных[[#This Row],[Индекс3]]),Базаданных[Индекс3],0)),\"\")","v":"Пименов Алексей"},{"$f":"Базаданных[[#This Row],[ДД]]-Базаданных[[#This Row],[ГД]]","v":0},{"$f":"Базаданных[[#This Row],[КВ]]-Базаданных[[#This Row],[ГК]]","v":6920}]
["2019-04-09T11:49:27",43570.49267673611,9,"Вторник","Апрель","2019",1200,"-",0,"-",0,"-",0,"-","Пименов Алексей","Алексей Бердников \"Титан\" (Киров)",{"$f":"NOT(ISERROR(SEARCH('Форма ввода'!$C$5,Базаданных[[#This Row],[Клиент]])))","v":false},{"$f":"IF(Базаданных[[#This Row],[Статус]],COUNTIF($Q$2:Базаданных[[#This Row],[Статус]],TRUE),\"\")","v":""},{"$f":"IFERROR(INDEX(Базаданных[Клиент],MATCH(ROWS($R$2:Базаданных[[#This Row],[Индекс]]),Базаданных[Индекс],0)),\"\")","v":""},{"$f":"NOT(ISERROR(SEARCH('Форма ввода'!$C$9,Базаданных[[#This Row],[Чей клиент]])))","v":true},{"$f":"IF(Базаданных[[#This Row],[Статус2]],COUNTIF($T$2:Базаданных[[#This Row],[Статус2]],TRUE),\"\")","v":165},{"$f":"IFERROR(INDEX(Базаданных[Чей клиент],MATCH(ROWS($U$2:Базаданных[[#This Row],[Индекс3]]),Базаданных[Индекс3],0)),\"\")","v":"Пименов Алексей"},{"$f":"Базаданных[[#This Row],[ДД]]-Базаданных[[#This Row],[ГД]]","v":1200},{"$f":"Базаданных[[#This Row],[КВ]]-Базаданных[[#This Row],[ГК]]","v":0}]
["2019-04-09T11:49:27",43570.49282511574,9,"Вторник","Апрель","2019",17100,"-",0,"-",0,"-",0,"-","Пименов Алексей","Дмитрий Arm Device",{"$f":"NOT(ISERROR(SEARCH('Форма ввода'!$C$5,Базаданных[[#This Row],[Клиент]])))","v":false},{"$f":"IF(Базаданных[[#This Row],[Статус]],COUNTIF($Q$2:Базаданных[[#This Row],[Статус]],TRUE),\"\")","v":""},{"$f":"IFERROR(INDEX(Базаданных[Клиент],MATCH(ROWS($R$2:Базаданных[[#This Row],[Индекс]]),Базаданных[Индекс],0)),\"\")","v":""},{"$f":"NOT(ISERROR(SEARCH('Форма ввода'!$C$9,Базаданных[[#This Row],[Чей клиент]])))","v":true},{"$f":"IF(Базаданных[[#This Row],[Статус2]],COUNTIF($T$2:Базаданных[[#This Row],[Статус2]],TRUE),\"\")","v":166},{"$f":"IFERROR(INDEX(Базаданных[Чей клиент],MATCH(ROWS($U$2:Базаданных[[#This Row],[Индекс3]]),Базаданных[Индекс3],0)),\"\")","v":"Пименов Алексей"},{"$f":"Базаданных[[#This Row],[ДД]]-Базаданных[[#This Row],[ГД]]","v":17100},{"$f":"Базаданных[[#This Row],[КВ]]-Базаданных[[#This Row],[ГК]]","v":0}]
["2019-04-09T11:49:27",43570.49295324074,9,"Вторник","Апрель","2019",18630,"-",0,"-",0,"-",0,"-","Пименов Алексей","Светлана Тверь",{"$f":"NOT(ISERROR(SEARCH('Форма ввода'!$C$5,Базаданных[[#This Row],[Клиент]])))","v":false},{"$f":"IF(Базаданных[[#This Row],[Статус]],COUNTIF($Q$2:Базаданных[[#This Row],[Статус]],TRUE),\"\")","v":""},{"$f":"IFERROR(INDEX(Базаданных[Клиент],MATCH(ROWS($R$2:Базаданных[[#This Row],[Индекс]]),Базаданных[Индекс],0)),\"\")","v":""},{"$f":"NOT(ISERROR(SEARCH('Форма ввода'!$C$9,Базаданных[[#This Row],[Чей клиент]])))","v":true},{"$f":"IF(Базаданных[[#This Row],[Статус2]],COUNTIF($T$2:Базаданных[[#This Row],[Статус2]],TRUE),\"\")","v":167},{"$f":"IFERROR(INDEX(Базаданных[Чей клиент],MATCH(ROWS($U$2:Базаданных[[#This Row],[Индекс3]]),Базаданных[Индекс3],0)),\"\")","v":"Пименов Алексей"},{"$f":"Базаданных[[#This Row],[ДД]]-Базаданных[[#This Row],[ГД]]","v":18630},{"$f":"Базаданных[[#This Row],[КВ]]-Базаданных[[#This Row],[ГК]]","v":0}]
["2019-04-09T11:49:27",43570.493305208336,9,"Вторник","Апрель","2019",7800,"-",0,"-",0,"-",0,"-","Пименов Алексей","Благо ломбард",{"$f":"NOT(ISERROR(SEARCH('Форма ввода'!$C$5,Базаданных[[#This Row],[Клиент]])))","v":false},{"$f":"IF(Базаданных[[#This Row],[Статус]],COUNTIF($Q$2:Базаданных[[#This Row],[Статус]],TRUE),\"\")","v":""},{"$f":"IFERROR(INDEX(Базаданных[Клиент],MATCH(ROWS($R$2:Базаданных[[#This Row],[Индекс]]),Базаданных[Индекс],0)),\"\")","v":""},{"$f":"NOT(ISERROR(SEARCH('Форма ввода'!$C$9,Базаданных[[#This Row],[Чей клиент]])))","v":true},{"$f":"IF(Базаданных[[#This Row],[Статус2]],COUNTIF($T$2:Базаданных[[#This Row],[Статус2]],TRUE),\"\")","v":168},{"$f":"IFERROR(INDEX(Базаданных[Чей клиент],MATCH(ROWS($U$2:Базаданных[[#This Row],[Индекс3]]),Базаданных[Индекс3],0)),\"\")","v":"Пименов Алексей"},{"$f":"Базаданных[[#This Row],[ДД]]-Базаданных[[#This Row],[ГД]]","v":7800},{"$f":"Базаданных[[#This Row],[КВ]]-Базаданных[[#This Row],[ГК]]","v":0}]
["2019-04-09T11:49:27",43570.493991203701,9,"Вторник","Апрель","2019",18000,"-",0,"-",0,"-",0,"-","Гречихина Юля","Вадим (Скупка Егорьевск)",{"$f":"NOT(ISERROR(SEARCH('Форма ввода'!$C$5,Базаданных[[#This Row],[Клиент]])))","v":false},{"$f":"IF(Базаданных[[#This Row],[Статус]],COUNTIF($Q$2:Базаданных[[#This Row],[Статус]],TRUE),\"\")","v":""},{"$f":"IFERROR(INDEX(Базаданных[Клиент],MATCH(ROWS($R$2:Базаданных[[#This Row],[Индекс]]),Базаданных[Индекс],0)),\"\")","v":""},{"$f":"NOT(ISERROR(SEARCH('Форма ввода'!$C$9,Базаданных[[#This Row],[Чей клиент]])))","v":true},{"$f":"IF(Базаданных[[#This Row],[Статус2]],COUNTIF($T$2:Базаданных[[#This Row],[Статус2]],TRUE),\"\")","v":169},{"$f":"IFERROR(INDEX(Базаданных[Чей клиент],MATCH(ROWS($U$2:Базаданных[[#This Row],[Индекс3]]),Базаданных[Индекс3],0)),\"\")","v":"Гречихина Юля"},{"$f":"Базаданных[[#This Row],[ДД]]-Базаданных[[#This Row],[ГД]]","v":18000},{"$f":"Базаданных[[#This Row],[КВ]]-Базаданных[[#This Row],[ГК]]","v":0}]
["2019-04-09T11:49:27",43570.494220138891,9,"Вторник","Апрель","2019",2820,"-",0,"-",0,"-",0,"-","Гречихина Юля","Дмитрий (Комиссионка Подольск)",{"$f":"NOT(ISERROR(SEARCH('Форма ввода'!$C$5,Базаданных[[#This Row],[Клиент]])))","v":false},{"$f":"IF(Базаданных[[#This Row],[Статус]],COUNTIF($Q$2:Базаданных[[#This Row],[Статус]],TRUE),\"\")","v":""},{"$f":"IFERROR(INDEX(Базаданных[Клиент],MATCH(ROWS($R$2:Базаданных[[#This Row],[Индекс]]),Базаданных[Индекс],0)),\"\")","v":""},{"$f":"NOT(ISERROR(SEARCH('Форма ввода'!$C$9,Базаданных[[#This Row],[Чей клиент]])))","v":true},{"$f":"IF(Базаданных[[#This Row],[Статус2]],COUNTIF($T$2:Базаданных[[#This Row],[Статус2]],TRUE),\"\")","v":170},{"$f":"IFERROR(INDEX(Базаданных[Чей клиент],MATCH(ROWS($U$2:Базаданных[[#This Row],[Индекс3]]),Базаданных[Индекс3],0)),\"\")","v":"Гречихина Юля"},{"$f":"Базаданных[[#This Row],[ДД]]-Базаданных[[#This Row],[ГД]]","v":2820},{"$f":"Базаданных[[#This Row],[КВ]]-Базаданных[[#This Row],[ГК]]","v":0}]
["2019-04-09T11:49:27",43570.494395717593,9,"Вторник","Апрель","2019",0,"-",0,"-",0,"-",7065,"-","Пименов Алексей","Андрей Тархов",{"$f":"NOT(ISERROR(SEARCH('Форма ввода'!$C$5,Базаданных[[#This Row],[Клиент]])))","v":false},{"$f":"IF(Базаданных[[#This Row],[Статус]],COUNTIF($Q$2:Базаданных[[#This Row],[Статус]],TRUE),\"\")","v":""},{"$f":"IFERROR(INDEX(Базаданных[Клиент],MATCH(ROWS($R$2:Базаданных[[#This Row],[Индекс]]),Базаданных[Индекс],0)),\"\")","v":""},{"$f":"NOT(ISERROR(SEARCH('Форма ввода'!$C$9,Базаданных[[#This Row],[Чей клиент]])))","v":true},{"$f":"IF(Базаданных[[#This Row],[Статус2]],COUNTIF($T$2:Базаданных[[#This Row],[Статус2]],TRUE),\"\")","v":171},{"$f":"IFERROR(INDEX(Базаданных[Чей клиент],MATCH(ROWS($U$2:Базаданных[[#This Row],[Индекс3]]),Базаданных[Индекс3],0)),\"\")","v":"Пименов Алексей"},{"$f":"Базаданных[[#This Row],[ДД]]-Базаданных[[#This Row],[ГД]]","v":0},{"$f":"Базаданных[[#This Row],[КВ]]-Базаданных[[#This Row],[ГК]]","v":-7065}]
["2019-04-09T11:49:27",43570.494641435187,9,"Вторник","Апрель","2019",0,"-",0,"-",0,"-",6620,"-","Пименов Алексей","Светлана Тверь",{"$f":"NOT(ISERROR(SEARCH('Форма ввода'!$C$5,Базаданных[[#This Row],[Клиент]])))","v":false},{"$f":"IF(Базаданных[[#This Row],[Статус]],COUNTIF($Q$2:Базаданных[[#This Row],[Статус]],TRUE),\"\")","v":""},{"$f":"IFERROR(INDEX(Базаданных[Клиент],MATCH(ROWS($R$2:Базаданных[[#This Row],[Индекс]]),Базаданных[Индекс],0)),\"\")","v":""},{"$f":"NOT(ISERROR(SEARCH('Форма ввода'!$C$9,Базаданных[[#This Row],[Чей клиент]])))","v":true},{"$f":"IF(Базаданных[[#This Row],[Статус2]],COUNTIF($T$2:Базаданных[[#This Row],[Статус2]],TRUE),\"\")","v":172},{"$f":"IFERROR(INDEX(Базаданных[Чей клиент],MATCH(ROWS($U$2:Базаданных[[#This Row],[Индекс3]]),Базаданных[Индекс3],0)),\"\")","v":"Пименов Алексей"},{"$f":"Базаданных[[#This Row],[ДД]]-Базаданных[[#This Row],[ГД]]","v":0},{"$f":"Базаданных[[#This Row],[КВ]]-Базаданных[[#This Row],[ГК]]","v":-6620}]
["2019-04-10T12:23:57",43570.51663622685,10,"Среда","Апрель","2019",2980,"-",0,"-",0,"-",0,"-","Пименов Алексей","Виталий Киров",{"$f":"NOT(ISERROR(SEARCH('Форма ввода'!$C$5,Базаданных[[#This Row],[Клиент]])))","v":false},{"$f":"IF(Базаданных[[#This Row],[Статус]],COUNTIF($Q$2:Базаданных[[#This Row],[Статус]],TRUE),\"\")","v":""},{"$f":"IFERROR(INDEX(Базаданных[Клиент],MATCH(ROWS($R$2:Базаданных[[#This Row],[Индекс]]),Базаданных[Индекс],0)),\"\")","v":""},{"$f":"NOT(ISERROR(SEARCH('Форма ввода'!$C$9,Базаданных[[#This Row],[Чей клиент]])))","v":true},{"$f":"IF(Базаданных[[#This Row],[Статус2]],COUNTIF($T$2:Базаданных[[#This Row],[Статус2]],TRUE),\"\")","v":173},{"$f":"IFERROR(INDEX(Базаданных[Чей клиент],MATCH(ROWS($U$2:Базаданных[[#This Row],[Индекс3]]),Базаданных[Индекс3],0)),\"\")","v":"Пименов Алексей"},{"$f":"Базаданных[[#This Row],[ДД]]-Базаданных[[#This Row],[ГД]]","v":2980},{"$f":"Базаданных[[#This Row],[КВ]]-Базаданных[[#This Row],[ГК]]","v":0}]
["2019-04-10T12:23:57",43570.516784143518,10,"Среда","Апрель","2019",111930,"-",0,"-",0,"-",0,"-","Пименов Алексей","Звонок Нижний Новгород",{"$f":"NOT(ISERROR(SEARCH('Форма ввода'!$C$5,Базаданных[[#This Row],[Клиент]])))","v":false},{"$f":"IF(Базаданных[[#This Row],[Статус]],COUNTIF($Q$2:Базаданных[[#This Row],[Статус]],TRUE),\"\")","v":""},{"$f":"IFERROR(INDEX(Базаданных[Клиент],MATCH(ROWS($R$2:Базаданных[[#This Row],[Индекс]]),Базаданных[Индекс],0)),\"\")","v":""},{"$f":"NOT(ISERROR(SEARCH('Форма ввода'!$C$9,Базаданных[[#This Row],[Чей клиент]])))","v":true},{"$f":"IF(Базаданных[[#This Row],[Статус2]],COUNTIF($T$2:Базаданных[[#This Row],[Статус2]],TRUE),\"\")","v":174},{"$f":"IFERROR(INDEX(Базаданных[Чей клиент],MATCH(ROWS($U$2:Базаданных[[#This Row],[Индекс3]]),Базаданных[Индекс3],0)),\"\")","v":"Пименов Алексей"},{"$f":"Базаданных[[#This Row],[ДД]]-Базаданных[[#This Row],[ГД]]","v":111930},{"$f":"Базаданных[[#This Row],[КВ]]-Базаданных[[#This Row],[ГК]]","v":0}]
["2019-04-10T12:23:57",43570.516921643517,10,"Среда","Апрель","2019",0,"-",18630,"-",0,"-",0,"-","Пименов Алексей","Светлана Тверь",{"$f":"NOT(ISERROR(SEARCH('Форма ввода'!$C$5,Базаданных[[#This Row],[Клиент]])))","v":false},{"$f":"IF(Базаданных[[#This Row],[Статус]],COUNTIF($Q$2:Базаданных[[#This Row],[Статус]],TRUE),\"\")","v":""},{"$f":"IFERROR(INDEX(Базаданных[Клиент],MATCH(ROWS($R$2:Базаданных[[#This Row],[Индекс]]),Базаданных[Индекс],0)),\"\")","v":""},{"$f":"NOT(ISERROR(SEARCH('Форма ввода'!$C$9,Базаданных[[#This Row],[Чей клиент]])))","v":true},{"$f":"IF(Базаданных[[#This Row],[Статус2]],COUNTIF($T$2:Базаданных[[#This Row],[Статус2]],TRUE),\"\")","v":175},{"$f":"IFERROR(INDEX(Базаданных[Чей клиент],MATCH(ROWS($U$2:Базаданных[[#This Row],[Индекс3]]),Базаданных[Индекс3],0)),\"\")","v":"Пименов Алексей"},{"$f":"Базаданных[[#This Row],[ДД]]-Базаданных[[#This Row],[ГД]]","v":-18630},{"$f":"Базаданных[[#This Row],[КВ]]-Базаданных[[#This Row],[ГК]]","v":0}]
["2019-04-10T12:23:57",43570.520256365744,10,"Среда","Апрель","2019",350,"-",0,"-",0,"-",0,"-","Пименов Алексей","Ларин Вячеслав Иванович",{"$f":"NOT(ISERROR(SEARCH('Форма ввода'!$C$5,Базаданных[[#This Row],[Клиент]])))","v":false},{"$f":"IF(Базаданных[[#This Row],[Статус]],COUNTIF($Q$2:Базаданных[[#This Row],[Статус]],TRUE),\"\")","v":""},{"$f":"IFERROR(INDEX(Базаданных[Клиент],MATCH(ROWS($R$2:Базаданных[[#This Row],[Индекс]]),Базаданных[Индекс],0)),\"\")","v":""},{"$f":"NOT(ISERROR(SEARCH('Форма ввода'!$C$9,Базаданных[[#This Row],[Чей клиент]])))","v":true},{"$f":"IF(Базаданных[[#This Row],[Статус2]],COUNTIF($T$2:Базаданных[[#This Row],[Статус2]],TRUE),\"\")","v":176},{"$f":"IFERROR(INDEX(Базаданных[Чей клиент],MATCH(ROWS($U$2:Базаданных[[#This Row],[Индекс3]]),Базаданных[Индекс3],0)),\"\")","v":"Пименов Алексей"},{"$f":"Базаданных[[#This Row],[ДД]]-Базаданных[[#This Row],[ГД]]","v":350},{"$f":"Базаданных[[#This Row],[КВ]]-Базаданных[[#This Row],[ГК]]","v":0}]
["2019-04-10T12:23:57",43570.520440162036,10,"Среда","Апрель","2019",13000,"-",0,"-",0,"-",0,"-","Нерсесов Давид","Надир (К84 Царицино)",{"$f":"NOT(ISERROR(SEARCH('Форма ввода'!$C$5,Базаданных[[#This Row],[Клиент]])))","v":false},{"$f":"IF(Базаданных[[#This Row],[Статус]],COUNTIF($Q$2:Базаданных[[#This Row],[Статус]],TRUE),\"\")","v":""},{"$f":"IFERROR(INDEX(Базаданных[Клиент],MATCH(ROWS($R$2:Базаданных[[#This Row],[Индекс]]),Базаданных[Индекс],0)),\"\")","v":""},{"$f":"NOT(ISERROR(SEARCH('Форма ввода'!$C$9,Базаданных[[#This Row],[Чей клиент]])))","v":true},{"$f":"IF(Базаданных[[#This Row],[Статус2]],COUNTIF($T$2:Базаданных[[#This Row],[Статус2]],TRUE),\"\")","v":177},{"$f":"IFERROR(INDEX(Базаданных[Чей клиент],MATCH(ROWS($U$2:Базаданных[[#This Row],[Индекс3]]),Базаданных[Индекс3],0)),\"\")","v":"Нерсесов Давид"},{"$f":"Базаданных[[#This Row],[ДД]]-Базаданных[[#This Row],[ГД]]","v":13000},{"$f":"Базаданных[[#This Row],[КВ]]-Базаданных[[#This Row],[ГК]]","v":0}]
["2019-04-10T12:23:57",43570.520586921295,10,"Среда","Апрель","2019",4100,"-",0,"-",0,"-",0,"-","Гречихина Юля","Александр (Черемушки 2B-15)",{"$f":"NOT(ISERROR(SEARCH('Форма ввода'!$C$5,Базаданных[[#This Row],[Клиент]])))","v":false},{"$f":"IF(Базаданных[[#This Row],[Статус]],COUNTIF($Q$2:Базаданных[[#This Row],[Статус]],TRUE),\"\")","v":""},{"$f":"IFERROR(INDEX(Базаданных[Клиент],MATCH(ROWS($R$2:Базаданных[[#This Row],[Индекс]]),Базаданных[Индекс],0)),\"\")","v":""},{"$f":"NOT(ISERROR(SEARCH('Форма ввода'!$C$9,Базаданных[[#This Row],[Чей клиент]])))","v":true},{"$f":"IF(Базаданных[[#This Row],[Статус2]],COUNTIF($T$2:Базаданных[[#This Row],[Статус2]],TRUE),\"\")","v":178},{"$f":"IFERROR(INDEX(Базаданных[Чей клиент],MATCH(ROWS($U$2:Базаданных[[#This Row],[Индекс3]]),Базаданных[Индекс3],0)),\"\")","v":"Гречихина Юля"},{"$f":"Базаданных[[#This Row],[ДД]]-Базаданных[[#This Row],[ГД]]","v":4100},{"$f":"Базаданных[[#This Row],[КВ]]-Базаданных[[#This Row],[ГК]]","v":0}]
["2019-04-10T12:23:57",43570.52071759259,10,"Среда","Апрель","2019",27600,"-",0,"-",0,"-",0,"-","Гречихина Юля","Александр (Одинцово рынок)",{"$f":"NOT(ISERROR(SEARCH('Форма ввода'!$C$5,Базаданных[[#This Row],[Клиент]])))","v":false},{"$f":"IF(Базаданных[[#This Row],[Статус]],COUNTIF($Q$2:Базаданных[[#This Row],[Статус]],TRUE),\"\")","v":""},{"$f":"IFERROR(INDEX(Базаданных[Клиент],MATCH(ROWS($R$2:Базаданных[[#This Row],[Индекс]]),Базаданных[Индекс],0)),\"\")","v":""},{"$f":"NOT(ISERROR(SEARCH('Форма ввода'!$C$9,Базаданных[[#This Row],[Чей клиент]])))","v":true},{"$f":"IF(Базаданных[[#This Row],[Статус2]],COUNTIF($T$2:Базаданных[[#This Row],[Статус2]],TRUE),\"\")","v":179},{"$f":"IFERROR(INDEX(Базаданных[Чей клиент],MATCH(ROWS($U$2:Базаданных[[#This Row],[Индекс3]]),Базаданных[Индекс3],0)),\"\")","v":"Гречихина Юля"},{"$f":"Базаданных[[#This Row],[ДД]]-Базаданных[[#This Row],[ГД]]","v":27600},{"$f":"Базаданных[[#This Row],[КВ]]-Базаданных[[#This Row],[ГК]]","v":0}]
["2019-04-10T12:23:57",43570.520909027779,10,"Среда","Апрель","2019",0,"-",0,"-",9130,"-",0,"-","Пименов Алексей","Эдик (От Сергея)",{"$f":"NOT(ISERROR(SEARCH('Форма ввода'!$C$5,Базаданных[[#This Row],[Клиент]])))","v":false},{"$f":"IF(Базаданных[[#This Row],[Статус]],COUNTIF($Q$2:Базаданных[[#This Row],[Статус]],TRUE),\"\")","v":""},{"$f":"IFERROR(INDEX(Базаданных[Клиент],MATCH(ROWS($R$2:Базаданных[[#This Row],[Индекс]]),Базаданных[Индекс],0)),\"\")","v":""},{"$f":"NOT(ISERROR(SEARCH('Форма ввода'!$C$9,Базаданных[[#This Row],[Чей клиент]])))","v":true},{"$f":"IF(Базаданных[[#This Row],[Статус2]],COUNTIF($T$2:Базаданных[[#This Row],[Статус2]],TRUE),\"\")","v":180},{"$f":"IFERROR(INDEX(Базаданных[Чей клиент],MATCH(ROWS($U$2:Базаданных[[#This Row],[Индекс3]]),Базаданных[Индекс3],0)),\"\")","v":"Пименов Алексей"},{"$f":"Базаданных[[#This Row],[ДД]]-Базаданных[[#This Row],[ГД]]","v":0},{"$f":"Базаданных[[#This Row],[КВ]]-Базаданных[[#This Row],[ГК]]","v":9130}]
["2019-04-10T12:23:57",43570.52107210648,10,"Среда","Апрель","2019",0,"-",0,"-",0,"-",69710,"-","Пименов Алексей","Титан (Киров)",{"$f":"NOT(ISERROR(SEARCH('Форма ввода'!$C$5,Базаданных[[#This Row],[Клиент]])))","v":false},{"$f":"IF(Базаданных[[#This Row],[Статус]],COUNTIF($Q$2:Базаданных[[#This Row],[Статус]],TRUE),\"\")","v":""},{"$f":"IFERROR(INDEX(Базаданных[Клиент],MATCH(ROWS($R$2:Базаданных[[#This Row],[Индекс]]),Базаданных[Индекс],0)),\"\")","v":""},{"$f":"NOT(ISERROR(SEARCH('Форма ввода'!$C$9,Базаданных[[#This Row],[Чей клиент]])))","v":true},{"$f":"IF(Базаданных[[#This Row],[Статус2]],COUNTIF($T$2:Базаданных[[#This Row],[Статус2]],TRUE),\"\")","v":181},{"$f":"IFERROR(INDEX(Базаданных[Чей клиент],MATCH(ROWS($U$2:Базаданных[[#This Row],[Индекс3]]),Базаданных[Индекс3],0)),\"\")","v":"Пименов Алексей"},{"$f":"Базаданных[[#This Row],[ДД]]-Базаданных[[#This Row],[ГД]]","v":0},{"$f":"Базаданных[[#This Row],[КВ]]-Базаданных[[#This Row],[ГК]]","v":-69710}]
["2019-04-10T12:23:57",43570.521255902779,10,"Среда","Апрель","2019",0,"-",0,"-",0,"-",6920,"-","Пименов Алексей","Белов Александр Павлович",{"$f":"NOT(ISERROR(SEARCH('Форма ввода'!$C$5,Базаданных[[#This Row],[Клиент]])))","v":false},{"$f":"IF(Базаданных[[#This Row],[Статус]],COUNTIF($Q$2:Базаданных[[#This Row],[Статус]],TRUE),\"\")","v":""},{"$f":"IFERROR(INDEX(Базаданных[Клиент],MATCH(ROWS($R$2:Базаданных[[#This Row],[Индекс]]),Базаданных[Индекс],0)),\"\")","v":""},{"$f":"NOT(ISERROR(SEARCH('Форма ввода'!$C$9,Базаданных[[#This Row],[Чей клиент]])))","v":true},{"$f":"IF(Базаданных[[#This Row],[Статус2]],COUNTIF($T$2:Базаданных[[#This Row],[Статус2]],TRUE),\"\")","v":182},{"$f":"IFERROR(INDEX(Базаданных[Чей клиент],MATCH(ROWS($U$2:Базаданных[[#This Row],[Индекс3]]),Базаданных[Индекс3],0)),\"\")","v":"Пименов Алексей"},{"$f":"Базаданных[[#This Row],[ДД]]-Базаданных[[#This Row],[ГД]]","v":0},{"$f":"Базаданных[[#This Row],[КВ]]-Базаданных[[#This Row],[ГК]]","v":-6920}]
["2019-04-11T12:35:06",43570.524369560182,11,"Четверг","Апрель","2019",0,"-",21560,"-",0,"-",0,"-","Пименов Алексей","Эдик (От Сергея)",{"$f":"NOT(ISERROR(SEARCH('Форма ввода'!$C$5,Базаданных[[#This Row],[Клиент]])))","v":false},{"$f":"IF(Базаданных[[#This Row],[Статус]],COUNTIF($Q$2:Базаданных[[#This Row],[Статус]],TRUE),\"\")","v":""},{"$f":"IFERROR(INDEX(Базаданных[Клиент],MATCH(ROWS($R$2:Базаданных[[#This Row],[Индекс]]),Базаданных[Индекс],0)),\"\")","v":""},{"$f":"NOT(ISERROR(SEARCH('Форма ввода'!$C$9,Базаданных[[#This Row],[Чей клиент]])))","v":true},{"$f":"IF(Базаданных[[#This Row],[Статус2]],COUNTIF($T$2:Базаданных[[#This Row],[Статус2]],TRUE),\"\")","v":183},{"$f":"IFERROR(INDEX(Базаданных[Чей клиент],MATCH(ROWS($U$2:Базаданных[[#This Row],[Индекс3]]),Базаданных[Индекс3],0)),\"\")","v":"Пименов Алексей"},{"$f":"Базаданных[[#This Row],[ДД]]-Базаданных[[#This Row],[ГД]]","v":-21560},{"$f":"Базаданных[[#This Row],[КВ]]-Базаданных[[#This Row],[ГК]]","v":0}]
["2019-04-11T12:35:06",43570.524530092589,11,"Четверг","Апрель","2019",38060,"-",0,"-",0,"-",0,"-","Пименов Алексей","Николаев Алексей Юрьевич",{"$f":"NOT(ISERROR(SEARCH('Форма ввода'!$C$5,Базаданных[[#This Row],[Клиент]])))","v":false},{"$f":"IF(Базаданных[[#This Row],[Статус]],COUNTIF($Q$2:Базаданных[[#This Row],[Статус]],TRUE),\"\")","v":""},{"$f":"IFERROR(INDEX(Базаданных[Клиент],MATCH(ROWS($R$2:Базаданных[[#This Row],[Индекс]]),Базаданных[Индекс],0)),\"\")","v":""},{"$f":"NOT(ISERROR(SEARCH('Форма ввода'!$C$9,Базаданных[[#This Row],[Чей клиент]])))","v":true},{"$f":"IF(Базаданных[[#This Row],[Статус2]],COUNTIF($T$2:Базаданных[[#This Row],[Статус2]],TRUE),\"\")","v":184},{"$f":"IFERROR(INDEX(Базаданных[Чей клиент],MATCH(ROWS($U$2:Базаданных[[#This Row],[Индекс3]]),Базаданных[Индекс3],0)),\"\")","v":"Пименов Алексей"},{"$f":"Базаданных[[#This Row],[ДД]]-Базаданных[[#This Row],[ГД]]","v":38060},{"$f":"Базаданных[[#This Row],[КВ]]-Базаданных[[#This Row],[ГК]]","v":0}]
["2019-04-11T12:35:06",43570.524680902781,11,"Четверг","Апрель","2019",22200,"-",0,"-",0,"-",0,"-","Нерсесов Давид","Скупка Алтуфьево Андрей",{"$f":"NOT(ISERROR(SEARCH('Форма ввода'!$C$5,Базаданных[[#This Row],[Клиент]])))","v":false},{"$f":"IF(Базаданных[[#This Row],[Статус]],COUNTIF($Q$2:Базаданных[[#This Row],[Статус]],TRUE),\"\")","v":""},{"$f":"IFERROR(INDEX(Базаданных[Клиент],MATCH(ROWS($R$2:Базаданных[[#This Row],[Индекс]]),Базаданных[Индекс],0)),\"\")","v":""},{"$f":"NOT(ISERROR(SEARCH('Форма ввода'!$C$9,Базаданных[[#This Row],[Чей клиент]])))","v":true},{"$f":"IF(Базаданных[[#This Row],[Статус2]],COUNTIF($T$2:Базаданных[[#This Row],[Статус2]],TRUE),\"\")","v":185},{"$f":"IFERROR(INDEX(Базаданных[Чей клиент],MATCH(ROWS($U$2:Базаданных[[#This Row],[Индекс3]]),Базаданных[Индекс3],0)),\"\")","v":"Нерсесов Давид"},{"$f":"Базаданных[[#This Row],[ДД]]-Базаданных[[#This Row],[ГД]]","v":22200},{"$f":"Базаданных[[#This Row],[КВ]]-Базаданных[[#This Row],[ГК]]","v":0}]
["2019-04-11T12:35:06",43570.524842245373,11,"Четверг","Апрель","2019",23250,"-",0,"-",0,"-",0,"-","Нерсесов Давид","Акоп П-90 (Савок)",{"$f":"NOT(ISERROR(SEARCH('Форма ввода'!$C$5,Базаданных[[#This Row],[Клиент]])))","v":false},{"$f":"IF(Базаданных[[#This Row],[Статус]],COUNTIF($Q$2:Базаданных[[#This Row],[Статус]],TRUE),\"\")","v":""},{"$f":"IFERROR(INDEX(Базаданных[Клиент],MATCH(ROWS($R$2:Базаданных[[#This Row],[Индекс]]),Базаданных[Индекс],0)),\"\")","v":""},{"$f":"NOT(ISERROR(SEARCH('Форма ввода'!$C$9,Базаданных[[#This Row],[Чей клиент]])))","v":true},{"$f":"IF(Базаданных[[#This Row],[Статус2]],COUNTIF($T$2:Базаданных[[#This Row],[Статус2]],TRUE),\"\")","v":186},{"$f":"IFERROR(INDEX(Базаданных[Чей клиент],MATCH(ROWS($U$2:Базаданных[[#This Row],[Индекс3]]),Базаданных[Индекс3],0)),\"\")","v":"Нерсесов Давид"},{"$f":"Базаданных[[#This Row],[ДД]]-Базаданных[[#This Row],[ГД]]","v":23250},{"$f":"Базаданных[[#This Row],[КВ]]-Базаданных[[#This Row],[ГК]]","v":0}]
["2019-04-11T12:35:06",43570.524985532407,11,"Четверг","Апрель","2019",0,"-",27600,"-",0,"-",0,"-","Гречихина Юля","Александр (Одинцово рынок)",{"$f":"NOT(ISERROR(SEARCH('Форма ввода'!$C$5,Базаданных[[#This Row],[Клиент]])))","v":false},{"$f":"IF(Базаданных[[#This Row],[Статус]],COUNTIF($Q$2:Базаданных[[#This Row],[Статус]],TRUE),\"\")","v":""},{"$f":"IFERROR(INDEX(Базаданных[Клиент],MATCH(ROWS($R$2:Базаданных[[#This Row],[Индекс]]),Базаданных[Индекс],0)),\"\")","v":""},{"$f":"NOT(ISERROR(SEARCH('Форма ввода'!$C$9,Базаданных[[#This Row],[Чей клиент]])))","v":true},{"$f":"IF(Базаданных[[#This Row],[Статус2]],COUNTIF($T$2:Базаданных[[#This Row],[Статус2]],TRUE),\"\")","v":187},{"$f":"IFERROR(INDEX(Базаданных[Чей клиент],MATCH(ROWS($U$2:Базаданных[[#This Row],[Индекс3]]),Базаданных[Индекс3],0)),\"\")","v":"Гречихина Юля"},{"$f":"Базаданных[[#This Row],[ДД]]-Базаданных[[#This Row],[ГД]]","v":-27600},{"$f":"Базаданных[[#This Row],[КВ]]-Базаданных[[#This Row],[ГК]]","v":0}]
["2019-04-11T12:35:06",43570.525217013892,11,"Четверг","Апрель","2019",0,"-",0,"-",237500,"-",9130,"-","Пименов Алексей","Эдик (От Сергея)",{"$f":"NOT(ISERROR(SEARCH('Форма ввода'!$C$5,Базаданных[[#This Row],[Клиент]])))","v":false},{"$f":"IF(Базаданных[[#This Row],[Статус]],COUNTIF($Q$2:Базаданных[[#This Row],[Статус]],TRUE),\"\")","v":""},{"$f":"IFERROR(INDEX(Базаданных[Клиент],MATCH(ROWS($R$2:Базаданных[[#This Row],[Индекс]]),Базаданных[Индекс],0)),\"\")","v":""},{"$f":"NOT(ISERROR(SEARCH('Форма ввода'!$C$9,Базаданных[[#This Row],[Чей клиент]])))","v":true},{"$f":"IF(Базаданных[[#This Row],[Статус2]],COUNTIF($T$2:Базаданных[[#This Row],[Статус2]],TRUE),\"\")","v":188},{"$f":"IFERROR(INDEX(Базаданных[Чей клиент],MATCH(ROWS($U$2:Базаданных[[#This Row],[Индекс3]]),Базаданных[Индекс3],0)),\"\")","v":"Пименов Алексей"},{"$f":"Базаданных[[#This Row],[ДД]]-Базаданных[[#This Row],[ГД]]","v":0},{"$f":"Базаданных[[#This Row],[КВ]]-Базаданных[[#This Row],[ГК]]","v":228370}]
["2019-04-11T12:35:06",43570.52546099537,11,"Четверг","Апрель","2019",0,"-",0,"-",39500,"-",0,"-","Нерсесов Давид","Нерсесов Давид ( AlexStore)",{"$f":"NOT(ISERROR(SEARCH('Форма ввода'!$C$5,Базаданных[[#This Row],[Клиент]])))","v":false},{"$f":"IF(Базаданных[[#This Row],[Статус]],COUNTIF($Q$2:Базаданных[[#This Row],[Статус]],TRUE),\"\")","v":""},{"$f":"IFERROR(INDEX(Базаданных[Клиент],MATCH(ROWS($R$2:Базаданных[[#This Row],[Индекс]]),Базаданных[Индекс],0)),\"\")","v":""},{"$f":"NOT(ISERROR(SEARCH('Форма ввода'!$C$9,Базаданных[[#This Row],[Чей клиент]])))","v":true},{"$f":"IF(Базаданных[[#This Row],[Статус2]],COUNTIF($T$2:Базаданных[[#This Row],[Статус2]],TRUE),\"\")","v":189},{"$f":"IFERROR(INDEX(Базаданных[Чей клиент],MATCH(ROWS($U$2:Базаданных[[#This Row],[Индекс3]]),Базаданных[Индекс3],0)),\"\")","v":"Нерсесов Давид"},{"$f":"Базаданных[[#This Row],[ДД]]-Базаданных[[#This Row],[ГД]]","v":0},{"$f":"Базаданных[[#This Row],[КВ]]-Базаданных[[#This Row],[ГК]]","v":39500}]
["2019-04-11T12:35:06",43570.525589004632,11,"Четверг","Апрель","2019",0,"-",0,"-",2830,"-",0,"-","Пименов Алексей","Андрей Тархов",{"$f":"NOT(ISERROR(SEARCH('Форма ввода'!$C$5,Базаданных[[#This Row],[Клиент]])))","v":false},{"$f":"IF(Базаданных[[#This Row],[Статус]],COUNTIF($Q$2:Базаданных[[#This Row],[Статус]],TRUE),\"\")","v":""},{"$f":"IFERROR(INDEX(Базаданных[Клиент],MATCH(ROWS($R$2:Базаданных[[#This Row],[Индекс]]),Базаданных[Индекс],0)),\"\")","v":""},{"$f":"NOT(ISERROR(SEARCH('Форма ввода'!$C$9,Базаданных[[#This Row],[Чей клиент]])))","v":true},{"$f":"IF(Базаданных[[#This Row],[Статус2]],COUNTIF($T$2:Базаданных[[#This Row],[Статус2]],TRUE),\"\")","v":190},{"$f":"IFERROR(INDEX(Базаданных[Чей клиент],MATCH(ROWS($U$2:Базаданных[[#This Row],[Индекс3]]),Базаданных[Индекс3],0)),\"\")","v":"Пименов Алексей"},{"$f":"Базаданных[[#This Row],[ДД]]-Базаданных[[#This Row],[ГД]]","v":0},{"$f":"Базаданных[[#This Row],[КВ]]-Базаданных[[#This Row],[ГК]]","v":2830}]
["2019-04-11T12:35:06",43570.525787037041,11,"Четверг","Апрель","2019",0,"-",0,"-",18810,"-",0,"-","Пименов Алексей","Виталий Киров",{"$f":"NOT(ISERROR(SEARCH('Форма ввода'!$C$5,Базаданных[[#This Row],[Клиент]])))","v":false},{"$f":"IF(Базаданных[[#This Row],[Статус]],COUNTIF($Q$2:Базаданных[[#This Row],[Статус]],TRUE),\"\")","v":""},{"$f":"IFERROR(INDEX(Базаданных[Клиент],MATCH(ROWS($R$2:Базаданных[[#This Row],[Индекс]]),Базаданных[Индекс],0)),\"\")","v":""},{"$f":"NOT(ISERROR(SEARCH('Форма ввода'!$C$9,Базаданных[[#This Row],[Чей клиент]])))","v":true},{"$f":"IF(Базаданных[[#This Row],[Статус2]],COUNTIF($T$2:Базаданных[[#This Row],[Статус2]],TRUE),\"\")","v":191},{"$f":"IFERROR(INDEX(Базаданных[Чей клиент],MATCH(ROWS($U$2:Базаданных[[#This Row],[Индекс3]]),Базаданных[Индекс3],0)),\"\")","v":"Пименов Алексей"},{"$f":"Базаданных[[#This Row],[ДД]]-Базаданных[[#This Row],[ГД]]","v":0},{"$f":"Базаданных[[#This Row],[КВ]]-Базаданных[[#This Row],[ГК]]","v":18810}]
["2019-04-11T12:35:06",43570.526595138886,11,"Четверг","Апрель","2019",0,"-",0,"-",1700,"-",300,"-","Пименов Алексей","Михаил Рязань",{"$f":"NOT(ISERROR(SEARCH('Форма ввода'!$C$5,Базаданных[[#This Row],[Клиент]])))","v":false},{"$f":"IF(Базаданных[[#This Row],[Статус]],COUNTIF($Q$2:Базаданных[[#This Row],[Статус]],TRUE),\"\")","v":""},{"$f":"IFERROR(INDEX(Базаданных[Клиент],MATCH(ROWS($R$2:Базаданных[[#This Row],[Индекс]]),Базаданных[Индекс],0)),\"\")","v":""},{"$f":"NOT(ISERROR(SEARCH('Форма ввода'!$C$9,Базаданных[[#This Row],[Чей клиент]])))","v":true},{"$f":"IF(Базаданных[[#This Row],[Статус2]],COUNTIF($T$2:Базаданных[[#This Row],[Статус2]],TRUE),\"\")","v":192},{"$f":"IFERROR(INDEX(Базаданных[Чей клиент],MATCH(ROWS($U$2:Базаданных[[#This Row],[Индекс3]]),Базаданных[Индекс3],0)),\"\")","v":"Пименов Алексей"},{"$f":"Базаданных[[#This Row],[ДД]]-Базаданных[[#This Row],[ГД]]","v":0},{"$f":"Базаданных[[#This Row],[КВ]]-Базаданных[[#This Row],[ГК]]","v":1400}]
["2019-04-11T12:35:06",43570.527191203706,11,"Четверг","Апрель","2019",0,"-",0,"-",5810,"-",0,"-","Пименов Алексей","Михаил (SmartBooks Кемерово)",{"$f":"NOT(ISERROR(SEARCH('Форма ввода'!$C$5,Базаданных[[#This Row],[Клиент]])))","v":false},{"$f":"IF(Базаданных[[#This Row],[Статус]],COUNTIF($Q$2:Базаданных[[#This Row],[Статус]],TRUE),\"\")","v":""},{"$f":"IFERROR(INDEX(Базаданных[Клиент],MATCH(ROWS($R$2:Базаданных[[#This Row],[Индекс]]),Базаданных[Индекс],0)),\"\")","v":""},{"$f":"NOT(ISERROR(SEARCH('Форма ввода'!$C$9,Базаданных[[#This Row],[Чей клиент]])))","v":true},{"$f":"IF(Базаданных[[#This Row],[Статус2]],COUNTIF($T$2:Базаданных[[#This Row],[Статус2]],TRUE),\"\")","v":193},{"$f":"IFERROR(INDEX(Базаданных[Чей клиент],MATCH(ROWS($U$2:Базаданных[[#This Row],[Индекс3]]),Базаданных[Индекс3],0)),\"\")","v":"Пименов Алексей"},{"$f":"Базаданных[[#This Row],[ДД]]-Базаданных[[#This Row],[ГД]]","v":0},{"$f":"Базаданных[[#This Row],[КВ]]-Базаданных[[#This Row],[ГК]]","v":5810}]
["2019-04-11T12:35:06",43570.527415509256,11,"Четверг","Апрель","2019",0,"-",0,"-",4720,"-",0,"-","Пименов Алексей","Алексей (Нижний тагил)",{"$f":"NOT(ISERROR(SEARCH('Форма ввода'!$C$5,Базаданных[[#This Row],[Клиент]])))","v":false},{"$f":"IF(Базаданных[[#This Row],[Статус]],COUNTIF($Q$2:Базаданных[[#This Row],[Статус]],TRUE),\"\")","v":""},{"$f":"IFERROR(INDEX(Базаданных[Клиент],MATCH(ROWS($R$2:Базаданных[[#This Row],[Индекс]]),Базаданных[Индекс],0)),\"\")","v":""},{"$f":"NOT(ISERROR(SEARCH('Форма ввода'!$C$9,Базаданных[[#This Row],[Чей клиент]])))","v":true},{"$f":"IF(Базаданных[[#This Row],[Статус2]],COUNTIF($T$2:Базаданных[[#This Row],[Статус2]],TRUE),\"\")","v":194},{"$f":"IFERROR(INDEX(Базаданных[Чей клиент],MATCH(ROWS($U$2:Базаданных[[#This Row],[Индекс3]]),Базаданных[Индекс3],0)),\"\")","v":"Пименов Алексей"},{"$f":"Базаданных[[#This Row],[ДД]]-Базаданных[[#This Row],[ГД]]","v":0},{"$f":"Базаданных[[#This Row],[КВ]]-Базаданных[[#This Row],[ГК]]","v":4720}]
["2019-04-12T13:13:46",43570.551226157404,12,"понедельник","Апрель","2019",0,"-",38110,"-",0,"-",0,"-","Пименов Алексей","Николаев Алексей Юрьевич",{"$f":"NOT(ISERROR(SEARCH('Форма ввода'!$C$5,Базаданных[[#This Row],[Клиент]])))","v":false},{"$f":"IF(Базаданных[[#This Row],[Статус]],COUNTIF($Q$2:Базаданных[[#This Row],[Статус]],TRUE),\"\")","v":""},{"$f":"IFERROR(INDEX(Базаданных[Клиент],MATCH(ROWS($R$2:Базаданных[[#This Row],[Индекс]]),Базаданных[Индекс],0)),\"\")","v":""},{"$f":"NOT(ISERROR(SEARCH('Форма ввода'!$C$9,Базаданных[[#This Row],[Чей клиент]])))","v":true},{"$f":"IF(Базаданных[[#This Row],[Статус2]],COUNTIF($T$2:Базаданных[[#This Row],[Статус2]],TRUE),\"\")","v":195},{"$f":"IFERROR(INDEX(Базаданных[Чей клиент],MATCH(ROWS($U$2:Базаданных[[#This Row],[Индекс3]]),Базаданных[Индекс3],0)),\"\")","v":"Пименов Алексей"},{"$f":"Базаданных[[#This Row],[ДД]]-Базаданных[[#This Row],[ГД]]","v":-38110},{"$f":"Базаданных[[#This Row],[КВ]]-Базаданных[[#This Row],[ГК]]","v":0}]
["2019-04-12T13:13:46",43570.551471990744,12,"Пятница","Апрель","2019",420,"-",0,"-",0,"-",0,"-","Пименов Алексей","Дмитрий (Ломбардный дом)",{"$f":"NOT(ISERROR(SEARCH('Форма ввода'!$C$5,Базаданных[[#This Row],[Клиент]])))","v":false},{"$f":"IF(Базаданных[[#This Row],[Статус]],COUNTIF($Q$2:Базаданных[[#This Row],[Статус]],TRUE),\"\")","v":""},{"$f":"IFERROR(INDEX(Базаданных[Клиент],MATCH(ROWS($R$2:Базаданных[[#This Row],[Индекс]]),Базаданных[Индекс],0)),\"\")","v":""},{"$f":"NOT(ISERROR(SEARCH('Форма ввода'!$C$9,Базаданных[[#This Row],[Чей клиент]])))","v":true},{"$f":"IF(Базаданных[[#This Row],[Статус2]],COUNTIF($T$2:Базаданных[[#This Row],[Статус2]],TRUE),\"\")","v":196},{"$f":"IFERROR(INDEX(Базаданных[Чей клиент],MATCH(ROWS($U$2:Базаданных[[#This Row],[Индекс3]]),Базаданных[Индекс3],0)),\"\")","v":"Пименов Алексей"},{"$f":"Базаданных[[#This Row],[ДД]]-Базаданных[[#This Row],[ГД]]","v":420},{"$f":"Базаданных[[#This Row],[КВ]]-Базаданных[[#This Row],[ГК]]","v":0}]
["2019-04-12T13:13:46",43570.551705555554,12,"Пятница","Апрель","2019",438310,"-",0,"-",0,"-",0,"-","Нерсесов Давид","Нерсесов Давид ( AlexStore)",{"$f":"NOT(ISERROR(SEARCH('Форма ввода'!$C$5,Базаданных[[#This Row],[Клиент]])))","v":false},{"$f":"IF(Базаданных[[#This Row],[Статус]],COUNTIF($Q$2:Базаданных[[#This Row],[Статус]],TRUE),\"\")","v":""},{"$f":"IFERROR(INDEX(Базаданных[Клиент],MATCH(ROWS($R$2:Базаданных[[#This Row],[Индекс]]),Базаданных[Индекс],0)),\"\")","v":""},{"$f":"NOT(ISERROR(SEARCH('Форма ввода'!$C$9,Базаданных[[#This Row],[Чей клиент]])))","v":true},{"$f":"IF(Базаданных[[#This Row],[Статус2]],COUNTIF($T$2:Базаданных[[#This Row],[Статус2]],TRUE),\"\")","v":197},{"$f":"IFERROR(INDEX(Базаданных[Чей клиент],MATCH(ROWS($U$2:Базаданных[[#This Row],[Индекс3]]),Базаданных[Индекс3],0)),\"\")","v":"Нерсесов Давид"},{"$f":"Базаданных[[#This Row],[ДД]]-Базаданных[[#This Row],[ГД]]","v":438310},{"$f":"Базаданных[[#This Row],[КВ]]-Базаданных[[#This Row],[ГК]]","v":0}]
["2019-04-12T13:13:46",43570.55189560185,12,"Пятница","Апрель","2019",0,"-",17000,"-",0,"-",0,"-","Нерсесов Давид","Александр Скупка (Нагатинская)",{"$f":"NOT(ISERROR(SEARCH('Форма ввода'!$C$5,Базаданных[[#This Row],[Клиент]])))","v":false},{"$f":"IF(Базаданных[[#This Row],[Статус]],COUNTIF($Q$2:Базаданных[[#This Row],[Статус]],TRUE),\"\")","v":""},{"$f":"IFERROR(INDEX(Базаданных[Клиент],MATCH(ROWS($R$2:Базаданных[[#This Row],[Индекс]]),Базаданных[Индекс],0)),\"\")","v":""},{"$f":"NOT(ISERROR(SEARCH('Форма ввода'!$C$9,Базаданных[[#This Row],[Чей клиент]])))","v":true},{"$f":"IF(Базаданных[[#This Row],[Статус2]],COUNTIF($T$2:Базаданных[[#This Row],[Статус2]],TRUE),\"\")","v":198},{"$f":"IFERROR(INDEX(Базаданных[Чей клиент],MATCH(ROWS($U$2:Базаданных[[#This Row],[Индекс3]]),Базаданных[Индекс3],0)),\"\")","v":"Нерсесов Давид"},{"$f":"Базаданных[[#This Row],[ДД]]-Базаданных[[#This Row],[ГД]]","v":-17000},{"$f":"Базаданных[[#This Row],[КВ]]-Базаданных[[#This Row],[ГК]]","v":0}]
["2019-04-12T13:13:46",43570.552118865744,12,"Пятница","Апрель","2019",0,"-",31840,"-",0,"-",0,"-","Нерсесов Давид","Султан (Т-89 Савок)",{"$f":"NOT(ISERROR(SEARCH('Форма ввода'!$C$5,Базаданных[[#This Row],[Клиент]])))","v":false},{"$f":"IF(Базаданных[[#This Row],[Статус]],COUNTIF($Q$2:Базаданных[[#This Row],[Статус]],TRUE),\"\")","v":""},{"$f":"IFERROR(INDEX(Базаданных[Клиент],MATCH(ROWS($R$2:Базаданных[[#This Row],[Индекс]]),Базаданных[Индекс],0)),\"\")","v":""},{"$f":"NOT(ISERROR(SEARCH('Форма ввода'!$C$9,Базаданных[[#This Row],[Чей клиент]])))","v":true},{"$f":"IF(Базаданных[[#This Row],[Статус2]],COUNTIF($T$2:Базаданных[[#This Row],[Статус2]],TRUE),\"\")","v":199},{"$f":"IFERROR(INDEX(Базаданных[Чей клиент],MATCH(ROWS($U$2:Базаданных[[#This Row],[Индекс3]]),Базаданных[Индекс3],0)),\"\")","v":"Нерсесов Давид"},{"$f":"Базаданных[[#This Row],[ДД]]-Базаданных[[#This Row],[ГД]]","v":-31840},{"$f":"Базаданных[[#This Row],[КВ]]-Базаданных[[#This Row],[ГК]]","v":0}]
["2019-04-12T13:13:46",43570.552584606485,12,"Пятница","Апрель","2019",29850,"-",0,"-",0,"-",0,"-","Хачатрян Араик","Геворг (Новогиреево)",{"$f":"NOT(ISERROR(SEARCH('Форма ввода'!$C$5,Базаданных[[#This Row],[Клиент]])))","v":false},{"$f":"IF(Базаданных[[#This Row],[Статус]],COUNTIF($Q$2:Базаданных[[#This Row],[Статус]],TRUE),\"\")","v":""},{"$f":"IFERROR(INDEX(Базаданных[Клиент],MATCH(ROWS($R$2:Базаданных[[#This Row],[Индекс]]),Базаданных[Индекс],0)),\"\")","v":""},{"$f":"NOT(ISERROR(SEARCH('Форма ввода'!$C$9,Базаданных[[#This Row],[Чей клиент]])))","v":true},{"$f":"IF(Базаданных[[#This Row],[Статус2]],COUNTIF($T$2:Базаданных[[#This Row],[Статус2]],TRUE),\"\")","v":200},{"$f":"IFERROR(INDEX(Базаданных[Чей клиент],MATCH(ROWS($U$2:Базаданных[[#This Row],[Индекс3]]),Базаданных[Индекс3],0)),\"\")","v":"Хачатрян Араик"},{"$f":"Базаданных[[#This Row],[ДД]]-Базаданных[[#This Row],[ГД]]","v":29850},{"$f":"Базаданных[[#This Row],[КВ]]-Базаданных[[#This Row],[ГК]]","v":0}]
["2019-04-12T13:13:46",43570.552888425926,12,"Пятница","Апрель","2019",37000,"-",0,"-",0,"-",0,"-","Гречихина Юля","Скупка Розовая (Лобня)",{"$f":"NOT(ISERROR(SEARCH('Форма ввода'!$C$5,Базаданных[[#This Row],[Клиент]])))","v":false},{"$f":"IF(Базаданных[[#This Row],[Статус]],COUNTIF($Q$2:Базаданных[[#This Row],[Статус]],TRUE),\"\")","v":""},{"$f":"IFERROR(INDEX(Базаданных[Клиент],MATCH(ROWS($R$2:Базаданных[[#This Row],[Индекс]]),Базаданных[Индекс],0)),\"\")","v":""},{"$f":"NOT(ISERROR(SEARCH('Форма ввода'!$C$9,Базаданных[[#This Row],[Чей клиент]])))","v":true},{"$f":"IF(Базаданных[[#This Row],[Статус2]],COUNTIF($T$2:Базаданных[[#This Row],[Статус2]],TRUE),\"\")","v":201},{"$f":"IFERROR(INDEX(Базаданных[Чей клиент],MATCH(ROWS($U$2:Базаданных[[#This Row],[Индекс3]]),Базаданных[Индекс3],0)),\"\")","v":"Гречихина Юля"},{"$f":"Базаданных[[#This Row],[ДД]]-Базаданных[[#This Row],[ГД]]","v":37000},{"$f":"Базаданных[[#This Row],[КВ]]-Базаданных[[#This Row],[ГК]]","v":0}]
["2019-04-12T13:13:46",43570.553127314815,12,"Пятница","Апрель","2019",0,"-",0,"-",0,"-",237500,"-","Пименов Алексей","Эдик (От Сергея)",{"$f":"NOT(ISERROR(SEARCH('Форма ввода'!$C$5,Базаданных[[#This Row],[Клиент]])))","v":false},{"$f":"IF(Базаданных[[#This Row],[Статус]],COUNTIF($Q$2:Базаданных[[#This Row],[Статус]],TRUE),\"\")","v":""},{"$f":"IFERROR(INDEX(Базаданных[Клиент],MATCH(ROWS($R$2:Базаданных[[#This Row],[Индекс]]),Базаданных[Индекс],0)),\"\")","v":""},{"$f":"NOT(ISERROR(SEARCH('Форма ввода'!$C$9,Базаданных[[#This Row],[Чей клиент]])))","v":true},{"$f":"IF(Базаданных[[#This Row],[Статус2]],COUNTIF($T$2:Базаданных[[#This Row],[Статус2]],TRUE),\"\")","v":202},{"$f":"IFERROR(INDEX(Базаданных[Чей клиент],MATCH(ROWS($U$2:Базаданных[[#This Row],[Индекс3]]),Базаданных[Индекс3],0)),\"\")","v":"Пименов Алексей"},{"$f":"Базаданных[[#This Row],[ДД]]-Базаданных[[#This Row],[ГД]]","v":0},{"$f":"Базаданных[[#This Row],[КВ]]-Базаданных[[#This Row],[ГК]]","v":-237500}]
["2019-04-12T13:13:46",43570.553244212962,12,"Пятница","Апрель","2019",0,"-",0,"-",0,"-",30400,"-","Нерсесов Давид","Нерсесов Давид ( AlexStore)",{"$f":"NOT(ISERROR(SEARCH('Форма ввода'!$C$5,Базаданных[[#This Row],[Клиент]])))","v":false},{"$f":"IF(Базаданных[[#This Row],[Статус]],COUNTIF($Q$2:Базаданных[[#This Row],[Статус]],TRUE),\"\")","v":""},{"$f":"IFERROR(INDEX(Базаданных[Клиент],MATCH(ROWS($R$2:Базаданных[[#This Row],[Индекс]]),Базаданных[Индекс],0)),\"\")","v":""},{"$f":"NOT(ISERROR(SEARCH('Форма ввода'!$C$9,Базаданных[[#This Row],[Чей клиент]])))","v":true},{"$f":"IF(Базаданных[[#This Row],[Статус2]],COUNTIF($T$2:Базаданных[[#This Row],[Статус2]],TRUE),\"\")","v":203},{"$f":"IFERROR(INDEX(Базаданных[Чей клиент],MATCH(ROWS($U$2:Базаданных[[#This Row],[Индекс3]]),Базаданных[Индекс3],0)),\"\")","v":"Нерсесов Давид"},{"$f":"Базаданных[[#This Row],[ДД]]-Базаданных[[#This Row],[ГД]]","v":0},{"$f":"Базаданных[[#This Row],[КВ]]-Базаданных[[#This Row],[ГК]]","v":-30400}]
["2019-04-12T13:13:46",43570.553389004628,12,"Пятница","Апрель","2019",0,"-",0,"-",0,"-",650,"-","Пименов Алексей","Николаев Алексей Юрьевич",{"$f":"NOT(ISERROR(SEARCH('Форма ввода'!$C$5,Базаданных[[#This Row],[Клиент]])))","v":false},{"$f":"IF(Базаданных[[#This Row],[Статус]],COUNTIF($Q$2:Базаданных[[#This Row],[Статус]],TRUE),\"\")","v":""},{"$f":"IFERROR(INDEX(Базаданных[Клиент],MATCH(ROWS($R$2:Базаданных[[#This Row],[Индекс]]),Базаданных[Индекс],0)),\"\")","v":""},{"$f":"NOT(ISERROR(SEARCH('Форма ввода'!$C$9,Базаданных[[#This Row],[Чей клиент]])))","v":true},{"$f":"IF(Базаданных[[#This Row],[Статус2]],COUNTIF($T$2:Базаданных[[#This Row],[Статус2]],TRUE),\"\")","v":204},{"$f":"IFERROR(INDEX(Базаданных[Чей клиент],MATCH(ROWS($U$2:Базаданных[[#This Row],[Индекс3]]),Базаданных[Индекс3],0)),\"\")","v":"Пименов Алексей"},{"$f":"Базаданных[[#This Row],[ДД]]-Базаданных[[#This Row],[ГД]]","v":0},{"$f":"Базаданных[[#This Row],[КВ]]-Базаданных[[#This Row],[ГК]]","v":-650}]
["2019-04-12T13:13:46",43570.553556365739,12,"Пятница","Апрель","2019",0,"-",0,"-",10000,"-",0,"-","Нерсесов Давид","Александр Скупка (Нагатинская)",{"$f":"NOT(ISERROR(SEARCH('Форма ввода'!$C$5,Базаданных[[#This Row],[Клиент]])))","v":false},{"$f":"IF(Базаданных[[#This Row],[Статус]],COUNTIF($Q$2:Базаданных[[#This Row],[Статус]],TRUE),\"\")","v":""},{"$f":"IFERROR(INDEX(Базаданных[Клиент],MATCH(ROWS($R$2:Базаданных[[#This Row],[Индекс]]),Базаданных[Индекс],0)),\"\")","v":""},{"$f":"NOT(ISERROR(SEARCH('Форма ввода'!$C$9,Базаданных[[#This Row],[Чей клиент]])))","v":true},{"$f":"IF(Базаданных[[#This Row],[Статус2]],COUNTIF($T$2:Базаданных[[#This Row],[Статус2]],TRUE),\"\")","v":205},{"$f":"IFERROR(INDEX(Базаданных[Чей клиент],MATCH(ROWS($U$2:Базаданных[[#This Row],[Индекс3]]),Базаданных[Индекс3],0)),\"\")","v":"Нерсесов Давид"},{"$f":"Базаданных[[#This Row],[ДД]]-Базаданных[[#This Row],[ГД]]","v":0},{"$f":"Базаданных[[#This Row],[КВ]]-Базаданных[[#This Row],[ГК]]","v":10000}]
["2019-04-13T13:18:12",43570.55430625,13,"суббота","Апрель","2019",10850,"-",0,"-",0,"-",0,"-","Пименов Алексей","Матросова Венера",{"$f":"NOT(ISERROR(SEARCH('Форма ввода'!$C$5,Базаданных[[#This Row],[Клиент]])))","v":false},{"$f":"IF(Базаданных[[#This Row],[Статус]],COUNTIF($Q$2:Базаданных[[#This Row],[Статус]],TRUE),\"\")","v":""},{"$f":"IFERROR(INDEX(Базаданных[Клиент],MATCH(ROWS($R$2:Базаданных[[#This Row],[Индекс]]),Базаданных[Индекс],0)),\"\")","v":""},{"$f":"NOT(ISERROR(SEARCH('Форма ввода'!$C$9,Базаданных[[#This Row],[Чей клиент]])))","v":true},{"$f":"IF(Базаданных[[#This Row],[Статус2]],COUNTIF($T$2:Базаданных[[#This Row],[Статус2]],TRUE),\"\")","v":206},{"$f":"IFERROR(INDEX(Базаданных[Чей клиент],MATCH(ROWS($U$2:Базаданных[[#This Row],[Индекс3]]),Базаданных[Индекс3],0)),\"\")","v":"Пименов Алексей"},{"$f":"Базаданных[[#This Row],[ДД]]-Базаданных[[#This Row],[ГД]]","v":10850},{"$f":"Базаданных[[#This Row],[КВ]]-Базаданных[[#This Row],[ГК]]","v":0}]
["2019-04-13T13:18:12",43570.554482754633,13,"суббота","Апрель","2019",0,"-",438900,"-",0,"-",0,"-","Нерсесов Давид","Нерсесов Давид ( AlexStore)",{"$f":"NOT(ISERROR(SEARCH('Форма ввода'!$C$5,Базаданных[[#This Row],[Клиент]])))","v":false},{"$f":"IF(Базаданных[[#This Row],[Статус]],COUNTIF($Q$2:Базаданных[[#This Row],[Статус]],TRUE),\"\")","v":""},{"$f":"IFERROR(INDEX(Базаданных[Клиент],MATCH(ROWS($R$2:Базаданных[[#This Row],[Индекс]]),Базаданных[Индекс],0)),\"\")","v":""},{"$f":"NOT(ISERROR(SEARCH('Форма ввода'!$C$9,Базаданных[[#This Row],[Чей клиент]])))","v":true},{"$f":"IF(Базаданных[[#This Row],[Статус2]],COUNTIF($T$2:Базаданных[[#This Row],[Статус2]],TRUE),\"\")","v":207},{"$f":"IFERROR(INDEX(Базаданных[Чей клиент],MATCH(ROWS($U$2:Базаданных[[#This Row],[Индекс3]]),Базаданных[Индекс3],0)),\"\")","v":"Нерсесов Давид"},{"$f":"Базаданных[[#This Row],[ДД]]-Базаданных[[#This Row],[ГД]]","v":-438900},{"$f":"Базаданных[[#This Row],[КВ]]-Базаданных[[#This Row],[ГК]]","v":0}]
["2019-04-13T13:18:12",43570.554647800927,13,"суббота","Апрель","2019",27600,"-",0,"-",0,"-",0,"-","Нерсесов Давид","Акоп П-90 (Савок)",{"$f":"NOT(ISERROR(SEARCH('Форма ввода'!$C$5,Базаданных[[#This Row],[Клиент]])))","v":false},{"$f":"IF(Базаданных[[#This Row],[Статус]],COUNTIF($Q$2:Базаданных[[#This Row],[Статус]],TRUE),\"\")","v":""},{"$f":"IFERROR(INDEX(Базаданных[Клиент],MATCH(ROWS($R$2:Базаданных[[#This Row],[Индекс]]),Базаданных[Индекс],0)),\"\")","v":""},{"$f":"NOT(ISERROR(SEARCH('Форма ввода'!$C$9,Базаданных[[#This Row],[Чей клиент]])))","v":true},{"$f":"IF(Базаданных[[#This Row],[Статус2]],COUNTIF($T$2:Базаданных[[#This Row],[Статус2]],TRUE),\"\")","v":208},{"$f":"IFERROR(INDEX(Базаданных[Чей клиент],MATCH(ROWS($U$2:Базаданных[[#This Row],[Индекс3]]),Базаданных[Индекс3],0)),\"\")","v":"Нерсесов Давид"},{"$f":"Базаданных[[#This Row],[ДД]]-Базаданных[[#This Row],[ГД]]","v":27600},{"$f":"Базаданных[[#This Row],[КВ]]-Базаданных[[#This Row],[ГК]]","v":0}]
["2019-04-13T13:18:12",43570.554799421298,13,"суббота","Апрель","2019",0,"-",29850,"-",0,"-",0,"-","Хачатрян Араик","Геворг (Новогиреево)",{"$f":"NOT(ISERROR(SEARCH('Форма ввода'!$C$5,Базаданных[[#This Row],[Клиент]])))","v":false},{"$f":"IF(Базаданных[[#This Row],[Статус]],COUNTIF($Q$2:Базаданных[[#This Row],[Статус]],TRUE),\"\")","v":""},{"$f":"IFERROR(INDEX(Базаданных[Клиент],MATCH(ROWS($R$2:Базаданных[[#This Row],[Индекс]]),Базаданных[Индекс],0)),\"\")","v":""},{"$f":"NOT(ISERROR(SEARCH('Форма ввода'!$C$9,Базаданных[[#This Row],[Чей клиент]])))","v":true},{"$f":"IF(Базаданных[[#This Row],[Статус2]],COUNTIF($T$2:Базаданных[[#This Row],[Статус2]],TRUE),\"\")","v":209},{"$f":"IFERROR(INDEX(Базаданных[Чей клиент],MATCH(ROWS($U$2:Базаданных[[#This Row],[Индекс3]]),Базаданных[Индекс3],0)),\"\")","v":"Хачатрян Араик"},{"$f":"Базаданных[[#This Row],[ДД]]-Базаданных[[#This Row],[ГД]]","v":-29850},{"$f":"Базаданных[[#This Row],[КВ]]-Базаданных[[#This Row],[ГК]]","v":0}]
["2019-04-13T13:18:12",43570.55503599537,13,"суббота","Апрель","2019",9040,"-",0,"-",0,"-",0,"-","Гречихина Юля","Комиссионка (Серпухов)",{"$f":"NOT(ISERROR(SEARCH('Форма ввода'!$C$5,Базаданных[[#This Row],[Клиент]])))","v":false},{"$f":"IF(Базаданных[[#This Row],[Статус]],COUNTIF($Q$2:Базаданных[[#This Row],[Статус]],TRUE),\"\")","v":""},{"$f":"IFERROR(INDEX(Базаданных[Клиент],MATCH(ROWS($R$2:Базаданных[[#This Row],[Индекс]]),Базаданных[Индекс],0)),\"\")","v":""},{"$f":"NOT(ISERROR(SEARCH('Форма ввода'!$C$9,Базаданных[[#This Row],[Чей клиент]])))","v":true},{"$f":"IF(Базаданных[[#This Row],[Статус2]],COUNTIF($T$2:Базаданных[[#This Row],[Статус2]],TRUE),\"\")","v":210},{"$f":"IFERROR(INDEX(Базаданных[Чей клиент],MATCH(ROWS($U$2:Базаданных[[#This Row],[Индекс3]]),Базаданных[Индекс3],0)),\"\")","v":"Гречихина Юля"},{"$f":"Базаданных[[#This Row],[ДД]]-Базаданных[[#This Row],[ГД]]","v":9040},{"$f":"Базаданных[[#This Row],[КВ]]-Базаданных[[#This Row],[ГК]]","v":0}]
["2019-04-13T13:18:12",43570.555168287035,13,"суббота","Апрель","2019",0,"-",37000,"-",0,"-",0,"-","Гречихина Юля","Скупка Розовая (Лобня)",{"$f":"NOT(ISERROR(SEARCH('Форма ввода'!$C$5,Базаданных[[#This Row],[Клиент]])))","v":false},{"$f":"IF(Базаданных[[#This Row],[Статус]],COUNTIF($Q$2:Базаданных[[#This Row],[Статус]],TRUE),\"\")","v":""},{"$f":"IFERROR(INDEX(Базаданных[Клиент],MATCH(ROWS($R$2:Базаданных[[#This Row],[Индекс]]),Базаданных[Индекс],0)),\"\")","v":""},{"$f":"NOT(ISERROR(SEARCH('Форма ввода'!$C$9,Базаданных[[#This Row],[Чей клиент]])))","v":true},{"$f":"IF(Базаданных[[#This Row],[Статус2]],COUNTIF($T$2:Базаданных[[#This Row],[Статус2]],TRUE),\"\")","v":211},{"$f":"IFERROR(INDEX(Базаданных[Чей клиент],MATCH(ROWS($U$2:Базаданных[[#This Row],[Индекс3]]),Базаданных[Индекс3],0)),\"\")","v":"Гречихина Юля"},{"$f":"Базаданных[[#This Row],[ДД]]-Базаданных[[#This Row],[ГД]]","v":-37000},{"$f":"Базаданных[[#This Row],[КВ]]-Базаданных[[#This Row],[ГК]]","v":0}]
["2019-04-13T13:18:12",43570.555419212964,13,"суббота","Апрель","2019",0,"-",0,"-",120000,"-",0,"-","Гречихина Юля","Вадим (Скупка Егорьевск)",{"$f":"NOT(ISERROR(SEARCH('Форма ввода'!$C$5,Базаданных[[#This Row],[Клиент]])))","v":false},{"$f":"IF(Базаданных[[#This Row],[Статус]],COUNTIF($Q$2:Базаданных[[#This Row],[Статус]],TRUE),\"\")","v":""},{"$f":"IFERROR(INDEX(Базаданных[Клиент],MATCH(ROWS($R$2:Базаданных[[#This Row],[Индекс]]),Базаданных[Индекс],0)),\"\")","v":""},{"$f":"NOT(ISERROR(SEARCH('Форма ввода'!$C$9,Базаданных[[#This Row],[Чей клиент]])))","v":true},{"$f":"IF(Базаданных[[#This Row],[Статус2]],COUNTIF($T$2:Базаданных[[#This Row],[Статус2]],TRUE),\"\")","v":212},{"$f":"IFERROR(INDEX(Базаданных[Чей клиент],MATCH(ROWS($U$2:Базаданных[[#This Row],[Индекс3]]),Базаданных[Индекс3],0)),\"\")","v":"Гречихина Юля"},{"$f":"Базаданных[[#This Row],[ДД]]-Базаданных[[#This Row],[ГД]]","v":0},{"$f":"Базаданных[[#This Row],[КВ]]-Базаданных[[#This Row],[ГК]]","v":120000}]
["2019-04-14T13:20:48",43570.556115162035,14,"Воскресенье","Апрель","2019",7700,"-",0,"-",0,"-",0,"-","Гречихина Юля","Вадим (Скупка Егорьевск)",{"$f":"NOT(ISERROR(SEARCH('Форма ввода'!$C$5,Базаданных[[#This Row],[Клиент]])))","v":false},{"$f":"IF(Базаданных[[#This Row],[Статус]],COUNTIF($Q$2:Базаданных[[#This Row],[Статус]],TRUE),\"\")","v":""},{"$f":"IFERROR(INDEX(Базаданных[Клиент],MATCH(ROWS($R$2:Базаданных[[#This Row],[Индекс]]),Базаданных[Индекс],0)),\"\")","v":""},{"$f":"NOT(ISERROR(SEARCH('Форма ввода'!$C$9,Базаданных[[#This Row],[Чей клиент]])))","v":true},{"$f":"IF(Базаданных[[#This Row],[Статус2]],COUNTIF($T$2:Базаданных[[#This Row],[Статус2]],TRUE),\"\")","v":213},{"$f":"IFERROR(INDEX(Базаданных[Чей клиент],MATCH(ROWS($U$2:Базаданных[[#This Row],[Индекс3]]),Базаданных[Индекс3],0)),\"\")","v":"Гречихина Юля"},{"$f":"Базаданных[[#This Row],[ДД]]-Базаданных[[#This Row],[ГД]]","v":7700},{"$f":"Базаданных[[#This Row],[КВ]]-Базаданных[[#This Row],[ГК]]","v":0}]
["2019-04-14T13:20:48",43570.556268865737,14,"Воскресенье","Апрель","2019",0,"-",10000,"-",0,"-",0,"-","Гречихина Юля","Комиссионка (Серпухов)",{"$f":"NOT(ISERROR(SEARCH('Форма ввода'!$C$5,Базаданных[[#This Row],[Клиент]])))","v":false},{"$f":"IF(Базаданных[[#This Row],[Статус]],COUNTIF($Q$2:Базаданных[[#This Row],[Статус]],TRUE),\"\")","v":""},{"$f":"IFERROR(INDEX(Базаданных[Клиент],MATCH(ROWS($R$2:Базаданных[[#This Row],[Индекс]]),Базаданных[Индекс],0)),\"\")","v":""},{"$f":"NOT(ISERROR(SEARCH('Форма ввода'!$C$9,Базаданных[[#This Row],[Чей клиент]])))","v":true},{"$f":"IF(Базаданных[[#This Row],[Статус2]],COUNTIF($T$2:Базаданных[[#This Row],[Статус2]],TRUE),\"\")","v":214},{"$f":"IFERROR(INDEX(Базаданных[Чей клиент],MATCH(ROWS($U$2:Базаданных[[#This Row],[Индекс3]]),Базаданных[Индекс3],0)),\"\")","v":"Гречихина Юля"},{"$f":"Базаданных[[#This Row],[ДД]]-Базаданных[[#This Row],[ГД]]","v":-10000},{"$f":"Базаданных[[#This Row],[КВ]]-Базаданных[[#This Row],[ГК]]","v":0}]
["2019-04-14T13:20:48",43570.556481250002,14,"Воскресенье","Апрель","2019",0,"-",0,"-",40000,"-",0,"-","Пименов Алексей","КМТ Сервис (Клин)",{"$f":"NOT(ISERROR(SEARCH('Форма ввода'!$C$5,Базаданных[[#This Row],[Клиент]])))","v":false},{"$f":"IF(Базаданных[[#This Row],[Статус]],COUNTIF($Q$2:Базаданных[[#This Row],[Статус]],TRUE),\"\")","v":""},{"$f":"IFERROR(INDEX(Базаданных[Клиент],MATCH(ROWS($R$2:Базаданных[[#This Row],[Индекс]]),Базаданных[Индекс],0)),\"\")","v":""},{"$f":"NOT(ISERROR(SEARCH('Форма ввода'!$C$9,Базаданных[[#This Row],[Чей клиент]])))","v":true},{"$f":"IF(Базаданных[[#This Row],[Статус2]],COUNTIF($T$2:Базаданных[[#This Row],[Статус2]],TRUE),\"\")","v":215},{"$f":"IFERROR(INDEX(Базаданных[Чей клиент],MATCH(ROWS($U$2:Базаданных[[#This Row],[Индекс3]]),Базаданных[Индекс3],0)),\"\")","v":"Пименов Алексей"},{"$f":"Базаданных[[#This Row],[ДД]]-Базаданных[[#This Row],[ГД]]","v":0},{"$f":"Базаданных[[#This Row],[КВ]]-Базаданных[[#This Row],[ГК]]","v":40000}]
["2019-04-14T13:20:48",43570.556679166664,14,"Воскресенье","Апрель","2019",0,"-",0,"-",0,"-",120000,"-","Гречихина Юля","Вадим (Скупка Егорьевск)",{"$f":"NOT(ISERROR(SEARCH('Форма ввода'!$C$5,Базаданных[[#This Row],[Клиент]])))","v":false},{"$f":"IF(Базаданных[[#This Row],[Статус]],COUNTIF($Q$2:Базаданных[[#This Row],[Статус]],TRUE),\"\")","v":""},{"$f":"IFERROR(INDEX(Базаданных[Клиент],MATCH(ROWS($R$2:Базаданных[[#This Row],[Индекс]]),Базаданных[Индекс],0)),\"\")","v":""},{"$f":"NOT(ISERROR(SEARCH('Форма ввода'!$C$9,Базаданных[[#This Row],[Чей клиент]])))","v":true},{"$f":"IF(Базаданных[[#This Row],[Статус2]],COUNTIF($T$2:Базаданных[[#This Row],[Статус2]],TRUE),\"\")","v":216},{"$f":"IFERROR(INDEX(Базаданных[Чей клиент],MATCH(ROWS($U$2:Базаданных[[#This Row],[Индекс3]]),Базаданных[Индекс3],0)),\"\")","v":"Гречихина Юля"},{"$f":"Базаданных[[#This Row],[ДД]]-Базаданных[[#This Row],[ГД]]","v":0},{"$f":"Базаданных[[#This Row],[КВ]]-Базаданных[[#This Row],[ГК]]","v":-120000}]
["2019-04-15T10:15:36",43571.427494675925,15,"Понедельник","Апрель","2019",0,"-",16000,"-",0,"-",9600,"-","Пименов Алексей","Пименов Алексей (АлексСтор)",{"$f":"NOT(ISERROR(SEARCH('Форма ввода'!$C$5,Базаданных[[#This Row],[Клиент]])))","v":true},{"$f":"IF(Базаданных[[#This Row],[Статус]],COUNTIF($Q$2:Базаданных[[#This Row],[Статус]],TRUE),\"\")","v":3},{"$f":"IFERROR(INDEX(Базаданных[Клиент],MATCH(ROWS($R$2:Базаданных[[#This Row],[Индекс]]),Базаданных[Индекс],0)),\"\")","v":""},{"$f":"NOT(ISERROR(SEARCH('Форма ввода'!$C$9,Базаданных[[#This Row],[Чей клиент]])))","v":true},{"$f":"IF(Базаданных[[#This Row],[Статус2]],COUNTIF($T$2:Базаданных[[#This Row],[Статус2]],TRUE),\"\")","v":217},{"$f":"IFERROR(INDEX(Базаданных[Чей клиент],MATCH(ROWS($U$2:Базаданных[[#This Row],[Индекс3]]),Базаданных[Индекс3],0)),\"\")","v":"Пименов Алексей"},{"$f":"Базаданных[[#This Row],[ДД]]-Базаданных[[#This Row],[ГД]]","v":-16000},{"$f":"Базаданных[[#This Row],[КВ]]-Базаданных[[#This Row],[ГК]]","v":-9600}]
["2019-04-15T10:15:36",43571.429971296297,15,"Понедельник","Апрель","2019",0,"-",0,"-",0,"-",40200,"-","Пименов Алексей","КМТ Сервис (Клин)",{"$f":"NOT(ISERROR(SEARCH('Форма ввода'!$C$5,Базаданных[[#This Row],[Клиент]])))","v":false},{"$f":"IF(Базаданных[[#This Row],[Статус]],COUNTIF($Q$2:Базаданных[[#This Row],[Статус]],TRUE),\"\")","v":""},{"$f":"IFERROR(INDEX(Базаданных[Клиент],MATCH(ROWS($R$2:Базаданных[[#This Row],[Индекс]]),Базаданных[Индекс],0)),\"\")","v":""},{"$f":"NOT(ISERROR(SEARCH('Форма ввода'!$C$9,Базаданных[[#This Row],[Чей клиент]])))","v":true},{"$f":"IF(Базаданных[[#This Row],[Статус2]],COUNTIF($T$2:Базаданных[[#This Row],[Статус2]],TRUE),\"\")","v":218},{"$f":"IFERROR(INDEX(Базаданных[Чей клиент],MATCH(ROWS($U$2:Базаданных[[#This Row],[Индекс3]]),Базаданных[Индекс3],0)),\"\")","v":"Пименов Алексей"},{"$f":"Базаданных[[#This Row],[ДД]]-Базаданных[[#This Row],[ГД]]","v":0},{"$f":"Базаданных[[#This Row],[КВ]]-Базаданных[[#This Row],[ГК]]","v":-40200}]
["2019-04-15T10:15:36",43571.459609606478,15,"Понедельник","Апрель","2019",52280,"-",0,"-",0,"-",0,"-","Гречихина Юля","Михаил (Домодедовская)",{"$f":"NOT(ISERROR(SEARCH('Форма ввода'!$C$5,Базаданных[[#This Row],[Клиент]])))","v":false},{"$f":"IF(Базаданных[[#This Row],[Статус]],COUNTIF($Q$2:Базаданных[[#This Row],[Статус]],TRUE),\"\")","v":""},{"$f":"IFERROR(INDEX(Базаданных[Клиент],MATCH(ROWS($R$2:Базаданных[[#This Row],[Индекс]]),Базаданных[Индекс],0)),\"\")","v":""},{"$f":"NOT(ISERROR(SEARCH('Форма ввода'!$C$9,Базаданных[[#This Row],[Чей клиент]])))","v":true},{"$f":"IF(Базаданных[[#This Row],[Статус2]],COUNTIF($T$2:Базаданных[[#This Row],[Статус2]],TRUE),\"\")","v":219},{"$f":"IFERROR(INDEX(Базаданных[Чей клиент],MATCH(ROWS($U$2:Базаданных[[#This Row],[Индекс3]]),Базаданных[Индекс3],0)),\"\")","v":"Гречихина Юля"},{"$f":"Базаданных[[#This Row],[ДД]]-Базаданных[[#This Row],[ГД]]","v":52280},{"$f":"Базаданных[[#This Row],[КВ]]-Базаданных[[#This Row],[ГК]]","v":0}]
["2019-04-15T10:15:36",43571.460170023151,15,"Понедельник","Апрель","2019",0,"-",840,"-",0,"-",0,"-","Гречихина Юля","Дмитрий (Комиссионка Подольск)",{"$f":"NOT(ISERROR(SEARCH('Форма ввода'!$C$5,Базаданных[[#This Row],[Клиент]])))","v":false},{"$f":"IF(Базаданных[[#This Row],[Статус]],COUNTIF($Q$2:Базаданных[[#This Row],[Статус]],TRUE),\"\")","v":""},{"$f":"IFERROR(INDEX(Базаданных[Клиент],MATCH(ROWS($R$2:Базаданных[[#This Row],[Индекс]]),Базаданных[Индекс],0)),\"\")","v":""},{"$f":"NOT(ISERROR(SEARCH('Форма ввода'!$C$9,Базаданных[[#This Row],[Чей клиент]])))","v":true},{"$f":"IF(Базаданных[[#This Row],[Статус2]],COUNTIF($T$2:Базаданных[[#This Row],[Статус2]],TRUE),\"\")","v":220},{"$f":"IFERROR(INDEX(Базаданных[Чей клиент],MATCH(ROWS($U$2:Базаданных[[#This Row],[Индекс3]]),Базаданных[Индекс3],0)),\"\")","v":"Гречихина Юля"},{"$f":"Базаданных[[#This Row],[ДД]]-Базаданных[[#This Row],[ГД]]","v":-840},{"$f":"Базаданных[[#This Row],[КВ]]-Базаданных[[#This Row],[ГК]]","v":0}]
["2019-04-15T10:15:36",43571.46051365741,15,"Понедельник","Апрель","2019",0,"-",7800,"-",0,"-",0,"-","Пименов Алексей","Благо ломбард",{"$f":"NOT(ISERROR(SEARCH('Форма ввода'!$C$5,Базаданных[[#This Row],[Клиент]])))","v":false},{"$f":"IF(Базаданных[[#This Row],[Статус]],COUNTIF($Q$2:Базаданных[[#This Row],[Статус]],TRUE),\"\")","v":""},{"$f":"IFERROR(INDEX(Базаданных[Клиент],MATCH(ROWS($R$2:Базаданных[[#This Row],[Индекс]]),Базаданных[Индекс],0)),\"\")","v":""},{"$f":"NOT(ISERROR(SEARCH('Форма ввода'!$C$9,Базаданных[[#This Row],[Чей клиент]])))","v":true},{"$f":"IF(Базаданных[[#This Row],[Статус2]],COUNTIF($T$2:Базаданных[[#This Row],[Статус2]],TRUE),\"\")","v":221},{"$f":"IFERROR(INDEX(Базаданных[Чей клиент],MATCH(ROWS($U$2:Базаданных[[#This Row],[Индекс3]]),Базаданных[Индекс3],0)),\"\")","v":"Пименов Алексей"},{"$f":"Базаданных[[#This Row],[ДД]]-Базаданных[[#This Row],[ГД]]","v":-7800},{"$f":"Базаданных[[#This Row],[КВ]]-Базаданных[[#This Row],[ГК]]","v":0}]
["2019-04-15T10:15:36",43571.460833564815,15,"Понедельник","Апрель","2019",0,"-",13000,"-",0,"-",0,"-","Нерсесов Давид","Надир (К84 Царицино)",{"$f":"NOT(ISERROR(SEARCH('Форма ввода'!$C$5,Базаданных[[#This Row],[Клиент]])))","v":false},{"$f":"IF(Базаданных[[#This Row],[Статус]],COUNTIF($Q$2:Базаданных[[#This Row],[Статус]],TRUE),\"\")","v":""},{"$f":"IFERROR(INDEX(Базаданных[Клиент],MATCH(ROWS($R$2:Базаданных[[#This Row],[Индекс]]),Базаданных[Индекс],0)),\"\")","v":""},{"$f":"NOT(ISERROR(SEARCH('Форма ввода'!$C$9,Базаданных[[#This Row],[Чей клиент]])))","v":true},{"$f":"IF(Базаданных[[#This Row],[Статус2]],COUNTIF($T$2:Базаданных[[#This Row],[Статус2]],TRUE),\"\")","v":222},{"$f":"IFERROR(INDEX(Базаданных[Чей клиент],MATCH(ROWS($U$2:Базаданных[[#This Row],[Индекс3]]),Базаданных[Индекс3],0)),\"\")","v":"Нерсесов Давид"},{"$f":"Базаданных[[#This Row],[ДД]]-Базаданных[[#This Row],[ГД]]","v":-13000},{"$f":"Базаданных[[#This Row],[КВ]]-Базаданных[[#This Row],[ГК]]","v":0}]
["2019-04-15T10:15:36",43571.461755439814,15,"Понедельник","Апрель","2019",0,"-",20140,"-",0,"-",0,"-","Гречихина Юля","Вадим (Скупка Егорьевск)",{"$f":"NOT(ISERROR(SEARCH('Форма ввода'!$C$5,Базаданных[[#This Row],[Клиент]])))","v":false},{"$f":"IF(Базаданных[[#This Row],[Статус]],COUNTIF($Q$2:Базаданных[[#This Row],[Статус]],TRUE),\"\")","v":""},{"$f":"IFERROR(INDEX(Базаданных[Клиент],MATCH(ROWS($R$2:Базаданных[[#This Row],[Индекс]]),Базаданных[Индекс],0)),\"\")","v":""},{"$f":"NOT(ISERROR(SEARCH('Форма ввода'!$C$9,Базаданных[[#This Row],[Чей клиент]])))","v":true},{"$f":"IF(Базаданных[[#This Row],[Статус2]],COUNTIF($T$2:Базаданных[[#This Row],[Статус2]],TRUE),\"\")","v":223},{"$f":"IFERROR(INDEX(Базаданных[Чей клиент],MATCH(ROWS($U$2:Базаданных[[#This Row],[Индекс3]]),Базаданных[Индекс3],0)),\"\")","v":"Гречихина Юля"},{"$f":"Базаданных[[#This Row],[ДД]]-Базаданных[[#This Row],[ГД]]","v":-20140},{"$f":"Базаданных[[#This Row],[КВ]]-Базаданных[[#This Row],[ГК]]","v":0}]
["2019-04-15T10:15:36",43571.462159143521,15,"Понедельник","Апрель","2019",0,"-",0,"-",380,"-",0,"-","Гречихина Юля","Мобсервис",{"$f":"NOT(ISERROR(SEARCH('Форма ввода'!$C$5,Базаданных[[#This Row],[Клиент]])))","v":false},{"$f":"IF(Базаданных[[#This Row],[Статус]],COUNTIF($Q$2:Базаданных[[#This Row],[Статус]],TRUE),\"\")","v":""},{"$f":"IFERROR(INDEX(Базаданных[Клиент],MATCH(ROWS($R$2:Базаданных[[#This Row],[Индекс]]),Базаданных[Индекс],0)),\"\")","v":""},{"$f":"NOT(ISERROR(SEARCH('Форма ввода'!$C$9,Базаданных[[#This Row],[Чей клиент]])))","v":true},{"$f":"IF(Базаданных[[#This Row],[Статус2]],COUNTIF($T$2:Базаданных[[#This Row],[Статус2]],TRUE),\"\")","v":224},{"$f":"IFERROR(INDEX(Базаданных[Чей клиент],MATCH(ROWS($U$2:Базаданных[[#This Row],[Индекс3]]),Базаданных[Индекс3],0)),\"\")","v":"Гречихина Юля"},{"$f":"Базаданных[[#This Row],[ДД]]-Базаданных[[#This Row],[ГД]]","v":0},{"$f":"Базаданных[[#This Row],[КВ]]-Базаданных[[#This Row],[ГК]]","v":380}]
["2019-04-15T10:15:36",43571.46242048611,15,"Понедельник","Апрель","2019",0,"-",0,"-",200,"-",0,"-","Пименов Алексей","Благо ломбард",{"$f":"NOT(ISERROR(SEARCH('Форма ввода'!$C$5,Базаданных[[#This Row],[Клиент]])))","v":false},{"$f":"IF(Базаданных[[#This Row],[Статус]],COUNTIF($Q$2:Базаданных[[#This Row],[Статус]],TRUE),\"\")","v":""},{"$f":"IFERROR(INDEX(Базаданных[Клиент],MATCH(ROWS($R$2:Базаданных[[#This Row],[Индекс]]),Базаданных[Индекс],0)),\"\")","v":""},{"$f":"NOT(ISERROR(SEARCH('Форма ввода'!$C$9,Базаданных[[#This Row],[Чей клиент]])))","v":true},{"$f":"IF(Базаданных[[#This Row],[Статус2]],COUNTIF($T$2:Базаданных[[#This Row],[Статус2]],TRUE),\"\")","v":225},{"$f":"IFERROR(INDEX(Базаданных[Чей клиент],MATCH(ROWS($U$2:Базаданных[[#This Row],[Индекс3]]),Базаданных[Индекс3],0)),\"\")","v":"Пименов Алексей"},{"$f":"Базаданных[[#This Row],[ДД]]-Базаданных[[#This Row],[ГД]]","v":0},{"$f":"Базаданных[[#This Row],[КВ]]-Базаданных[[#This Row],[ГК]]","v":200}]
["2019-04-15T10:15:36",43571.462789467594,15,"Понедельник","Апрель","2019",0,"-",0,"-",27070,"-",0,"-","Нерсесов Давид","Надир (К84 Царицино)",{"$f":"NOT(ISERROR(SEARCH('Форма ввода'!$C$5,Базаданных[[#This Row],[Клиент]])))","v":false},{"$f":"IF(Базаданных[[#This Row],[Статус]],COUNTIF($Q$2:Базаданных[[#This Row],[Статус]],TRUE),\"\")","v":""},{"$f":"IFERROR(INDEX(Базаданных[Клиент],MATCH(ROWS($R$2:Базаданных[[#This Row],[Индекс]]),Базаданных[Индекс],0)),\"\")","v":""},{"$f":"NOT(ISERROR(SEARCH('Форма ввода'!$C$9,Базаданных[[#This Row],[Чей клиент]])))","v":true},{"$f":"IF(Базаданных[[#This Row],[Статус2]],COUNTIF($T$2:Базаданных[[#This Row],[Статус2]],TRUE),\"\")","v":226},{"$f":"IFERROR(INDEX(Базаданных[Чей клиент],MATCH(ROWS($U$2:Базаданных[[#This Row],[Индекс3]]),Базаданных[Индекс3],0)),\"\")","v":"Нерсесов Давид"},{"$f":"Базаданных[[#This Row],[ДД]]-Базаданных[[#This Row],[ГД]]","v":0},{"$f":"Базаданных[[#This Row],[КВ]]-Базаданных[[#This Row],[ГК]]","v":27070}]
["2019-04-16T11:59:37.670",43571.499741550928,16,"вторник","Апрель","2019",0,"-",0,"-",75220,"-",0,"-","Пименов Алексей","Александр (Сызрань)",{"$f":"NOT(ISERROR(SEARCH('Форма ввода'!$C$5,Базаданных[[#This Row],[Клиент]])))","v":false},{"$f":"IF(Базаданных[[#This Row],[Статус]],COUNTIF($Q$2:Базаданных[[#This Row],[Статус]],TRUE),\"\")","v":""},{"$f":"IFERROR(INDEX(Базаданных[Клиент],MATCH(ROWS($R$2:Базаданных[[#This Row],[Индекс]]),Базаданных[Индекс],0)),\"\")","v":""},{"$f":"NOT(ISERROR(SEARCH('Форма ввода'!$C$9,Базаданных[[#This Row],[Чей клиент]])))","v":true},{"$f":"IF(Базаданных[[#This Row],[Статус2]],COUNTIF($T$2:Базаданных[[#This Row],[Статус2]],TRUE),\"\")","v":227},{"$f":"IFERROR(INDEX(Базаданных[Чей клиент],MATCH(ROWS($U$2:Базаданных[[#This Row],[Индекс3]]),Базаданных[Индекс3],0)),\"\")","v":"Пименов Алексей"},{"$f":"Базаданных[[#This Row],[ДД]]-Базаданных[[#This Row],[ГД]]","v":0},{"$f":"Базаданных[[#This Row],[КВ]]-Базаданных[[#This Row],[ГК]]","v":75220}]
["2019-04-16T12:33:26.830",43571.523227199075,16,"вторник","Апрель","2019",0,"-",0,"-",7170,"-",0,"-","Пименов Алексей","Белов Александр Павлович",{"$f":"NOT(ISERROR(SEARCH('Форма ввода'!$C$5,Базаданных[[#This Row],[Клиент]])))","v":false},{"$f":"IF(Базаданных[[#This Row],[Статус]],COUNTIF($Q$2:Базаданных[[#This Row],[Статус]],TRUE),\"\")","v":""},{"$f":"IFERROR(INDEX(Базаданных[Клиент],MATCH(ROWS($R$2:Базаданных[[#This Row],[Индекс]]),Базаданных[Индекс],0)),\"\")","v":""},{"$f":"NOT(ISERROR(SEARCH('Форма ввода'!$C$9,Базаданных[[#This Row],[Чей клиент]])))","v":true},{"$f":"IF(Базаданных[[#This Row],[Статус2]],COUNTIF($T$2:Базаданных[[#This Row],[Статус2]],TRUE),\"\")","v":228},{"$f":"IFERROR(INDEX(Базаданных[Чей клиент],MATCH(ROWS($U$2:Базаданных[[#This Row],[Индекс3]]),Базаданных[Индекс3],0)),\"\")","v":"Пименов Алексей"},{"$f":"Базаданных[[#This Row],[ДД]]-Базаданных[[#This Row],[ГД]]","v":0},{"$f":"Базаданных[[#This Row],[КВ]]-Базаданных[[#This Row],[ГК]]","v":7170}]
["2019-04-16T13:22:08.030",43571.557037384257,16,"вторник","Апрель","2019",0,"-",10000,"-",0,"-",0,"-","Пименов Алексей","Дмитрий Arm Device",{"$f":"NOT(ISERROR(SEARCH('Форма ввода'!$C$5,Базаданных[[#This Row],[Клиент]])))","v":false},{"$f":"IF(Базаданных[[#This Row],[Статус]],COUNTIF($Q$2:Базаданных[[#This Row],[Статус]],TRUE),\"\")","v":""},{"$f":"IFERROR(INDEX(Базаданных[Клиент],MATCH(ROWS($R$2:Базаданных[[#This Row],[Индекс]]),Базаданных[Индекс],0)),\"\")","v":""},{"$f":"NOT(ISERROR(SEARCH('Форма ввода'!$C$9,Базаданных[[#This Row],[Чей клиент]])))","v":true},{"$f":"IF(Базаданных[[#This Row],[Статус2]],COUNTIF($T$2:Базаданных[[#This Row],[Статус2]],TRUE),\"\")","v":229},{"$f":"IFERROR(INDEX(Базаданных[Чей клиент],MATCH(ROWS($U$2:Базаданных[[#This Row],[Индекс3]]),Базаданных[Индекс3],0)),\"\")","v":"Пименов Алексей"},{"$f":"Базаданных[[#This Row],[ДД]]-Базаданных[[#This Row],[ГД]]","v":-10000},{"$f":"Базаданных[[#This Row],[КВ]]-Базаданных[[#This Row],[ГК]]","v":0}]
["2019-04-16T15:00:25.120",43571.62529074074,16,"вторник","Апрель","2019",38000,"-",0,"-",0,"-",0,"-","Хачатрян Араик","Хачатрян Араик (АлексСтор)",{"$f":"NOT(ISERROR(SEARCH('Форма ввода'!$C$5,Базаданных[[#This Row],[Клиент]])))","v":false},{"$f":"IF(Базаданных[[#This Row],[Статус]],COUNTIF($Q$2:Базаданных[[#This Row],[Статус]],TRUE),\"\")","v":""},{"$f":"IFERROR(INDEX(Базаданных[Клиент],MATCH(ROWS($R$2:Базаданных[[#This Row],[Индекс]]),Базаданных[Индекс],0)),\"\")","v":""},{"$f":"NOT(ISERROR(SEARCH('Форма ввода'!$C$9,Базаданных[[#This Row],[Чей клиент]])))","v":true},{"$f":"IF(Базаданных[[#This Row],[Статус2]],COUNTIF($T$2:Базаданных[[#This Row],[Статус2]],TRUE),\"\")","v":230},{"$f":"IFERROR(INDEX(Базаданных[Чей клиент],MATCH(ROWS($U$2:Базаданных[[#This Row],[Индекс3]]),Базаданных[Индекс3],0)),\"\")","v":"Хачатрян Араик"},{"$f":"Базаданных[[#This Row],[ДД]]-Базаданных[[#This Row],[ГД]]","v":38000},{"$f":"Базаданных[[#This Row],[КВ]]-Базаданных[[#This Row],[ГК]]","v":0}]
["2019-04-16T15:17:59.210",43571.637490856483,16,"вторник","Апрель","2019",0,"-",38000,"-",0,"-",0,"-","Хачатрян Араик","Хачатрян Араик (АлексСтор)",{"$f":"NOT(ISERROR(SEARCH('Форма ввода'!$C$5,Базаданных[[#This Row],[Клиент]])))","v":false},{"$f":"IF(Базаданных[[#This Row],[Статус]],COUNTIF($Q$2:Базаданных[[#This Row],[Статус]],TRUE),\"\")","v":""},{"$f":"IFERROR(INDEX(Базаданных[Клиент],MATCH(ROWS($R$2:Базаданных[[#This Row],[Индекс]]),Базаданных[Индекс],0)),\"\")","v":""},{"$f":"NOT(ISERROR(SEARCH('Форма ввода'!$C$9,Базаданных[[#This Row],[Чей клиент]])))","v":true},{"$f":"IF(Базаданных[[#This Row],[Статус2]],COUNTIF($T$2:Базаданных[[#This Row],[Статус2]],TRUE),\"\")","v":231},{"$f":"IFERROR(INDEX(Базаданных[Чей клиент],MATCH(ROWS($U$2:Базаданных[[#This Row],[Индекс3]]),Базаданных[Индекс3],0)),\"\")","v":"Хачатрян Араик"},{"$f":"Базаданных[[#This Row],[ДД]]-Базаданных[[#This Row],[ГД]]","v":-38000},{"$f":"Базаданных[[#This Row],[КВ]]-Базаданных[[#This Row],[ГК]]","v":0}]
["2019-04-16T15:32:39.530",43571.647679745372,16,"вторник","Апрель","2019",11200,"-",0,"-",0,"-",0,"-","Нерсесов Давид","Александр Скупка (Нагатинская)",{"$f":"NOT(ISERROR(SEARCH('Форма ввода'!$C$5,Базаданных[[#This Row],[Клиент]])))","v":false},{"$f":"IF(Базаданных[[#This Row],[Статус]],COUNTIF($Q$2:Базаданных[[#This Row],[Статус]],TRUE),\"\")","v":""},{"$f":"IFERROR(INDEX(Базаданных[Клиент],MATCH(ROWS($R$2:Базаданных[[#This Row],[Индекс]]),Базаданных[Индекс],0)),\"\")","v":""},{"$f":"NOT(ISERROR(SEARCH('Форма ввода'!$C$9,Базаданных[[#This Row],[Чей клиент]])))","v":true},{"$f":"IF(Базаданных[[#This Row],[Статус2]],COUNTIF($T$2:Базаданных[[#This Row],[Статус2]],TRUE),\"\")","v":232},{"$f":"IFERROR(INDEX(Базаданных[Чей клиент],MATCH(ROWS($U$2:Базаданных[[#This Row],[Индекс3]]),Базаданных[Индекс3],0)),\"\")","v":"Нерсесов Давид"},{"$f":"Базаданных[[#This Row],[ДД]]-Базаданных[[#This Row],[ГД]]","v":11200},{"$f":"Базаданных[[#This Row],[КВ]]-Базаданных[[#This Row],[ГК]]","v":0}]
["2019-04-16T17:10:15.990",43571.71546284722,16,"вторник","Апрель","2019",47600,"-",0,"-",0,"-",0,"-","Нерсесов Давид","Александр Скупка (Нагатинская)",{"$f":"NOT(ISERROR(SEARCH('Форма ввода'!$C$5,Базаданных[[#This Row],[Клиент]])))","v":false},{"$f":"IF(Базаданных[[#This Row],[Статус]],COUNTIF($Q$2:Базаданных[[#This Row],[Статус]],TRUE),\"\")","v":""},{"$f":"IFERROR(INDEX(Базаданных[Клиент],MATCH(ROWS($R$2:Базаданных[[#This Row],[Индекс]]),Базаданных[Индекс],0)),\"\")","v":""},{"$f":"NOT(ISERROR(SEARCH('Форма ввода'!$C$9,Базаданных[[#This Row],[Чей клиент]])))","v":true},{"$f":"IF(Базаданных[[#This Row],[Статус2]],COUNTIF($T$2:Базаданных[[#This Row],[Статус2]],TRUE),\"\")","v":233},{"$f":"IFERROR(INDEX(Базаданных[Чей клиент],MATCH(ROWS($U$2:Базаданных[[#This Row],[Индекс3]]),Базаданных[Индекс3],0)),\"\")","v":"Нерсесов Давид"},{"$f":"Базаданных[[#This Row],[ДД]]-Базаданных[[#This Row],[ГД]]","v":47600},{"$f":"Базаданных[[#This Row],[КВ]]-Базаданных[[#This Row],[ГК]]","v":0}]
["2019-04-16T17:15:10.680",43571.718873611113,16,"вторник","Апрель","2019",79300,"Планшеты Надир",0,"-",0,"-",0,"-","Нерсесов Давид","Нерсесов Давид ( AlexStore)",{"$f":"NOT(ISERROR(SEARCH('Форма ввода'!$C$5,Базаданных[[#This Row],[Клиент]])))","v":false},{"$f":"IF(Базаданных[[#This Row],[Статус]],COUNTIF($Q$2:Базаданных[[#This Row],[Статус]],TRUE),\"\")","v":""},{"$f":"IFERROR(INDEX(Базаданных[Клиент],MATCH(ROWS($R$2:Базаданных[[#This Row],[Индекс]]),Базаданных[Индекс],0)),\"\")","v":""},{"$f":"NOT(ISERROR(SEARCH('Форма ввода'!$C$9,Базаданных[[#This Row],[Чей клиент]])))","v":true},{"$f":"IF(Базаданных[[#This Row],[Статус2]],COUNTIF($T$2:Базаданных[[#This Row],[Статус2]],TRUE),\"\")","v":234},{"$f":"IFERROR(INDEX(Базаданных[Чей клиент],MATCH(ROWS($U$2:Базаданных[[#This Row],[Индекс3]]),Базаданных[Индекс3],0)),\"\")","v":"Нерсесов Давид"},{"$f":"Базаданных[[#This Row],[ДД]]-Базаданных[[#This Row],[ГД]]","v":79300},{"$f":"Базаданных[[#This Row],[КВ]]-Базаданных[[#This Row],[ГК]]","v":0}]
["2019-04-16T17:42:14.500",43571.737667824076,16,"вторник","Апрель","2019",0,"-",0,"-",0,"-",30180,"-","Пименов Алексей","Александр (Сызрань)",{"$f":"NOT(ISERROR(SEARCH('Форма ввода'!$C$5,Базаданных[[#This Row],[Клиент]])))","v":false},{"$f":"IF(Базаданных[[#This Row],[Статус]],COUNTIF($Q$2:Базаданных[[#This Row],[Статус]],TRUE),\"\")","v":""},{"$f":"IFERROR(INDEX(Базаданных[Клиент],MATCH(ROWS($R$2:Базаданных[[#This Row],[Индекс]]),Базаданных[Индекс],0)),\"\")","v":""},{"$f":"NOT(ISERROR(SEARCH('Форма ввода'!$C$9,Базаданных[[#This Row],[Чей клиент]])))","v":true},{"$f":"IF(Базаданных[[#This Row],[Статус2]],COUNTIF($T$2:Базаданных[[#This Row],[Статус2]],TRUE),\"\")","v":235},{"$f":"IFERROR(INDEX(Базаданных[Чей клиент],MATCH(ROWS($U$2:Базаданных[[#This Row],[Индекс3]]),Базаданных[Индекс3],0)),\"\")","v":"Пименов Алексей"},{"$f":"Базаданных[[#This Row],[ДД]]-Базаданных[[#This Row],[ГД]]","v":0},{"$f":"Базаданных[[#This Row],[КВ]]-Базаданных[[#This Row],[ГК]]","v":-30180}]
["2019-04-16T17:43:39.690",43571.738653819448,16,"вторник","Апрель","2019",0,"-",0,"-",0,"-",9520,"-","Пименов Алексей","Александр (Сызрань)",{"$f":"NOT(ISERROR(SEARCH('Форма ввода'!$C$5,Базаданных[[#This Row],[Клиент]])))","v":false},{"$f":"IF(Базаданных[[#This Row],[Статус]],COUNTIF($Q$2:Базаданных[[#This Row],[Статус]],TRUE),\"\")","v":""},{"$f":"IFERROR(INDEX(Базаданных[Клиент],MATCH(ROWS($R$2:Базаданных[[#This Row],[Индекс]]),Базаданных[Индекс],0)),\"\")","v":""},{"$f":"NOT(ISERROR(SEARCH('Форма ввода'!$C$9,Базаданных[[#This Row],[Чей клиент]])))","v":true},{"$f":"IF(Базаданных[[#This Row],[Статус2]],COUNTIF($T$2:Базаданных[[#This Row],[Статус2]],TRUE),\"\")","v":236},{"$f":"IFERROR(INDEX(Базаданных[Чей клиент],MATCH(ROWS($U$2:Базаданных[[#This Row],[Индекс3]]),Базаданных[Индекс3],0)),\"\")","v":"Пименов Алексей"},{"$f":"Базаданных[[#This Row],[ДД]]-Базаданных[[#This Row],[ГД]]","v":0},{"$f":"Базаданных[[#This Row],[КВ]]-Базаданных[[#This Row],[ГК]]","v":-9520}]
["2019-04-16T17:45:14.440",43571.739750462963,16,"вторник","Апрель","2019",0,"-",0,"-",0,"-",36000,"-","Пименов Алексей","Александр (Сызрань)",{"$f":"NOT(ISERROR(SEARCH('Форма ввода'!$C$5,Базаданных[[#This Row],[Клиент]])))","v":false},{"$f":"IF(Базаданных[[#This Row],[Статус]],COUNTIF($Q$2:Базаданных[[#This Row],[Статус]],TRUE),\"\")","v":""},{"$f":"IFERROR(INDEX(Базаданных[Клиент],MATCH(ROWS($R$2:Базаданных[[#This Row],[Индекс]]),Базаданных[Индекс],0)),\"\")","v":""},{"$f":"NOT(ISERROR(SEARCH('Форма ввода'!$C$9,Базаданных[[#This Row],[Чей клиент]])))","v":true},{"$f":"IF(Базаданных[[#This Row],[Статус2]],COUNTIF($T$2:Базаданных[[#This Row],[Статус2]],TRUE),\"\")","v":237},{"$f":"IFERROR(INDEX(Базаданных[Чей клиент],MATCH(ROWS($U$2:Базаданных[[#This Row],[Индекс3]]),Базаданных[Индекс3],0)),\"\")","v":"Пименов Алексей"},{"$f":"Базаданных[[#This Row],[ДД]]-Базаданных[[#This Row],[ГД]]","v":0},{"$f":"Базаданных[[#This Row],[КВ]]-Базаданных[[#This Row],[ГК]]","v":-36000}]
["2019-04-16T18:30:11.920",43571.770971296297,16,"вторник","Апрель","2019",0,"-",0,"-",13000,"-",0,"-","Нерсесов Давид","Надир (К84 Царицино)",{"$f":"NOT(ISERROR(SEARCH('Форма ввода'!$C$5,Базаданных[[#This Row],[Клиент]])))","v":false},{"$f":"IF(Базаданных[[#This Row],[Статус]],COUNTIF($Q$2:Базаданных[[#This Row],[Статус]],TRUE),\"\")","v":""},{"$f":"IFERROR(INDEX(Базаданных[Клиент],MATCH(ROWS($R$2:Базаданных[[#This Row],[Индекс]]),Базаданных[Индекс],0)),\"\")","v":""},{"$f":"NOT(ISERROR(SEARCH('Форма ввода'!$C$9,Базаданных[[#This Row],[Чей клиент]])))","v":true},{"$f":"IF(Базаданных[[#This Row],[Статус2]],COUNTIF($T$2:Базаданных[[#This Row],[Статус2]],TRUE),\"\")","v":238},{"$f":"IFERROR(INDEX(Базаданных[Чей клиент],MATCH(ROWS($U$2:Базаданных[[#This Row],[Индекс3]]),Базаданных[Индекс3],0)),\"\")","v":"Нерсесов Давид"},{"$f":"Базаданных[[#This Row],[ДД]]-Базаданных[[#This Row],[ГД]]","v":0},{"$f":"Базаданных[[#This Row],[КВ]]-Базаданных[[#This Row],[ГК]]","v":13000}]
["2019-04-16T18:38:01.500",43571.776406249999,16,"вторник","Апрель","2019",28150,"Возвраты",0,"-",0,"-",0,"-","Нерсесов Давид","Мухамед (Теплый стан)",{"$f":"NOT(ISERROR(SEARCH('Форма ввода'!$C$5,Базаданных[[#This Row],[Клиент]])))","v":false},{"$f":"IF(Базаданных[[#This Row],[Статус]],COUNTIF($Q$2:Базаданных[[#This Row],[Статус]],TRUE),\"\")","v":""},{"$f":"IFERROR(INDEX(Базаданных[Клиент],MATCH(ROWS($R$2:Базаданных[[#This Row],[Индекс]]),Базаданных[Индекс],0)),\"\")","v":""},{"$f":"NOT(ISERROR(SEARCH('Форма ввода'!$C$9,Базаданных[[#This Row],[Чей клиент]])))","v":true},{"$f":"IF(Базаданных[[#This Row],[Статус2]],COUNTIF($T$2:Базаданных[[#This Row],[Статус2]],TRUE),\"\")","v":239},{"$f":"IFERROR(INDEX(Базаданных[Чей клиент],MATCH(ROWS($U$2:Базаданных[[#This Row],[Индекс3]]),Базаданных[Индекс3],0)),\"\")","v":"Нерсесов Давид"},{"$f":"Базаданных[[#This Row],[ДД]]-Базаданных[[#This Row],[ГД]]","v":28150},{"$f":"Базаданных[[#This Row],[КВ]]-Базаданных[[#This Row],[ГК]]","v":0}]
["2019-04-16T18:42:12.500",43571.779311342594,16,"вторник","Апрель","2019",0,"-",52280,"-",0,"-",0,"-","Гречихина Юля","Михаил (Домодедовская)",{"$f":"NOT(ISERROR(SEARCH('Форма ввода'!$C$5,Базаданных[[#This Row],[Клиент]])))","v":false},{"$f":"IF(Базаданных[[#This Row],[Статус]],COUNTIF($Q$2:Базаданных[[#This Row],[Статус]],TRUE),\"\")","v":""},{"$f":"IFERROR(INDEX(Базаданных[Клиент],MATCH(ROWS($R$2:Базаданных[[#This Row],[Индекс]]),Базаданных[Индекс],0)),\"\")","v":""},{"$f":"NOT(ISERROR(SEARCH('Форма ввода'!$C$9,Базаданных[[#This Row],[Чей клиент]])))","v":true},{"$f":"IF(Базаданных[[#This Row],[Статус2]],COUNTIF($T$2:Базаданных[[#This Row],[Статус2]],TRUE),\"\")","v":240},{"$f":"IFERROR(INDEX(Базаданных[Чей клиент],MATCH(ROWS($U$2:Базаданных[[#This Row],[Индекс3]]),Базаданных[Индекс3],0)),\"\")","v":"Гречихина Юля"},{"$f":"Базаданных[[#This Row],[ДД]]-Базаданных[[#This Row],[ГД]]","v":-52280},{"$f":"Базаданных[[#This Row],[КВ]]-Базаданных[[#This Row],[ГК]]","v":0}]
["2019-04-16T19:07:27.930",43571.796851041669,16,"вторник","Апрель","2019",0,"-",0,"-",2200,"-",0,"-","Пименов Алексей","Михаил Рязань",{"$f":"NOT(ISERROR(SEARCH('Форма ввода'!$C$5,Базаданных[[#This Row],[Клиент]])))","v":false},{"$f":"IF(Базаданных[[#This Row],[Статус]],COUNTIF($Q$2:Базаданных[[#This Row],[Статус]],TRUE),\"\")","v":""},{"$f":"IFERROR(INDEX(Базаданных[Клиент],MATCH(ROWS($R$2:Базаданных[[#This Row],[Индекс]]),Базаданных[Индекс],0)),\"\")","v":""},{"$f":"NOT(ISERROR(SEARCH('Форма ввода'!$C$9,Базаданных[[#This Row],[Чей клиент]])))","v":true},{"$f":"IF(Базаданных[[#This Row],[Статус2]],COUNTIF($T$2:Базаданных[[#This Row],[Статус2]],TRUE),\"\")","v":241},{"$f":"IFERROR(INDEX(Базаданных[Чей клиент],MATCH(ROWS($U$2:Базаданных[[#This Row],[Индекс3]]),Базаданных[Индекс3],0)),\"\")","v":"Пименов Алексей"},{"$f":"Базаданных[[#This Row],[ДД]]-Базаданных[[#This Row],[ГД]]","v":0},{"$f":"Базаданных[[#This Row],[КВ]]-Базаданных[[#This Row],[ГК]]","v":2200}]
["2019-04-16T19:07:49.800",43571.797104166668,16,"вторник","Апрель","2019",8800,"-",0,"-",0,"-",0,"-","Гречихина Юля","Илья (Коммисионка Домодедово)",{"$f":"NOT(ISERROR(SEARCH('Форма ввода'!$C$5,Базаданных[[#This Row],[Клиент]])))","v":false},{"$f":"IF(Базаданных[[#This Row],[Статус]],COUNTIF($Q$2:Базаданных[[#This Row],[Статус]],TRUE),\"\")","v":""},{"$f":"IFERROR(INDEX(Базаданных[Клиент],MATCH(ROWS($R$2:Базаданных[[#This Row],[Индекс]]),Базаданных[Индекс],0)),\"\")","v":""},{"$f":"NOT(ISERROR(SEARCH('Форма ввода'!$C$9,Базаданных[[#This Row],[Чей клиент]])))","v":true},{"$f":"IF(Базаданных[[#This Row],[Статус2]],COUNTIF($T$2:Базаданных[[#This Row],[Статус2]],TRUE),\"\")","v":242},{"$f":"IFERROR(INDEX(Базаданных[Чей клиент],MATCH(ROWS($U$2:Базаданных[[#This Row],[Индекс3]]),Базаданных[Индекс3],0)),\"\")","v":"Гречихина Юля"},{"$f":"Базаданных[[#This Row],[ДД]]-Базаданных[[#This Row],[ГД]]","v":8800},{"$f":"Базаданных[[#This Row],[КВ]]-Базаданных[[#This Row],[ГК]]","v":0}]
["2019-04-16T19:08:17.900",43571.797429398146,16,"вторник","Апрель","2019",7200,"-",0,"-",0,"-",0,"-","Гречихина Юля","Комиссионка Щербинка",{"$f":"NOT(ISERROR(SEARCH('Форма ввода'!$C$5,Базаданных[[#This Row],[Клиент]])))","v":false},{"$f":"IF(Базаданных[[#This Row],[Статус]],COUNTIF($Q$2:Базаданных[[#This Row],[Статус]],TRUE),\"\")","v":""},{"$f":"IFERROR(INDEX(Базаданных[Клиент],MATCH(ROWS($R$2:Базаданных[[#This Row],[Индекс]]),Базаданных[Индекс],0)),\"\")","v":""},{"$f":"NOT(ISERROR(SEARCH('Форма ввода'!$C$9,Базаданных[[#This Row],[Чей клиент]])))","v":true},{"$f":"IF(Базаданных[[#This Row],[Статус2]],COUNTIF($T$2:Базаданных[[#This Row],[Статус2]],TRUE),\"\")","v":243},{"$f":"IFERROR(INDEX(Базаданных[Чей клиент],MATCH(ROWS($U$2:Базаданных[[#This Row],[Индекс3]]),Базаданных[Индекс3],0)),\"\")","v":"Гречихина Юля"},{"$f":"Базаданных[[#This Row],[ДД]]-Базаданных[[#This Row],[ГД]]","v":7200},{"$f":"Базаданных[[#This Row],[КВ]]-Базаданных[[#This Row],[ГК]]","v":0}]
["2019-04-17T10:20:22.730",43572.430818634261,17,"среда","Апрель","2019",0,"-",0,"-",0,"-",18980,"-","Пименов Алексей","Александр (Сызрань)",{"$f":"NOT(ISERROR(SEARCH('Форма ввода'!$C$5,Базаданных[[#This Row],[Клиент]])))","v":false},{"$f":"IF(Базаданных[[#This Row],[Статус]],COUNTIF($Q$2:Базаданных[[#This Row],[Статус]],TRUE),\"\")","v":""},{"$f":"IFERROR(INDEX(Базаданных[Клиент],MATCH(ROWS($R$2:Базаданных[[#This Row],[Индекс]]),Базаданных[Индекс],0)),\"\")","v":""},{"$f":"NOT(ISERROR(SEARCH('Форма ввода'!$C$9,Базаданных[[#This Row],[Чей клиент]])))","v":true},{"$f":"IF(Базаданных[[#This Row],[Статус2]],COUNTIF($T$2:Базаданных[[#This Row],[Статус2]],TRUE),\"\")","v":244},{"$f":"IFERROR(INDEX(Базаданных[Чей клиент],MATCH(ROWS($U$2:Базаданных[[#This Row],[Индекс3]]),Базаданных[Индекс3],0)),\"\")","v":"Пименов Алексей"},{"$f":"Базаданных[[#This Row],[ДД]]-Базаданных[[#This Row],[ГД]]","v":0},{"$f":"Базаданных[[#This Row],[КВ]]-Базаданных[[#This Row],[ГК]]","v":-18980}]
["2019-04-17T19:04:43.410",43572.794946875001,17,"среда","Апрель","2019",146050,"-",0,"-",0,"-",0,"-","Пименов Алексей","Эдик (От Сергея)",{"$f":"NOT(ISERROR(SEARCH('Форма ввода'!$C$5,Базаданных[[#This Row],[Клиент]])))","v":false},{"$f":"IF(Базаданных[[#This Row],[Статус]],COUNTIF($Q$2:Базаданных[[#This Row],[Статус]],TRUE),\"\")","v":""},{"$f":"IFERROR(INDEX(Базаданных[Клиент],MATCH(ROWS($R$2:Базаданных[[#This Row],[Индекс]]),Базаданных[Индекс],0)),\"\")","v":""},{"$f":"NOT(ISERROR(SEARCH('Форма ввода'!$C$9,Базаданных[[#This Row],[Чей клиент]])))","v":true},{"$f":"IF(Базаданных[[#This Row],[Статус2]],COUNTIF($T$2:Базаданных[[#This Row],[Статус2]],TRUE),\"\")","v":245},{"$f":"IFERROR(INDEX(Базаданных[Чей клиент],MATCH(ROWS($U$2:Базаданных[[#This Row],[Индекс3]]),Базаданных[Индекс3],0)),\"\")","v":"Пименов Алексей"},{"$f":"Базаданных[[#This Row],[ДД]]-Базаданных[[#This Row],[ГД]]","v":146050},{"$f":"Базаданных[[#This Row],[КВ]]-Базаданных[[#This Row],[ГК]]","v":0}]
["2019-04-17T19:05:01.090",43572.79515150463,17,"среда","Апрель","2019",400,"-",0,"-",0,"-",0,"-","Пименов Алексей","Александр (Сызрань)",{"$f":"NOT(ISERROR(SEARCH('Форма ввода'!$C$5,Базаданных[[#This Row],[Клиент]])))","v":false},{"$f":"IF(Базаданных[[#This Row],[Статус]],COUNTIF($Q$2:Базаданных[[#This Row],[Статус]],TRUE),\"\")","v":""},{"$f":"IFERROR(INDEX(Базаданных[Клиент],MATCH(ROWS($R$2:Базаданных[[#This Row],[Индекс]]),Базаданных[Индекс],0)),\"\")","v":""},{"$f":"NOT(ISERROR(SEARCH('Форма ввода'!$C$9,Базаданных[[#This Row],[Чей клиент]])))","v":true},{"$f":"IF(Базаданных[[#This Row],[Статус2]],COUNTIF($T$2:Базаданных[[#This Row],[Статус2]],TRUE),\"\")","v":246},{"$f":"IFERROR(INDEX(Базаданных[Чей клиент],MATCH(ROWS($U$2:Базаданных[[#This Row],[Индекс3]]),Базаданных[Индекс3],0)),\"\")","v":"Пименов Алексей"},{"$f":"Базаданных[[#This Row],[ДД]]-Базаданных[[#This Row],[ГД]]","v":400},{"$f":"Базаданных[[#This Row],[КВ]]-Базаданных[[#This Row],[ГК]]","v":0}]
["2019-04-17T19:15:42.960",43572.802580555559,17,"среда","Апрель","2019",0,"-",0,"-",1550,"-",0,"-","Пименов Алексей","Магазин Техселлер",{"$f":"NOT(ISERROR(SEARCH('Форма ввода'!$C$5,Базаданных[[#This Row],[Клиент]])))","v":false},{"$f":"IF(Базаданных[[#This Row],[Статус]],COUNTIF($Q$2:Базаданных[[#This Row],[Статус]],TRUE),\"\")","v":""},{"$f":"IFERROR(INDEX(Базаданных[Клиент],MATCH(ROWS($R$2:Базаданных[[#This Row],[Индекс]]),Базаданных[Индекс],0)),\"\")","v":""},{"$f":"NOT(ISERROR(SEARCH('Форма ввода'!$C$9,Базаданных[[#This Row],[Чей клиент]])))","v":true},{"$f":"IF(Базаданных[[#This Row],[Статус2]],COUNTIF($T$2:Базаданных[[#This Row],[Статус2]],TRUE),\"\")","v":247},{"$f":"IFERROR(INDEX(Базаданных[Чей клиент],MATCH(ROWS($U$2:Базаданных[[#This Row],[Индекс3]]),Базаданных[Индекс3],0)),\"\")","v":"Пименов Алексей"},{"$f":"Базаданных[[#This Row],[ДД]]-Базаданных[[#This Row],[ГД]]","v":0},{"$f":"Базаданных[[#This Row],[КВ]]-Базаданных[[#This Row],[ГК]]","v":1550}]
["2019-04-17T19:32:06.660",43572.813965972222,17,"среда","Апрель","2019",0,"-",0,"-",230,"-",0,"-","Пименов Алексей","Дмитрий Arm Device",{"$f":"NOT(ISERROR(SEARCH('Форма ввода'!$C$5,Базаданных[[#This Row],[Клиент]])))","v":false},{"$f":"IF(Базаданных[[#This Row],[Статус]],COUNTIF($Q$2:Базаданных[[#This Row],[Статус]],TRUE),\"\")","v":""},{"$f":"IFERROR(INDEX(Базаданных[Клиент],MATCH(ROWS($R$2:Базаданных[[#This Row],[Индекс]]),Базаданных[Индекс],0)),\"\")","v":""},{"$f":"NOT(ISERROR(SEARCH('Форма ввода'!$C$9,Базаданных[[#This Row],[Чей клиент]])))","v":true},{"$f":"IF(Базаданных[[#This Row],[Статус2]],COUNTIF($T$2:Базаданных[[#This Row],[Статус2]],TRUE),\"\")","v":248},{"$f":"IFERROR(INDEX(Базаданных[Чей клиент],MATCH(ROWS($U$2:Базаданных[[#This Row],[Индекс3]]),Базаданных[Индекс3],0)),\"\")","v":"Пименов Алексей"},{"$f":"Базаданных[[#This Row],[ДД]]-Базаданных[[#This Row],[ГД]]","v":0},{"$f":"Базаданных[[#This Row],[КВ]]-Базаданных[[#This Row],[ГК]]","v":230}]
["2019-04-17T19:32:06.660",43572.813965972222,17,"среда","Апрель","2019",0,"-",7770,"-",0,"-",0,"-","Пименов Алексей","Дмитрий Arm Device",{"$f":"NOT(ISERROR(SEARCH('Форма ввода'!$C$5,Базаданных[[#This Row],[Клиент]])))","v":false},{"$f":"IF(Базаданных[[#This Row],[Статус]],COUNTIF($Q$2:Базаданных[[#This Row],[Статус]],TRUE),\"\")","v":""},{"$f":"IFERROR(INDEX(Базаданных[Клиент],MATCH(ROWS($R$2:Базаданных[[#This Row],[Индекс]]),Базаданных[Индекс],0)),\"\")","v":""},{"$f":"NOT(ISERROR(SEARCH('Форма ввода'!$C$9,Базаданных[[#This Row],[Чей клиент]])))","v":true},{"$f":"IF(Базаданных[[#This Row],[Статус2]],COUNTIF($T$2:Базаданных[[#This Row],[Статус2]],TRUE),\"\")","v":249},{"$f":"IFERROR(INDEX(Базаданных[Чей клиент],MATCH(ROWS($U$2:Базаданных[[#This Row],[Индекс3]]),Базаданных[Индекс3],0)),\"\")","v":"Пименов Алексей"},{"$f":"Базаданных[[#This Row],[ДД]]-Базаданных[[#This Row],[ГД]]","v":-7770},{"$f":"Базаданных[[#This Row],[КВ]]-Базаданных[[#This Row],[ГК]]","v":0}]
["2019-04-18T13:34:28.050",43573.565602430557,18,"четверг","Апрель","2019",0,"-",0,"-",0,"-",7170,"-","Пименов Алексей","Белов Александр Павлович",{"$f":"NOT(ISERROR(SEARCH('Форма ввода'!$C$5,Базаданных[[#This Row],[Клиент]])))","v":false},{"$f":"IF(Базаданных[[#This Row],[Статус]],COUNTIF($Q$2:Базаданных[[#This Row],[Статус]],TRUE),\"\")","v":""},{"$f":"IFERROR(INDEX(Базаданных[Клиент],MATCH(ROWS($R$2:Базаданных[[#This Row],[Индекс]]),Базаданных[Индекс],0)),\"\")","v":""},{"$f":"NOT(ISERROR(SEARCH('Форма ввода'!$C$9,Базаданных[[#This Row],[Чей клиент]])))","v":true},{"$f":"IF(Базаданных[[#This Row],[Статус2]],COUNTIF($T$2:Базаданных[[#This Row],[Статус2]],TRUE),\"\")","v":250},{"$f":"IFERROR(INDEX(Базаданных[Чей клиент],MATCH(ROWS($U$2:Базаданных[[#This Row],[Индекс3]]),Базаданных[Индекс3],0)),\"\")","v":"Пименов Алексей"},{"$f":"Базаданных[[#This Row],[ДД]]-Базаданных[[#This Row],[ГД]]","v":0},{"$f":"Базаданных[[#This Row],[КВ]]-Базаданных[[#This Row],[ГК]]","v":-7170}]
["2019-04-18T18:19:02.910",43573.763228124997,18,"четверг","Апрель","2019",0,"-",0,"-",1300,"-",0,"-","Пименов Алексей","Магомед Роутеры Чечня",{"$f":"NOT(ISERROR(SEARCH('Форма ввода'!$C$5,Базаданных[[#This Row],[Клиент]])))","v":false},{"$f":"IF(Базаданных[[#This Row],[Статус]],COUNTIF($Q$2:Базаданных[[#This Row],[Статус]],TRUE),\"\")","v":""},{"$f":"IFERROR(INDEX(Базаданных[Клиент],MATCH(ROWS($R$2:Базаданных[[#This Row],[Индекс]]),Базаданных[Индекс],0)),\"\")","v":""},{"$f":"NOT(ISERROR(SEARCH('Форма ввода'!$C$9,Базаданных[[#This Row],[Чей клиент]])))","v":true},{"$f":"IF(Базаданных[[#This Row],[Статус2]],COUNTIF($T$2:Базаданных[[#This Row],[Статус2]],TRUE),\"\")","v":251},{"$f":"IFERROR(INDEX(Базаданных[Чей клиент],MATCH(ROWS($U$2:Базаданных[[#This Row],[Индекс3]]),Базаданных[Индекс3],0)),\"\")","v":"Пименов Алексей"},{"$f":"Базаданных[[#This Row],[ДД]]-Базаданных[[#This Row],[ГД]]","v":0},{"$f":"Базаданных[[#This Row],[КВ]]-Базаданных[[#This Row],[ГК]]","v":1300}]
["2019-04-18T18:19:49.470",43573.763767013887,18,"четверг","Апрель","2019",2000,"-",0,"-",0,"-",0,"-","Пименов Алексей","Белов Александр Павлович",{"$f":"NOT(ISERROR(SEARCH('Форма ввода'!$C$5,Базаданных[[#This Row],[Клиент]])))","v":false},{"$f":"IF(Базаданных[[#This Row],[Статус]],COUNTIF($Q$2:Базаданных[[#This Row],[Статус]],TRUE),\"\")","v":""},{"$f":"IFERROR(INDEX(Базаданных[Клиент],MATCH(ROWS($R$2:Базаданных[[#This Row],[Индекс]]),Базаданных[Индекс],0)),\"\")","v":""},{"$f":"NOT(ISERROR(SEARCH('Форма ввода'!$C$9,Базаданных[[#This Row],[Чей клиент]])))","v":true},{"$f":"IF(Базаданных[[#This Row],[Статус2]],COUNTIF($T$2:Базаданных[[#This Row],[Статус2]],TRUE),\"\")","v":252},{"$f":"IFERROR(INDEX(Базаданных[Чей клиент],MATCH(ROWS($U$2:Базаданных[[#This Row],[Индекс3]]),Базаданных[Индекс3],0)),\"\")","v":"Пименов Алексей"},{"$f":"Базаданных[[#This Row],[ДД]]-Базаданных[[#This Row],[ГД]]","v":2000},{"$f":"Базаданных[[#This Row],[КВ]]-Базаданных[[#This Row],[ГК]]","v":0}]
["2019-04-18T18:49:13.190",43573.784180439812,18,"четверг","Апрель","2019",0,"-",4400,"-",0,"-",0,"-","Гречихина Юля","Александр (Черемушки 2B-15)",{"$f":"NOT(ISERROR(SEARCH('Форма ввода'!$C$5,Базаданных[[#This Row],[Клиент]])))","v":false},{"$f":"IF(Базаданных[[#This Row],[Статус]],COUNTIF($Q$2:Базаданных[[#This Row],[Статус]],TRUE),\"\")","v":""},{"$f":"IFERROR(INDEX(Базаданных[Клиент],MATCH(ROWS($R$2:Базаданных[[#This Row],[Индекс]]),Базаданных[Индекс],0)),\"\")","v":""},{"$f":"NOT(ISERROR(SEARCH('Форма ввода'!$C$9,Базаданных[[#This Row],[Чей клиент]])))","v":true},{"$f":"IF(Базаданных[[#This Row],[Статус2]],COUNTIF($T$2:Базаданных[[#This Row],[Статус2]],TRUE),\"\")","v":253},{"$f":"IFERROR(INDEX(Базаданных[Чей клиент],MATCH(ROWS($U$2:Базаданных[[#This Row],[Индекс3]]),Базаданных[Индекс3],0)),\"\")","v":"Гречихина Юля"},{"$f":"Базаданных[[#This Row],[ДД]]-Базаданных[[#This Row],[ГД]]","v":-4400},{"$f":"Базаданных[[#This Row],[КВ]]-Базаданных[[#This Row],[ГК]]","v":0}]
["2019-04-18T19:30:47.460",43573.813049305558,18,"четверг","Апрель","2019",15000,"-",0,"-",0,"-",0,"-","Нерсесов Давид","Роман Люберцы",{"$f":"NOT(ISERROR(SEARCH('Форма ввода'!$C$5,Базаданных[[#This Row],[Клиент]])))","v":false},{"$f":"IF(Базаданных[[#This Row],[Статус]],COUNTIF($Q$2:Базаданных[[#This Row],[Статус]],TRUE),\"\")","v":""},{"$f":"IFERROR(INDEX(Базаданных[Клиент],MATCH(ROWS($R$2:Базаданных[[#This Row],[Индекс]]),Базаданных[Индекс],0)),\"\")","v":""},{"$f":"NOT(ISERROR(SEARCH('Форма ввода'!$C$9,Базаданных[[#This Row],[Чей клиент]])))","v":true},{"$f":"IF(Базаданных[[#This Row],[Статус2]],COUNTIF($T$2:Базаданных[[#This Row],[Статус2]],TRUE),\"\")","v":254},{"$f":"IFERROR(INDEX(Базаданных[Чей клиент],MATCH(ROWS($U$2:Базаданных[[#This Row],[Индекс3]]),Базаданных[Индекс3],0)),\"\")","v":"Нерсесов Давид"},{"$f":"Базаданных[[#This Row],[ДД]]-Базаданных[[#This Row],[ГД]]","v":15000},{"$f":"Базаданных[[#This Row],[КВ]]-Базаданных[[#This Row],[ГК]]","v":0}]
["2019-04-18T19:32:16.490",43573.814079745367,18,"четверг","Апрель","2019",6680,"-",0,"-",0,"-",580,"-","Пименов Алексей","Арсен Шанхоев (Ингушетия)",{"$f":"NOT(ISERROR(SEARCH('Форма ввода'!$C$5,Базаданных[[#This Row],[Клиент]])))","v":false},{"$f":"IF(Базаданных[[#This Row],[Статус]],COUNTIF($Q$2:Базаданных[[#This Row],[Статус]],TRUE),\"\")","v":""},{"$f":"IFERROR(INDEX(Базаданных[Клиент],MATCH(ROWS($R$2:Базаданных[[#This Row],[Индекс]]),Базаданных[Индекс],0)),\"\")","v":""},{"$f":"NOT(ISERROR(SEARCH('Форма ввода'!$C$9,Базаданных[[#This Row],[Чей клиент]])))","v":true},{"$f":"IF(Базаданных[[#This Row],[Статус2]],COUNTIF($T$2:Базаданных[[#This Row],[Статус2]],TRUE),\"\")","v":255},{"$f":"IFERROR(INDEX(Базаданных[Чей клиент],MATCH(ROWS($U$2:Базаданных[[#This Row],[Индекс3]]),Базаданных[Индекс3],0)),\"\")","v":"Пименов Алексей"},{"$f":"Базаданных[[#This Row],[ДД]]-Базаданных[[#This Row],[ГД]]","v":6680},{"$f":"Базаданных[[#This Row],[КВ]]-Базаданных[[#This Row],[ГК]]","v":-580}]
["2019-04-18T19:37:31.290",43573.817723263892,18,"четверг","Апрель","2019",0,"-",580,"-",0,"-",0,"-","Пименов Алексей","Арсен Шанхоев (Ингушетия)",{"$f":"NOT(ISERROR(SEARCH('Форма ввода'!$C$5,Базаданных[[#This Row],[Клиент]])))","v":false},{"$f":"IF(Базаданных[[#This Row],[Статус]],COUNTIF($Q$2:Базаданных[[#This Row],[Статус]],TRUE),\"\")","v":""},{"$f":"IFERROR(INDEX(Базаданных[Клиент],MATCH(ROWS($R$2:Базаданных[[#This Row],[Индекс]]),Базаданных[Индекс],0)),\"\")","v":""},{"$f":"NOT(ISERROR(SEARCH('Форма ввода'!$C$9,Базаданных[[#This Row],[Чей клиент]])))","v":true},{"$f":"IF(Базаданных[[#This Row],[Статус2]],COUNTIF($T$2:Базаданных[[#This Row],[Статус2]],TRUE),\"\")","v":256},{"$f":"IFERROR(INDEX(Базаданных[Чей клиент],MATCH(ROWS($U$2:Базаданных[[#This Row],[Индекс3]]),Базаданных[Индекс3],0)),\"\")","v":"Пименов Алексей"},{"$f":"Базаданных[[#This Row],[ДД]]-Базаданных[[#This Row],[ГД]]","v":-580},{"$f":"Базаданных[[#This Row],[КВ]]-Базаданных[[#This Row],[ГК]]","v":0}]
["2019-04-18T19:38:15.240",43573.818231944446,18,"четверг","Апрель","2019",0,"-",0,"-",0,"-",1550,"-","Пименов Алексей","Магазин Техселлер",{"$f":"NOT(ISERROR(SEARCH('Форма ввода'!$C$5,Базаданных[[#This Row],[Клиент]])))","v":false},{"$f":"IF(Базаданных[[#This Row],[Статус]],COUNTIF($Q$2:Базаданных[[#This Row],[Статус]],TRUE),\"\")","v":""},{"$f":"IFERROR(INDEX(Базаданных[Клиент],MATCH(ROWS($R$2:Базаданных[[#This Row],[Индекс]]),Базаданных[Индекс],0)),\"\")","v":""},{"$f":"NOT(ISERROR(SEARCH('Форма ввода'!$C$9,Базаданных[[#This Row],[Чей клиент]])))","v":true},{"$f":"IF(Базаданных[[#This Row],[Статус2]],COUNTIF($T$2:Базаданных[[#This Row],[Статус2]],TRUE),\"\")","v":257},{"$f":"IFERROR(INDEX(Базаданных[Чей клиент],MATCH(ROWS($U$2:Базаданных[[#This Row],[Индекс3]]),Базаданных[Индекс3],0)),\"\")","v":"Пименов Алексей"},{"$f":"Базаданных[[#This Row],[ДД]]-Базаданных[[#This Row],[ГД]]","v":0},{"$f":"Базаданных[[#This Row],[КВ]]-Базаданных[[#This Row],[ГК]]","v":-1550}]
["2019-04-18T19:38:51.270",43573.818648958331,18,"четверг","Апрель","2019",0,"-",0,"-",0,"-",2200,"-","Пименов Алексей","Михаил Рязань",{"$f":"NOT(ISERROR(SEARCH('Форма ввода'!$C$5,Базаданных[[#This Row],[Клиент]])))","v":false},{"$f":"IF(Базаданных[[#This Row],[Статус]],COUNTIF($Q$2:Базаданных[[#This Row],[Статус]],TRUE),\"\")","v":""},{"$f":"IFERROR(INDEX(Базаданных[Клиент],MATCH(ROWS($R$2:Базаданных[[#This Row],[Индекс]]),Базаданных[Индекс],0)),\"\")","v":""},{"$f":"NOT(ISERROR(SEARCH('Форма ввода'!$C$9,Базаданных[[#This Row],[Чей клиент]])))","v":true},{"$f":"IF(Базаданных[[#This Row],[Статус2]],COUNTIF($T$2:Базаданных[[#This Row],[Статус2]],TRUE),\"\")","v":258},{"$f":"IFERROR(INDEX(Базаданных[Чей клиент],MATCH(ROWS($U$2:Базаданных[[#This Row],[Индекс3]]),Базаданных[Индекс3],0)),\"\")","v":"Пименов Алексей"},{"$f":"Базаданных[[#This Row],[ДД]]-Базаданных[[#This Row],[ГД]]","v":0},{"$f":"Базаданных[[#This Row],[КВ]]-Базаданных[[#This Row],[ГК]]","v":-2200}]
["2019-04-18T19:39:29.550",43573.819092013888,18,"четверг","Апрель","2019",0,"-",0,"-",3780,"-",0,"-","Гречихина Юля","Мобсервис",{"$f":"NOT(ISERROR(SEARCH('Форма ввода'!$C$5,Базаданных[[#This Row],[Клиент]])))","v":false},{"$f":"IF(Базаданных[[#This Row],[Статус]],COUNTIF($Q$2:Базаданных[[#This Row],[Статус]],TRUE),\"\")","v":""},{"$f":"IFERROR(INDEX(Базаданных[Клиент],MATCH(ROWS($R$2:Базаданных[[#This Row],[Индекс]]),Базаданных[Индекс],0)),\"\")","v":""},{"$f":"NOT(ISERROR(SEARCH('Форма ввода'!$C$9,Базаданных[[#This Row],[Чей клиент]])))","v":true},{"$f":"IF(Базаданных[[#This Row],[Статус2]],COUNTIF($T$2:Базаданных[[#This Row],[Статус2]],TRUE),\"\")","v":259},{"$f":"IFERROR(INDEX(Базаданных[Чей клиент],MATCH(ROWS($U$2:Базаданных[[#This Row],[Индекс3]]),Базаданных[Индекс3],0)),\"\")","v":"Гречихина Юля"},{"$f":"Базаданных[[#This Row],[ДД]]-Базаданных[[#This Row],[ГД]]","v":0},{"$f":"Базаданных[[#This Row],[КВ]]-Базаданных[[#This Row],[ГК]]","v":3780}]
["2019-04-19T19:53:17.930",43574.828679745369,19,"пятница","Апрель","2019",0,"-",42000,"-",0,"-",0,"-","Нерсесов Давид","Александр Скупка (Нагатинская)",{"$f":"NOT(ISERROR(SEARCH('Форма ввода'!$C$5,Базаданных[[#This Row],[Клиент]])))","v":false},{"$f":"IF(Базаданных[[#This Row],[Статус]],COUNTIF($Q$2:Базаданных[[#This Row],[Статус]],TRUE),\"\")","v":""},{"$f":"IFERROR(INDEX(Базаданных[Клиент],MATCH(ROWS($R$2:Базаданных[[#This Row],[Индекс]]),Базаданных[Индекс],0)),\"\")","v":""},{"$f":"NOT(ISERROR(SEARCH('Форма ввода'!$C$9,Базаданных[[#This Row],[Чей клиент]])))","v":true},{"$f":"IF(Базаданных[[#This Row],[Статус2]],COUNTIF($T$2:Базаданных[[#This Row],[Статус2]],TRUE),\"\")","v":260},{"$f":"IFERROR(INDEX(Базаданных[Чей клиент],MATCH(ROWS($U$2:Базаданных[[#This Row],[Индекс3]]),Базаданных[Индекс3],0)),\"\")","v":"Нерсесов Давид"},{"$f":"Базаданных[[#This Row],[ДД]]-Базаданных[[#This Row],[ГД]]","v":-42000},{"$f":"Базаданных[[#This Row],[КВ]]-Базаданных[[#This Row],[ГК]]","v":0}]
["2019-04-19T19:54:27.580",43574.829485879629,19,"пятница","Апрель","2019",4500,"-",0,"-",0,"-",0,"-","Нерсесов Давид","Нуридин",{"$f":"NOT(ISERROR(SEARCH('Форма ввода'!$C$5,Базаданных[[#This Row],[Клиент]])))","v":false},{"$f":"IF(Базаданных[[#This Row],[Статус]],COUNTIF($Q$2:Базаданных[[#This Row],[Статус]],TRUE),\"\")","v":""},{"$f":"IFERROR(INDEX(Базаданных[Клиент],MATCH(ROWS($R$2:Базаданных[[#This Row],[Индекс]]),Базаданных[Индекс],0)),\"\")","v":""},{"$f":"NOT(ISERROR(SEARCH('Форма ввода'!$C$9,Базаданных[[#This Row],[Чей клиент]])))","v":true},{"$f":"IF(Базаданных[[#This Row],[Статус2]],COUNTIF($T$2:Базаданных[[#This Row],[Статус2]],TRUE),\"\")","v":261},{"$f":"IFERROR(INDEX(Базаданных[Чей клиент],MATCH(ROWS($U$2:Базаданных[[#This Row],[Индекс3]]),Базаданных[Индекс3],0)),\"\")","v":"Нерсесов Давид"},{"$f":"Базаданных[[#This Row],[ДД]]-Базаданных[[#This Row],[ГД]]","v":4500},{"$f":"Базаданных[[#This Row],[КВ]]-Базаданных[[#This Row],[ГК]]","v":0}]
["2019-04-19T19:55:09.870",43574.829975347224,19,"пятница","Апрель","2019",24600,"-",0,"-",0,"-",0,"-","Гречихина Юля","Эльнар Пермь",{"$f":"NOT(ISERROR(SEARCH('Форма ввода'!$C$5,Базаданных[[#This Row],[Клиент]])))","v":false},{"$f":"IF(Базаданных[[#This Row],[Статус]],COUNTIF($Q$2:Базаданных[[#This Row],[Статус]],TRUE),\"\")","v":""},{"$f":"IFERROR(INDEX(Базаданных[Клиент],MATCH(ROWS($R$2:Базаданных[[#This Row],[Индекс]]),Базаданных[Индекс],0)),\"\")","v":""},{"$f":"NOT(ISERROR(SEARCH('Форма ввода'!$C$9,Базаданных[[#This Row],[Чей клиент]])))","v":true},{"$f":"IF(Базаданных[[#This Row],[Статус2]],COUNTIF($T$2:Базаданных[[#This Row],[Статус2]],TRUE),\"\")","v":262},{"$f":"IFERROR(INDEX(Базаданных[Чей клиент],MATCH(ROWS($U$2:Базаданных[[#This Row],[Индекс3]]),Базаданных[Индекс3],0)),\"\")","v":"Гречихина Юля"},{"$f":"Базаданных[[#This Row],[ДД]]-Базаданных[[#This Row],[ГД]]","v":24600},{"$f":"Базаданных[[#This Row],[КВ]]-Базаданных[[#This Row],[ГК]]","v":0}]
["2019-04-19T19:55:44.440",43574.83037546296,19,"пятница","Апрель","2019",1200,"-",0,"-",0,"-",0,"-","Нерсесов Давид","Роман (Сим-карта)",{"$f":"NOT(ISERROR(SEARCH('Форма ввода'!$C$5,Базаданных[[#This Row],[Клиент]])))","v":false},{"$f":"IF(Базаданных[[#This Row],[Статус]],COUNTIF($Q$2:Базаданных[[#This Row],[Статус]],TRUE),\"\")","v":""},{"$f":"IFERROR(INDEX(Базаданных[Клиент],MATCH(ROWS($R$2:Базаданных[[#This Row],[Индекс]]),Базаданных[Индекс],0)),\"\")","v":""},{"$f":"NOT(ISERROR(SEARCH('Форма ввода'!$C$9,Базаданных[[#This Row],[Чей клиент]])))","v":true},{"$f":"IF(Базаданных[[#This Row],[Статус2]],COUNTIF($T$2:Базаданных[[#This Row],[Статус2]],TRUE),\"\")","v":263},{"$f":"IFERROR(INDEX(Базаданных[Чей клиент],MATCH(ROWS($U$2:Базаданных[[#This Row],[Индекс3]]),Базаданных[Индекс3],0)),\"\")","v":"Нерсесов Давид"},{"$f":"Базаданных[[#This Row],[ДД]]-Базаданных[[#This Row],[ГД]]","v":1200},{"$f":"Базаданных[[#This Row],[КВ]]-Базаданных[[#This Row],[ГК]]","v":0}]
["2019-04-19T19:57:59.920",43574.831943518519,19,"пятница","Апрель","2019",12600,"-",0,"-",0,"-",0,"-","Ким Карина","ИП Канаева",{"$f":"NOT(ISERROR(SEARCH('Форма ввода'!$C$5,Базаданных[[#This Row],[Клиент]])))","v":false},{"$f":"IF(Базаданных[[#This Row],[Статус]],COUNTIF($Q$2:Базаданных[[#This Row],[Статус]],TRUE),\"\")","v":""},{"$f":"IFERROR(INDEX(Базаданных[Клиент],MATCH(ROWS($R$2:Базаданных[[#This Row],[Индекс]]),Базаданных[Индекс],0)),\"\")","v":""},{"$f":"NOT(ISERROR(SEARCH('Форма ввода'!$C$9,Базаданных[[#This Row],[Чей клиент]])))","v":true},{"$f":"IF(Базаданных[[#This Row],[Статус2]],COUNTIF($T$2:Базаданных[[#This Row],[Статус2]],TRUE),\"\")","v":264},{"$f":"IFERROR(INDEX(Базаданных[Чей клиент],MATCH(ROWS($U$2:Базаданных[[#This Row],[Индекс3]]),Базаданных[Индекс3],0)),\"\")","v":"Ким Карина"},{"$f":"Базаданных[[#This Row],[ДД]]-Базаданных[[#This Row],[ГД]]","v":12600},{"$f":"Базаданных[[#This Row],[КВ]]-Базаданных[[#This Row],[ГК]]","v":0}]
["2019-04-19T19:58:24.630",43574.832229513886,19,"пятница","Апрель","2019",0,"-",0,"-",0,"-",10500,"-","Пименов Алексей","КМТ Сервис (Клин)",{"$f":"NOT(ISERROR(SEARCH('Форма ввода'!$C$5,Базаданных[[#This Row],[Клиент]])))","v":false},{"$f":"IF(Базаданных[[#This Row],[Статус]],COUNTIF($Q$2:Базаданных[[#This Row],[Статус]],TRUE),\"\")","v":""},{"$f":"IFERROR(INDEX(Базаданных[Клиент],MATCH(ROWS($R$2:Базаданных[[#This Row],[Индекс]]),Базаданных[Индекс],0)),\"\")","v":""},{"$f":"NOT(ISERROR(SEARCH('Форма ввода'!$C$9,Базаданных[[#This Row],[Чей клиент]])))","v":true},{"$f":"IF(Базаданных[[#This Row],[Статус2]],COUNTIF($T$2:Базаданных[[#This Row],[Статус2]],TRUE),\"\")","v":265},{"$f":"IFERROR(INDEX(Базаданных[Чей клиент],MATCH(ROWS($U$2:Базаданных[[#This Row],[Индекс3]]),Базаданных[Индекс3],0)),\"\")","v":"Пименов Алексей"},{"$f":"Базаданных[[#This Row],[ДД]]-Базаданных[[#This Row],[ГД]]","v":0},{"$f":"Базаданных[[#This Row],[КВ]]-Базаданных[[#This Row],[ГК]]","v":-10500}]
["2019-04-19T19:59:00.420",43574.83264375,19,"пятница","Апрель","2019",0,"-",0,"-",0,"-",1900,"-","Гречихина Юля","Розовая Скупка (Главная Москва)",{"$f":"NOT(ISERROR(SEARCH('Форма ввода'!$C$5,Базаданных[[#This Row],[Клиент]])))","v":false},{"$f":"IF(Базаданных[[#This Row],[Статус]],COUNTIF($Q$2:Базаданных[[#This Row],[Статус]],TRUE),\"\")","v":""},{"$f":"IFERROR(INDEX(Базаданных[Клиент],MATCH(ROWS($R$2:Базаданных[[#This Row],[Индекс]]),Базаданных[Индекс],0)),\"\")","v":""},{"$f":"NOT(ISERROR(SEARCH('Форма ввода'!$C$9,Базаданных[[#This Row],[Чей клиент]])))","v":true},{"$f":"IF(Базаданных[[#This Row],[Статус2]],COUNTIF($T$2:Базаданных[[#This Row],[Статус2]],TRUE),\"\")","v":266},{"$f":"IFERROR(INDEX(Базаданных[Чей клиент],MATCH(ROWS($U$2:Базаданных[[#This Row],[Индекс3]]),Базаданных[Индекс3],0)),\"\")","v":"Гречихина Юля"},{"$f":"Базаданных[[#This Row],[ДД]]-Базаданных[[#This Row],[ГД]]","v":0},{"$f":"Базаданных[[#This Row],[КВ]]-Базаданных[[#This Row],[ГК]]","v":-1900}]
["2019-04-19T20:00:29.870",43574.833679050927,19,"пятница","Апрель","2019",0,"-",0,"-",100000,"-",0,"-","Нерсесов Давид","Надир (К84 Царицино)",{"$f":"NOT(ISERROR(SEARCH('Форма ввода'!$C$5,Базаданных[[#This Row],[Клиент]])))","v":false},{"$f":"IF(Базаданных[[#This Row],[Статус]],COUNTIF($Q$2:Базаданных[[#This Row],[Статус]],TRUE),\"\")","v":""},{"$f":"IFERROR(INDEX(Базаданных[Клиент],MATCH(ROWS($R$2:Базаданных[[#This Row],[Индекс]]),Базаданных[Индекс],0)),\"\")","v":""},{"$f":"NOT(ISERROR(SEARCH('Форма ввода'!$C$9,Базаданных[[#This Row],[Чей клиент]])))","v":true},{"$f":"IF(Базаданных[[#This Row],[Статус2]],COUNTIF($T$2:Базаданных[[#This Row],[Статус2]],TRUE),\"\")","v":267},{"$f":"IFERROR(INDEX(Базаданных[Чей клиент],MATCH(ROWS($U$2:Базаданных[[#This Row],[Индекс3]]),Базаданных[Индекс3],0)),\"\")","v":"Нерсесов Давид"},{"$f":"Базаданных[[#This Row],[ДД]]-Базаданных[[#This Row],[ГД]]","v":0},{"$f":"Базаданных[[#This Row],[КВ]]-Базаданных[[#This Row],[ГК]]","v":100000}]
["2019-04-19T20:00:59",43574.834016203706,19,"пятница","Апрель","2019",0,"-",0,"-",13500,"-",0,"-","Гречихина Юля","Карлен (П-94 Савок)",{"$f":"NOT(ISERROR(SEARCH('Форма ввода'!$C$5,Базаданных[[#This Row],[Клиент]])))","v":false},{"$f":"IF(Базаданных[[#This Row],[Статус]],COUNTIF($Q$2:Базаданных[[#This Row],[Статус]],TRUE),\"\")","v":""},{"$f":"IFERROR(INDEX(Базаданных[Клиент],MATCH(ROWS($R$2:Базаданных[[#This Row],[Индекс]]),Базаданных[Индекс],0)),\"\")","v":""},{"$f":"NOT(ISERROR(SEARCH('Форма ввода'!$C$9,Базаданных[[#This Row],[Чей клиент]])))","v":true},{"$f":"IF(Базаданных[[#This Row],[Статус2]],COUNTIF($T$2:Базаданных[[#This Row],[Статус2]],TRUE),\"\")","v":268},{"$f":"IFERROR(INDEX(Базаданных[Чей клиент],MATCH(ROWS($U$2:Базаданных[[#This Row],[Индекс3]]),Базаданных[Индекс3],0)),\"\")","v":"Гречихина Юля"},{"$f":"Базаданных[[#This Row],[ДД]]-Базаданных[[#This Row],[ГД]]","v":0},{"$f":"Базаданных[[#This Row],[КВ]]-Базаданных[[#This Row],[ГК]]","v":13500}]
["2019-04-19T20:01:29.100",43574.83436458333,19,"пятница","Апрель","2019",0,"-",0,"-",50000,"-",0,"-","Гречихина Юля","Вадим (Скупка Егорьевск)",{"$f":"NOT(ISERROR(SEARCH('Форма ввода'!$C$5,Базаданных[[#This Row],[Клиент]])))","v":false},{"$f":"IF(Базаданных[[#This Row],[Статус]],COUNTIF($Q$2:Базаданных[[#This Row],[Статус]],TRUE),\"\")","v":""},{"$f":"IFERROR(INDEX(Базаданных[Клиент],MATCH(ROWS($R$2:Базаданных[[#This Row],[Индекс]]),Базаданных[Индекс],0)),\"\")","v":""},{"$f":"NOT(ISERROR(SEARCH('Форма ввода'!$C$9,Базаданных[[#This Row],[Чей клиент]])))","v":true},{"$f":"IF(Базаданных[[#This Row],[Статус2]],COUNTIF($T$2:Базаданных[[#This Row],[Статус2]],TRUE),\"\")","v":269},{"$f":"IFERROR(INDEX(Базаданных[Чей клиент],MATCH(ROWS($U$2:Базаданных[[#This Row],[Индекс3]]),Базаданных[Индекс3],0)),\"\")","v":"Гречихина Юля"},{"$f":"Базаданных[[#This Row],[ДД]]-Базаданных[[#This Row],[ГД]]","v":0},{"$f":"Базаданных[[#This Row],[КВ]]-Базаданных[[#This Row],[ГК]]","v":50000}]
["2019-04-20T14:04:23.280",43575.586380555556,20,"суббота","Апрель","2019",15500,"-",0,"-",0,"-",50000,"-","Гречихина Юля","Вадим (Скупка Егорьевск)",{"$f":"NOT(ISERROR(SEARCH('Форма ввода'!$C$5,Базаданных[[#This Row],[Клиент]])))","v":false},{"$f":"IF(Базаданных[[#This Row],[Статус]],COUNTIF($Q$2:Базаданных[[#This Row],[Статус]],TRUE),\"\")","v":""},{"$f":"IFERROR(INDEX(Базаданных[Клиент],MATCH(ROWS($R$2:Базаданных[[#This Row],[Индекс]]),Базаданных[Индекс],0)),\"\")","v":""},{"$f":"NOT(ISERROR(SEARCH('Форма ввода'!$C$9,Базаданных[[#This Row],[Чей клиент]])))","v":true},{"$f":"IF(Базаданных[[#This Row],[Статус2]],COUNTIF($T$2:Базаданных[[#This Row],[Статус2]],TRUE),\"\")","v":270},{"$f":"IFERROR(INDEX(Базаданных[Чей клиент],MATCH(ROWS($U$2:Базаданных[[#This Row],[Индекс3]]),Базаданных[Индекс3],0)),\"\")","v":"Гречихина Юля"},{"$f":"Базаданных[[#This Row],[ДД]]-Базаданных[[#This Row],[ГД]]","v":15500},{"$f":"Базаданных[[#This Row],[КВ]]-Базаданных[[#This Row],[ГК]]","v":-50000}]
["2019-04-20T18:40:57.670",43575.778445254633,20,"суббота","Апрель","2019",0,"-",0,"-",4080,"-",0,"-","Пименов Алексей","Александр (Сызрань)",{"$f":"NOT(ISERROR(SEARCH('Форма ввода'!$C$5,Базаданных[[#This Row],[Клиент]])))","v":false},{"$f":"IF(Базаданных[[#This Row],[Статус]],COUNTIF($Q$2:Базаданных[[#This Row],[Статус]],TRUE),\"\")","v":""},{"$f":"IFERROR(INDEX(Базаданных[Клиент],MATCH(ROWS($R$2:Базаданных[[#This Row],[Индекс]]),Базаданных[Индекс],0)),\"\")","v":""},{"$f":"NOT(ISERROR(SEARCH('Форма ввода'!$C$9,Базаданных[[#This Row],[Чей клиент]])))","v":true},{"$f":"IF(Базаданных[[#This Row],[Статус2]],COUNTIF($T$2:Базаданных[[#This Row],[Статус2]],TRUE),\"\")","v":271},{"$f":"IFERROR(INDEX(Базаданных[Чей клиент],MATCH(ROWS($U$2:Базаданных[[#This Row],[Индекс3]]),Базаданных[Индекс3],0)),\"\")","v":"Пименов Алексей"},{"$f":"Базаданных[[#This Row],[ДД]]-Базаданных[[#This Row],[ГД]]","v":0},{"$f":"Базаданных[[#This Row],[КВ]]-Базаданных[[#This Row],[ГК]]","v":4080}]
["2019-04-20T19:44:22.340",43575.822480787036,20,"суббота","Апрель","2019",1050,"Ремонт iphone",0,"-",0,"-",0,"-","Нерсесов Давид","Нерсесов Давид ( AlexStore)",{"$f":"NOT(ISERROR(SEARCH('Форма ввода'!$C$5,Базаданных[[#This Row],[Клиент]])))","v":false},{"$f":"IF(Базаданных[[#This Row],[Статус]],COUNTIF($Q$2:Базаданных[[#This Row],[Статус]],TRUE),\"\")","v":""},{"$f":"IFERROR(INDEX(Базаданных[Клиент],MATCH(ROWS($R$2:Базаданных[[#This Row],[Индекс]]),Базаданных[Индекс],0)),\"\")","v":""},{"$f":"NOT(ISERROR(SEARCH('Форма ввода'!$C$9,Базаданных[[#This Row],[Чей клиент]])))","v":true},{"$f":"IF(Базаданных[[#This Row],[Статус2]],COUNTIF($T$2:Базаданных[[#This Row],[Статус2]],TRUE),\"\")","v":272},{"$f":"IFERROR(INDEX(Базаданных[Чей клиент],MATCH(ROWS($U$2:Базаданных[[#This Row],[Индекс3]]),Базаданных[Индекс3],0)),\"\")","v":"Нерсесов Давид"},{"$f":"Базаданных[[#This Row],[ДД]]-Базаданных[[#This Row],[ГД]]","v":1050},{"$f":"Базаданных[[#This Row],[КВ]]-Базаданных[[#This Row],[ГК]]","v":0}]
["2019-04-20T19:44:35.800",43575.822636574077,20,"суббота","Апрель","2019",0,"-",0,"-",505930,"-",0,"-","Нерсесов Давид","Надир (К84 Царицино)",{"$f":"NOT(ISERROR(SEARCH('Форма ввода'!$C$5,Базаданных[[#This Row],[Клиент]])))","v":false},{"$f":"IF(Базаданных[[#This Row],[Статус]],COUNTIF($Q$2:Базаданных[[#This Row],[Статус]],TRUE),\"\")","v":""},{"$f":"IFERROR(INDEX(Базаданных[Клиент],MATCH(ROWS($R$2:Базаданных[[#This Row],[Индекс]]),Базаданных[Индекс],0)),\"\")","v":""},{"$f":"NOT(ISERROR(SEARCH('Форма ввода'!$C$9,Базаданных[[#This Row],[Чей клиент]])))","v":true},{"$f":"IF(Базаданных[[#This Row],[Статус2]],COUNTIF($T$2:Базаданных[[#This Row],[Статус2]],TRUE),\"\")","v":273},{"$f":"IFERROR(INDEX(Базаданных[Чей клиент],MATCH(ROWS($U$2:Базаданных[[#This Row],[Индекс3]]),Базаданных[Индекс3],0)),\"\")","v":"Нерсесов Давид"},{"$f":"Базаданных[[#This Row],[ДД]]-Базаданных[[#This Row],[ГД]]","v":0},{"$f":"Базаданных[[#This Row],[КВ]]-Базаданных[[#This Row],[ГК]]","v":505930}]
["2019-04-21T10:56:40.230",43576.456021180558,21,"воскресенье","Апрель","2019",0,"-",0,"-",0,"-",13500,"-","Гречихина Юля","Карлен (П-94 Савок)",{"$f":"NOT(ISERROR(SEARCH('Форма ввода'!$C$5,Базаданных[[#This Row],[Клиент]])))","v":false},{"$f":"IF(Базаданных[[#This Row],[Статус]],COUNTIF($Q$2:Базаданных[[#This Row],[Статус]],TRUE),\"\")","v":""},{"$f":"IFERROR(INDEX(Базаданных[Клиент],MATCH(ROWS($R$2:Базаданных[[#This Row],[Индекс]]),Базаданных[Индекс],0)),\"\")","v":""},{"$f":"NOT(ISERROR(SEARCH('Форма ввода'!$C$9,Базаданных[[#This Row],[Чей клиент]])))","v":true},{"$f":"IF(Базаданных[[#This Row],[Статус2]],COUNTIF($T$2:Базаданных[[#This Row],[Статус2]],TRUE),\"\")","v":274},{"$f":"IFERROR(INDEX(Базаданных[Чей клиент],MATCH(ROWS($U$2:Базаданных[[#This Row],[Индекс3]]),Базаданных[Индекс3],0)),\"\")","v":"Гречихина Юля"},{"$f":"Базаданных[[#This Row],[ДД]]-Базаданных[[#This Row],[ГД]]","v":0},{"$f":"Базаданных[[#This Row],[КВ]]-Базаданных[[#This Row],[ГК]]","v":-13500}]
["2019-04-21T15:19:48.020",43576.638750231483,21,"воскресенье","Апрель","2019",0,"-",12600,"-",0,"-",0,"-","Ким Карина","ИП Канаева",{"$f":"NOT(ISERROR(SEARCH('Форма ввода'!$C$5,Базаданных[[#This Row],[Клиент]])))","v":false},{"$f":"IF(Базаданных[[#This Row],[Статус]],COUNTIF($Q$2:Базаданных[[#This Row],[Статус]],TRUE),\"\")","v":""},{"$f":"IFERROR(INDEX(Базаданных[Клиент],MATCH(ROWS($R$2:Базаданных[[#This Row],[Индекс]]),Базаданных[Индекс],0)),\"\")","v":""},{"$f":"NOT(ISERROR(SEARCH('Форма ввода'!$C$9,Базаданных[[#This Row],[Чей клиент]])))","v":true},{"$f":"IF(Базаданных[[#This Row],[Статус2]],COUNTIF($T$2:Базаданных[[#This Row],[Статус2]],TRUE),\"\")","v":275},{"$f":"IFERROR(INDEX(Базаданных[Чей клиент],MATCH(ROWS($U$2:Базаданных[[#This Row],[Индекс3]]),Базаданных[Индекс3],0)),\"\")","v":"Ким Карина"},{"$f":"Базаданных[[#This Row],[ДД]]-Базаданных[[#This Row],[ГД]]","v":-12600},{"$f":"Базаданных[[#This Row],[КВ]]-Базаданных[[#This Row],[ГК]]","v":0}]
["2019-04-21T18:43:53.800",43576.780483796298,21,"воскресенье","Апрель","2019",0,"-",2000,"-",0,"-",0,"-","Пименов Алексей","Белов Александр Павлович",{"$f":"NOT(ISERROR(SEARCH('Форма ввода'!$C$5,Базаданных[[#This Row],[Клиент]])))","v":false},{"$f":"IF(Базаданных[[#This Row],[Статус]],COUNTIF($Q$2:Базаданных[[#This Row],[Статус]],TRUE),\"\")","v":""},{"$f":"IFERROR(INDEX(Базаданных[Клиент],MATCH(ROWS($R$2:Базаданных[[#This Row],[Индекс]]),Базаданных[Индекс],0)),\"\")","v":""},{"$f":"NOT(ISERROR(SEARCH('Форма ввода'!$C$9,Базаданных[[#This Row],[Чей клиент]])))","v":true},{"$f":"IF(Базаданных[[#This Row],[Статус2]],COUNTIF($T$2:Базаданных[[#This Row],[Статус2]],TRUE),\"\")","v":276},{"$f":"IFERROR(INDEX(Базаданных[Чей клиент],MATCH(ROWS($U$2:Базаданных[[#This Row],[Индекс3]]),Базаданных[Индекс3],0)),\"\")","v":"Пименов Алексей"},{"$f":"Базаданных[[#This Row],[ДД]]-Базаданных[[#This Row],[ГД]]","v":-2000},{"$f":"Базаданных[[#This Row],[КВ]]-Базаданных[[#This Row],[ГК]]","v":0}]
["2019-04-21T18:44:17.730",43576.78076076389,21,"воскресенье","Апрель","2019",0,"-",1200,"-",0,"-",0,"-","Нерсесов Давид","Роман (Сим-карта)",{"$f":"NOT(ISERROR(SEARCH('Форма ввода'!$C$5,Базаданных[[#This Row],[Клиент]])))","v":false},{"$f":"IF(Базаданных[[#This Row],[Статус]],COUNTIF($Q$2:Базаданных[[#This Row],[Статус]],TRUE),\"\")","v":""},{"$f":"IFERROR(INDEX(Базаданных[Клиент],MATCH(ROWS($R$2:Базаданных[[#This Row],[Индекс]]),Базаданных[Индекс],0)),\"\")","v":""},{"$f":"NOT(ISERROR(SEARCH('Форма ввода'!$C$9,Базаданных[[#This Row],[Чей клиент]])))","v":true},{"$f":"IF(Базаданных[[#This Row],[Статус2]],COUNTIF($T$2:Базаданных[[#This Row],[Статус2]],TRUE),\"\")","v":277},{"$f":"IFERROR(INDEX(Базаданных[Чей клиент],MATCH(ROWS($U$2:Базаданных[[#This Row],[Индекс3]]),Базаданных[Индекс3],0)),\"\")","v":"Нерсесов Давид"},{"$f":"Базаданных[[#This Row],[ДД]]-Базаданных[[#This Row],[ГД]]","v":-1200},{"$f":"Базаданных[[#This Row],[КВ]]-Базаданных[[#This Row],[ГК]]","v":0}]
["2019-04-21T18:45:06.540",43576.781325694443,21,"воскресенье","Апрель","2019",0,"-",16790,"-",0,"-",0,"-","Гречихина Юля","Вадим (Скупка Егорьевск)",{"$f":"NOT(ISERROR(SEARCH('Форма ввода'!$C$5,Базаданных[[#This Row],[Клиент]])))","v":false},{"$f":"IF(Базаданных[[#This Row],[Статус]],COUNTIF($Q$2:Базаданных[[#This Row],[Статус]],TRUE),\"\")","v":""},{"$f":"IFERROR(INDEX(Базаданных[Клиент],MATCH(ROWS($R$2:Базаданных[[#This Row],[Индекс]]),Базаданных[Индекс],0)),\"\")","v":""},{"$f":"NOT(ISERROR(SEARCH('Форма ввода'!$C$9,Базаданных[[#This Row],[Чей клиент]])))","v":true},{"$f":"IF(Базаданных[[#This Row],[Статус2]],COUNTIF($T$2:Базаданных[[#This Row],[Статус2]],TRUE),\"\")","v":278},{"$f":"IFERROR(INDEX(Базаданных[Чей клиент],MATCH(ROWS($U$2:Базаданных[[#This Row],[Индекс3]]),Базаданных[Индекс3],0)),\"\")","v":"Гречихина Юля"},{"$f":"Базаданных[[#This Row],[ДД]]-Базаданных[[#This Row],[ГД]]","v":-16790},{"$f":"Базаданных[[#This Row],[КВ]]-Базаданных[[#This Row],[ГК]]","v":0}]
["2019-04-21T18:48:24.040",43576.783611574072,21,"воскресенье","Апрель","2019",0,"-",3205,"-",0,"-",0,"-","Гречихина Юля","Саргисян Николаяй",{"$f":"NOT(ISERROR(SEARCH('Форма ввода'!$C$5,Базаданных[[#This Row],[Клиент]])))","v":false},{"$f":"IF(Базаданных[[#This Row],[Статус]],COUNTIF($Q$2:Базаданных[[#This Row],[Статус]],TRUE),\"\")","v":""},{"$f":"IFERROR(INDEX(Базаданных[Клиент],MATCH(ROWS($R$2:Базаданных[[#This Row],[Индекс]]),Базаданных[Индекс],0)),\"\")","v":""},{"$f":"NOT(ISERROR(SEARCH('Форма ввода'!$C$9,Базаданных[[#This Row],[Чей клиент]])))","v":true},{"$f":"IF(Базаданных[[#This Row],[Статус2]],COUNTIF($T$2:Базаданных[[#This Row],[Статус2]],TRUE),\"\")","v":279},{"$f":"IFERROR(INDEX(Базаданных[Чей клиент],MATCH(ROWS($U$2:Базаданных[[#This Row],[Индекс3]]),Базаданных[Индекс3],0)),\"\")","v":"Гречихина Юля"},{"$f":"Базаданных[[#This Row],[ДД]]-Базаданных[[#This Row],[ГД]]","v":-3205},{"$f":"Базаданных[[#This Row],[КВ]]-Базаданных[[#This Row],[ГК]]","v":0}]
["2019-04-21T18:49:38.960",43576.784478703703,21,"воскресенье","Апрель","2019",0,"-",7200,"-",0,"-",0,"-","Гречихина Юля","Комиссионка Щербинка",{"$f":"NOT(ISERROR(SEARCH('Форма ввода'!$C$5,Базаданных[[#This Row],[Клиент]])))","v":false},{"$f":"IF(Базаданных[[#This Row],[Статус]],COUNTIF($Q$2:Базаданных[[#This Row],[Статус]],TRUE),\"\")","v":""},{"$f":"IFERROR(INDEX(Базаданных[Клиент],MATCH(ROWS($R$2:Базаданных[[#This Row],[Индекс]]),Базаданных[Индекс],0)),\"\")","v":""},{"$f":"NOT(ISERROR(SEARCH('Форма ввода'!$C$9,Базаданных[[#This Row],[Чей клиент]])))","v":true},{"$f":"IF(Базаданных[[#This Row],[Статус2]],COUNTIF($T$2:Базаданных[[#This Row],[Статус2]],TRUE),\"\")","v":280},{"$f":"IFERROR(INDEX(Базаданных[Чей клиент],MATCH(ROWS($U$2:Базаданных[[#This Row],[Индекс3]]),Базаданных[Индекс3],0)),\"\")","v":"Гречихина Юля"},{"$f":"Базаданных[[#This Row],[ДД]]-Базаданных[[#This Row],[ГД]]","v":-7200},{"$f":"Базаданных[[#This Row],[КВ]]-Базаданных[[#This Row],[ГК]]","v":0}]
["2019-04-21T19:00:27.840",43576.791988888886,21,"воскресенье","Апрель","2019",8360,"-",0,"-",0,"-",0,"-","Гречихина Юля","Карлен (П-94 Савок)",{"$f":"NOT(ISERROR(SEARCH('Форма ввода'!$C$5,Базаданных[[#This Row],[Клиент]])))","v":false},{"$f":"IF(Базаданных[[#This Row],[Статус]],COUNTIF($Q$2:Базаданных[[#This Row],[Статус]],TRUE),\"\")","v":""},{"$f":"IFERROR(INDEX(Базаданных[Клиент],MATCH(ROWS($R$2:Базаданных[[#This Row],[Индекс]]),Базаданных[Индекс],0)),\"\")","v":""},{"$f":"NOT(ISERROR(SEARCH('Форма ввода'!$C$9,Базаданных[[#This Row],[Чей клиент]])))","v":true},{"$f":"IF(Базаданных[[#This Row],[Статус2]],COUNTIF($T$2:Базаданных[[#This Row],[Статус2]],TRUE),\"\")","v":281},{"$f":"IFERROR(INDEX(Базаданных[Чей клиент],MATCH(ROWS($U$2:Базаданных[[#This Row],[Индекс3]]),Базаданных[Индекс3],0)),\"\")","v":"Гречихина Юля"},{"$f":"Базаданных[[#This Row],[ДД]]-Базаданных[[#This Row],[ГД]]","v":8360},{"$f":"Базаданных[[#This Row],[КВ]]-Базаданных[[#This Row],[ГК]]","v":0}]
["2019-04-21T19:00:55.140",43576.792304861112,21,"воскресенье","Апрель","2019",0,"-",0,"-",1520,"-",0,"-","Гречихина Юля","ИП Майорова",{"$f":"NOT(ISERROR(SEARCH('Форма ввода'!$C$5,Базаданных[[#This Row],[Клиент]])))","v":false},{"$f":"IF(Базаданных[[#This Row],[Статус]],COUNTIF($Q$2:Базаданных[[#This Row],[Статус]],TRUE),\"\")","v":""},{"$f":"IFERROR(INDEX(Базаданных[Клиент],MATCH(ROWS($R$2:Базаданных[[#This Row],[Индекс]]),Базаданных[Индекс],0)),\"\")","v":""},{"$f":"NOT(ISERROR(SEARCH('Форма ввода'!$C$9,Базаданных[[#This Row],[Чей клиент]])))","v":true},{"$f":"IF(Базаданных[[#This Row],[Статус2]],COUNTIF($T$2:Базаданных[[#This Row],[Статус2]],TRUE),\"\")","v":282},{"$f":"IFERROR(INDEX(Базаданных[Чей клиент],MATCH(ROWS($U$2:Базаданных[[#This Row],[Индекс3]]),Базаданных[Индекс3],0)),\"\")","v":"Гречихина Юля"},{"$f":"Базаданных[[#This Row],[ДД]]-Базаданных[[#This Row],[ГД]]","v":0},{"$f":"Базаданных[[#This Row],[КВ]]-Базаданных[[#This Row],[ГК]]","v":1520}]
["2019-04-21T19:01:20.270",43576.79259571759,21,"воскресенье","Апрель","2019",17200,"-",0,"-",0,"-",0,"-","Гречихина Юля","Паша (Комиссионка Бутово)",{"$f":"NOT(ISERROR(SEARCH('Форма ввода'!$C$5,Базаданных[[#This Row],[Клиент]])))","v":false},{"$f":"IF(Базаданных[[#This Row],[Статус]],COUNTIF($Q$2:Базаданных[[#This Row],[Статус]],TRUE),\"\")","v":""},{"$f":"IFERROR(INDEX(Базаданных[Клиент],MATCH(ROWS($R$2:Базаданных[[#This Row],[Индекс]]),Базаданных[Индекс],0)),\"\")","v":""},{"$f":"NOT(ISERROR(SEARCH('Форма ввода'!$C$9,Базаданных[[#This Row],[Чей клиент]])))","v":true},{"$f":"IF(Базаданных[[#This Row],[Статус2]],COUNTIF($T$2:Базаданных[[#This Row],[Статус2]],TRUE),\"\")","v":283},{"$f":"IFERROR(INDEX(Базаданных[Чей клиент],MATCH(ROWS($U$2:Базаданных[[#This Row],[Индекс3]]),Базаданных[Индекс3],0)),\"\")","v":"Гречихина Юля"},{"$f":"Базаданных[[#This Row],[ДД]]-Базаданных[[#This Row],[ГД]]","v":17200},{"$f":"Базаданных[[#This Row],[КВ]]-Базаданных[[#This Row],[ГК]]","v":0}]
["2019-04-22T13:08:07.790",43577.54731238426,22,"понедельник","Апрель","2019",0,"-",15000,"-",0,"-",0,"-","Нерсесов Давид","Роман Люберцы",{"$f":"NOT(ISERROR(SEARCH('Форма ввода'!$C$5,Базаданных[[#This Row],[Клиент]])))","v":false},{"$f":"IF(Базаданных[[#This Row],[Статус]],COUNTIF($Q$2:Базаданных[[#This Row],[Статус]],TRUE),\"\")","v":""},{"$f":"IFERROR(INDEX(Базаданных[Клиент],MATCH(ROWS($R$2:Базаданных[[#This Row],[Индекс]]),Базаданных[Индекс],0)),\"\")","v":""},{"$f":"NOT(ISERROR(SEARCH('Форма ввода'!$C$9,Базаданных[[#This Row],[Чей клиент]])))","v":true},{"$f":"IF(Базаданных[[#This Row],[Статус2]],COUNTIF($T$2:Базаданных[[#This Row],[Статус2]],TRUE),\"\")","v":284},{"$f":"IFERROR(INDEX(Базаданных[Чей клиент],MATCH(ROWS($U$2:Базаданных[[#This Row],[Индекс3]]),Базаданных[Индекс3],0)),\"\")","v":"Нерсесов Давид"},{"$f":"Базаданных[[#This Row],[ДД]]-Базаданных[[#This Row],[ГД]]","v":-15000},{"$f":"Базаданных[[#This Row],[КВ]]-Базаданных[[#This Row],[ГК]]","v":0}]
["2019-04-22T13:15:31.200",43577.552444444445,22,"понедельник","Апрель","2019",0,"-",17200,"-",0,"-",0,"-","Гречихина Юля","Паша (Комиссионка Бутово)",{"$f":"NOT(ISERROR(SEARCH('Форма ввода'!$C$5,Базаданных[[#This Row],[Клиент]])))","v":false},{"$f":"IF(Базаданных[[#This Row],[Статус]],COUNTIF($Q$2:Базаданных[[#This Row],[Статус]],TRUE),\"\")","v":""},{"$f":"IFERROR(INDEX(Базаданных[Клиент],MATCH(ROWS($R$2:Базаданных[[#This Row],[Индекс]]),Базаданных[Индекс],0)),\"\")","v":""},{"$f":"NOT(ISERROR(SEARCH('Форма ввода'!$C$9,Базаданных[[#This Row],[Чей клиент]])))","v":true},{"$f":"IF(Базаданных[[#This Row],[Статус2]],COUNTIF($T$2:Базаданных[[#This Row],[Статус2]],TRUE),\"\")","v":285},{"$f":"IFERROR(INDEX(Базаданных[Чей клиент],MATCH(ROWS($U$2:Базаданных[[#This Row],[Индекс3]]),Базаданных[Индекс3],0)),\"\")","v":"Гречихина Юля"},{"$f":"Базаданных[[#This Row],[ДД]]-Базаданных[[#This Row],[ГД]]","v":-17200},{"$f":"Базаданных[[#This Row],[КВ]]-Базаданных[[#This Row],[ГК]]","v":0}]
["2019-04-22T17:07:25.210",43577.71348622685,22,"понедельник","Апрель","2019",0,"-",2930,"-",0,"-",0,"-","Гречихина Юля","Вадим (Скупка Егорьевск)",{"$f":"NOT(ISERROR(SEARCH('Форма ввода'!$C$5,Базаданных[[#This Row],[Клиент]])))","v":false},{"$f":"IF(Базаданных[[#This Row],[Статус]],COUNTIF($Q$2:Базаданных[[#This Row],[Статус]],TRUE),\"\")","v":""},{"$f":"IFERROR(INDEX(Базаданных[Клиент],MATCH(ROWS($R$2:Базаданных[[#This Row],[Индекс]]),Базаданных[Индекс],0)),\"\")","v":""},{"$f":"NOT(ISERROR(SEARCH('Форма ввода'!$C$9,Базаданных[[#This Row],[Чей клиент]])))","v":true},{"$f":"IF(Базаданных[[#This Row],[Статус2]],COUNTIF($T$2:Базаданных[[#This Row],[Статус2]],TRUE),\"\")","v":286},{"$f":"IFERROR(INDEX(Базаданных[Чей клиент],MATCH(ROWS($U$2:Базаданных[[#This Row],[Индекс3]]),Базаданных[Индекс3],0)),\"\")","v":"Гречихина Юля"},{"$f":"Базаданных[[#This Row],[ДД]]-Базаданных[[#This Row],[ГД]]","v":-2930},{"$f":"Базаданных[[#This Row],[КВ]]-Базаданных[[#This Row],[ГК]]","v":0}]
["2019-04-22T17:08:29.500",43577.714230324076,22,"понедельник","Апрель","2019",0,"-",24600,"-",0,"-",0,"-","Нерсесов Давид","Мухамед (Теплый стан)",{"$f":"NOT(ISERROR(SEARCH('Форма ввода'!$C$5,Базаданных[[#This Row],[Клиент]])))","v":false},{"$f":"IF(Базаданных[[#This Row],[Статус]],COUNTIF($Q$2:Базаданных[[#This Row],[Статус]],TRUE),\"\")","v":""},{"$f":"IFERROR(INDEX(Базаданных[Клиент],MATCH(ROWS($R$2:Базаданных[[#This Row],[Индекс]]),Базаданных[Индекс],0)),\"\")","v":""},{"$f":"NOT(ISERROR(SEARCH('Форма ввода'!$C$9,Базаданных[[#This Row],[Чей клиент]])))","v":true},{"$f":"IF(Базаданных[[#This Row],[Статус2]],COUNTIF($T$2:Базаданных[[#This Row],[Статус2]],TRUE),\"\")","v":287},{"$f":"IFERROR(INDEX(Базаданных[Чей клиент],MATCH(ROWS($U$2:Базаданных[[#This Row],[Индекс3]]),Базаданных[Индекс3],0)),\"\")","v":"Нерсесов Давид"},{"$f":"Базаданных[[#This Row],[ДД]]-Базаданных[[#This Row],[ГД]]","v":-24600},{"$f":"Базаданных[[#This Row],[КВ]]-Базаданных[[#This Row],[ГК]]","v":0}]
["2019-04-22T17:12:07.670",43577.716755439818,22,"понедельник","Апрель","2019",0,"-",146050,"-",0,"-",0,"-","Пименов Алексей","Эдик (От Сергея)",{"$f":"NOT(ISERROR(SEARCH('Форма ввода'!$C$5,Базаданных[[#This Row],[Клиент]])))","v":false},{"$f":"IF(Базаданных[[#This Row],[Статус]],COUNTIF($Q$2:Базаданных[[#This Row],[Статус]],TRUE),\"\")","v":""},{"$f":"IFERROR(INDEX(Базаданных[Клиент],MATCH(ROWS($R$2:Базаданных[[#This Row],[Индекс]]),Базаданных[Индекс],0)),\"\")","v":""},{"$f":"NOT(ISERROR(SEARCH('Форма ввода'!$C$9,Базаданных[[#This Row],[Чей клиент]])))","v":true},{"$f":"IF(Базаданных[[#This Row],[Статус2]],COUNTIF($T$2:Базаданных[[#This Row],[Статус2]],TRUE),\"\")","v":288},{"$f":"IFERROR(INDEX(Базаданных[Чей клиент],MATCH(ROWS($U$2:Базаданных[[#This Row],[Индекс3]]),Базаданных[Индекс3],0)),\"\")","v":"Пименов Алексей"},{"$f":"Базаданных[[#This Row],[ДД]]-Базаданных[[#This Row],[ГД]]","v":-146050},{"$f":"Базаданных[[#This Row],[КВ]]-Базаданных[[#This Row],[ГК]]","v":0}]
["2019-04-22T17:24:47.500",43577.725549768518,22,"понедельник","Апрель","2019",0,"-",0,"-",0,"-",645960,"-","Нерсесов Давид","Надир (К84 Царицино)",{"$f":"NOT(ISERROR(SEARCH('Форма ввода'!$C$5,Базаданных[[#This Row],[Клиент]])))","v":false},{"$f":"IF(Базаданных[[#This Row],[Статус]],COUNTIF($Q$2:Базаданных[[#This Row],[Статус]],TRUE),\"\")","v":""},{"$f":"IFERROR(INDEX(Базаданных[Клиент],MATCH(ROWS($R$2:Базаданных[[#This Row],[Индекс]]),Базаданных[Индекс],0)),\"\")","v":""},{"$f":"NOT(ISERROR(SEARCH('Форма ввода'!$C$9,Базаданных[[#This Row],[Чей клиент]])))","v":true},{"$f":"IF(Базаданных[[#This Row],[Статус2]],COUNTIF($T$2:Базаданных[[#This Row],[Статус2]],TRUE),\"\")","v":289},{"$f":"IFERROR(INDEX(Базаданных[Чей клиент],MATCH(ROWS($U$2:Базаданных[[#This Row],[Индекс3]]),Базаданных[Индекс3],0)),\"\")","v":"Нерсесов Давид"},{"$f":"Базаданных[[#This Row],[ДД]]-Базаданных[[#This Row],[ГД]]","v":0},{"$f":"Базаданных[[#This Row],[КВ]]-Базаданных[[#This Row],[ГК]]","v":-645960}]
["2019-04-22T19:08:47.410",43577.797770949073,22,"понедельник","Апрель","2019",0,"-",107900,"-",0,"-",0,"-","Пименов Алексей","Звонок Нижний Новгород",{"$f":"NOT(ISERROR(SEARCH('Форма ввода'!$C$5,Базаданных[[#This Row],[Клиент]])))","v":false},{"$f":"IF(Базаданных[[#This Row],[Статус]],COUNTIF($Q$2:Базаданных[[#This Row],[Статус]],TRUE),\"\")","v":""},{"$f":"IFERROR(INDEX(Базаданных[Клиент],MATCH(ROWS($R$2:Базаданных[[#This Row],[Индекс]]),Базаданных[Индекс],0)),\"\")","v":""},{"$f":"NOT(ISERROR(SEARCH('Форма ввода'!$C$9,Базаданных[[#This Row],[Чей клиент]])))","v":true},{"$f":"IF(Базаданных[[#This Row],[Статус2]],COUNTIF($T$2:Базаданных[[#This Row],[Статус2]],TRUE),\"\")","v":290},{"$f":"IFERROR(INDEX(Базаданных[Чей клиент],MATCH(ROWS($U$2:Базаданных[[#This Row],[Индекс3]]),Базаданных[Индекс3],0)),\"\")","v":"Пименов Алексей"},{"$f":"Базаданных[[#This Row],[ДД]]-Базаданных[[#This Row],[ГД]]","v":-107900},{"$f":"Базаданных[[#This Row],[КВ]]-Базаданных[[#This Row],[ГК]]","v":0}]
["2019-04-22T19:11:49.850",43577.799882523148,22,"понедельник","Апрель","2019",500,"-",0,"-",0,"-",0,"-","Пименов Алексей","Арсен Шанхоев (Ингушетия)",{"$f":"NOT(ISERROR(SEARCH('Форма ввода'!$C$5,Базаданных[[#This Row],[Клиент]])))","v":false},{"$f":"IF(Базаданных[[#This Row],[Статус]],COUNTIF($Q$2:Базаданных[[#This Row],[Статус]],TRUE),\"\")","v":""},{"$f":"IFERROR(INDEX(Базаданных[Клиент],MATCH(ROWS($R$2:Базаданных[[#This Row],[Индекс]]),Базаданных[Индекс],0)),\"\")","v":""},{"$f":"NOT(ISERROR(SEARCH('Форма ввода'!$C$9,Базаданных[[#This Row],[Чей клиент]])))","v":true},{"$f":"IF(Базаданных[[#This Row],[Статус2]],COUNTIF($T$2:Базаданных[[#This Row],[Статус2]],TRUE),\"\")","v":291},{"$f":"IFERROR(INDEX(Базаданных[Чей клиент],MATCH(ROWS($U$2:Базаданных[[#This Row],[Индекс3]]),Базаданных[Индекс3],0)),\"\")","v":"Пименов Алексей"},{"$f":"Базаданных[[#This Row],[ДД]]-Базаданных[[#This Row],[ГД]]","v":500},{"$f":"Базаданных[[#This Row],[КВ]]-Базаданных[[#This Row],[ГК]]","v":0}]
["2019-04-22T19:14:16.720",43577.80158240741,22,"понедельник","Апрель","2019",18370,"-",0,"-",0,"-",0,"-","Пименов Алексей","Евгения Александровна Ильина",{"$f":"NOT(ISERROR(SEARCH('Форма ввода'!$C$5,Базаданных[[#This Row],[Клиент]])))","v":false},{"$f":"IF(Базаданных[[#This Row],[Статус]],COUNTIF($Q$2:Базаданных[[#This Row],[Статус]],TRUE),\"\")","v":""},{"$f":"IFERROR(INDEX(Базаданных[Клиент],MATCH(ROWS($R$2:Базаданных[[#This Row],[Индекс]]),Базаданных[Индекс],0)),\"\")","v":""},{"$f":"NOT(ISERROR(SEARCH('Форма ввода'!$C$9,Базаданных[[#This Row],[Чей клиент]])))","v":true},{"$f":"IF(Базаданных[[#This Row],[Статус2]],COUNTIF($T$2:Базаданных[[#This Row],[Статус2]],TRUE),\"\")","v":292},{"$f":"IFERROR(INDEX(Базаданных[Чей клиент],MATCH(ROWS($U$2:Базаданных[[#This Row],[Индекс3]]),Базаданных[Индекс3],0)),\"\")","v":"Пименов Алексей"},{"$f":"Базаданных[[#This Row],[ДД]]-Базаданных[[#This Row],[ГД]]","v":18370},{"$f":"Базаданных[[#This Row],[КВ]]-Базаданных[[#This Row],[ГК]]","v":0}]
["2019-04-22T19:19:38.850",43577.805310763892,22,"понедельник","Апрель","2019",0,"-",0,"-",0,"-",4720,"-","Пименов Алексей","Алексей (Нижний тагил)",{"$f":"NOT(ISERROR(SEARCH('Форма ввода'!$C$5,Базаданных[[#This Row],[Клиент]])))","v":false},{"$f":"IF(Базаданных[[#This Row],[Статус]],COUNTIF($Q$2:Базаданных[[#This Row],[Статус]],TRUE),\"\")","v":""},{"$f":"IFERROR(INDEX(Базаданных[Клиент],MATCH(ROWS($R$2:Базаданных[[#This Row],[Индекс]]),Базаданных[Индекс],0)),\"\")","v":""},{"$f":"NOT(ISERROR(SEARCH('Форма ввода'!$C$9,Базаданных[[#This Row],[Чей клиент]])))","v":true},{"$f":"IF(Базаданных[[#This Row],[Статус2]],COUNTIF($T$2:Базаданных[[#This Row],[Статус2]],TRUE),\"\")","v":293},{"$f":"IFERROR(INDEX(Базаданных[Чей клиент],MATCH(ROWS($U$2:Базаданных[[#This Row],[Индекс3]]),Базаданных[Индекс3],0)),\"\")","v":"Пименов Алексей"},{"$f":"Базаданных[[#This Row],[ДД]]-Базаданных[[#This Row],[ГД]]","v":0},{"$f":"Базаданных[[#This Row],[КВ]]-Базаданных[[#This Row],[ГК]]","v":-4720}]
["2019-04-23T13:02:30.590",43578.543409606478,23,"вторник","Апрель","2019",0,"-",8360,"-",0,"-",0,"-","Гречихина Юля","Карлен (П-94 Савок)",{"$f":"NOT(ISERROR(SEARCH('Форма ввода'!$C$5,Базаданных[[#This Row],[Клиент]])))","v":false},{"$f":"IF(Базаданных[[#This Row],[Статус]],COUNTIF($Q$2:Базаданных[[#This Row],[Статус]],TRUE),\"\")","v":""},{"$f":"IFERROR(INDEX(Базаданных[Клиент],MATCH(ROWS($R$2:Базаданных[[#This Row],[Индекс]]),Базаданных[Индекс],0)),\"\")","v":""},{"$f":"NOT(ISERROR(SEARCH('Форма ввода'!$C$9,Базаданных[[#This Row],[Чей клиент]])))","v":true},{"$f":"IF(Базаданных[[#This Row],[Статус2]],COUNTIF($T$2:Базаданных[[#This Row],[Статус2]],TRUE),\"\")","v":294},{"$f":"IFERROR(INDEX(Базаданных[Чей клиент],MATCH(ROWS($U$2:Базаданных[[#This Row],[Индекс3]]),Базаданных[Индекс3],0)),\"\")","v":"Гречихина Юля"},{"$f":"Базаданных[[#This Row],[ДД]]-Базаданных[[#This Row],[ГД]]","v":-8360},{"$f":"Базаданных[[#This Row],[КВ]]-Базаданных[[#This Row],[ГК]]","v":0}]
["2019-04-23T19:10:49.550",43578.799184606483,23,"вторник","Апрель","2019",0,"-",1960,"-",0,"-",0,"-","Пименов Алексей","Евгения Александровна Ильина",{"$f":"NOT(ISERROR(SEARCH('Форма ввода'!$C$5,Базаданных[[#This Row],[Клиент]])))","v":false},{"$f":"IF(Базаданных[[#This Row],[Статус]],COUNTIF($Q$2:Базаданных[[#This Row],[Статус]],TRUE),\"\")","v":""},{"$f":"IFERROR(INDEX(Базаданных[Клиент],MATCH(ROWS($R$2:Базаданных[[#This Row],[Индекс]]),Базаданных[Индекс],0)),\"\")","v":""},{"$f":"NOT(ISERROR(SEARCH('Форма ввода'!$C$9,Базаданных[[#This Row],[Чей клиент]])))","v":true},{"$f":"IF(Базаданных[[#This Row],[Статус2]],COUNTIF($T$2:Базаданных[[#This Row],[Статус2]],TRUE),\"\")","v":295},{"$f":"IFERROR(INDEX(Базаданных[Чей клиент],MATCH(ROWS($U$2:Базаданных[[#This Row],[Индекс3]]),Базаданных[Индекс3],0)),\"\")","v":"Пименов Алексей"},{"$f":"Базаданных[[#This Row],[ДД]]-Базаданных[[#This Row],[ГД]]","v":-1960},{"$f":"Базаданных[[#This Row],[КВ]]-Базаданных[[#This Row],[ГК]]","v":0}]
["2019-04-23T19:16:40.220",43578.803243287039,23,"вторник","Апрель","2019",330,"-",0,"-",0,"-",0,"-","Пименов Алексей","Белов Александр Павлович",{"$f":"NOT(ISERROR(SEARCH('Форма ввода'!$C$5,Базаданных[[#This Row],[Клиент]])))","v":false},{"$f":"IF(Базаданных[[#This Row],[Статус]],COUNTIF($Q$2:Базаданных[[#This Row],[Статус]],TRUE),\"\")","v":""},{"$f":"IFERROR(INDEX(Базаданных[Клиент],MATCH(ROWS($R$2:Базаданных[[#This Row],[Индекс]]),Базаданных[Индекс],0)),\"\")","v":""},{"$f":"NOT(ISERROR(SEARCH('Форма ввода'!$C$9,Базаданных[[#This Row],[Чей клиент]])))","v":true},{"$f":"IF(Базаданных[[#This Row],[Статус2]],COUNTIF($T$2:Базаданных[[#This Row],[Статус2]],TRUE),\"\")","v":296},{"$f":"IFERROR(INDEX(Базаданных[Чей клиент],MATCH(ROWS($U$2:Базаданных[[#This Row],[Индекс3]]),Базаданных[Индекс3],0)),\"\")","v":"Пименов Алексей"},{"$f":"Базаданных[[#This Row],[ДД]]-Базаданных[[#This Row],[ГД]]","v":330},{"$f":"Базаданных[[#This Row],[КВ]]-Базаданных[[#This Row],[ГК]]","v":0}]
["2019-04-23T19:17:00.740",43578.803480787035,23,"вторник","Апрель","2019",500,"-",0,"-",0,"-",0,"-","Пименов Алексей","Магомед Махачкала",{"$f":"NOT(ISERROR(SEARCH('Форма ввода'!$C$5,Базаданных[[#This Row],[Клиент]])))","v":false},{"$f":"IF(Базаданных[[#This Row],[Статус]],COUNTIF($Q$2:Базаданных[[#This Row],[Статус]],TRUE),\"\")","v":""},{"$f":"IFERROR(INDEX(Базаданных[Клиент],MATCH(ROWS($R$2:Базаданных[[#This Row],[Индекс]]),Базаданных[Индекс],0)),\"\")","v":""},{"$f":"NOT(ISERROR(SEARCH('Форма ввода'!$C$9,Базаданных[[#This Row],[Чей клиент]])))","v":true},{"$f":"IF(Базаданных[[#This Row],[Статус2]],COUNTIF($T$2:Базаданных[[#This Row],[Статус2]],TRUE),\"\")","v":297},{"$f":"IFERROR(INDEX(Базаданных[Чей клиент],MATCH(ROWS($U$2:Базаданных[[#This Row],[Индекс3]]),Базаданных[Индекс3],0)),\"\")","v":"Пименов Алексей"},{"$f":"Базаданных[[#This Row],[ДД]]-Базаданных[[#This Row],[ГД]]","v":500},{"$f":"Базаданных[[#This Row],[КВ]]-Базаданных[[#This Row],[ГК]]","v":0}]
["2019-04-23T19:17:24.890",43578.803760300929,23,"вторник","Апрель","2019",500,"-",0,"-",0,"-",0,"-","Пименов Алексей","Магомед Ингушетия (Назрань)",{"$f":"NOT(ISERROR(SEARCH('Форма ввода'!$C$5,Базаданных[[#This Row],[Клиент]])))","v":false},{"$f":"IF(Базаданных[[#This Row],[Статус]],COUNTIF($Q$2:Базаданных[[#This Row],[Статус]],TRUE),\"\")","v":""},{"$f":"IFERROR(INDEX(Базаданных[Клиент],MATCH(ROWS($R$2:Базаданных[[#This Row],[Индекс]]),Базаданных[Индекс],0)),\"\")","v":""},{"$f":"NOT(ISERROR(SEARCH('Форма ввода'!$C$9,Базаданных[[#This Row],[Чей клиент]])))","v":true},{"$f":"IF(Базаданных[[#This Row],[Статус2]],COUNTIF($T$2:Базаданных[[#This Row],[Статус2]],TRUE),\"\")","v":298},{"$f":"IFERROR(INDEX(Базаданных[Чей клиент],MATCH(ROWS($U$2:Базаданных[[#This Row],[Индекс3]]),Базаданных[Индекс3],0)),\"\")","v":"Пименов Алексей"},{"$f":"Базаданных[[#This Row],[ДД]]-Базаданных[[#This Row],[ГД]]","v":500},{"$f":"Базаданных[[#This Row],[КВ]]-Базаданных[[#This Row],[ГК]]","v":0}]
["2019-04-23T19:18:08.330",43578.804263078702,23,"вторник","Апрель","2019",25900,"-",0,"-",0,"-",0,"-","Нерсесов Давид","Нерсесов Давид ( AlexStore)",{"$f":"NOT(ISERROR(SEARCH('Форма ввода'!$C$5,Базаданных[[#This Row],[Клиент]])))","v":false},{"$f":"IF(Базаданных[[#This Row],[Статус]],COUNTIF($Q$2:Базаданных[[#This Row],[Статус]],TRUE),\"\")","v":""},{"$f":"IFERROR(INDEX(Базаданных[Клиент],MATCH(ROWS($R$2:Базаданных[[#This Row],[Индекс]]),Базаданных[Индекс],0)),\"\")","v":""},{"$f":"NOT(ISERROR(SEARCH('Форма ввода'!$C$9,Базаданных[[#This Row],[Чей клиент]])))","v":true},{"$f":"IF(Базаданных[[#This Row],[Статус2]],COUNTIF($T$2:Базаданных[[#This Row],[Статус2]],TRUE),\"\")","v":299},{"$f":"IFERROR(INDEX(Базаданных[Чей клиент],MATCH(ROWS($U$2:Базаданных[[#This Row],[Индекс3]]),Базаданных[Индекс3],0)),\"\")","v":"Нерсесов Давид"},{"$f":"Базаданных[[#This Row],[ДД]]-Базаданных[[#This Row],[ГД]]","v":25900},{"$f":"Базаданных[[#This Row],[КВ]]-Базаданных[[#This Row],[ГК]]","v":0}]
["2019-04-23T19:18:41.410",43578.804645949072,23,"вторник","Апрель","2019",0,"-",0,"-",18210,"-",0,"-","Пименов Алексей","Титан (Киров)",{"$f":"NOT(ISERROR(SEARCH('Форма ввода'!$C$5,Базаданных[[#This Row],[Клиент]])))","v":false},{"$f":"IF(Базаданных[[#This Row],[Статус]],COUNTIF($Q$2:Базаданных[[#This Row],[Статус]],TRUE),\"\")","v":""},{"$f":"IFERROR(INDEX(Базаданных[Клиент],MATCH(ROWS($R$2:Базаданных[[#This Row],[Индекс]]),Базаданных[Индекс],0)),\"\")","v":""},{"$f":"NOT(ISERROR(SEARCH('Форма ввода'!$C$9,Базаданных[[#This Row],[Чей клиент]])))","v":true},{"$f":"IF(Базаданных[[#This Row],[Статус2]],COUNTIF($T$2:Базаданных[[#This Row],[Статус2]],TRUE),\"\")","v":300},{"$f":"IFERROR(INDEX(Базаданных[Чей клиент],MATCH(ROWS($U$2:Базаданных[[#This Row],[Индекс3]]),Базаданных[Индекс3],0)),\"\")","v":"Пименов Алексей"},{"$f":"Базаданных[[#This Row],[ДД]]-Базаданных[[#This Row],[ГД]]","v":0},{"$f":"Базаданных[[#This Row],[КВ]]-Базаданных[[#This Row],[ГК]]","v":18210}]
["2019-04-24T18:20:08.560",43579.763987962964,24,"среда","Апрель","2019",0,"-",0,"-",2100,"-",0,"-","Пименов Алексей","Иван (Пятигорск)",{"$f":"NOT(ISERROR(SEARCH('Форма ввода'!$C$5,Базаданных[[#This Row],[Клиент]])))","v":false},{"$f":"IF(Базаданных[[#This Row],[Статус]],COUNTIF($Q$2:Базаданных[[#This Row],[Статус]],TRUE),\"\")","v":""},{"$f":"IFERROR(INDEX(Базаданных[Клиент],MATCH(ROWS($R$2:Базаданных[[#This Row],[Индекс]]),Базаданных[Индекс],0)),\"\")","v":""},{"$f":"NOT(ISERROR(SEARCH('Форма ввода'!$C$9,Базаданных[[#This Row],[Чей клиент]])))","v":true},{"$f":"IF(Базаданных[[#This Row],[Статус2]],COUNTIF($T$2:Базаданных[[#This Row],[Статус2]],TRUE),\"\")","v":301},{"$f":"IFERROR(INDEX(Базаданных[Чей клиент],MATCH(ROWS($U$2:Базаданных[[#This Row],[Индекс3]]),Базаданных[Индекс3],0)),\"\")","v":"Пименов Алексей"},{"$f":"Базаданных[[#This Row],[ДД]]-Базаданных[[#This Row],[ГД]]","v":0},{"$f":"Базаданных[[#This Row],[КВ]]-Базаданных[[#This Row],[ГК]]","v":2100}]
["2019-04-24T18:48:58.470",43579.784010069445,24,"среда","Апрель","2019",0,"-",20850,"-",0,"-",0,"-","Нерсесов Давид","Акоп П-90 (Савок)",{"$f":"NOT(ISERROR(SEARCH('Форма ввода'!$C$5,Базаданных[[#This Row],[Клиент]])))","v":false},{"$f":"IF(Базаданных[[#This Row],[Статус]],COUNTIF($Q$2:Базаданных[[#This Row],[Статус]],TRUE),\"\")","v":""},{"$f":"IFERROR(INDEX(Базаданных[Клиент],MATCH(ROWS($R$2:Базаданных[[#This Row],[Индекс]]),Базаданных[Индекс],0)),\"\")","v":""},{"$f":"NOT(ISERROR(SEARCH('Форма ввода'!$C$9,Базаданных[[#This Row],[Чей клиент]])))","v":true},{"$f":"IF(Базаданных[[#This Row],[Статус2]],COUNTIF($T$2:Базаданных[[#This Row],[Статус2]],TRUE),\"\")","v":302},{"$f":"IFERROR(INDEX(Базаданных[Чей клиент],MATCH(ROWS($U$2:Базаданных[[#This Row],[Индекс3]]),Базаданных[Индекс3],0)),\"\")","v":"Нерсесов Давид"},{"$f":"Базаданных[[#This Row],[ДД]]-Базаданных[[#This Row],[ГД]]","v":-20850},{"$f":"Базаданных[[#This Row],[КВ]]-Базаданных[[#This Row],[ГК]]","v":0}]
["2019-04-24T19:15:55.390",43579.802724421294,24,"среда","Апрель","2019",0,"-",0,"-",3940,"-",0,"-","Пименов Алексей","Евгения Александровна Ильина",{"$f":"NOT(ISERROR(SEARCH('Форма ввода'!$C$5,Базаданных[[#This Row],[Клиент]])))","v":false},{"$f":"IF(Базаданных[[#This Row],[Статус]],COUNTIF($Q$2:Базаданных[[#This Row],[Статус]],TRUE),\"\")","v":""},{"$f":"IFERROR(INDEX(Базаданных[Клиент],MATCH(ROWS($R$2:Базаданных[[#This Row],[Индекс]]),Базаданных[Индекс],0)),\"\")","v":""},{"$f":"NOT(ISERROR(SEARCH('Форма ввода'!$C$9,Базаданных[[#This Row],[Чей клиент]])))","v":true},{"$f":"IF(Базаданных[[#This Row],[Статус2]],COUNTIF($T$2:Базаданных[[#This Row],[Статус2]],TRUE),\"\")","v":303},{"$f":"IFERROR(INDEX(Базаданных[Чей клиент],MATCH(ROWS($U$2:Базаданных[[#This Row],[Индекс3]]),Базаданных[Индекс3],0)),\"\")","v":"Пименов Алексей"},{"$f":"Базаданных[[#This Row],[ДД]]-Базаданных[[#This Row],[ГД]]","v":0},{"$f":"Базаданных[[#This Row],[КВ]]-Базаданных[[#This Row],[ГК]]","v":3940}]
["2019-04-24T19:16:30.090",43579.803126041668,24,"среда","Апрель","2019",0,"-",0,"-",3700,"-",0,"-","Пименов Алексей","Александр Павленко",{"$f":"NOT(ISERROR(SEARCH('Форма ввода'!$C$5,Базаданных[[#This Row],[Клиент]])))","v":false},{"$f":"IF(Базаданных[[#This Row],[Статус]],COUNTIF($Q$2:Базаданных[[#This Row],[Статус]],TRUE),\"\")","v":""},{"$f":"IFERROR(INDEX(Базаданных[Клиент],MATCH(ROWS($R$2:Базаданных[[#This Row],[Индекс]]),Базаданных[Индекс],0)),\"\")","v":""},{"$f":"NOT(ISERROR(SEARCH('Форма ввода'!$C$9,Базаданных[[#This Row],[Чей клиент]])))","v":true},{"$f":"IF(Базаданных[[#This Row],[Статус2]],COUNTIF($T$2:Базаданных[[#This Row],[Статус2]],TRUE),\"\")","v":304},{"$f":"IFERROR(INDEX(Базаданных[Чей клиент],MATCH(ROWS($U$2:Базаданных[[#This Row],[Индекс3]]),Базаданных[Индекс3],0)),\"\")","v":"Пименов Алексей"},{"$f":"Базаданных[[#This Row],[ДД]]-Базаданных[[#This Row],[ГД]]","v":0},{"$f":"Базаданных[[#This Row],[КВ]]-Базаданных[[#This Row],[ГК]]","v":3700}]
["2019-04-24T19:16:45.200",43579.803300925923,24,"среда","Апрель","2019",260000,"-",0,"-",0,"-",0,"-","Гречихина Юля","Розовая Скупка (Главная Москва)",{"$f":"NOT(ISERROR(SEARCH('Форма ввода'!$C$5,Базаданных[[#This Row],[Клиент]])))","v":false},{"$f":"IF(Базаданных[[#This Row],[Статус]],COUNTIF($Q$2:Базаданных[[#This Row],[Статус]],TRUE),\"\")","v":""},{"$f":"IFERROR(INDEX(Базаданных[Клиент],MATCH(ROWS($R$2:Базаданных[[#This Row],[Индекс]]),Базаданных[Индекс],0)),\"\")","v":""},{"$f":"NOT(ISERROR(SEARCH('Форма ввода'!$C$9,Базаданных[[#This Row],[Чей клиент]])))","v":true},{"$f":"IF(Базаданных[[#This Row],[Статус2]],COUNTIF($T$2:Базаданных[[#This Row],[Статус2]],TRUE),\"\")","v":305},{"$f":"IFERROR(INDEX(Базаданных[Чей клиент],MATCH(ROWS($U$2:Базаданных[[#This Row],[Индекс3]]),Базаданных[Индекс3],0)),\"\")","v":"Гречихина Юля"},{"$f":"Базаданных[[#This Row],[ДД]]-Базаданных[[#This Row],[ГД]]","v":260000},{"$f":"Базаданных[[#This Row],[КВ]]-Базаданных[[#This Row],[ГК]]","v":0}]
["2019-04-24T19:17:03.770",43579.803515856482,24,"среда","Апрель","2019",11100,"-",0,"-",0,"-",0,"-","Гречихина Юля","Андрей (Отрадное)",{"$f":"NOT(ISERROR(SEARCH('Форма ввода'!$C$5,Базаданных[[#This Row],[Клиент]])))","v":false},{"$f":"IF(Базаданных[[#This Row],[Статус]],COUNTIF($Q$2:Базаданных[[#This Row],[Статус]],TRUE),\"\")","v":""},{"$f":"IFERROR(INDEX(Базаданных[Клиент],MATCH(ROWS($R$2:Базаданных[[#This Row],[Индекс]]),Базаданных[Индекс],0)),\"\")","v":""},{"$f":"NOT(ISERROR(SEARCH('Форма ввода'!$C$9,Базаданных[[#This Row],[Чей клиент]])))","v":true},{"$f":"IF(Базаданных[[#This Row],[Статус2]],COUNTIF($T$2:Базаданных[[#This Row],[Статус2]],TRUE),\"\")","v":306},{"$f":"IFERROR(INDEX(Базаданных[Чей клиент],MATCH(ROWS($U$2:Базаданных[[#This Row],[Индекс3]]),Базаданных[Индекс3],0)),\"\")","v":"Гречихина Юля"},{"$f":"Базаданных[[#This Row],[ДД]]-Базаданных[[#This Row],[ГД]]","v":11100},{"$f":"Базаданных[[#This Row],[КВ]]-Базаданных[[#This Row],[ГК]]","v":0}]
["2019-04-24T19:17:20.850",43579.803713541667,24,"среда","Апрель","2019",91550,"-",0,"-",0,"-",0,"-","Нерсесов Давид","Скупка Алтуфьево Андрей",{"$f":"NOT(ISERROR(SEARCH('Форма ввода'!$C$5,Базаданных[[#This Row],[Клиент]])))","v":false},{"$f":"IF(Базаданных[[#This Row],[Статус]],COUNTIF($Q$2:Базаданных[[#This Row],[Статус]],TRUE),\"\")","v":""},{"$f":"IFERROR(INDEX(Базаданных[Клиент],MATCH(ROWS($R$2:Базаданных[[#This Row],[Индекс]]),Базаданных[Индекс],0)),\"\")","v":""},{"$f":"NOT(ISERROR(SEARCH('Форма ввода'!$C$9,Базаданных[[#This Row],[Чей клиент]])))","v":true},{"$f":"IF(Базаданных[[#This Row],[Статус2]],COUNTIF($T$2:Базаданных[[#This Row],[Статус2]],TRUE),\"\")","v":307},{"$f":"IFERROR(INDEX(Базаданных[Чей клиент],MATCH(ROWS($U$2:Базаданных[[#This Row],[Индекс3]]),Базаданных[Индекс3],0)),\"\")","v":"Нерсесов Давид"},{"$f":"Базаданных[[#This Row],[ДД]]-Базаданных[[#This Row],[ГД]]","v":91550},{"$f":"Базаданных[[#This Row],[КВ]]-Базаданных[[#This Row],[ГК]]","v":0}]
["2019-04-25T11:34:04.170",43580.48199270833,25,"четверг","Апрель","2019",0,"-",0,"-",0,"-",420,"-","Пименов Алексей","Частное лицо",{"$f":"NOT(ISERROR(SEARCH('Форма ввода'!$C$5,Базаданных[[#This Row],[Клиент]])))","v":false},{"$f":"IF(Базаданных[[#This Row],[Статус]],COUNTIF($Q$2:Базаданных[[#This Row],[Статус]],TRUE),\"\")","v":""},{"$f":"IFERROR(INDEX(Базаданных[Клиент],MATCH(ROWS($R$2:Базаданных[[#This Row],[Индекс]]),Базаданных[Индекс],0)),\"\")","v":""},{"$f":"NOT(ISERROR(SEARCH('Форма ввода'!$C$9,Базаданных[[#This Row],[Чей клиент]])))","v":true},{"$f":"IF(Базаданных[[#This Row],[Статус2]],COUNTIF($T$2:Базаданных[[#This Row],[Статус2]],TRUE),\"\")","v":308},{"$f":"IFERROR(INDEX(Базаданных[Чей клиент],MATCH(ROWS($U$2:Базаданных[[#This Row],[Индекс3]]),Базаданных[Индекс3],0)),\"\")","v":"Пименов Алексей"},{"$f":"Базаданных[[#This Row],[ДД]]-Базаданных[[#This Row],[ГД]]","v":0},{"$f":"Базаданных[[#This Row],[КВ]]-Базаданных[[#This Row],[ГК]]","v":-420}]
["2019-04-25T11:34:52.510",43580.482552199072,25,"четверг","Апрель","2019",0,"-",260000,"-",0,"-",0,"-","Гречихина Юля","Розовая Скупка (Главная Москва)",{"$f":"NOT(ISERROR(SEARCH('Форма ввода'!$C$5,Базаданных[[#This Row],[Клиент]])))","v":false},{"$f":"IF(Базаданных[[#This Row],[Статус]],COUNTIF($Q$2:Базаданных[[#This Row],[Статус]],TRUE),\"\")","v":""},{"$f":"IFERROR(INDEX(Базаданных[Клиент],MATCH(ROWS($R$2:Базаданных[[#This Row],[Индекс]]),Базаданных[Индекс],0)),\"\")","v":""},{"$f":"NOT(ISERROR(SEARCH('Форма ввода'!$C$9,Базаданных[[#This Row],[Чей клиент]])))","v":true},{"$f":"IF(Базаданных[[#This Row],[Статус2]],COUNTIF($T$2:Базаданных[[#This Row],[Статус2]],TRUE),\"\")","v":309},{"$f":"IFERROR(INDEX(Базаданных[Чей клиент],MATCH(ROWS($U$2:Базаданных[[#This Row],[Индекс3]]),Базаданных[Индекс3],0)),\"\")","v":"Гречихина Юля"},{"$f":"Базаданных[[#This Row],[ДД]]-Базаданных[[#This Row],[ГД]]","v":-260000},{"$f":"Базаданных[[#This Row],[КВ]]-Базаданных[[#This Row],[ГК]]","v":0}]
["2019-04-25T11:35:06.060",43580.482709027776,25,"четверг","Апрель","2019",0,"-",11100,"-",0,"-",0,"-","Гречихина Юля","Андрей (Отрадное)",{"$f":"NOT(ISERROR(SEARCH('Форма ввода'!$C$5,Базаданных[[#This Row],[Клиент]])))","v":false},{"$f":"IF(Базаданных[[#This Row],[Статус]],COUNTIF($Q$2:Базаданных[[#This Row],[Статус]],TRUE),\"\")","v":""},{"$f":"IFERROR(INDEX(Базаданных[Клиент],MATCH(ROWS($R$2:Базаданных[[#This Row],[Индекс]]),Базаданных[Индекс],0)),\"\")","v":""},{"$f":"NOT(ISERROR(SEARCH('Форма ввода'!$C$9,Базаданных[[#This Row],[Чей клиент]])))","v":true},{"$f":"IF(Базаданных[[#This Row],[Статус2]],COUNTIF($T$2:Базаданных[[#This Row],[Статус2]],TRUE),\"\")","v":310},{"$f":"IFERROR(INDEX(Базаданных[Чей клиент],MATCH(ROWS($U$2:Базаданных[[#This Row],[Индекс3]]),Базаданных[Индекс3],0)),\"\")","v":"Гречихина Юля"},{"$f":"Базаданных[[#This Row],[ДД]]-Базаданных[[#This Row],[ГД]]","v":-11100},{"$f":"Базаданных[[#This Row],[КВ]]-Базаданных[[#This Row],[ГК]]","v":0}]
["2019-04-25T13:28:36.660",43580.561535416666,25,"четверг","Апрель","2019",0,"-",0,"-",5520,"-",0,"-","Пименов Алексей","КМТ Сервис (Клин)",{"$f":"NOT(ISERROR(SEARCH('Форма ввода'!$C$5,Базаданных[[#This Row],[Клиент]])))","v":false},{"$f":"IF(Базаданных[[#This Row],[Статус]],COUNTIF($Q$2:Базаданных[[#This Row],[Статус]],TRUE),\"\")","v":""},{"$f":"IFERROR(INDEX(Базаданных[Клиент],MATCH(ROWS($R$2:Базаданных[[#This Row],[Индекс]]),Базаданных[Индекс],0)),\"\")","v":""},{"$f":"NOT(ISERROR(SEARCH('Форма ввода'!$C$9,Базаданных[[#This Row],[Чей клиент]])))","v":true},{"$f":"IF(Базаданных[[#This Row],[Статус2]],COUNTIF($T$2:Базаданных[[#This Row],[Статус2]],TRUE),\"\")","v":311},{"$f":"IFERROR(INDEX(Базаданных[Чей клиент],MATCH(ROWS($U$2:Базаданных[[#This Row],[Индекс3]]),Базаданных[Индекс3],0)),\"\")","v":"Пименов Алексей"},{"$f":"Базаданных[[#This Row],[ДД]]-Базаданных[[#This Row],[ГД]]","v":0},{"$f":"Базаданных[[#This Row],[КВ]]-Базаданных[[#This Row],[ГК]]","v":5520}]
["2019-04-25T16:03:18.790",43580.66896747685,25,"четверг","Апрель","2019",0,"-",0,"-",0,"-",4975,"-","Пименов Алексей","Матросова Венера",{"$f":"NOT(ISERROR(SEARCH('Форма ввода'!$C$5,Базаданных[[#This Row],[Клиент]])))","v":false},{"$f":"IF(Базаданных[[#This Row],[Статус]],COUNTIF($Q$2:Базаданных[[#This Row],[Статус]],TRUE),\"\")","v":""},{"$f":"IFERROR(INDEX(Базаданных[Клиент],MATCH(ROWS($R$2:Базаданных[[#This Row],[Индекс]]),Базаданных[Индекс],0)),\"\")","v":""},{"$f":"NOT(ISERROR(SEARCH('Форма ввода'!$C$9,Базаданных[[#This Row],[Чей клиент]])))","v":true},{"$f":"IF(Базаданных[[#This Row],[Статус2]],COUNTIF($T$2:Базаданных[[#This Row],[Статус2]],TRUE),\"\")","v":312},{"$f":"IFERROR(INDEX(Базаданных[Чей клиент],MATCH(ROWS($U$2:Базаданных[[#This Row],[Индекс3]]),Базаданных[Индекс3],0)),\"\")","v":"Пименов Алексей"},{"$f":"Базаданных[[#This Row],[ДД]]-Базаданных[[#This Row],[ГД]]","v":0},{"$f":"Базаданных[[#This Row],[КВ]]-Базаданных[[#This Row],[ГК]]","v":-4975}]
["2019-04-25T16:05:49.900",43580.670716435183,25,"четверг","Апрель","2019",0,"-",0,"-",0,"-",5810,"-","Пименов Алексей","Михаил (SmartBooks Кемерово)",{"$f":"NOT(ISERROR(SEARCH('Форма ввода'!$C$5,Базаданных[[#This Row],[Клиент]])))","v":false},{"$f":"IF(Базаданных[[#This Row],[Статус]],COUNTIF($Q$2:Базаданных[[#This Row],[Статус]],TRUE),\"\")","v":""},{"$f":"IFERROR(INDEX(Базаданных[Клиент],MATCH(ROWS($R$2:Базаданных[[#This Row],[Индекс]]),Базаданных[Индекс],0)),\"\")","v":""},{"$f":"NOT(ISERROR(SEARCH('Форма ввода'!$C$9,Базаданных[[#This Row],[Чей клиент]])))","v":true},{"$f":"IF(Базаданных[[#This Row],[Статус2]],COUNTIF($T$2:Базаданных[[#This Row],[Статус2]],TRUE),\"\")","v":313},{"$f":"IFERROR(INDEX(Базаданных[Чей клиент],MATCH(ROWS($U$2:Базаданных[[#This Row],[Индекс3]]),Базаданных[Индекс3],0)),\"\")","v":"Пименов Алексей"},{"$f":"Базаданных[[#This Row],[ДД]]-Базаданных[[#This Row],[ГД]]","v":0},{"$f":"Базаданных[[#This Row],[КВ]]-Базаданных[[#This Row],[ГК]]","v":-5810}]
["2019-04-25T17:05:09.840",43580.711919444446,25,"четверг","Апрель","2019",0,"-",0,"-",0,"-",230,"-","Пименов Алексей","Дмитрий Arm Device",{"$f":"NOT(ISERROR(SEARCH('Форма ввода'!$C$5,Базаданных[[#This Row],[Клиент]])))","v":false},{"$f":"IF(Базаданных[[#This Row],[Статус]],COUNTIF($Q$2:Базаданных[[#This Row],[Статус]],TRUE),\"\")","v":""},{"$f":"IFERROR(INDEX(Базаданных[Клиент],MATCH(ROWS($R$2:Базаданных[[#This Row],[Индекс]]),Базаданных[Индекс],0)),\"\")","v":""},{"$f":"NOT(ISERROR(SEARCH('Форма ввода'!$C$9,Базаданных[[#This Row],[Чей клиент]])))","v":true},{"$f":"IF(Базаданных[[#This Row],[Статус2]],COUNTIF($T$2:Базаданных[[#This Row],[Статус2]],TRUE),\"\")","v":314},{"$f":"IFERROR(INDEX(Базаданных[Чей клиент],MATCH(ROWS($U$2:Базаданных[[#This Row],[Индекс3]]),Базаданных[Индекс3],0)),\"\")","v":"Пименов Алексей"},{"$f":"Базаданных[[#This Row],[ДД]]-Базаданных[[#This Row],[ГД]]","v":0},{"$f":"Базаданных[[#This Row],[КВ]]-Базаданных[[#This Row],[ГК]]","v":-230}]
["2019-04-25T17:07:18.140",43580.71340439815,25,"четверг","Апрель","2019",4710,"-",0,"-",0,"-",0,"-","Пименов Алексей","Дмитрий Arm Device",{"$f":"NOT(ISERROR(SEARCH('Форма ввода'!$C$5,Базаданных[[#This Row],[Клиент]])))","v":false},{"$f":"IF(Базаданных[[#This Row],[Статус]],COUNTIF($Q$2:Базаданных[[#This Row],[Статус]],TRUE),\"\")","v":""},{"$f":"IFERROR(INDEX(Базаданных[Клиент],MATCH(ROWS($R$2:Базаданных[[#This Row],[Индекс]]),Базаданных[Индекс],0)),\"\")","v":""},{"$f":"NOT(ISERROR(SEARCH('Форма ввода'!$C$9,Базаданных[[#This Row],[Чей клиент]])))","v":true},{"$f":"IF(Базаданных[[#This Row],[Статус2]],COUNTIF($T$2:Базаданных[[#This Row],[Статус2]],TRUE),\"\")","v":315},{"$f":"IFERROR(INDEX(Базаданных[Чей клиент],MATCH(ROWS($U$2:Базаданных[[#This Row],[Индекс3]]),Базаданных[Индекс3],0)),\"\")","v":"Пименов Алексей"},{"$f":"Базаданных[[#This Row],[ДД]]-Базаданных[[#This Row],[ГД]]","v":4710},{"$f":"Базаданных[[#This Row],[КВ]]-Базаданных[[#This Row],[ГК]]","v":0}]
["2019-04-25T18:41:32.370",43580.778846875,25,"четверг","Апрель","2019",0,"-",0,"-",4200,"-",0,"-","Пименов Алексей","Магомед Махачкала",{"$f":"NOT(ISERROR(SEARCH('Форма ввода'!$C$5,Базаданных[[#This Row],[Клиент]])))","v":false},{"$f":"IF(Базаданных[[#This Row],[Статус]],COUNTIF($Q$2:Базаданных[[#This Row],[Статус]],TRUE),\"\")","v":""},{"$f":"IFERROR(INDEX(Базаданных[Клиент],MATCH(ROWS($R$2:Базаданных[[#This Row],[Индекс]]),Базаданных[Индекс],0)),\"\")","v":""},{"$f":"NOT(ISERROR(SEARCH('Форма ввода'!$C$9,Базаданных[[#This Row],[Чей клиент]])))","v":true},{"$f":"IF(Базаданных[[#This Row],[Статус2]],COUNTIF($T$2:Базаданных[[#This Row],[Статус2]],TRUE),\"\")","v":316},{"$f":"IFERROR(INDEX(Базаданных[Чей клиент],MATCH(ROWS($U$2:Базаданных[[#This Row],[Индекс3]]),Базаданных[Индекс3],0)),\"\")","v":"Пименов Алексей"},{"$f":"Базаданных[[#This Row],[ДД]]-Базаданных[[#This Row],[ГД]]","v":0},{"$f":"Базаданных[[#This Row],[КВ]]-Базаданных[[#This Row],[ГК]]","v":4200}]
["2019-04-25T18:45:49.880",43580.781827314815,25,"четверг","Апрель","2019",2525,"-",0,"-",0,"-",0,"-","Пименов Алексей","Матросова Венера",{"$f":"NOT(ISERROR(SEARCH('Форма ввода'!$C$5,Базаданных[[#This Row],[Клиент]])))","v":false},{"$f":"IF(Базаданных[[#This Row],[Статус]],COUNTIF($Q$2:Базаданных[[#This Row],[Статус]],TRUE),\"\")","v":""},{"$f":"IFERROR(INDEX(Базаданных[Клиент],MATCH(ROWS($R$2:Базаданных[[#This Row],[Индекс]]),Базаданных[Индекс],0)),\"\")","v":""},{"$f":"NOT(ISERROR(SEARCH('Форма ввода'!$C$9,Базаданных[[#This Row],[Чей клиент]])))","v":true},{"$f":"IF(Базаданных[[#This Row],[Статус2]],COUNTIF($T$2:Базаданных[[#This Row],[Статус2]],TRUE),\"\")","v":317},{"$f":"IFERROR(INDEX(Базаданных[Чей клиент],MATCH(ROWS($U$2:Базаданных[[#This Row],[Индекс3]]),Базаданных[Индекс3],0)),\"\")","v":"Пименов Алексей"},{"$f":"Базаданных[[#This Row],[ДД]]-Базаданных[[#This Row],[ГД]]","v":2525},{"$f":"Базаданных[[#This Row],[КВ]]-Базаданных[[#This Row],[ГК]]","v":0}]
["2019-04-25T18:52:52.790",43580.786722106481,25,"четверг","Апрель","2019",0,"-",99700,"-",0,"-",0,"-","Нерсесов Давид","Скупка Алтуфьево Андрей",{"$f":"NOT(ISERROR(SEARCH('Форма ввода'!$C$5,Базаданных[[#This Row],[Клиент]])))","v":false},{"$f":"IF(Базаданных[[#This Row],[Статус]],COUNTIF($Q$2:Базаданных[[#This Row],[Статус]],TRUE),\"\")","v":""},{"$f":"IFERROR(INDEX(Базаданных[Клиент],MATCH(ROWS($R$2:Базаданных[[#This Row],[Индекс]]),Базаданных[Индекс],0)),\"\")","v":""},{"$f":"NOT(ISERROR(SEARCH('Форма ввода'!$C$9,Базаданных[[#This Row],[Чей клиент]])))","v":true},{"$f":"IF(Базаданных[[#This Row],[Статус2]],COUNTIF($T$2:Базаданных[[#This Row],[Статус2]],TRUE),\"\")","v":318},{"$f":"IFERROR(INDEX(Базаданных[Чей клиент],MATCH(ROWS($U$2:Базаданных[[#This Row],[Индекс3]]),Базаданных[Индекс3],0)),\"\")","v":"Нерсесов Давид"},{"$f":"Базаданных[[#This Row],[ДД]]-Базаданных[[#This Row],[ГД]]","v":-99700},{"$f":"Базаданных[[#This Row],[КВ]]-Базаданных[[#This Row],[ГК]]","v":0}]
["2019-04-25T18:55:52.780",43580.788805324075,25,"четверг","Апрель","2019",0,"-",0,"-",3000,"-",0,"-","Нерсесов Давид","Шавкат (П-133 Савок)",{"$f":"NOT(ISERROR(SEARCH('Форма ввода'!$C$5,Базаданных[[#This Row],[Клиент]])))","v":false},{"$f":"IF(Базаданных[[#This Row],[Статус]],COUNTIF($Q$2:Базаданных[[#This Row],[Статус]],TRUE),\"\")","v":""},{"$f":"IFERROR(INDEX(Базаданных[Клиент],MATCH(ROWS($R$2:Базаданных[[#This Row],[Индекс]]),Базаданных[Индекс],0)),\"\")","v":""},{"$f":"NOT(ISERROR(SEARCH('Форма ввода'!$C$9,Базаданных[[#This Row],[Чей клиент]])))","v":true},{"$f":"IF(Базаданных[[#This Row],[Статус2]],COUNTIF($T$2:Базаданных[[#This Row],[Статус2]],TRUE),\"\")","v":319},{"$f":"IFERROR(INDEX(Базаданных[Чей клиент],MATCH(ROWS($U$2:Базаданных[[#This Row],[Индекс3]]),Базаданных[Индекс3],0)),\"\")","v":"Нерсесов Давид"},{"$f":"Базаданных[[#This Row],[ДД]]-Базаданных[[#This Row],[ГД]]","v":0},{"$f":"Базаданных[[#This Row],[КВ]]-Базаданных[[#This Row],[ГК]]","v":3000}]
["2019-04-25T19:19:33.530",43580.805249189812,25,"четверг","Апрель","2019",0,"-",24600,"-",0,"-",0,"-","Гречихина Юля","Эльнар Пермь",{"$f":"NOT(ISERROR(SEARCH('Форма ввода'!$C$5,Базаданных[[#This Row],[Клиент]])))","v":false},{"$f":"IF(Базаданных[[#This Row],[Статус]],COUNTIF($Q$2:Базаданных[[#This Row],[Статус]],TRUE),\"\")","v":""},{"$f":"IFERROR(INDEX(Базаданных[Клиент],MATCH(ROWS($R$2:Базаданных[[#This Row],[Индекс]]),Базаданных[Индекс],0)),\"\")","v":""},{"$f":"NOT(ISERROR(SEARCH('Форма ввода'!$C$9,Базаданных[[#This Row],[Чей клиент]])))","v":true},{"$f":"IF(Базаданных[[#This Row],[Статус2]],COUNTIF($T$2:Базаданных[[#This Row],[Статус2]],TRUE),\"\")","v":320},{"$f":"IFERROR(INDEX(Базаданных[Чей клиент],MATCH(ROWS($U$2:Базаданных[[#This Row],[Индекс3]]),Базаданных[Индекс3],0)),\"\")","v":"Гречихина Юля"},{"$f":"Базаданных[[#This Row],[ДД]]-Базаданных[[#This Row],[ГД]]","v":-24600},{"$f":"Базаданных[[#This Row],[КВ]]-Базаданных[[#This Row],[ГК]]","v":0}]
["2019-04-26T13:01:34.950",43581.542765625003,26,"пятница","Апрель","2019",0,"-",0,"-",0,"-",3000,"-","Нерсесов Давид","Шавкат (П-133 Савок)",{"$f":"NOT(ISERROR(SEARCH('Форма ввода'!$C$5,Базаданных[[#This Row],[Клиент]])))","v":false},{"$f":"IF(Базаданных[[#This Row],[Статус]],COUNTIF($Q$2:Базаданных[[#This Row],[Статус]],TRUE),\"\")","v":""},{"$f":"IFERROR(INDEX(Базаданных[Клиент],MATCH(ROWS($R$2:Базаданных[[#This Row],[Индекс]]),Базаданных[Индекс],0)),\"\")","v":""},{"$f":"NOT(ISERROR(SEARCH('Форма ввода'!$C$9,Базаданных[[#This Row],[Чей клиент]])))","v":true},{"$f":"IF(Базаданных[[#This Row],[Статус2]],COUNTIF($T$2:Базаданных[[#This Row],[Статус2]],TRUE),\"\")","v":321},{"$f":"IFERROR(INDEX(Базаданных[Чей клиент],MATCH(ROWS($U$2:Базаданных[[#This Row],[Индекс3]]),Базаданных[Индекс3],0)),\"\")","v":"Нерсесов Давид"},{"$f":"Базаданных[[#This Row],[ДД]]-Базаданных[[#This Row],[ГД]]","v":0},{"$f":"Базаданных[[#This Row],[КВ]]-Базаданных[[#This Row],[ГК]]","v":-3000}]
["2019-04-26T14:37:08.190",43581.609122569447,26,"пятница","Апрель","2019",0,"-",0,"-",0,"-",9100,"-","Нерсесов Давид","Нерсесов Давид ( AlexStore)",{"$f":"NOT(ISERROR(SEARCH('Форма ввода'!$C$5,Базаданных[[#This Row],[Клиент]])))","v":false},{"$f":"IF(Базаданных[[#This Row],[Статус]],COUNTIF($Q$2:Базаданных[[#This Row],[Статус]],TRUE),\"\")","v":""},{"$f":"IFERROR(INDEX(Базаданных[Клиент],MATCH(ROWS($R$2:Базаданных[[#This Row],[Индекс]]),Базаданных[Индекс],0)),\"\")","v":""},{"$f":"NOT(ISERROR(SEARCH('Форма ввода'!$C$9,Базаданных[[#This Row],[Чей клиент]])))","v":true},{"$f":"IF(Базаданных[[#This Row],[Статус2]],COUNTIF($T$2:Базаданных[[#This Row],[Статус2]],TRUE),\"\")","v":322},{"$f":"IFERROR(INDEX(Базаданных[Чей клиент],MATCH(ROWS($U$2:Базаданных[[#This Row],[Индекс3]]),Базаданных[Индекс3],0)),\"\")","v":"Нерсесов Давид"},{"$f":"Базаданных[[#This Row],[ДД]]-Базаданных[[#This Row],[ГД]]","v":0},{"$f":"Базаданных[[#This Row],[КВ]]-Базаданных[[#This Row],[ГК]]","v":-9100}]
["2019-04-26T14:39:33.610",43581.610805671298,26,"пятница","Апрель","2019",0,"-",0,"-",0,"-",10000,"-","Нерсесов Давид","Александр Скупка (Нагатинская)",{"$f":"NOT(ISERROR(SEARCH('Форма ввода'!$C$5,Базаданных[[#This Row],[Клиент]])))","v":false},{"$f":"IF(Базаданных[[#This Row],[Статус]],COUNTIF($Q$2:Базаданных[[#This Row],[Статус]],TRUE),\"\")","v":""},{"$f":"IFERROR(INDEX(Базаданных[Клиент],MATCH(ROWS($R$2:Базаданных[[#This Row],[Индекс]]),Базаданных[Индекс],0)),\"\")","v":""},{"$f":"NOT(ISERROR(SEARCH('Форма ввода'!$C$9,Базаданных[[#This Row],[Чей клиент]])))","v":true},{"$f":"IF(Базаданных[[#This Row],[Статус2]],COUNTIF($T$2:Базаданных[[#This Row],[Статус2]],TRUE),\"\")","v":323},{"$f":"IFERROR(INDEX(Базаданных[Чей клиент],MATCH(ROWS($U$2:Базаданных[[#This Row],[Индекс3]]),Базаданных[Индекс3],0)),\"\")","v":"Нерсесов Давид"},{"$f":"Базаданных[[#This Row],[ДД]]-Базаданных[[#This Row],[ГД]]","v":0},{"$f":"Базаданных[[#This Row],[КВ]]-Базаданных[[#This Row],[ГК]]","v":-10000}]
["2019-04-26T16:25:15.290",43581.684204745368,26,"пятница","Апрель","2019",0,"-",0,"-",0,"-",3940,"-","Пименов Алексей","Евгения Александровна Ильина",{"$f":"NOT(ISERROR(SEARCH('Форма ввода'!$C$5,Базаданных[[#This Row],[Клиент]])))","v":false},{"$f":"IF(Базаданных[[#This Row],[Статус]],COUNTIF($Q$2:Базаданных[[#This Row],[Статус]],TRUE),\"\")","v":""},{"$f":"IFERROR(INDEX(Базаданных[Клиент],MATCH(ROWS($R$2:Базаданных[[#This Row],[Индекс]]),Базаданных[Индекс],0)),\"\")","v":""},{"$f":"NOT(ISERROR(SEARCH('Форма ввода'!$C$9,Базаданных[[#This Row],[Чей клиент]])))","v":true},{"$f":"IF(Базаданных[[#This Row],[Статус2]],COUNTIF($T$2:Базаданных[[#This Row],[Статус2]],TRUE),\"\")","v":324},{"$f":"IFERROR(INDEX(Базаданных[Чей клиент],MATCH(ROWS($U$2:Базаданных[[#This Row],[Индекс3]]),Базаданных[Индекс3],0)),\"\")","v":"Пименов Алексей"},{"$f":"Базаданных[[#This Row],[ДД]]-Базаданных[[#This Row],[ГД]]","v":0},{"$f":"Базаданных[[#This Row],[КВ]]-Базаданных[[#This Row],[ГК]]","v":-3940}]
["2019-04-26T16:27:38.870",43581.685866550928,26,"пятница","Апрель","2019",0,"-",3940,"-",0,"-",0,"-","Пименов Алексей","Евгения Александровна Ильина",{"$f":"NOT(ISERROR(SEARCH('Форма ввода'!$C$5,Базаданных[[#This Row],[Клиент]])))","v":false},{"$f":"IF(Базаданных[[#This Row],[Статус]],COUNTIF($Q$2:Базаданных[[#This Row],[Статус]],TRUE),\"\")","v":""},{"$f":"IFERROR(INDEX(Базаданных[Клиент],MATCH(ROWS($R$2:Базаданных[[#This Row],[Индекс]]),Базаданных[Индекс],0)),\"\")","v":""},{"$f":"NOT(ISERROR(SEARCH('Форма ввода'!$C$9,Базаданных[[#This Row],[Чей клиент]])))","v":true},{"$f":"IF(Базаданных[[#This Row],[Статус2]],COUNTIF($T$2:Базаданных[[#This Row],[Статус2]],TRUE),\"\")","v":325},{"$f":"IFERROR(INDEX(Базаданных[Чей клиент],MATCH(ROWS($U$2:Базаданных[[#This Row],[Индекс3]]),Базаданных[Индекс3],0)),\"\")","v":"Пименов Алексей"},{"$f":"Базаданных[[#This Row],[ДД]]-Базаданных[[#This Row],[ГД]]","v":-3940},{"$f":"Базаданных[[#This Row],[КВ]]-Базаданных[[#This Row],[ГК]]","v":0}]
["2019-04-26T16:30:21.200",43581.687745370371,26,"пятница","Апрель","2019",0,"-",18920,"-",0,"-",0,"-","Пименов Алексей","Евгения Александровна Ильина",{"$f":"NOT(ISERROR(SEARCH('Форма ввода'!$C$5,Базаданных[[#This Row],[Клиент]])))","v":false},{"$f":"IF(Базаданных[[#This Row],[Статус]],COUNTIF($Q$2:Базаданных[[#This Row],[Статус]],TRUE),\"\")","v":""},{"$f":"IFERROR(INDEX(Базаданных[Клиент],MATCH(ROWS($R$2:Базаданных[[#This Row],[Индекс]]),Базаданных[Индекс],0)),\"\")","v":""},{"$f":"NOT(ISERROR(SEARCH('Форма ввода'!$C$9,Базаданных[[#This Row],[Чей клиент]])))","v":true},{"$f":"IF(Базаданных[[#This Row],[Статус2]],COUNTIF($T$2:Базаданных[[#This Row],[Статус2]],TRUE),\"\")","v":326},{"$f":"IFERROR(INDEX(Базаданных[Чей клиент],MATCH(ROWS($U$2:Базаданных[[#This Row],[Индекс3]]),Базаданных[Индекс3],0)),\"\")","v":"Пименов Алексей"},{"$f":"Базаданных[[#This Row],[ДД]]-Базаданных[[#This Row],[ГД]]","v":-18920},{"$f":"Базаданных[[#This Row],[КВ]]-Базаданных[[#This Row],[ГК]]","v":0}]
["2019-04-26T16:45:16.370",43581.698106134259,26,"пятница","Апрель","2019",0,"-",3960,"-",0,"-",0,"-","Пименов Алексей","Дмитрий Arm Device",{"$f":"NOT(ISERROR(SEARCH('Форма ввода'!$C$5,Базаданных[[#This Row],[Клиент]])))","v":false},{"$f":"IF(Базаданных[[#This Row],[Статус]],COUNTIF($Q$2:Базаданных[[#This Row],[Статус]],TRUE),\"\")","v":""},{"$f":"IFERROR(INDEX(Базаданных[Клиент],MATCH(ROWS($R$2:Базаданных[[#This Row],[Индекс]]),Базаданных[Индекс],0)),\"\")","v":""},{"$f":"NOT(ISERROR(SEARCH('Форма ввода'!$C$9,Базаданных[[#This Row],[Чей клиент]])))","v":true},{"$f":"IF(Базаданных[[#This Row],[Статус2]],COUNTIF($T$2:Базаданных[[#This Row],[Статус2]],TRUE),\"\")","v":327},{"$f":"IFERROR(INDEX(Базаданных[Чей клиент],MATCH(ROWS($U$2:Базаданных[[#This Row],[Индекс3]]),Базаданных[Индекс3],0)),\"\")","v":"Пименов Алексей"},{"$f":"Базаданных[[#This Row],[ДД]]-Базаданных[[#This Row],[ГД]]","v":-3960},{"$f":"Базаданных[[#This Row],[КВ]]-Базаданных[[#This Row],[ГК]]","v":0}]
["2019-04-26T18:08:28.950",43581.755890624998,26,"пятница","Апрель","2019",12000,"-",0,"-",0,"-",0,"-","Нерсесов Давид","Нерсесов Давид ( AlexStore)",{"$f":"NOT(ISERROR(SEARCH('Форма ввода'!$C$5,Базаданных[[#This Row],[Клиент]])))","v":false},{"$f":"IF(Базаданных[[#This Row],[Статус]],COUNTIF($Q$2:Базаданных[[#This Row],[Статус]],TRUE),\"\")","v":""},{"$f":"IFERROR(INDEX(Базаданных[Клиент],MATCH(ROWS($R$2:Базаданных[[#This Row],[Индекс]]),Базаданных[Индекс],0)),\"\")","v":""},{"$f":"NOT(ISERROR(SEARCH('Форма ввода'!$C$9,Базаданных[[#This Row],[Чей клиент]])))","v":true},{"$f":"IF(Базаданных[[#This Row],[Статус2]],COUNTIF($T$2:Базаданных[[#This Row],[Статус2]],TRUE),\"\")","v":328},{"$f":"IFERROR(INDEX(Базаданных[Чей клиент],MATCH(ROWS($U$2:Базаданных[[#This Row],[Индекс3]]),Базаданных[Индекс3],0)),\"\")","v":"Нерсесов Давид"},{"$f":"Базаданных[[#This Row],[ДД]]-Базаданных[[#This Row],[ГД]]","v":12000},{"$f":"Базаданных[[#This Row],[КВ]]-Базаданных[[#This Row],[ГК]]","v":0}]
["2019-04-26T18:10:15.740",43581.757126620367,26,"пятница","Апрель","2019",0,"-",0,"-",100,"-",0,"-","Пименов Алексей","Михаил (Мегафон)",{"$f":"NOT(ISERROR(SEARCH('Форма ввода'!$C$5,Базаданных[[#This Row],[Клиент]])))","v":false},{"$f":"IF(Базаданных[[#This Row],[Статус]],COUNTIF($Q$2:Базаданных[[#This Row],[Статус]],TRUE),\"\")","v":""},{"$f":"IFERROR(INDEX(Базаданных[Клиент],MATCH(ROWS($R$2:Базаданных[[#This Row],[Индекс]]),Базаданных[Индекс],0)),\"\")","v":""},{"$f":"NOT(ISERROR(SEARCH('Форма ввода'!$C$9,Базаданных[[#This Row],[Чей клиент]])))","v":true},{"$f":"IF(Базаданных[[#This Row],[Статус2]],COUNTIF($T$2:Базаданных[[#This Row],[Статус2]],TRUE),\"\")","v":329},{"$f":"IFERROR(INDEX(Базаданных[Чей клиент],MATCH(ROWS($U$2:Базаданных[[#This Row],[Индекс3]]),Базаданных[Индекс3],0)),\"\")","v":"Пименов Алексей"},{"$f":"Базаданных[[#This Row],[ДД]]-Базаданных[[#This Row],[ГД]]","v":0},{"$f":"Базаданных[[#This Row],[КВ]]-Базаданных[[#This Row],[ГК]]","v":100}]
["2019-04-26T18:17:27.700",43581.76212615741,26,"пятница","Апрель","2019",0,"-",0,"-",3150,"-",0,"-","Нерсесов Давид","Александр Скупка (Нагатинская)",{"$f":"NOT(ISERROR(SEARCH('Форма ввода'!$C$5,Базаданных[[#This Row],[Клиент]])))","v":false},{"$f":"IF(Базаданных[[#This Row],[Статус]],COUNTIF($Q$2:Базаданных[[#This Row],[Статус]],TRUE),\"\")","v":""},{"$f":"IFERROR(INDEX(Базаданных[Клиент],MATCH(ROWS($R$2:Базаданных[[#This Row],[Индекс]]),Базаданных[Индекс],0)),\"\")","v":""},{"$f":"NOT(ISERROR(SEARCH('Форма ввода'!$C$9,Базаданных[[#This Row],[Чей клиент]])))","v":true},{"$f":"IF(Базаданных[[#This Row],[Статус2]],COUNTIF($T$2:Базаданных[[#This Row],[Статус2]],TRUE),\"\")","v":330},{"$f":"IFERROR(INDEX(Базаданных[Чей клиент],MATCH(ROWS($U$2:Базаданных[[#This Row],[Индекс3]]),Базаданных[Индекс3],0)),\"\")","v":"Нерсесов Давид"},{"$f":"Базаданных[[#This Row],[ДД]]-Базаданных[[#This Row],[ГД]]","v":0},{"$f":"Базаданных[[#This Row],[КВ]]-Базаданных[[#This Row],[ГК]]","v":3150}]
["2019-04-26T18:17:48.100",43581.762362268521,26,"пятница","Апрель","2019",0,"-",0,"-",6710,"-",0,"-","Пименов Алексей","Матросова Венера",{"$f":"NOT(ISERROR(SEARCH('Форма ввода'!$C$5,Базаданных[[#This Row],[Клиент]])))","v":false},{"$f":"IF(Базаданных[[#This Row],[Статус]],COUNTIF($Q$2:Базаданных[[#This Row],[Статус]],TRUE),\"\")","v":""},{"$f":"IFERROR(INDEX(Базаданных[Клиент],MATCH(ROWS($R$2:Базаданных[[#This Row],[Индекс]]),Базаданных[Индекс],0)),\"\")","v":""},{"$f":"NOT(ISERROR(SEARCH('Форма ввода'!$C$9,Базаданных[[#This Row],[Чей клиент]])))","v":true},{"$f":"IF(Базаданных[[#This Row],[Статус2]],COUNTIF($T$2:Базаданных[[#This Row],[Статус2]],TRUE),\"\")","v":331},{"$f":"IFERROR(INDEX(Базаданных[Чей клиент],MATCH(ROWS($U$2:Базаданных[[#This Row],[Индекс3]]),Базаданных[Индекс3],0)),\"\")","v":"Пименов Алексей"},{"$f":"Базаданных[[#This Row],[ДД]]-Базаданных[[#This Row],[ГД]]","v":0},{"$f":"Базаданных[[#This Row],[КВ]]-Базаданных[[#This Row],[ГК]]","v":6710}]
["2019-04-26T18:18:23.490",43581.762771875001,26,"пятница","Апрель","2019",14400,"-",0,"-",0,"-",0,"-","Нерсесов Давид","Владимир (Л - 77 Савок)",{"$f":"NOT(ISERROR(SEARCH('Форма ввода'!$C$5,Базаданных[[#This Row],[Клиент]])))","v":false},{"$f":"IF(Базаданных[[#This Row],[Статус]],COUNTIF($Q$2:Базаданных[[#This Row],[Статус]],TRUE),\"\")","v":""},{"$f":"IFERROR(INDEX(Базаданных[Клиент],MATCH(ROWS($R$2:Базаданных[[#This Row],[Индекс]]),Базаданных[Индекс],0)),\"\")","v":""},{"$f":"NOT(ISERROR(SEARCH('Форма ввода'!$C$9,Базаданных[[#This Row],[Чей клиент]])))","v":true},{"$f":"IF(Базаданных[[#This Row],[Статус2]],COUNTIF($T$2:Базаданных[[#This Row],[Статус2]],TRUE),\"\")","v":332},{"$f":"IFERROR(INDEX(Базаданных[Чей клиент],MATCH(ROWS($U$2:Базаданных[[#This Row],[Индекс3]]),Базаданных[Индекс3],0)),\"\")","v":"Нерсесов Давид"},{"$f":"Базаданных[[#This Row],[ДД]]-Базаданных[[#This Row],[ГД]]","v":14400},{"$f":"Базаданных[[#This Row],[КВ]]-Базаданных[[#This Row],[ГК]]","v":0}]
["2019-04-26T19:02:22.790",43581.793319328703,26,"пятница","Апрель","2019",0,"-",0,"-",121557,"-",0,"-","Пименов Алексей","ООО \" Титан Групп\"",{"$f":"NOT(ISERROR(SEARCH('Форма ввода'!$C$5,Базаданных[[#This Row],[Клиент]])))","v":false},{"$f":"IF(Базаданных[[#This Row],[Статус]],COUNTIF($Q$2:Базаданных[[#This Row],[Статус]],TRUE),\"\")","v":""},{"$f":"IFERROR(INDEX(Базаданных[Клиент],MATCH(ROWS($R$2:Базаданных[[#This Row],[Индекс]]),Базаданных[Индекс],0)),\"\")","v":""},{"$f":"NOT(ISERROR(SEARCH('Форма ввода'!$C$9,Базаданных[[#This Row],[Чей клиент]])))","v":true},{"$f":"IF(Базаданных[[#This Row],[Статус2]],COUNTIF($T$2:Базаданных[[#This Row],[Статус2]],TRUE),\"\")","v":333},{"$f":"IFERROR(INDEX(Базаданных[Чей клиент],MATCH(ROWS($U$2:Базаданных[[#This Row],[Индекс3]]),Базаданных[Индекс3],0)),\"\")","v":"Пименов Алексей"},{"$f":"Базаданных[[#This Row],[ДД]]-Базаданных[[#This Row],[ГД]]","v":0},{"$f":"Базаданных[[#This Row],[КВ]]-Базаданных[[#This Row],[ГК]]","v":121557}]
["2019-04-26T19:06:54.880",43581.796468518522,26,"пятница","Апрель","2019",12800,"-",0,"-",0,"-",0,"-","Гречихина Юля","Александр (Черемушки 2B-15)",{"$f":"NOT(ISERROR(SEARCH('Форма ввода'!$C$5,Базаданных[[#This Row],[Клиент]])))","v":false},{"$f":"IF(Базаданных[[#This Row],[Статус]],COUNTIF($Q$2:Базаданных[[#This Row],[Статус]],TRUE),\"\")","v":""},{"$f":"IFERROR(INDEX(Базаданных[Клиент],MATCH(ROWS($R$2:Базаданных[[#This Row],[Индекс]]),Базаданных[Индекс],0)),\"\")","v":""},{"$f":"NOT(ISERROR(SEARCH('Форма ввода'!$C$9,Базаданных[[#This Row],[Чей клиент]])))","v":true},{"$f":"IF(Базаданных[[#This Row],[Статус2]],COUNTIF($T$2:Базаданных[[#This Row],[Статус2]],TRUE),\"\")","v":334},{"$f":"IFERROR(INDEX(Базаданных[Чей клиент],MATCH(ROWS($U$2:Базаданных[[#This Row],[Индекс3]]),Базаданных[Индекс3],0)),\"\")","v":"Гречихина Юля"},{"$f":"Базаданных[[#This Row],[ДД]]-Базаданных[[#This Row],[ГД]]","v":12800},{"$f":"Базаданных[[#This Row],[КВ]]-Базаданных[[#This Row],[ГК]]","v":0}]
["2019-04-26T19:08:06.460",43581.797296990742,26,"пятница","Апрель","2019",30000,"-",0,"-",0,"-",0,"-","Гречихина Юля","ИП Орлов А. (Оренбург)",{"$f":"NOT(ISERROR(SEARCH('Форма ввода'!$C$5,Базаданных[[#This Row],[Клиент]])))","v":false},{"$f":"IF(Базаданных[[#This Row],[Статус]],COUNTIF($Q$2:Базаданных[[#This Row],[Статус]],TRUE),\"\")","v":""},{"$f":"IFERROR(INDEX(Базаданных[Клиент],MATCH(ROWS($R$2:Базаданных[[#This Row],[Индекс]]),Базаданных[Индекс],0)),\"\")","v":""},{"$f":"NOT(ISERROR(SEARCH('Форма ввода'!$C$9,Базаданных[[#This Row],[Чей клиент]])))","v":true},{"$f":"IF(Базаданных[[#This Row],[Статус2]],COUNTIF($T$2:Базаданных[[#This Row],[Статус2]],TRUE),\"\")","v":335},{"$f":"IFERROR(INDEX(Базаданных[Чей клиент],MATCH(ROWS($U$2:Базаданных[[#This Row],[Индекс3]]),Базаданных[Индекс3],0)),\"\")","v":"Гречихина Юля"},{"$f":"Базаданных[[#This Row],[ДД]]-Базаданных[[#This Row],[ГД]]","v":30000},{"$f":"Базаданных[[#This Row],[КВ]]-Базаданных[[#This Row],[ГК]]","v":0}]
["2019-04-26T19:08:44.930",43581.79774224537,26,"пятница","Апрель","2019",13750,"-",0,"-",0,"-",0,"-","Гречихина Юля","Паша (Комиссионка Бутово)",{"$f":"NOT(ISERROR(SEARCH('Форма ввода'!$C$5,Базаданных[[#This Row],[Клиент]])))","v":false},{"$f":"IF(Базаданных[[#This Row],[Статус]],COUNTIF($Q$2:Базаданных[[#This Row],[Статус]],TRUE),\"\")","v":""},{"$f":"IFERROR(INDEX(Базаданных[Клиент],MATCH(ROWS($R$2:Базаданных[[#This Row],[Индекс]]),Базаданных[Индекс],0)),\"\")","v":""},{"$f":"NOT(ISERROR(SEARCH('Форма ввода'!$C$9,Базаданных[[#This Row],[Чей клиент]])))","v":true},{"$f":"IF(Базаданных[[#This Row],[Статус2]],COUNTIF($T$2:Базаданных[[#This Row],[Статус2]],TRUE),\"\")","v":336},{"$f":"IFERROR(INDEX(Базаданных[Чей клиент],MATCH(ROWS($U$2:Базаданных[[#This Row],[Индекс3]]),Базаданных[Индекс3],0)),\"\")","v":"Гречихина Юля"},{"$f":"Базаданных[[#This Row],[ДД]]-Базаданных[[#This Row],[ГД]]","v":13750},{"$f":"Базаданных[[#This Row],[КВ]]-Базаданных[[#This Row],[ГК]]","v":0}]
["2019-04-26T19:09:09.730",43581.798029282407,26,"пятница","Апрель","2019",9700,"-",0,"-",0,"-",0,"-","Гречихина Юля","Дмитрий (Комиссионка Подольск)",{"$f":"NOT(ISERROR(SEARCH('Форма ввода'!$C$5,Базаданных[[#This Row],[Клиент]])))","v":false},{"$f":"IF(Базаданных[[#This Row],[Статус]],COUNTIF($Q$2:Базаданных[[#This Row],[Статус]],TRUE),\"\")","v":""},{"$f":"IFERROR(INDEX(Базаданных[Клиент],MATCH(ROWS($R$2:Базаданных[[#This Row],[Индекс]]),Базаданных[Индекс],0)),\"\")","v":""},{"$f":"NOT(ISERROR(SEARCH('Форма ввода'!$C$9,Базаданных[[#This Row],[Чей клиент]])))","v":true},{"$f":"IF(Базаданных[[#This Row],[Статус2]],COUNTIF($T$2:Базаданных[[#This Row],[Статус2]],TRUE),\"\")","v":337},{"$f":"IFERROR(INDEX(Базаданных[Чей клиент],MATCH(ROWS($U$2:Базаданных[[#This Row],[Индекс3]]),Базаданных[Индекс3],0)),\"\")","v":"Гречихина Юля"},{"$f":"Базаданных[[#This Row],[ДД]]-Базаданных[[#This Row],[ГД]]","v":9700},{"$f":"Базаданных[[#This Row],[КВ]]-Базаданных[[#This Row],[ГК]]","v":0}]
["2019-04-27T11:54:13.060",43582.495984490743,27,"суббота","Апрель","2019",0,"-",12800,"-",0,"-",0,"-","Гречихина Юля","Александр (Черемушки 2B-15)",{"$f":"NOT(ISERROR(SEARCH('Форма ввода'!$C$5,Базаданных[[#This Row],[Клиент]])))","v":false},{"$f":"IF(Базаданных[[#This Row],[Статус]],COUNTIF($Q$2:Базаданных[[#This Row],[Статус]],TRUE),\"\")","v":""},{"$f":"IFERROR(INDEX(Базаданных[Клиент],MATCH(ROWS($R$2:Базаданных[[#This Row],[Индекс]]),Базаданных[Индекс],0)),\"\")","v":""},{"$f":"NOT(ISERROR(SEARCH('Форма ввода'!$C$9,Базаданных[[#This Row],[Чей клиент]])))","v":true},{"$f":"IF(Базаданных[[#This Row],[Статус2]],COUNTIF($T$2:Базаданных[[#This Row],[Статус2]],TRUE),\"\")","v":338},{"$f":"IFERROR(INDEX(Базаданных[Чей клиент],MATCH(ROWS($U$2:Базаданных[[#This Row],[Индекс3]]),Базаданных[Индекс3],0)),\"\")","v":"Гречихина Юля"},{"$f":"Базаданных[[#This Row],[ДД]]-Базаданных[[#This Row],[ГД]]","v":-12800},{"$f":"Базаданных[[#This Row],[КВ]]-Базаданных[[#This Row],[ГК]]","v":0}]
["2019-04-27T11:54:34.930",43582.496237615742,27,"суббота","Апрель","2019",0,"-",13750,"-",0,"-",0,"-","Гречихина Юля","Паша (Комиссионка Бутово)",{"$f":"NOT(ISERROR(SEARCH('Форма ввода'!$C$5,Базаданных[[#This Row],[Клиент]])))","v":false},{"$f":"IF(Базаданных[[#This Row],[Статус]],COUNTIF($Q$2:Базаданных[[#This Row],[Статус]],TRUE),\"\")","v":""},{"$f":"IFERROR(INDEX(Базаданных[Клиент],MATCH(ROWS($R$2:Базаданных[[#This Row],[Индекс]]),Базаданных[Индекс],0)),\"\")","v":""},{"$f":"NOT(ISERROR(SEARCH('Форма ввода'!$C$9,Базаданных[[#This Row],[Чей клиент]])))","v":true},{"$f":"IF(Базаданных[[#This Row],[Статус2]],COUNTIF($T$2:Базаданных[[#This Row],[Статус2]],TRUE),\"\")","v":339},{"$f":"IFERROR(INDEX(Базаданных[Чей клиент],MATCH(ROWS($U$2:Базаданных[[#This Row],[Индекс3]]),Базаданных[Индекс3],0)),\"\")","v":"Гречихина Юля"},{"$f":"Базаданных[[#This Row],[ДД]]-Базаданных[[#This Row],[ГД]]","v":-13750},{"$f":"Базаданных[[#This Row],[КВ]]-Базаданных[[#This Row],[ГК]]","v":0}]
["2019-04-27T16:18:21.610",43582.679416782405,27,"суббота","Апрель","2019",0,"-",0,"-",0,"-",121557,"-","Пименов Алексей","ООО \" Титан Групп\"",{"$f":"NOT(ISERROR(SEARCH('Форма ввода'!$C$5,Базаданных[[#This Row],[Клиент]])))","v":false},{"$f":"IF(Базаданных[[#This Row],[Статус]],COUNTIF($Q$2:Базаданных[[#This Row],[Статус]],TRUE),\"\")","v":""},{"$f":"IFERROR(INDEX(Базаданных[Клиент],MATCH(ROWS($R$2:Базаданных[[#This Row],[Индекс]]),Базаданных[Индекс],0)),\"\")","v":""},{"$f":"NOT(ISERROR(SEARCH('Форма ввода'!$C$9,Базаданных[[#This Row],[Чей клиент]])))","v":true},{"$f":"IF(Базаданных[[#This Row],[Статус2]],COUNTIF($T$2:Базаданных[[#This Row],[Статус2]],TRUE),\"\")","v":340},{"$f":"IFERROR(INDEX(Базаданных[Чей клиент],MATCH(ROWS($U$2:Базаданных[[#This Row],[Индекс3]]),Базаданных[Индекс3],0)),\"\")","v":"Пименов Алексей"},{"$f":"Базаданных[[#This Row],[ДД]]-Базаданных[[#This Row],[ГД]]","v":0},{"$f":"Базаданных[[#This Row],[КВ]]-Базаданных[[#This Row],[ГК]]","v":-121557}]
["2019-04-27T16:28:25.320",43582.686404166663,27,"суббота","Апрель","2019",0,"-",0,"-",18050,"-",0,"-","Пименов Алексей","Александр (Сызрань)",{"$f":"NOT(ISERROR(SEARCH('Форма ввода'!$C$5,Базаданных[[#This Row],[Клиент]])))","v":false},{"$f":"IF(Базаданных[[#This Row],[Статус]],COUNTIF($Q$2:Базаданных[[#This Row],[Статус]],TRUE),\"\")","v":""},{"$f":"IFERROR(INDEX(Базаданных[Клиент],MATCH(ROWS($R$2:Базаданных[[#This Row],[Индекс]]),Базаданных[Индекс],0)),\"\")","v":""},{"$f":"NOT(ISERROR(SEARCH('Форма ввода'!$C$9,Базаданных[[#This Row],[Чей клиент]])))","v":true},{"$f":"IF(Базаданных[[#This Row],[Статус2]],COUNTIF($T$2:Базаданных[[#This Row],[Статус2]],TRUE),\"\")","v":341},{"$f":"IFERROR(INDEX(Базаданных[Чей клиент],MATCH(ROWS($U$2:Базаданных[[#This Row],[Индекс3]]),Базаданных[Индекс3],0)),\"\")","v":"Пименов Алексей"},{"$f":"Базаданных[[#This Row],[ДД]]-Базаданных[[#This Row],[ГД]]","v":0},{"$f":"Базаданных[[#This Row],[КВ]]-Базаданных[[#This Row],[ГК]]","v":18050}]
["2019-04-27T16:32:45.560",43582.689416203706,27,"суббота","Апрель","2019",0,"-",0,"-",6570,"-",0,"-","Пименов Алексей","Дмитрий (Ломбардный дом)",{"$f":"NOT(ISERROR(SEARCH('Форма ввода'!$C$5,Базаданных[[#This Row],[Клиент]])))","v":false},{"$f":"IF(Базаданных[[#This Row],[Статус]],COUNTIF($Q$2:Базаданных[[#This Row],[Статус]],TRUE),\"\")","v":""},{"$f":"IFERROR(INDEX(Базаданных[Клиент],MATCH(ROWS($R$2:Базаданных[[#This Row],[Индекс]]),Базаданных[Индекс],0)),\"\")","v":""},{"$f":"NOT(ISERROR(SEARCH('Форма ввода'!$C$9,Базаданных[[#This Row],[Чей клиент]])))","v":true},{"$f":"IF(Базаданных[[#This Row],[Статус2]],COUNTIF($T$2:Базаданных[[#This Row],[Статус2]],TRUE),\"\")","v":342},{"$f":"IFERROR(INDEX(Базаданных[Чей клиент],MATCH(ROWS($U$2:Базаданных[[#This Row],[Индекс3]]),Базаданных[Индекс3],0)),\"\")","v":"Пименов Алексей"},{"$f":"Базаданных[[#This Row],[ДД]]-Базаданных[[#This Row],[ГД]]","v":0},{"$f":"Базаданных[[#This Row],[КВ]]-Базаданных[[#This Row],[ГК]]","v":6570}]
["2019-04-27T16:37:52.100",43582.692964120368,27,"суббота","Апрель","2019",0,"-",0,"-",0,"-",13988,"-","Пименов Алексей","Титан (Киров)",{"$f":"NOT(ISERROR(SEARCH('Форма ввода'!$C$5,Базаданных[[#This Row],[Клиент]])))","v":false},{"$f":"IF(Базаданных[[#This Row],[Статус]],COUNTIF($Q$2:Базаданных[[#This Row],[Статус]],TRUE),\"\")","v":""},{"$f":"IFERROR(INDEX(Базаданных[Клиент],MATCH(ROWS($R$2:Базаданных[[#This Row],[Индекс]]),Базаданных[Индекс],0)),\"\")","v":""},{"$f":"NOT(ISERROR(SEARCH('Форма ввода'!$C$9,Базаданных[[#This Row],[Чей клиент]])))","v":true},{"$f":"IF(Базаданных[[#This Row],[Статус2]],COUNTIF($T$2:Базаданных[[#This Row],[Статус2]],TRUE),\"\")","v":343},{"$f":"IFERROR(INDEX(Базаданных[Чей клиент],MATCH(ROWS($U$2:Базаданных[[#This Row],[Индекс3]]),Базаданных[Индекс3],0)),\"\")","v":"Пименов Алексей"},{"$f":"Базаданных[[#This Row],[ДД]]-Базаданных[[#This Row],[ГД]]","v":0},{"$f":"Базаданных[[#This Row],[КВ]]-Базаданных[[#This Row],[ГК]]","v":-13988}]
["2019-04-27T17:27:07.850",43582.727174189815,27,"суббота","Апрель","2019",0,"-",0,"-",0,"-",3150,"-","Нерсесов Давид","Александр Скупка (Нагатинская)",{"$f":"NOT(ISERROR(SEARCH('Форма ввода'!$C$5,Базаданных[[#This Row],[Клиент]])))","v":false},{"$f":"IF(Базаданных[[#This Row],[Статус]],COUNTIF($Q$2:Базаданных[[#This Row],[Статус]],TRUE),\"\")","v":""},{"$f":"IFERROR(INDEX(Базаданных[Клиент],MATCH(ROWS($R$2:Базаданных[[#This Row],[Индекс]]),Базаданных[Индекс],0)),\"\")","v":""},{"$f":"NOT(ISERROR(SEARCH('Форма ввода'!$C$9,Базаданных[[#This Row],[Чей клиент]])))","v":true},{"$f":"IF(Базаданных[[#This Row],[Статус2]],COUNTIF($T$2:Базаданных[[#This Row],[Статус2]],TRUE),\"\")","v":344},{"$f":"IFERROR(INDEX(Базаданных[Чей клиент],MATCH(ROWS($U$2:Базаданных[[#This Row],[Индекс3]]),Базаданных[Индекс3],0)),\"\")","v":"Нерсесов Давид"},{"$f":"Базаданных[[#This Row],[ДД]]-Базаданных[[#This Row],[ГД]]","v":0},{"$f":"Базаданных[[#This Row],[КВ]]-Базаданных[[#This Row],[ГК]]","v":-3150}]
["2019-04-27T19:03:30.510",43582.794103125001,27,"суббота","Апрель","2019",0,"-",14000,"-",0,"-",0,"-","Нерсесов Давид","Нерсесов Давид ( AlexStore)",{"$f":"NOT(ISERROR(SEARCH('Форма ввода'!$C$5,Базаданных[[#This Row],[Клиент]])))","v":false},{"$f":"IF(Базаданных[[#This Row],[Статус]],COUNTIF($Q$2:Базаданных[[#This Row],[Статус]],TRUE),\"\")","v":""},{"$f":"IFERROR(INDEX(Базаданных[Клиент],MATCH(ROWS($R$2:Базаданных[[#This Row],[Индекс]]),Базаданных[Индекс],0)),\"\")","v":""},{"$f":"NOT(ISERROR(SEARCH('Форма ввода'!$C$9,Базаданных[[#This Row],[Чей клиент]])))","v":true},{"$f":"IF(Базаданных[[#This Row],[Статус2]],COUNTIF($T$2:Базаданных[[#This Row],[Статус2]],TRUE),\"\")","v":345},{"$f":"IFERROR(INDEX(Базаданных[Чей клиент],MATCH(ROWS($U$2:Базаданных[[#This Row],[Индекс3]]),Базаданных[Индекс3],0)),\"\")","v":"Нерсесов Давид"},{"$f":"Базаданных[[#This Row],[ДД]]-Базаданных[[#This Row],[ГД]]","v":-14000},{"$f":"Базаданных[[#This Row],[КВ]]-Базаданных[[#This Row],[ГК]]","v":0}]
["2019-04-27T19:03:59.830",43582.79444247685,27,"суббота","Апрель","2019",0,"-",2540,"-",0,"-",0,"-","Нерсесов Давид","Денис (Теплый стан)",{"$f":"NOT(ISERROR(SEARCH('Форма ввода'!$C$5,Базаданных[[#This Row],[Клиент]])))","v":false},{"$f":"IF(Базаданных[[#This Row],[Статус]],COUNTIF($Q$2:Базаданных[[#This Row],[Статус]],TRUE),\"\")","v":""},{"$f":"IFERROR(INDEX(Базаданных[Клиент],MATCH(ROWS($R$2:Базаданных[[#This Row],[Индекс]]),Базаданных[Индекс],0)),\"\")","v":""},{"$f":"NOT(ISERROR(SEARCH('Форма ввода'!$C$9,Базаданных[[#This Row],[Чей клиент]])))","v":true},{"$f":"IF(Базаданных[[#This Row],[Статус2]],COUNTIF($T$2:Базаданных[[#This Row],[Статус2]],TRUE),\"\")","v":346},{"$f":"IFERROR(INDEX(Базаданных[Чей клиент],MATCH(ROWS($U$2:Базаданных[[#This Row],[Индекс3]]),Базаданных[Индекс3],0)),\"\")","v":"Нерсесов Давид"},{"$f":"Базаданных[[#This Row],[ДД]]-Базаданных[[#This Row],[ГД]]","v":-2540},{"$f":"Базаданных[[#This Row],[КВ]]-Базаданных[[#This Row],[ГК]]","v":0}]
["2019-04-27T19:04:19.600",43582.794671296295,27,"суббота","Апрель","2019",0,"-",25000,"-",0,"-",0,"-","Гречихина Юля","ИП Орлов А. (Оренбург)",{"$f":"NOT(ISERROR(SEARCH('Форма ввода'!$C$5,Базаданных[[#This Row],[Клиент]])))","v":false},{"$f":"IF(Базаданных[[#This Row],[Статус]],COUNTIF($Q$2:Базаданных[[#This Row],[Статус]],TRUE),\"\")","v":""},{"$f":"IFERROR(INDEX(Базаданных[Клиент],MATCH(ROWS($R$2:Базаданных[[#This Row],[Индекс]]),Базаданных[Индекс],0)),\"\")","v":""},{"$f":"NOT(ISERROR(SEARCH('Форма ввода'!$C$9,Базаданных[[#This Row],[Чей клиент]])))","v":true},{"$f":"IF(Базаданных[[#This Row],[Статус2]],COUNTIF($T$2:Базаданных[[#This Row],[Статус2]],TRUE),\"\")","v":347},{"$f":"IFERROR(INDEX(Базаданных[Чей клиент],MATCH(ROWS($U$2:Базаданных[[#This Row],[Индекс3]]),Базаданных[Индекс3],0)),\"\")","v":"Гречихина Юля"},{"$f":"Базаданных[[#This Row],[ДД]]-Базаданных[[#This Row],[ГД]]","v":-25000},{"$f":"Базаданных[[#This Row],[КВ]]-Базаданных[[#This Row],[ГК]]","v":0}]
["2019-04-27T19:06:40.460",43582.796301620372,27,"суббота","Апрель","2019",0,"-",0,"-",3900,"-",0,"-","Нерсесов Давид","Надир (К84 Царицино)",{"$f":"NOT(ISERROR(SEARCH('Форма ввода'!$C$5,Базаданных[[#This Row],[Клиент]])))","v":false},{"$f":"IF(Базаданных[[#This Row],[Статус]],COUNTIF($Q$2:Базаданных[[#This Row],[Статус]],TRUE),\"\")","v":""},{"$f":"IFERROR(INDEX(Базаданных[Клиент],MATCH(ROWS($R$2:Базаданных[[#This Row],[Индекс]]),Базаданных[Индекс],0)),\"\")","v":""},{"$f":"NOT(ISERROR(SEARCH('Форма ввода'!$C$9,Базаданных[[#This Row],[Чей клиент]])))","v":true},{"$f":"IF(Базаданных[[#This Row],[Статус2]],COUNTIF($T$2:Базаданных[[#This Row],[Статус2]],TRUE),\"\")","v":348},{"$f":"IFERROR(INDEX(Базаданных[Чей клиент],MATCH(ROWS($U$2:Базаданных[[#This Row],[Индекс3]]),Базаданных[Индекс3],0)),\"\")","v":"Нерсесов Давид"},{"$f":"Базаданных[[#This Row],[ДД]]-Базаданных[[#This Row],[ГД]]","v":0},{"$f":"Базаданных[[#This Row],[КВ]]-Базаданных[[#This Row],[ГК]]","v":3900}]
["2019-04-27T19:16:15.310",43582.802954976854,27,"суббота","Апрель","2019",18900,"-",0,"-",0,"-",0,"-","Нерсесов Давид","Дамир (П-82 Савок)",{"$f":"NOT(ISERROR(SEARCH('Форма ввода'!$C$5,Базаданных[[#This Row],[Клиент]])))","v":false},{"$f":"IF(Базаданных[[#This Row],[Статус]],COUNTIF($Q$2:Базаданных[[#This Row],[Статус]],TRUE),\"\")","v":""},{"$f":"IFERROR(INDEX(Базаданных[Клиент],MATCH(ROWS($R$2:Базаданных[[#This Row],[Индекс]]),Базаданных[Индекс],0)),\"\")","v":""},{"$f":"NOT(ISERROR(SEARCH('Форма ввода'!$C$9,Базаданных[[#This Row],[Чей клиент]])))","v":true},{"$f":"IF(Базаданных[[#This Row],[Статус2]],COUNTIF($T$2:Базаданных[[#This Row],[Статус2]],TRUE),\"\")","v":349},{"$f":"IFERROR(INDEX(Базаданных[Чей клиент],MATCH(ROWS($U$2:Базаданных[[#This Row],[Индекс3]]),Базаданных[Индекс3],0)),\"\")","v":"Нерсесов Давид"},{"$f":"Базаданных[[#This Row],[ДД]]-Базаданных[[#This Row],[ГД]]","v":18900},{"$f":"Базаданных[[#This Row],[КВ]]-Базаданных[[#This Row],[ГК]]","v":0}]
["2019-04-28T18:32:48.860",43583.772787731483,28,"воскресенье","Апрель","2019",0,"-",0,"-",16350,"-",0,"-","Карина Ким","ИП Любкин Владимир Владимирович",{"$f":"NOT(ISERROR(SEARCH('Форма ввода'!$C$5,Базаданных[[#This Row],[Клиент]])))","v":false},{"$f":"IF(Базаданных[[#This Row],[Статус]],COUNTIF($Q$2:Базаданных[[#This Row],[Статус]],TRUE),\"\")","v":""},{"$f":"IFERROR(INDEX(Базаданных[Клиент],MATCH(ROWS($R$2:Базаданных[[#This Row],[Индекс]]),Базаданных[Индекс],0)),\"\")","v":""},{"$f":"NOT(ISERROR(SEARCH('Форма ввода'!$C$9,Базаданных[[#This Row],[Чей клиент]])))","v":true},{"$f":"IF(Базаданных[[#This Row],[Статус2]],COUNTIF($T$2:Базаданных[[#This Row],[Статус2]],TRUE),\"\")","v":350},{"$f":"IFERROR(INDEX(Базаданных[Чей клиент],MATCH(ROWS($U$2:Базаданных[[#This Row],[Индекс3]]),Базаданных[Индекс3],0)),\"\")","v":"Карина Ким"},{"$f":"Базаданных[[#This Row],[ДД]]-Базаданных[[#This Row],[ГД]]","v":0},{"$f":"Базаданных[[#This Row],[КВ]]-Базаданных[[#This Row],[ГК]]","v":16350}]
["2019-04-28T18:34:15.190",43583.773786921294,28,"воскресенье","Апрель","2019",3650,"-",0,"-",0,"-",0,"-","Гречихина Юля","Александр Скупка Добрая (Бауманская)",{"$f":"NOT(ISERROR(SEARCH('Форма ввода'!$C$5,Базаданных[[#This Row],[Клиент]])))","v":false},{"$f":"IF(Базаданных[[#This Row],[Статус]],COUNTIF($Q$2:Базаданных[[#This Row],[Статус]],TRUE),\"\")","v":""},{"$f":"IFERROR(INDEX(Базаданных[Клиент],MATCH(ROWS($R$2:Базаданных[[#This Row],[Индекс]]),Базаданных[Индекс],0)),\"\")","v":""},{"$f":"NOT(ISERROR(SEARCH('Форма ввода'!$C$9,Базаданных[[#This Row],[Чей клиент]])))","v":true},{"$f":"IF(Базаданных[[#This Row],[Статус2]],COUNTIF($T$2:Базаданных[[#This Row],[Статус2]],TRUE),\"\")","v":351},{"$f":"IFERROR(INDEX(Базаданных[Чей клиент],MATCH(ROWS($U$2:Базаданных[[#This Row],[Индекс3]]),Базаданных[Индекс3],0)),\"\")","v":"Гречихина Юля"},{"$f":"Базаданных[[#This Row],[ДД]]-Базаданных[[#This Row],[ГД]]","v":3650},{"$f":"Базаданных[[#This Row],[КВ]]-Базаданных[[#This Row],[ГК]]","v":0}]
["2019-04-28T18:34:40.920",43583.774084722223,28,"воскресенье","Апрель","2019",131390,"-",0,"-",0,"-",0,"-","Нерсесов Давид","Скупка Алтуфьево Андрей",{"$f":"NOT(ISERROR(SEARCH('Форма ввода'!$C$5,Базаданных[[#This Row],[Клиент]])))","v":false},{"$f":"IF(Базаданных[[#This Row],[Статус]],COUNTIF($Q$2:Базаданных[[#This Row],[Статус]],TRUE),\"\")","v":""},{"$f":"IFERROR(INDEX(Базаданных[Клиент],MATCH(ROWS($R$2:Базаданных[[#This Row],[Индекс]]),Базаданных[Индекс],0)),\"\")","v":""},{"$f":"NOT(ISERROR(SEARCH('Форма ввода'!$C$9,Базаданных[[#This Row],[Чей клиент]])))","v":true},{"$f":"IF(Базаданных[[#This Row],[Статус2]],COUNTIF($T$2:Базаданных[[#This Row],[Статус2]],TRUE),\"\")","v":352},{"$f":"IFERROR(INDEX(Базаданных[Чей клиент],MATCH(ROWS($U$2:Базаданных[[#This Row],[Индекс3]]),Базаданных[Индекс3],0)),\"\")","v":"Нерсесов Давид"},{"$f":"Базаданных[[#This Row],[ДД]]-Базаданных[[#This Row],[ГД]]","v":131390},{"$f":"Базаданных[[#This Row],[КВ]]-Базаданных[[#This Row],[ГК]]","v":0}]
["2019-04-28T18:37:40.330",43583.776161226851,28,"воскресенье","Апрель","2019",0,"-",5000,"-",0,"-",0,"-","Гречихина Юля","Илья (Коммисионка Домодедово)",{"$f":"NOT(ISERROR(SEARCH('Форма ввода'!$C$5,Базаданных[[#This Row],[Клиент]])))","v":false},{"$f":"IF(Базаданных[[#This Row],[Статус]],COUNTIF($Q$2:Базаданных[[#This Row],[Статус]],TRUE),\"\")","v":""},{"$f":"IFERROR(INDEX(Базаданных[Клиент],MATCH(ROWS($R$2:Базаданных[[#This Row],[Индекс]]),Базаданных[Индекс],0)),\"\")","v":""},{"$f":"NOT(ISERROR(SEARCH('Форма ввода'!$C$9,Базаданных[[#This Row],[Чей клиент]])))","v":true},{"$f":"IF(Базаданных[[#This Row],[Статус2]],COUNTIF($T$2:Базаданных[[#This Row],[Статус2]],TRUE),\"\")","v":353},{"$f":"IFERROR(INDEX(Базаданных[Чей клиент],MATCH(ROWS($U$2:Базаданных[[#This Row],[Индекс3]]),Базаданных[Индекс3],0)),\"\")","v":"Гречихина Юля"},{"$f":"Базаданных[[#This Row],[ДД]]-Базаданных[[#This Row],[ГД]]","v":-5000},{"$f":"Базаданных[[#This Row],[КВ]]-Базаданных[[#This Row],[ГК]]","v":0}]
["2019-04-29T20:23:41.480",43584.849785648148,29,"понедельник","Апрель","2019",200,"-",0,"-",0,"-",16350,"-","Карина Ким","ИП Любкин Владимир Владимирович",{"$f":"NOT(ISERROR(SEARCH('Форма ввода'!$C$5,Базаданных[[#This Row],[Клиент]])))","v":false},{"$f":"IF(Базаданных[[#This Row],[Статус]],COUNTIF($Q$2:Базаданных[[#This Row],[Статус]],TRUE),\"\")","v":""},{"$f":"IFERROR(INDEX(Базаданных[Клиент],MATCH(ROWS($R$2:Базаданных[[#This Row],[Индекс]]),Базаданных[Индекс],0)),\"\")","v":""},{"$f":"NOT(ISERROR(SEARCH('Форма ввода'!$C$9,Базаданных[[#This Row],[Чей клиент]])))","v":true},{"$f":"IF(Базаданных[[#This Row],[Статус2]],COUNTIF($T$2:Базаданных[[#This Row],[Статус2]],TRUE),\"\")","v":354},{"$f":"IFERROR(INDEX(Базаданных[Чей клиент],MATCH(ROWS($U$2:Базаданных[[#This Row],[Индекс3]]),Базаданных[Индекс3],0)),\"\")","v":"Карина Ким"},{"$f":"Базаданных[[#This Row],[ДД]]-Базаданных[[#This Row],[ГД]]","v":200},{"$f":"Базаданных[[#This Row],[КВ]]-Базаданных[[#This Row],[ГК]]","v":-16350}]
["2019-04-29T20:24:46.650",43584.850539930558,29,"понедельник","Апрель","2019",5160,"-",0,"-",0,"-",0,"-","Нерсесов Давид","Султан (Т-89 Савок)",{"$f":"NOT(ISERROR(SEARCH('Форма ввода'!$C$5,Базаданных[[#This Row],[Клиент]])))","v":false},{"$f":"IF(Базаданных[[#This Row],[Статус]],COUNTIF($Q$2:Базаданных[[#This Row],[Статус]],TRUE),\"\")","v":""},{"$f":"IFERROR(INDEX(Базаданных[Клиент],MATCH(ROWS($R$2:Базаданных[[#This Row],[Индекс]]),Базаданных[Индекс],0)),\"\")","v":""},{"$f":"NOT(ISERROR(SEARCH('Форма ввода'!$C$9,Базаданных[[#This Row],[Чей клиент]])))","v":true},{"$f":"IF(Базаданных[[#This Row],[Статус2]],COUNTIF($T$2:Базаданных[[#This Row],[Статус2]],TRUE),\"\")","v":355},{"$f":"IFERROR(INDEX(Базаданных[Чей клиент],MATCH(ROWS($U$2:Базаданных[[#This Row],[Индекс3]]),Базаданных[Индекс3],0)),\"\")","v":"Нерсесов Давид"},{"$f":"Базаданных[[#This Row],[ДД]]-Базаданных[[#This Row],[ГД]]","v":5160},{"$f":"Базаданных[[#This Row],[КВ]]-Базаданных[[#This Row],[ГК]]","v":0}]
["2019-04-29T20:27:59.150",43584.852767939818,29,"понедельник","Апрель","2019",0,"-",131105,"-",0,"-",1695,"-","Нерсесов Давид","Скупка Алтуфьево Андрей",{"$f":"NOT(ISERROR(SEARCH('Форма ввода'!$C$5,Базаданных[[#This Row],[Клиент]])))","v":false},{"$f":"IF(Базаданных[[#This Row],[Статус]],COUNTIF($Q$2:Базаданных[[#This Row],[Статус]],TRUE),\"\")","v":""},{"$f":"IFERROR(INDEX(Базаданных[Клиент],MATCH(ROWS($R$2:Базаданных[[#This Row],[Индекс]]),Базаданных[Индекс],0)),\"\")","v":""},{"$f":"NOT(ISERROR(SEARCH('Форма ввода'!$C$9,Базаданных[[#This Row],[Чей клиент]])))","v":true},{"$f":"IF(Базаданных[[#This Row],[Статус2]],COUNTIF($T$2:Базаданных[[#This Row],[Статус2]],TRUE),\"\")","v":356},{"$f":"IFERROR(INDEX(Базаданных[Чей клиент],MATCH(ROWS($U$2:Базаданных[[#This Row],[Индекс3]]),Базаданных[Индекс3],0)),\"\")","v":"Нерсесов Давид"},{"$f":"Базаданных[[#This Row],[ДД]]-Базаданных[[#This Row],[ГД]]","v":-131105},{"$f":"Базаданных[[#This Row],[КВ]]-Базаданных[[#This Row],[ГК]]","v":-1695}]
["2019-04-29T20:32:09.500",43584.855665509262,29,"понедельник","Апрель","2019",0,"-",0,"-",0,"-",51500,"-","Пименов Алексей","Максим Калининград",{"$f":"NOT(ISERROR(SEARCH('Форма ввода'!$C$5,Базаданных[[#This Row],[Клиент]])))","v":false},{"$f":"IF(Базаданных[[#This Row],[Статус]],COUNTIF($Q$2:Базаданных[[#This Row],[Статус]],TRUE),\"\")","v":""},{"$f":"IFERROR(INDEX(Базаданных[Клиент],MATCH(ROWS($R$2:Базаданных[[#This Row],[Индекс]]),Базаданных[Индекс],0)),\"\")","v":""},{"$f":"NOT(ISERROR(SEARCH('Форма ввода'!$C$9,Базаданных[[#This Row],[Чей клиент]])))","v":true},{"$f":"IF(Базаданных[[#This Row],[Статус2]],COUNTIF($T$2:Базаданных[[#This Row],[Статус2]],TRUE),\"\")","v":357},{"$f":"IFERROR(INDEX(Базаданных[Чей клиент],MATCH(ROWS($U$2:Базаданных[[#This Row],[Индекс3]]),Базаданных[Индекс3],0)),\"\")","v":"Пименов Алексей"},{"$f":"Базаданных[[#This Row],[ДД]]-Базаданных[[#This Row],[ГД]]","v":0},{"$f":"Базаданных[[#This Row],[КВ]]-Базаданных[[#This Row],[ГК]]","v":-51500}]
["2019-04-29T20:32:56.220",43584.856206249999,29,"понедельник","Апрель","2019",10000,"-",0,"-",0,"-",0,"-","Пименов Алексей","Максим Калининград",{"$f":"NOT(ISERROR(SEARCH('Форма ввода'!$C$5,Базаданных[[#This Row],[Клиент]])))","v":false},{"$f":"IF(Базаданных[[#This Row],[Статус]],COUNTIF($Q$2:Базаданных[[#This Row],[Статус]],TRUE),\"\")","v":""},{"$f":"IFERROR(INDEX(Базаданных[Клиент],MATCH(ROWS($R$2:Базаданных[[#This Row],[Индекс]]),Базаданных[Индекс],0)),\"\")","v":""},{"$f":"NOT(ISERROR(SEARCH('Форма ввода'!$C$9,Базаданных[[#This Row],[Чей клиент]])))","v":true},{"$f":"IF(Базаданных[[#This Row],[Статус2]],COUNTIF($T$2:Базаданных[[#This Row],[Статус2]],TRUE),\"\")","v":358},{"$f":"IFERROR(INDEX(Базаданных[Чей клиент],MATCH(ROWS($U$2:Базаданных[[#This Row],[Индекс3]]),Базаданных[Индекс3],0)),\"\")","v":"Пименов Алексей"},{"$f":"Базаданных[[#This Row],[ДД]]-Базаданных[[#This Row],[ГД]]","v":10000},{"$f":"Базаданных[[#This Row],[КВ]]-Базаданных[[#This Row],[ГК]]","v":0}]
["2019-04-29T20:37:21.610",43584.85927789352,29,"понедельник","Апрель","2019",36160,"-",0,"-",0,"-",0,"-","Пименов Алексей","ИП Кунин Алексей Михайлович",{"$f":"NOT(ISERROR(SEARCH('Форма ввода'!$C$5,Базаданных[[#This Row],[Клиент]])))","v":false},{"$f":"IF(Базаданных[[#This Row],[Статус]],COUNTIF($Q$2:Базаданных[[#This Row],[Статус]],TRUE),\"\")","v":""},{"$f":"IFERROR(INDEX(Базаданных[Клиент],MATCH(ROWS($R$2:Базаданных[[#This Row],[Индекс]]),Базаданных[Индекс],0)),\"\")","v":""},{"$f":"NOT(ISERROR(SEARCH('Форма ввода'!$C$9,Базаданных[[#This Row],[Чей клиент]])))","v":true},{"$f":"IF(Базаданных[[#This Row],[Статус2]],COUNTIF($T$2:Базаданных[[#This Row],[Статус2]],TRUE),\"\")","v":359},{"$f":"IFERROR(INDEX(Базаданных[Чей клиент],MATCH(ROWS($U$2:Базаданных[[#This Row],[Индекс3]]),Базаданных[Индекс3],0)),\"\")","v":"Пименов Алексей"},{"$f":"Базаданных[[#This Row],[ДД]]-Базаданных[[#This Row],[ГД]]","v":36160},{"$f":"Базаданных[[#This Row],[КВ]]-Базаданных[[#This Row],[ГК]]","v":0}]
["2019-04-29T20:39:13.010",43584.86056724537,29,"понедельник","Апрель","2019",0,"-",0,"-",0,"-",4160,"-","Гречихина Юля","Мобсервис",{"$f":"NOT(ISERROR(SEARCH('Форма ввода'!$C$5,Базаданных[[#This Row],[Клиент]])))","v":false},{"$f":"IF(Базаданных[[#This Row],[Статус]],COUNTIF($Q$2:Базаданных[[#This Row],[Статус]],TRUE),\"\")","v":""},{"$f":"IFERROR(INDEX(Базаданных[Клиент],MATCH(ROWS($R$2:Базаданных[[#This Row],[Индекс]]),Базаданных[Индекс],0)),\"\")","v":""},{"$f":"NOT(ISERROR(SEARCH('Форма ввода'!$C$9,Базаданных[[#This Row],[Чей клиент]])))","v":true},{"$f":"IF(Базаданных[[#This Row],[Статус2]],COUNTIF($T$2:Базаданных[[#This Row],[Статус2]],TRUE),\"\")","v":360},{"$f":"IFERROR(INDEX(Базаданных[Чей клиент],MATCH(ROWS($U$2:Базаданных[[#This Row],[Индекс3]]),Базаданных[Индекс3],0)),\"\")","v":"Гречихина Юля"},{"$f":"Базаданных[[#This Row],[ДД]]-Базаданных[[#This Row],[ГД]]","v":0},{"$f":"Базаданных[[#This Row],[КВ]]-Базаданных[[#This Row],[ГК]]","v":-4160}]
["2019-04-29T20:42:17.530",43584.862702893515,29,"понедельник","Апрель","2019",24400,"-",0,"-",0,"-",0,"-","Гречихина Юля","Комиссионка Щербинка",{"$f":"NOT(ISERROR(SEARCH('Форма ввода'!$C$5,Базаданных[[#This Row],[Клиент]])))","v":false},{"$f":"IF(Базаданных[[#This Row],[Статус]],COUNTIF($Q$2:Базаданных[[#This Row],[Статус]],TRUE),\"\")","v":""},{"$f":"IFERROR(INDEX(Базаданных[Клиент],MATCH(ROWS($R$2:Базаданных[[#This Row],[Индекс]]),Базаданных[Индекс],0)),\"\")","v":""},{"$f":"NOT(ISERROR(SEARCH('Форма ввода'!$C$9,Базаданных[[#This Row],[Чей клиент]])))","v":true},{"$f":"IF(Базаданных[[#This Row],[Статус2]],COUNTIF($T$2:Базаданных[[#This Row],[Статус2]],TRUE),\"\")","v":361},{"$f":"IFERROR(INDEX(Базаданных[Чей клиент],MATCH(ROWS($U$2:Базаданных[[#This Row],[Индекс3]]),Базаданных[Индекс3],0)),\"\")","v":"Гречихина Юля"},{"$f":"Базаданных[[#This Row],[ДД]]-Базаданных[[#This Row],[ГД]]","v":24400},{"$f":"Базаданных[[#This Row],[КВ]]-Базаданных[[#This Row],[ГК]]","v":0}]
["2019-04-29T20:45:52.650",43584.865192708334,29,"понедельник","Апрель","2019",23600,"-",0,"-",0,"-",0,"-","Гречихина Юля","Паша (Комиссионка Бутово)",{"$f":"NOT(ISERROR(SEARCH('Форма ввода'!$C$5,Базаданных[[#This Row],[Клиент]])))","v":false},{"$f":"IF(Базаданных[[#This Row],[Статус]],COUNTIF($Q$2:Базаданных[[#This Row],[Статус]],TRUE),\"\")","v":""},{"$f":"IFERROR(INDEX(Базаданных[Клиент],MATCH(ROWS($R$2:Базаданных[[#This Row],[Индекс]]),Базаданных[Индекс],0)),\"\")","v":""},{"$f":"NOT(ISERROR(SEARCH('Форма ввода'!$C$9,Базаданных[[#This Row],[Чей клиент]])))","v":true},{"$f":"IF(Базаданных[[#This Row],[Статус2]],COUNTIF($T$2:Базаданных[[#This Row],[Статус2]],TRUE),\"\")","v":362},{"$f":"IFERROR(INDEX(Базаданных[Чей клиент],MATCH(ROWS($U$2:Базаданных[[#This Row],[Индекс3]]),Базаданных[Индекс3],0)),\"\")","v":"Гречихина Юля"},{"$f":"Базаданных[[#This Row],[ДД]]-Базаданных[[#This Row],[ГД]]","v":23600},{"$f":"Базаданных[[#This Row],[КВ]]-Базаданных[[#This Row],[ГК]]","v":0}]
["2019-04-29T20:46:42.920",43584.865774537036,29,"понедельник","Апрель","2019",4200,"-",0,"-",0,"-",0,"-","Гречихина Юля","Дмитрий (Комиссионка Подольск)",{"$f":"NOT(ISERROR(SEARCH('Форма ввода'!$C$5,Базаданных[[#This Row],[Клиент]])))","v":false},{"$f":"IF(Базаданных[[#This Row],[Статус]],COUNTIF($Q$2:Базаданных[[#This Row],[Статус]],TRUE),\"\")","v":""},{"$f":"IFERROR(INDEX(Базаданных[Клиент],MATCH(ROWS($R$2:Базаданных[[#This Row],[Индекс]]),Базаданных[Индекс],0)),\"\")","v":""},{"$f":"NOT(ISERROR(SEARCH('Форма ввода'!$C$9,Базаданных[[#This Row],[Чей клиент]])))","v":true},{"$f":"IF(Базаданных[[#This Row],[Статус2]],COUNTIF($T$2:Базаданных[[#This Row],[Статус2]],TRUE),\"\")","v":363},{"$f":"IFERROR(INDEX(Базаданных[Чей клиент],MATCH(ROWS($U$2:Базаданных[[#This Row],[Индекс3]]),Базаданных[Индекс3],0)),\"\")","v":"Гречихина Юля"},{"$f":"Базаданных[[#This Row],[ДД]]-Базаданных[[#This Row],[ГД]]","v":4200},{"$f":"Базаданных[[#This Row],[КВ]]-Базаданных[[#This Row],[ГК]]","v":0}]
["2019-04-29T20:48:14.650",43584.866836226851,29,"понедельник","Апрель","2019",0,"-",0,"-",0,"-",3940,"-","Нерсесов Давид","Надир (К84 Царицино)",{"$f":"NOT(ISERROR(SEARCH('Форма ввода'!$C$5,Базаданных[[#This Row],[Клиент]])))","v":false},{"$f":"IF(Базаданных[[#This Row],[Статус]],COUNTIF($Q$2:Базаданных[[#This Row],[Статус]],TRUE),\"\")","v":""},{"$f":"IFERROR(INDEX(Базаданных[Клиент],MATCH(ROWS($R$2:Базаданных[[#This Row],[Индекс]]),Базаданных[Индекс],0)),\"\")","v":""},{"$f":"NOT(ISERROR(SEARCH('Форма ввода'!$C$9,Базаданных[[#This Row],[Чей клиент]])))","v":true},{"$f":"IF(Базаданных[[#This Row],[Статус2]],COUNTIF($T$2:Базаданных[[#This Row],[Статус2]],TRUE),\"\")","v":364},{"$f":"IFERROR(INDEX(Базаданных[Чей клиент],MATCH(ROWS($U$2:Базаданных[[#This Row],[Индекс3]]),Базаданных[Индекс3],0)),\"\")","v":"Нерсесов Давид"},{"$f":"Базаданных[[#This Row],[ДД]]-Базаданных[[#This Row],[ГД]]","v":0},{"$f":"Базаданных[[#This Row],[КВ]]-Базаданных[[#This Row],[ГК]]","v":-3940}]
["2019-04-30T12:53:24.460",43585.537088657409,30,"вторник","Апрель","2019",0,"-",18000,"-",0,"-",0,"-","Нерсесов Давид","Дамир (П-82 Савок)",{"$f":"NOT(ISERROR(SEARCH('Форма ввода'!$C$5,Базаданных[[#This Row],[Клиент]])))","v":false},{"$f":"IF(Базаданных[[#This Row],[Статус]],COUNTIF($Q$2:Базаданных[[#This Row],[Статус]],TRUE),\"\")","v":""},{"$f":"IFERROR(INDEX(Базаданных[Клиент],MATCH(ROWS($R$2:Базаданных[[#This Row],[Индекс]]),Базаданных[Индекс],0)),\"\")","v":""},{"$f":"NOT(ISERROR(SEARCH('Форма ввода'!$C$9,Базаданных[[#This Row],[Чей клиент]])))","v":true},{"$f":"IF(Базаданных[[#This Row],[Статус2]],COUNTIF($T$2:Базаданных[[#This Row],[Статус2]],TRUE),\"\")","v":365},{"$f":"IFERROR(INDEX(Базаданных[Чей клиент],MATCH(ROWS($U$2:Базаданных[[#This Row],[Индекс3]]),Базаданных[Индекс3],0)),\"\")","v":"Нерсесов Давид"},{"$f":"Базаданных[[#This Row],[ДД]]-Базаданных[[#This Row],[ГД]]","v":-18000},{"$f":"Базаданных[[#This Row],[КВ]]-Базаданных[[#This Row],[ГК]]","v":0}]
["2019-04-30T13:54:17.650",43585.579370949075,30,"вторник","Апрель","2019",0,"-",0,"-",0,"-",100,"-","Пименов Алексей","Михаил (Мегафон)",{"$f":"NOT(ISERROR(SEARCH('Форма ввода'!$C$5,Базаданных[[#This Row],[Клиент]])))","v":false},{"$f":"IF(Базаданных[[#This Row],[Статус]],COUNTIF($Q$2:Базаданных[[#This Row],[Статус]],TRUE),\"\")","v":""},{"$f":"IFERROR(INDEX(Базаданных[Клиент],MATCH(ROWS($R$2:Базаданных[[#This Row],[Индекс]]),Базаданных[Индекс],0)),\"\")","v":""},{"$f":"NOT(ISERROR(SEARCH('Форма ввода'!$C$9,Базаданных[[#This Row],[Чей клиент]])))","v":true},{"$f":"IF(Базаданных[[#This Row],[Статус2]],COUNTIF($T$2:Базаданных[[#This Row],[Статус2]],TRUE),\"\")","v":366},{"$f":"IFERROR(INDEX(Базаданных[Чей клиент],MATCH(ROWS($U$2:Базаданных[[#This Row],[Индекс3]]),Базаданных[Индекс3],0)),\"\")","v":"Пименов Алексей"},{"$f":"Базаданных[[#This Row],[ДД]]-Базаданных[[#This Row],[ГД]]","v":0},{"$f":"Базаданных[[#This Row],[КВ]]-Базаданных[[#This Row],[ГК]]","v":-100}]
["2019-04-30T14:40:52.260",43585.61171597222,30,"вторник","Апрель","2019",0,"-",23600,"-",0,"-",0,"-","Гречихина Юля","Паша (Комиссионка Бутово)",{"$f":"NOT(ISERROR(SEARCH('Форма ввода'!$C$5,Базаданных[[#This Row],[Клиент]])))","v":false},{"$f":"IF(Базаданных[[#This Row],[Статус]],COUNTIF($Q$2:Базаданных[[#This Row],[Статус]],TRUE),\"\")","v":""},{"$f":"IFERROR(INDEX(Базаданных[Клиент],MATCH(ROWS($R$2:Базаданных[[#This Row],[Индекс]]),Базаданных[Индекс],0)),\"\")","v":""},{"$f":"NOT(ISERROR(SEARCH('Форма ввода'!$C$9,Базаданных[[#This Row],[Чей клиент]])))","v":true},{"$f":"IF(Базаданных[[#This Row],[Статус2]],COUNTIF($T$2:Базаданных[[#This Row],[Статус2]],TRUE),\"\")","v":367},{"$f":"IFERROR(INDEX(Базаданных[Чей клиент],MATCH(ROWS($U$2:Базаданных[[#This Row],[Индекс3]]),Базаданных[Индекс3],0)),\"\")","v":"Гречихина Юля"},{"$f":"Базаданных[[#This Row],[ДД]]-Базаданных[[#This Row],[ГД]]","v":-23600},{"$f":"Базаданных[[#This Row],[КВ]]-Базаданных[[#This Row],[ГК]]","v":0}]
["2019-04-30T14:41:21.970",43585.612059837964,30,"вторник","Апрель","2019",0,"-",200,"-",0,"-",0,"-","Карина Ким","ИП Любкин Владимир Владимирович",{"$f":"NOT(ISERROR(SEARCH('Форма ввода'!$C$5,Базаданных[[#This Row],[Клиент]])))","v":false},{"$f":"IF(Базаданных[[#This Row],[Статус]],COUNTIF($Q$2:Базаданных[[#This Row],[Статус]],TRUE),\"\")","v":""},{"$f":"IFERROR(INDEX(Базаданных[Клиент],MATCH(ROWS($R$2:Базаданных[[#This Row],[Индекс]]),Базаданных[Индекс],0)),\"\")","v":""},{"$f":"NOT(ISERROR(SEARCH('Форма ввода'!$C$9,Базаданных[[#This Row],[Чей клиент]])))","v":true},{"$f":"IF(Базаданных[[#This Row],[Статус2]],COUNTIF($T$2:Базаданных[[#This Row],[Статус2]],TRUE),\"\")","v":368},{"$f":"IFERROR(INDEX(Базаданных[Чей клиент],MATCH(ROWS($U$2:Базаданных[[#This Row],[Индекс3]]),Базаданных[Индекс3],0)),\"\")","v":"Карина Ким"},{"$f":"Базаданных[[#This Row],[ДД]]-Базаданных[[#This Row],[ГД]]","v":-200},{"$f":"Базаданных[[#This Row],[КВ]]-Базаданных[[#This Row],[ГК]]","v":0}]
["2019-04-30T14:48:25.050",43585.616956597223,30,"вторник","Апрель","2019",0,"-",35000,"-",0,"-",0,"-","Пименов Алексей","ИП Кунин Алексей Михайлович",{"$f":"NOT(ISERROR(SEARCH('Форма ввода'!$C$5,Базаданных[[#This Row],[Клиент]])))","v":false},{"$f":"IF(Базаданных[[#This Row],[Статус]],COUNTIF($Q$2:Базаданных[[#This Row],[Статус]],TRUE),\"\")","v":""},{"$f":"IFERROR(INDEX(Базаданных[Клиент],MATCH(ROWS($R$2:Базаданных[[#This Row],[Индекс]]),Базаданных[Индекс],0)),\"\")","v":""},{"$f":"NOT(ISERROR(SEARCH('Форма ввода'!$C$9,Базаданных[[#This Row],[Чей клиент]])))","v":true},{"$f":"IF(Базаданных[[#This Row],[Статус2]],COUNTIF($T$2:Базаданных[[#This Row],[Статус2]],TRUE),\"\")","v":369},{"$f":"IFERROR(INDEX(Базаданных[Чей клиент],MATCH(ROWS($U$2:Базаданных[[#This Row],[Индекс3]]),Базаданных[Индекс3],0)),\"\")","v":"Пименов Алексей"},{"$f":"Базаданных[[#This Row],[ДД]]-Базаданных[[#This Row],[ГД]]","v":-35000},{"$f":"Базаданных[[#This Row],[КВ]]-Базаданных[[#This Row],[ГК]]","v":0}]
["2019-04-30T16:26:07.200",43585.684805555553,30,"вторник","Апрель","2019",26250,"-",0,"-",0,"-",0,"-","Пименов Алексей","Ольга Зыкова",{"$f":"NOT(ISERROR(SEARCH('Форма ввода'!$C$5,Базаданных[[#This Row],[Клиент]])))","v":false},{"$f":"IF(Базаданных[[#This Row],[Статус]],COUNTIF($Q$2:Базаданных[[#This Row],[Статус]],TRUE),\"\")","v":""},{"$f":"IFERROR(INDEX(Базаданных[Клиент],MATCH(ROWS($R$2:Базаданных[[#This Row],[Индекс]]),Базаданных[Индекс],0)),\"\")","v":""},{"$f":"NOT(ISERROR(SEARCH('Форма ввода'!$C$9,Базаданных[[#This Row],[Чей клиент]])))","v":true},{"$f":"IF(Базаданных[[#This Row],[Статус2]],COUNTIF($T$2:Базаданных[[#This Row],[Статус2]],TRUE),\"\")","v":370},{"$f":"IFERROR(INDEX(Базаданных[Чей клиент],MATCH(ROWS($U$2:Базаданных[[#This Row],[Индекс3]]),Базаданных[Индекс3],0)),\"\")","v":"Пименов Алексей"},{"$f":"Базаданных[[#This Row],[ДД]]-Базаданных[[#This Row],[ГД]]","v":26250},{"$f":"Базаданных[[#This Row],[КВ]]-Базаданных[[#This Row],[ГК]]","v":0}]
["2019-04-30T19:17:27.790",43585.803793865744,30,"вторник","Апрель","2019",0,"-",0,"-",58900,"-",0,"-","Пименов Алексей","Магомед Махачкала",{"$f":"NOT(ISERROR(SEARCH('Форма ввода'!$C$5,Базаданных[[#This Row],[Клиент]])))","v":false},{"$f":"IF(Базаданных[[#This Row],[Статус]],COUNTIF($Q$2:Базаданных[[#This Row],[Статус]],TRUE),\"\")","v":""},{"$f":"IFERROR(INDEX(Базаданных[Клиент],MATCH(ROWS($R$2:Базаданных[[#This Row],[Индекс]]),Базаданных[Индекс],0)),\"\")","v":""},{"$f":"NOT(ISERROR(SEARCH('Форма ввода'!$C$9,Базаданных[[#This Row],[Чей клиент]])))","v":true},{"$f":"IF(Базаданных[[#This Row],[Статус2]],COUNTIF($T$2:Базаданных[[#This Row],[Статус2]],TRUE),\"\")","v":371},{"$f":"IFERROR(INDEX(Базаданных[Чей клиент],MATCH(ROWS($U$2:Базаданных[[#This Row],[Индекс3]]),Базаданных[Индекс3],0)),\"\")","v":"Пименов Алексей"},{"$f":"Базаданных[[#This Row],[ДД]]-Базаданных[[#This Row],[ГД]]","v":0},{"$f":"Базаданных[[#This Row],[КВ]]-Базаданных[[#This Row],[ГК]]","v":58900}]
["2019-04-30T19:24:17.440",43585.808535185184,30,"вторник","Апрель","2019",0,"-",8800,"-",0,"-",0,"-","Гречихина Юля","Дмитрий (Комиссионка Подольск)",{"$f":"NOT(ISERROR(SEARCH('Форма ввода'!$C$5,Базаданных[[#This Row],[Клиент]])))","v":false},{"$f":"IF(Базаданных[[#This Row],[Статус]],COUNTIF($Q$2:Базаданных[[#This Row],[Статус]],TRUE),\"\")","v":""},{"$f":"IFERROR(INDEX(Базаданных[Клиент],MATCH(ROWS($R$2:Базаданных[[#This Row],[Индекс]]),Базаданных[Индекс],0)),\"\")","v":""},{"$f":"NOT(ISERROR(SEARCH('Форма ввода'!$C$9,Базаданных[[#This Row],[Чей клиент]])))","v":true},{"$f":"IF(Базаданных[[#This Row],[Статус2]],COUNTIF($T$2:Базаданных[[#This Row],[Статус2]],TRUE),\"\")","v":372},{"$f":"IFERROR(INDEX(Базаданных[Чей клиент],MATCH(ROWS($U$2:Базаданных[[#This Row],[Индекс3]]),Базаданных[Индекс3],0)),\"\")","v":"Гречихина Юля"},{"$f":"Базаданных[[#This Row],[ДД]]-Базаданных[[#This Row],[ГД]]","v":-8800},{"$f":"Базаданных[[#This Row],[КВ]]-Базаданных[[#This Row],[ГК]]","v":0}]
["2019-04-30T19:25:38.590",43585.809474421294,30,"вторник","Апрель","2019",4850,"-",0,"-",0,"-",0,"-","Нерсесов Давид","Василий T-95 (Савеловский)",{"$f":"NOT(ISERROR(SEARCH('Форма ввода'!$C$5,Базаданных[[#This Row],[Клиент]])))","v":false},{"$f":"IF(Базаданных[[#This Row],[Статус]],COUNTIF($Q$2:Базаданных[[#This Row],[Статус]],TRUE),\"\")","v":""},{"$f":"IFERROR(INDEX(Базаданных[Клиент],MATCH(ROWS($R$2:Базаданных[[#This Row],[Индекс]]),Базаданных[Индекс],0)),\"\")","v":""},{"$f":"NOT(ISERROR(SEARCH('Форма ввода'!$C$9,Базаданных[[#This Row],[Чей клиент]])))","v":true},{"$f":"IF(Базаданных[[#This Row],[Статус2]],COUNTIF($T$2:Базаданных[[#This Row],[Статус2]],TRUE),\"\")","v":373},{"$f":"IFERROR(INDEX(Базаданных[Чей клиент],MATCH(ROWS($U$2:Базаданных[[#This Row],[Индекс3]]),Базаданных[Индекс3],0)),\"\")","v":"Нерсесов Давид"},{"$f":"Базаданных[[#This Row],[ДД]]-Базаданных[[#This Row],[ГД]]","v":4850},{"$f":"Базаданных[[#This Row],[КВ]]-Базаданных[[#This Row],[ГК]]","v":0}]
["2019-04-30T19:27:00.800",43585.810425925927,30,"вторник","Апрель","2019",23100,"-",0,"-",0,"-",0,"-","Нерсесов Давид","Султан (Т-89 Савок)",{"$f":"NOT(ISERROR(SEARCH('Форма ввода'!$C$5,Базаданных[[#This Row],[Клиент]])))","v":false},{"$f":"IF(Базаданных[[#This Row],[Статус]],COUNTIF($Q$2:Базаданных[[#This Row],[Статус]],TRUE),\"\")","v":""},{"$f":"IFERROR(INDEX(Базаданных[Клиент],MATCH(ROWS($R$2:Базаданных[[#This Row],[Индекс]]),Базаданных[Индекс],0)),\"\")","v":""},{"$f":"NOT(ISERROR(SEARCH('Форма ввода'!$C$9,Базаданных[[#This Row],[Чей клиент]])))","v":true},{"$f":"IF(Базаданных[[#This Row],[Статус2]],COUNTIF($T$2:Базаданных[[#This Row],[Статус2]],TRUE),\"\")","v":374},{"$f":"IFERROR(INDEX(Базаданных[Чей клиент],MATCH(ROWS($U$2:Базаданных[[#This Row],[Индекс3]]),Базаданных[Индекс3],0)),\"\")","v":"Нерсесов Давид"},{"$f":"Базаданных[[#This Row],[ДД]]-Базаданных[[#This Row],[ГД]]","v":23100},{"$f":"Базаданных[[#This Row],[КВ]]-Базаданных[[#This Row],[ГК]]","v":0}]
["2019-04-30T19:27:48.560",43585.810978703703,30,"вторник","Апрель","2019",0,"-",7800,"-",0,"-",0,"-","Нерсесов Давид","Нерсесов Давид ( AlexStore)",{"$f":"NOT(ISERROR(SEARCH('Форма ввода'!$C$5,Базаданных[[#This Row],[Клиент]])))","v":false},{"$f":"IF(Базаданных[[#This Row],[Статус]],COUNTIF($Q$2:Базаданных[[#This Row],[Статус]],TRUE),\"\")","v":""},{"$f":"IFERROR(INDEX(Базаданных[Клиент],MATCH(ROWS($R$2:Базаданных[[#This Row],[Индекс]]),Базаданных[Индекс],0)),\"\")","v":""},{"$f":"NOT(ISERROR(SEARCH('Форма ввода'!$C$9,Базаданных[[#This Row],[Чей клиент]])))","v":true},{"$f":"IF(Базаданных[[#This Row],[Статус2]],COUNTIF($T$2:Базаданных[[#This Row],[Статус2]],TRUE),\"\")","v":375},{"$f":"IFERROR(INDEX(Базаданных[Чей клиент],MATCH(ROWS($U$2:Базаданных[[#This Row],[Индекс3]]),Базаданных[Индекс3],0)),\"\")","v":"Нерсесов Давид"},{"$f":"Базаданных[[#This Row],[ДД]]-Базаданных[[#This Row],[ГД]]","v":-7800},{"$f":"Базаданных[[#This Row],[КВ]]-Базаданных[[#This Row],[ГК]]","v":0}]
["2019-04-30T19:30:02.230",43585.812525810186,30,"вторник","Апрель","2019",7000,"-",0,"-",0,"-",0,"-","Гречихина Юля","Николай Саргисян",{"$f":"NOT(ISERROR(SEARCH('Форма ввода'!$C$5,Базаданных[[#This Row],[Клиент]])))","v":false},{"$f":"IF(Базаданных[[#This Row],[Статус]],COUNTIF($Q$2:Базаданных[[#This Row],[Статус]],TRUE),\"\")","v":""},{"$f":"IFERROR(INDEX(Базаданных[Клиент],MATCH(ROWS($R$2:Базаданных[[#This Row],[Индекс]]),Базаданных[Индекс],0)),\"\")","v":""},{"$f":"NOT(ISERROR(SEARCH('Форма ввода'!$C$9,Базаданных[[#This Row],[Чей клиент]])))","v":true},{"$f":"IF(Базаданных[[#This Row],[Статус2]],COUNTIF($T$2:Базаданных[[#This Row],[Статус2]],TRUE),\"\")","v":376},{"$f":"IFERROR(INDEX(Базаданных[Чей клиент],MATCH(ROWS($U$2:Базаданных[[#This Row],[Индекс3]]),Базаданных[Индекс3],0)),\"\")","v":"Гречихина Юля"},{"$f":"Базаданных[[#This Row],[ДД]]-Базаданных[[#This Row],[ГД]]","v":7000},{"$f":"Базаданных[[#This Row],[КВ]]-Базаданных[[#This Row],[ГК]]","v":0}]
["2019-04-30T19:50:42.810",43585.826884374997,30,"вторник","Апрель","2019",0,"-",24400,"-",0,"-",0,"-","Гречихина Юля","Комиссионка Щербинка",{"$f":"NOT(ISERROR(SEARCH('Форма ввода'!$C$5,Базаданных[[#This Row],[Клиент]])))","v":false},{"$f":"IF(Базаданных[[#This Row],[Статус]],COUNTIF($Q$2:Базаданных[[#This Row],[Статус]],TRUE),\"\")","v":""},{"$f":"IFERROR(INDEX(Базаданных[Клиент],MATCH(ROWS($R$2:Базаданных[[#This Row],[Индекс]]),Базаданных[Индекс],0)),\"\")","v":""},{"$f":"NOT(ISERROR(SEARCH('Форма ввода'!$C$9,Базаданных[[#This Row],[Чей клиент]])))","v":true},{"$f":"IF(Базаданных[[#This Row],[Статус2]],COUNTIF($T$2:Базаданных[[#This Row],[Статус2]],TRUE),\"\")","v":377},{"$f":"IFERROR(INDEX(Базаданных[Чей клиент],MATCH(ROWS($U$2:Базаданных[[#This Row],[Индекс3]]),Базаданных[Индекс3],0)),\"\")","v":"Гречихина Юля"},{"$f":"Базаданных[[#This Row],[ДД]]-Базаданных[[#This Row],[ГД]]","v":-24400},{"$f":"Базаданных[[#This Row],[КВ]]-Базаданных[[#This Row],[ГК]]","v":0}]